Workbook

Sheet Report - ALL (DASHBOARD)
A2: Dashboard | B2: Select Parameter: | F2: Select Statistic: | I2: Select Seasonal Period: | L2: Do you want to convert CFS values to TAF/Mon? | W2: 5
W3: 1
W4: 12
L5: News | W5: TRUE
L6: - parameter list updated to include all items on the appendix list (in addition to other locations of interest)
L7: - year type sorting is now done by calendar year
L8: - year type sorting is provided for 60-20-20 index as well as 40-30-30 index
L9: - format modified to be consistent with appendix reports
L10: - check out the new spinners!
B13: =CONCATENATE('Report Data'!$P$7," / seasonal statistics (",$W$2,"-",$W$3,"-",$W$4,"-",IF(NOT($W$5),1,2),"a):") -> Shasta Storage / seasonal statistics (5-1-12-2a):
C17: ='Report Data'!P6 -> September
C18: ='Report Data'!P7 -> Shasta Storage
C19: ='Report Data'!P9 -> (S4/STORAGE)
C20: ='Report Data'!P8 -> Averages
C21: ='Report Data'!P11 -> Volume (TAF) | F21: =CONCATENATE("Difference from ",'Report Data'!Q13) -> Difference from NAA 011221
C25: =IF('Report Data'!O14=0,"",'Report Data'!O14) -> NAA 011221 | E25: =IFERROR('Report Data'!P14,"") -> 2890.082635
C26: =IF('Report Data'!O15=0,"",'Report Data'!O15) -> Alt 1A 011221 | E26: =IFERROR('Report Data'!P15,"") -> 2901.737856 | F26: =IFERROR('Report Data'!Q15,"") -> 11.65522026
C27: =IF('Report Data'!O16=0,"",'Report Data'!O16) -> Alt 1B 011221 | E27: =IFERROR('Report Data'!P16,"") -> 2918.561459 | F27: =IFERROR('Report Data'!Q16,"") -> 28.47882406
C28: =IF('Report Data'!O17=0,"",'Report Data'!O17) -> Alt 2 011221 | E28: =IFERROR('Report Data'!P17,"") -> 2899.720667 | F28: =IFERROR('Report Data'!Q17,"") -> 9.638031348
C29: =IF('Report Data'!O18=0,"",'Report Data'!O18) -> Alt 3 012221 | E29: =IFERROR('Report Data'!P18,"") -> 2961.104297 | F29: =IFERROR('Report Data'!Q18,"") -> 71.02166146
C30: =IF('Report Data'!O19=0,"",'Report Data'!O19) -> Alt 3 012221 SA Proportional | E30: =IFERROR('Report Data'!P19,"") -> 2964.274184 | F30: =IFERROR('Report Data'!Q19,"") -> 74.19154883
B60: =CONCATENATE('Report Data'!$P$7," / monthly statistics (",$W$2,"-",$W$3,"-",$W$4,"-",IF(NOT($W$5),1,2),"b):") -> Shasta Storage / monthly statistics (5-1-12-2b):
B88: =CONCATENATE('Report Data'!$P$7," / time series (",$W$2,"-",$W$3,"-",$W$4,"-",IF(NOT($W$5),1,2),"c):") -> Shasta Storage / time series (5-1-12-2c):

Sheet Report Data
A2: Information, Tables and Calculations for Reports
A4: Table of Selected Values for Monthly Chart: | O4: Trend Evaluation: | U4: Water Year Type Averages:
A6: Title: | B6: ='Compile Data'!$B$5 -> Shasta Storage | O6: Title: | P6: =INDEX(Other!$B$9:$B$33,'Report - ALL (DASHBOARD)'!$W$4) -> September | U6: Title: | V6: =INDEX(Other!$B$9:$B$33,'Report - ALL (DASHBOARD)'!$W$4) -> September
B7: =INDEX(Other!$C$9:$C$35,'Report - ALL (DASHBOARD)'!$W$3) -> Averages | P7: ='Compile Data'!$B$5 -> Shasta Storage | V7: ='Compile Data'!$B$5 -> Shasta Storage
B8: =CONCATENATE("(",'Compile Data'!$B$6,"/",'Compile Data'!$B$7,")") -> (S4/STORAGE) | P8: =CONCATENATE(INDEX(Other!$C$9:$C$35,'Report - ALL (DASHBOARD)'!$W$3)," ",IF('Report - ALL (DASHBOARD)'!$W$3>4,IF(AND('Compile Data'!$B$10="TAF",'Compile Data'!$B$8="PER-AVER"),"Totals","Averages"),"")) -> Averages | V8: =CONCATENATE(INDEX(Other!$C$9:$C$35,'Report - ALL (DASHBOARD)'!$W$3)," ",IF('Report - ALL (DASHBOARD)'!$W$3>4,IF(AND('Compile Data'!$B$10="TAF",'Compile Data'!$B$8="PER-AVER"),"Totals","Averages"),"")) -> Averages
P9: =CONCATENATE("(",'Compile Data'!$B$6,"/",'Compile Data'!$B$7,")") -> (S4/STORAGE) | V9: =CONCATENATE("(",'Compile Data'!$B$6,"/",'Compile Data'!$B$7,")") -> (S4/STORAGE)
A11: Y-axis: | B11: =IF('Compile Data'!$B$10="CFS","Flow (CFS)",IF('Compile Data'!$B$10="TAF","Volume (TAF)",IF('Compile Data'!$B$10="KM","POSITION (KM)",""))) -> Volume (TAF) | P11: =IF('Compile Data'!$B$10="CFS","Flow (CFS)",IF('Compile Data'!$B$10="TAF","Volume (TAF)",IF('Compile Data'!$B$10="KM","POSITION (KM)",""))) -> Volume (TAF) | V11: =IF('Compile Data'!$B$10="CFS","Flow (CFS)",IF('Compile Data'!$B$10="TAF","Volume (TAF)",IF('Compile Data'!$B$10="KM","POSITION (KM)",""))) -> Volume (TAF)
Q12: Diff from | R12: Diff from
B13: OCT | C13: NOV | D13: DEC | E13: JAN | F13: FEB | G13: MAR | H13: APR | I13: MAY | J13: JUN | K13: JUL | L13: AUG | M13: SEP | P13: Value | Q13: =$O$14 -> NAA 011221 | R13: =$O$15 -> Alt 1A 011221 | V13: Wet | W13: Above Normal | X13: Below Normal | Y13: Dry | Z13: Critically Dry
A14: ='Compile Data'!$B$1 -> NAA 011221 | B14: =INDEX('Compile Data'!L$95:L$120,'Report - ALL (DASHBOARD)'!$W$3) -> 2792.985359 | C14: =INDEX('Compile Data'!M$95:M$120,'Report - ALL (DASHBOARD)'!$W$3) -> 2787.718886 | D14: =INDEX('Compile Data'!N$95:N$120,'Report - ALL (DASHBOARD)'!$W$3) -> 2914.473599 | E14: =INDEX('Compile Data'!O$95:O$120,'Report - ALL (DASHBOARD)'!$W$3) -> 3156.698892 | F14: =INDEX('Compile Data'!P$95:P$120,'Report - ALL (DASHBOARD)'!$W$3) -> 3392.931591 | G14: =INDEX('Compile Data'!Q$95:Q$120,'Report - ALL (DASHBOARD)'!$W$3) -> 3737.645085 | H14: =INDEX('Compile Data'!R$95:R$120,'Report - ALL (DASHBOARD)'!$W$3) -> 4098.869725 | I14: =INDEX('Compile Data'!S$95:S$120,'Report - ALL (DASHBOARD)'!$W$3) -> 4091.204852 | J14: =INDEX('Compile Data'!T$95:T$120,'Report - ALL (DASHBOARD)'!$W$3) -> 3823.002799 | K14: =INDEX('Compile Data'!U$95:U$120,'Report - ALL (DASHBOARD)'!$W$3) -> 3353.734363 | L14: =INDEX('Compile Data'!V$95:V$120,'Report - ALL (DASHBOARD)'!$W$3) -> 3028.584778 | M14: =INDEX('Compile Data'!W$95:W$120,'Report - ALL (DASHBOARD)'!$W$3) -> 2890.082635 | O14: ='Compile Data'!$B$1 -> NAA 011221 | P14: =INDEX('Compile Data'!$L$95:$AI$120,'Report - ALL (DASHBOARD)'!$W$3,'Report - ALL (DASHBOARD)'!$W$4) -> 2890.082635 | U14: ='Compile Data'!$B$1 -> NAA 011221 | V14: =INDEX('Compile Data'!$L$95:$AI$120,14,'Report - ALL (DASHBOARD)'!$W$4) -> 3303.692814 | W14: =INDEX('Compile Data'!$L$95:$AI$120,15,'Report - ALL (DASHBOARD)'!$W$4) -> 3100.829307 | X14: =INDEX('Compile Data'!$L$95:$AI$120,16,'Report - ALL (DASHBOARD)'!$W$4) -> 3024.176946 | Y14: =INDEX('Compile Data'!$L$95:$AI$120,17,'Report - ALL (DASHBOARD)'!$W$4) -> 2753.781964 | Z14: =INDEX('Compile Data'!$L$95:$AI$120,18,'Report - ALL (DASHBOARD)'!$W$4) -> 1831.188221
A15: ='Compile Data'!$C$1 -> Alt 1A 011221 | B15: =INDEX('Compile Data'!AL$95:AL$120,'Report - ALL (DASHBOARD)'!$W$3) -> 2799.115318 | C15: =INDEX('Compile Data'!AM$95:AM$120,'Report - ALL (DASHBOARD)'!$W$3) -> 2794.444485 | D15: =INDEX('Compile Data'!AN$95:AN$120,'Report - ALL (DASHBOARD)'!$W$3) -> 2920.109464 | E15: =INDEX('Compile Data'!AO$95:AO$120,'Report - ALL (DASHBOARD)'!$W$3) -> 3160.739338 | F15: =INDEX('Compile Data'!AP$95:AP$120,'Report - ALL (DASHBOARD)'!$W$3) -> 3397.560664 | G15: =INDEX('Compile Data'!AQ$95:AQ$120,'Report - ALL (DASHBOARD)'!$W$3) -> 3742.241808 | H15: =INDEX('Compile Data'!AR$95:AR$120,'Report - ALL (DASHBOARD)'!$W$3) -> 4104.736639 | I15: =INDEX('Compile Data'!AS$95:AS$120,'Report - ALL (DASHBOARD)'!$W$3) -> 4108.257503 | J15: =INDEX('Compile Data'!AT$95:AT$120,'Report - ALL (DASHBOARD)'!$W$3) -> 3845.686179 | K15: =INDEX('Compile Data'!AU$95:AU$120,'Report - ALL (DASHBOARD)'!$W$3) -> 3371.765329 | L15: =INDEX('Compile Data'!AV$95:AV$120,'Report - ALL (DASHBOARD)'!$W$3) -> 3044.970467 | M15: =INDEX('Compile Data'!AW$95:AW$120,'Report - ALL (DASHBOARD)'!$W$3) -> 2901.737856 | O15: ='Compile Data'!$C$1 -> Alt 1A 011221 | P15: =INDEX('Compile Data'!$AL$95:$BI$120,'Report - ALL (DASHBOARD)'!$W$3,'Report - ALL (DASHBOARD)'!$W$4) -> 2901.737856 | Q15: =$P15-$P$14 -> 11.65522026 | U15: ='Compile Data'!$C$1 -> Alt 1A 011221 | V15: =INDEX('Compile Data'!$AL$95:$BI$120,14,'Report - ALL (DASHBOARD)'!$W$4) -> 3305.224522 | W15: =INDEX('Compile Data'!$AL$95:$BI$120,15,'Report - ALL (DASHBOARD)'!$W$4) -> 3110.598692 | X15: =INDEX('Compile Data'!$AL$95:$BI$120,16,'Report - ALL (DASHBOARD)'!$W$4) -> 3032.260136 | Y15: =INDEX('Compile Data'!$AL$95:$BI$120,17,'Report - ALL (DASHBOARD)'!$W$4) -> 2757.921461 | Z15: =INDEX('Compile Data'!$AL$95:$BI$120,18,'Report - ALL (DASHBOARD)'!$W$4) -> 1882.104506
A16: ='Compile Data'!$D$1 -> Alt 1B 011221 | B16: =INDEX('Compile Data'!BL$95:BL$120,'Report - ALL (DASHBOARD)'!$W$3) -> 2816.132204 | C16: =INDEX('Compile Data'!BM$95:BM$120,'Report - ALL (DASHBOARD)'!$W$3) -> 2805.50088 | D16: =INDEX('Compile Data'!BN$95:BN$120,'Report - ALL (DASHBOARD)'!$W$3) -> 2930.076832 | E16: =INDEX('Compile Data'!BO$95:BO$120,'Report - ALL (DASHBOARD)'!$W$3) -> 3170.835275 | F16: =INDEX('Compile Data'!BP$95:BP$120,'Report - ALL (DASHBOARD)'!$W$3) -> 3403.80169 | G16: =INDEX('Compile Data'!BQ$95:BQ$120,'Report - ALL (DASHBOARD)'!$W$3) -> 3747.884722 | H16: =INDEX('Compile Data'!BR$95:BR$120,'Report - ALL (DASHBOARD)'!$W$3) -> 4111.498447 | I16: =INDEX('Compile Data'!BS$95:BS$120,'Report - ALL (DASHBOARD)'!$W$3) -> 4120.124033 | J16: =INDEX('Compile Data'!BT$95:BT$120,'Report - ALL (DASHBOARD)'!$W$3) -> 3864.841904 | K16: =INDEX('Compile Data'!BU$95:BU$120,'Report - ALL (DASHBOARD)'!$W$3) -> 3393.575296 | L16: =INDEX('Compile Data'!BV$95:BV$120,'Report - ALL (DASHBOARD)'!$W$3) -> 3065.485482 | M16: =INDEX('Compile Data'!BW$95:BW$120,'Report - ALL (DASHBOARD)'!$W$3) -> 2918.561459 | O16: ='Compile Data'!$D$1 -> Alt 1B 011221 | P16: =INDEX('Compile Data'!$BL$95:$CI$120,'Report - ALL (DASHBOARD)'!$W$3,'Report - ALL (DASHBOARD)'!$W$4) -> 2918.561459 | Q16: 28.47882406 | R16: =$P16-$P$15 -> 16.8236038 | U16: ='Compile Data'!$D$1 -> Alt 1B 011221 | V16: =INDEX('Compile Data'!$BL$95:$CI$120,14,'Report - ALL (DASHBOARD)'!$W$4) -> 3304.671854 | W16: =INDEX('Compile Data'!$BL$95:$CI$120,15,'Report - ALL (DASHBOARD)'!$W$4) -> 3146.831658 | X16: =INDEX('Compile Data'!$BL$95:$CI$120,16,'Report - ALL (DASHBOARD)'!$W$4) -> 3065.244161 | Y16: =INDEX('Compile Data'!$BL$95:$CI$120,17,'Report - ALL (DASHBOARD)'!$W$4) -> 2779.305582 | Z16: =INDEX('Compile Data'!$BL$95:$CI$120,18,'Report - ALL (DASHBOARD)'!$W$4) -> 1891.472737
A17: ='Compile Data'!$E$1 -> Alt 2 011221 | B17: =INDEX('Compile Data'!CL$95:CL$120,'Report - ALL (DASHBOARD)'!$W$3) -> 2797.107755 | C17: =INDEX('Compile Data'!CM$95:CM$120,'Report - ALL (DASHBOARD)'!$W$3) -> 2793.020475 | D17: =INDEX('Compile Data'!CN$95:CN$120,'Report - ALL (DASHBOARD)'!$W$3) -> 2917.724908 | E17: =INDEX('Compile Data'!CO$95:CO$120,'Report - ALL (DASHBOARD)'!$W$3) -> 3159.312461 | F17: =INDEX('Compile Data'!CP$95:CP$120,'Report - ALL (DASHBOARD)'!$W$3) -> 3396.48523 | G17: =INDEX('Compile Data'!CQ$95:CQ$120,'Report - ALL (DASHBOARD)'!$W$3) -> 3741.15959 | H17: =INDEX('Compile Data'!CR$95:CR$120,'Report - ALL (DASHBOARD)'!$W$3) -> 4103.570263 | I17: =INDEX('Compile Data'!CS$95:CS$120,'Report - ALL (DASHBOARD)'!$W$3) -> 4107.183989 | J17: =INDEX('Compile Data'!CT$95:CT$120,'Report - ALL (DASHBOARD)'!$W$3) -> 3844.784498 | K17: =INDEX('Compile Data'!CU$95:CU$120,'Report - ALL (DASHBOARD)'!$W$3) -> 3371.136227 | L17: =INDEX('Compile Data'!CV$95:CV$120,'Report - ALL (DASHBOARD)'!$W$3) -> 3042.768463 | M17: =INDEX('Compile Data'!CW$95:CW$120,'Report - ALL (DASHBOARD)'!$W$3) -> 2899.720667 | O17: ='Compile Data'!$E$1 -> Alt 2 011221 | P17: =INDEX('Compile Data'!$CL$95:$DI$120,'Report - ALL (DASHBOARD)'!$W$3,'Report - ALL (DASHBOARD)'!$W$4) -> 2899.720667 | Q17: 9.638031348 | R17: =$P17-$P$15 -> -2.017188916 | U17: ='Compile Data'!$E$1 -> Alt 2 011221 | V17: =INDEX('Compile Data'!$CL$95:$DI$120,14,'Report - ALL (DASHBOARD)'!$W$4) -> 3305.181683 | W17: =INDEX('Compile Data'!$CL$95:$DI$120,15,'Report - ALL (DASHBOARD)'!$W$4) -> 3110.648977 | X17: =INDEX('Compile Data'!$CL$95:$DI$120,16,'Report - ALL (DASHBOARD)'!$W$4) -> 3030.048655 | Y17: =INDEX('Compile Data'!$CL$95:$DI$120,17,'Report - ALL (DASHBOARD)'!$W$4) -> 2759.628403 | Z17: =INDEX('Compile Data'!$CL$95:$DI$120,18,'Report - ALL (DASHBOARD)'!$W$4) -> 1868.382564
A18: ='Compile Data'!$F$1 -> Alt 3 012221 | B18: =INDEX('Compile Data'!DL$95:DL$120,'Report - ALL (DASHBOARD)'!$W$3) -> 2849.660502 | C18: =INDEX('Compile Data'!DM$95:DM$120,'Report - ALL (DASHBOARD)'!$W$3) -> 2836.632681 | D18: =INDEX('Compile Data'!DN$95:DN$120,'Report - ALL (DASHBOARD)'!$W$3) -> 2950.183724 | E18: =INDEX('Compile Data'!DO$95:DO$120,'Report - ALL (DASHBOARD)'!$W$3) -> 3191.520655 | F18: =INDEX('Compile Data'!DP$95:DP$120,'Report - ALL (DASHBOARD)'!$W$3) -> 3414.97743 | G18: =INDEX('Compile Data'!DQ$95:DQ$120,'Report - ALL (DASHBOARD)'!$W$3) -> 3757.911984 | H18: =INDEX('Compile Data'!DR$95:DR$120,'Report - ALL (DASHBOARD)'!$W$3) -> 4121.603268 | I18: =INDEX('Compile Data'!DS$95:DS$120,'Report - ALL (DASHBOARD)'!$W$3) -> 4133.912118 | J18: =INDEX('Compile Data'!DT$95:DT$120,'Report - ALL (DASHBOARD)'!$W$3) -> 3891.662843 | K18: =INDEX('Compile Data'!DU$95:DU$120,'Report - ALL (DASHBOARD)'!$W$3) -> 3429.22776 | L18: =INDEX('Compile Data'!DV$95:DV$120,'Report - ALL (DASHBOARD)'!$W$3) -> 3112.686238 | M18: =INDEX('Compile Data'!DW$95:DW$120,'Report - ALL (DASHBOARD)'!$W$3) -> 2961.104297 | O18: ='Compile Data'!$F$1 -> Alt 3 012221 | P18: =INDEX('Compile Data'!$DL$95:$EI$120,'Report - ALL (DASHBOARD)'!$W$3,'Report - ALL (DASHBOARD)'!$W$4) -> 2961.104297 | Q18: =$P18-$P$14 -> 71.02166146 | R18: =$P18-$P$15 -> 59.36644119 | U18: ='Compile Data'!$F$1 -> Alt 3 012221 | V18: =INDEX('Compile Data'!$DL$95:$EI$120,14,'Report - ALL (DASHBOARD)'!$W$4) -> 3304.826914 | W18: =INDEX('Compile Data'!$DL$95:$EI$120,15,'Report - ALL (DASHBOARD)'!$W$4) -> 3210.029251 | X18: =INDEX('Compile Data'!$DL$95:$EI$120,16,'Report - ALL (DASHBOARD)'!$W$4) -> 3119.47296 | Y18: =INDEX('Compile Data'!$DL$95:$EI$120,17,'Report - ALL (DASHBOARD)'!$W$4) -> 2864.63698 | Z18: =INDEX('Compile Data'!$DL$95:$EI$120,18,'Report - ALL (DASHBOARD)'!$W$4) -> 1927.384541
A19: ='Compile Data'!$G$1 -> Alt 3 012221 SA Proportional | B19: =INDEX('Compile Data'!EL$95:EL$120,'Report - ALL (DASHBOARD)'!$W$3) -> 2851.523263 | C19: =INDEX('Compile Data'!EM$95:EM$120,'Report - ALL (DASHBOARD)'!$W$3) -> 2838.515864 | D19: =INDEX('Compile Data'!EN$95:EN$120,'Report - ALL (DASHBOARD)'!$W$3) -> 2951.990031 | E19: =INDEX('Compile Data'!EO$95:EO$120,'Report - ALL (DASHBOARD)'!$W$3) -> 3193.434273 | F19: =INDEX('Compile Data'!EP$95:EP$120,'Report - ALL (DASHBOARD)'!$W$3) -> 3416.663657 | G19: =INDEX('Compile Data'!EQ$95:EQ$120,'Report - ALL (DASHBOARD)'!$W$3) -> 3759.56331 | H19: =INDEX('Compile Data'!ER$95:ER$120,'Report - ALL (DASHBOARD)'!$W$3) -> 4123.119033 | I19: =INDEX('Compile Data'!ES$95:ES$120,'Report - ALL (DASHBOARD)'!$W$3) -> 4134.996732 | J19: =INDEX('Compile Data'!ET$95:ET$120,'Report - ALL (DASHBOARD)'!$W$3) -> 3893.355223 | K19: =INDEX('Compile Data'!EU$95:EU$120,'Report - ALL (DASHBOARD)'!$W$3) -> 3430.697814 | L19: =INDEX('Compile Data'!EV$95:EV$120,'Report - ALL (DASHBOARD)'!$W$3) -> 3115.253653 | M19: =INDEX('Compile Data'!EW$95:EW$120,'Report - ALL (DASHBOARD)'!$W$3) -> 2964.274184 | O19: ='Compile Data'!$G$1 -> Alt 3 012221 SA Proportional | P19: =INDEX('Compile Data'!$EL$95:$FI$120,'Report - ALL (DASHBOARD)'!$W$3,'Report - ALL (DASHBOARD)'!$W$4) -> 2964.274184 | Q19: 74.19154883 | R19: =$P19-$P$15 -> 62.53632857 | U19: ='Compile Data'!$G$1 -> Alt 3 012221 SA Proportional | V19: =INDEX('Compile Data'!$EL$95:$FI$120,14,'Report - ALL (DASHBOARD)'!$W$4) -> 3305.254627 | W19: =INDEX('Compile Data'!$EL$95:$FI$120,15,'Report - ALL (DASHBOARD)'!$W$4) -> 3214.569958 | X19: =INDEX('Compile Data'!$EL$95:$FI$120,16,'Report - ALL (DASHBOARD)'!$W$4) -> 3122.449055 | Y19: =INDEX('Compile Data'!$EL$95:$FI$120,17,'Report - ALL (DASHBOARD)'!$W$4) -> 2866.399778 | Z19: =INDEX('Compile Data'!$EL$95:$FI$120,18,'Report - ALL (DASHBOARD)'!$W$4) -> 1937.46171
A21: Annuals Plot: | O21: Exceedence Plot:
A23: Title: | B23: =INDEX(Other!$B$9:$B$33,'Report - ALL (DASHBOARD)'!$W$4) -> September | O23: Title: | P23: =INDEX(Other!$B$9:$B$33,'Report - ALL (DASHBOARD)'!$W$4) -> September
B24: ='Compile Data'!$B$5 -> Shasta Storage | P24: ='Compile Data'!$B$5 -> Shasta Storage
B25: =IF('Compile Data'!$B$10="CFS","Flow (CFS)",IF('Compile Data'!$B$10="TAF","Volume (TAF)",IF('Compile Data'!$B$10="KM","POSITION (KM)",""))) -> Volume (TAF) | P25: =IF('Compile Data'!$B$10="CFS","Flow (CFS)",IF('Compile Data'!$B$10="TAF","Volume (TAF)",IF('Compile Data'!$B$10="KM","POSITION (KM)",""))) -> Volume (TAF)
B27: ='Compile Data'!$B$1 -> NAA 011221 | C27: ='Compile Data'!$C$1 -> Alt 1A 011221 | D27: ='Compile Data'!$D$1 -> Alt 1B 011221 | E27: ='Compile Data'!$E$1 -> Alt 2 011221 | F27: ='Compile Data'!$F$1 -> Alt 3 012221 | G27: ='Compile Data'!$G$1 -> Alt 3 012221 SA Proportional | Q27: ='Compile Data'!$B$1 -> NAA 011221 | R27: ='Compile Data'!$C$1 -> Alt 1A 011221 | S27: ='Compile Data'!$D$1 -> Alt 1B 011221 | T27: ='Compile Data'!$E$1 -> Alt 2 011221 | U27: ='Compile Data'!$F$1 -> Alt 3 012221 | V27: ='Compile Data'!$G$1 -> Alt 3 012221 SA Proportional
A28: 1922 | B28: =INDEX('Compile Data'!$L$12:$AI$93,$A28-1921,'Report - ALL (DASHBOARD)'!$W$4) -> 3353.49032 | C28: =INDEX('Compile Data'!$AL$12:$BI$93,$A28-1921,'Report - ALL (DASHBOARD)'!$W$4) -> 3381.834579 | D28: =INDEX('Compile Data'!$BL$12:$CI$93,$A28-1921,'Report - ALL (DASHBOARD)'!$W$4) -> 3400 | E28: =INDEX('Compile Data'!$CL$12:$DI$93,$A28-1921,'Report - ALL (DASHBOARD)'!$W$4) -> 3381.834579 | F28: =INDEX('Compile Data'!$DL$12:$EI$93,$A28-1921,'Report - ALL (DASHBOARD)'!$W$4) -> 3400 | G28: =INDEX('Compile Data'!$EL$12:$FI$93,$A28-1921,'Report - ALL (DASHBOARD)'!$W$4) -> 3400 | O28: 1 | P28: =(O28-1)/81 -> 0 | Q28: =INDEX('Compile Data'!$L$123:$AI$204,$O28,'Report - ALL (DASHBOARD)'!$W$4) -> 3400 | R28: =INDEX('Compile Data'!$AL$123:$BI$204,$O28,'Report - ALL (DASHBOARD)'!$W$4) -> 3400 | S28: =INDEX('Compile Data'!$BL$123:$CI$204,$O28,'Report - ALL (DASHBOARD)'!$W$4) -> 3400 | T28: =INDEX('Compile Data'!$CL$123:$DI$204,$O28,'Report - ALL (DASHBOARD)'!$W$4) -> 3400 | U28: =INDEX('Compile Data'!$DL$123:$EI$204,$O28,'Report - ALL (DASHBOARD)'!$W$4) -> 3400 | V28: =INDEX('Compile Data'!$EL$123:$FI$204,$O28,'Report - ALL (DASHBOARD)'!$W$4) -> 3400
A29: =A28+1 -> 1923 | B29: =INDEX('Compile Data'!$L$12:$AI$93,$A29-1921,'Report - ALL (DASHBOARD)'!$W$4) -> 2918.581988 | C29: =INDEX('Compile Data'!$AL$12:$BI$93,$A29-1921,'Report - ALL (DASHBOARD)'!$W$4) -> 2951.114378 | D29: =INDEX('Compile Data'!$BL$12:$CI$93,$A29-1921,'Report - ALL (DASHBOARD)'!$W$4) -> 2954.070677 | E29: =INDEX('Compile Data'!$CL$12:$DI$93,$A29-1921,'Report - ALL (DASHBOARD)'!$W$4) -> 2951.114378 | F29: =INDEX('Compile Data'!$DL$12:$EI$93,$A29-1921,'Report - ALL (DASHBOARD)'!$W$4) -> 3024.124448 | G29: =INDEX('Compile Data'!$EL$12:$FI$93,$A29-1921,'Report - ALL (DASHBOARD)'!$W$4) -> 3019.606336 | O29: 2 | P29: 0.01234567901 | Q29: =INDEX('Compile Data'!$L$123:$AI$204,$O29,'Report - ALL (DASHBOARD)'!$W$4) -> 3400 | R29: =INDEX('Compile Data'!$AL$123:$BI$204,$O29,'Report - ALL (DASHBOARD)'!$W$4) -> 3400 | S29: =INDEX('Compile Data'!$BL$123:$CI$204,$O29,'Report - ALL (DASHBOARD)'!$W$4) -> 3400 | T29: =INDEX('Compile Data'!$CL$123:$DI$204,$O29,'Report - ALL (DASHBOARD)'!$W$4) -> 3400 | U29: =INDEX('Compile Data'!$DL$123:$EI$204,$O29,'Report - ALL (DASHBOARD)'!$W$4) -> 3400 | V29: =INDEX('Compile Data'!$EL$123:$FI$204,$O29,'Report - ALL (DASHBOARD)'!$W$4) -> 3400
A30: =A29+1 -> 1924 | B30: =INDEX('Compile Data'!$L$12:$AI$93,$A30-1921,'Report - ALL (DASHBOARD)'!$W$4) -> 1350.069812 | C30: =INDEX('Compile Data'!$AL$12:$BI$93,$A30-1921,'Report - ALL (DASHBOARD)'!$W$4) -> 1387.570543 | D30: =INDEX('Compile Data'!$BL$12:$CI$93,$A30-1921,'Report - ALL (DASHBOARD)'!$W$4) -> 1385.799051 | E30: =INDEX('Compile Data'!$CL$12:$DI$93,$A30-1921,'Report - ALL (DASHBOARD)'!$W$4) -> 1397.944504 | F30: =INDEX('Compile Data'!$DL$12:$EI$93,$A30-1921,'Report - ALL (DASHBOARD)'!$W$4) -> 1455.263356 | G30: =INDEX('Compile Data'!$EL$12:$FI$93,$A30-1921,'Report - ALL (DASHBOARD)'!$W$4) -> 1449.845629 | O30: 3 | P30: 0.02469135802 | Q30: =INDEX('Compile Data'!$L$123:$AI$204,$O30,'Report - ALL (DASHBOARD)'!$W$4) -> 3400 | R30: =INDEX('Compile Data'!$AL$123:$BI$204,$O30,'Report - ALL (DASHBOARD)'!$W$4) -> 3400 | S30: =INDEX('Compile Data'!$BL$123:$CI$204,$O30,'Report - ALL (DASHBOARD)'!$W$4) -> 3400 | T30: =INDEX('Compile Data'!$CL$123:$DI$204,$O30,'Report - ALL (DASHBOARD)'!$W$4) -> 3400 | U30: =INDEX('Compile Data'!$DL$123:$EI$204,$O30,'Report - ALL (DASHBOARD)'!$W$4) -> 3400 | V30: =INDEX('Compile Data'!$EL$123:$FI$204,$O30,'Report - ALL (DASHBOARD)'!$W$4) -> 3400
A31: 1925 | B31: =INDEX('Compile Data'!$L$12:$AI$93,$A31-1921,'Report - ALL (DASHBOARD)'!$W$4) -> 3067.864588 | C31: =INDEX('Compile Data'!$AL$12:$BI$93,$A31-1921,'Report - ALL (DASHBOARD)'!$W$4) -> 3112.928703 | D31: =INDEX('Compile Data'!$BL$12:$CI$93,$A31-1921,'Report - ALL (DASHBOARD)'!$W$4) -> 3120.215218 | E31: =INDEX('Compile Data'!$CL$12:$DI$93,$A31-1921,'Report - ALL (DASHBOARD)'!$W$4) -> 3122.482185 | F31: =INDEX('Compile Data'!$DL$12:$EI$93,$A31-1921,'Report - ALL (DASHBOARD)'!$W$4) -> 3203.186587 | G31: =INDEX('Compile Data'!$EL$12:$FI$93,$A31-1921,'Report - ALL (DASHBOARD)'!$W$4) -> 3221.871627 | O31: 4 | P31: 0.03703703704 | Q31: =INDEX('Compile Data'!$L$123:$AI$204,$O31,'Report - ALL (DASHBOARD)'!$W$4) -> 3400 | R31: =INDEX('Compile Data'!$AL$123:$BI$204,$O31,'Report - ALL (DASHBOARD)'!$W$4) -> 3400 | S31: =INDEX('Compile Data'!$BL$123:$CI$204,$O31,'Report - ALL (DASHBOARD)'!$W$4) -> 3400 | T31: =INDEX('Compile Data'!$CL$123:$DI$204,$O31,'Report - ALL (DASHBOARD)'!$W$4) -> 3400 | U31: =INDEX('Compile Data'!$DL$123:$EI$204,$O31,'Report - ALL (DASHBOARD)'!$W$4) -> 3400 | V31: =INDEX('Compile Data'!$EL$123:$FI$204,$O31,'Report - ALL (DASHBOARD)'!$W$4) -> 3400
A32: 1926 | B32: =INDEX('Compile Data'!$L$12:$AI$93,$A32-1921,'Report - ALL (DASHBOARD)'!$W$4) -> 2719.827887 | C32: =INDEX('Compile Data'!$AL$12:$BI$93,$A32-1921,'Report - ALL (DASHBOARD)'!$W$4) -> 2761.841581 | D32: =INDEX('Compile Data'!$BL$12:$CI$93,$A32-1921,'Report - ALL (DASHBOARD)'!$W$4) -> 2614.01502 | E32: =INDEX('Compile Data'!$CL$12:$DI$93,$A32-1921,'Report - ALL (DASHBOARD)'!$W$4) -> 2766.680706 | F32: =INDEX('Compile Data'!$DL$12:$EI$93,$A32-1921,'Report - ALL (DASHBOARD)'!$W$4) -> 2642.681794 | G32: =INDEX('Compile Data'!$EL$12:$FI$93,$A32-1921,'Report - ALL (DASHBOARD)'!$W$4) -> 2656.499786 | O32: 5 | P32: 0.04938271605 | Q32: =INDEX('Compile Data'!$L$123:$AI$204,$O32,'Report - ALL (DASHBOARD)'!$W$4) -> 3400 | R32: =INDEX('Compile Data'!$AL$123:$BI$204,$O32,'Report - ALL (DASHBOARD)'!$W$4) -> 3400 | S32: =INDEX('Compile Data'!$BL$123:$CI$204,$O32,'Report - ALL (DASHBOARD)'!$W$4) -> 3400 | T32: =INDEX('Compile Data'!$CL$123:$DI$204,$O32,'Report - ALL (DASHBOARD)'!$W$4) -> 3400 | U32: =INDEX('Compile Data'!$DL$123:$EI$204,$O32,'Report - ALL (DASHBOARD)'!$W$4) -> 3400 | V32: =INDEX('Compile Data'!$EL$123:$FI$204,$O32,'Report - ALL (DASHBOARD)'!$W$4) -> 3400
A33: 1927 | B33: =INDEX('Compile Data'!$L$12:$AI$93,$A33-1921,'Report - ALL (DASHBOARD)'!$W$4) -> 3184.04974 | C33: =INDEX('Compile Data'!$AL$12:$BI$93,$A33-1921,'Report - ALL (DASHBOARD)'!$W$4) -> 3190.288264 | D33: =INDEX('Compile Data'!$BL$12:$CI$93,$A33-1921,'Report - ALL (DASHBOARD)'!$W$4) -> 3190.01374 | E33: =INDEX('Compile Data'!$CL$12:$DI$93,$A33-1921,'Report - ALL (DASHBOARD)'!$W$4) -> 3189.831747 | F33: =INDEX('Compile Data'!$DL$12:$EI$93,$A33-1921,'Report - ALL (DASHBOARD)'!$W$4) -> 3189.06591 | G33: =INDEX('Compile Data'!$EL$12:$FI$93,$A33-1921,'Report - ALL (DASHBOARD)'!$W$4) -> 3190.153281 | O33: 6 | P33: 0.06172839506 | Q33: =INDEX('Compile Data'!$L$123:$AI$204,$O33,'Report - ALL (DASHBOARD)'!$W$4) -> 3400 | R33: =INDEX('Compile Data'!$AL$123:$BI$204,$O33,'Report - ALL (DASHBOARD)'!$W$4) -> 3400 | S33: =INDEX('Compile Data'!$BL$123:$CI$204,$O33,'Report - ALL (DASHBOARD)'!$W$4) -> 3400 | T33: =INDEX('Compile Data'!$CL$123:$DI$204,$O33,'Report - ALL (DASHBOARD)'!$W$4) -> 3400 | U33: =INDEX('Compile Data'!$DL$123:$EI$204,$O33,'Report - ALL (DASHBOARD)'!$W$4) -> 3400 | V33: =INDEX('Compile Data'!$EL$123:$FI$204,$O33,'Report - ALL (DASHBOARD)'!$W$4) -> 3400
A34: 1928 | B34: =INDEX('Compile Data'!$L$12:$AI$93,$A34-1921,'Report - ALL (DASHBOARD)'!$W$4) -> 2573.693903 | C34: =INDEX('Compile Data'!$AL$12:$BI$93,$A34-1921,'Report - ALL (DASHBOARD)'!$W$4) -> 2590.73183 | D34: =INDEX('Compile Data'!$BL$12:$CI$93,$A34-1921,'Report - ALL (DASHBOARD)'!$W$4) -> 2622.633482 | E34: =INDEX('Compile Data'!$CL$12:$DI$93,$A34-1921,'Report - ALL (DASHBOARD)'!$W$4) -> 2590.041586 | F34: =INDEX('Compile Data'!$DL$12:$EI$93,$A34-1921,'Report - ALL (DASHBOARD)'!$W$4) -> 2689.558144 | G34: =INDEX('Compile Data'!$EL$12:$FI$93,$A34-1921,'Report - ALL (DASHBOARD)'!$W$4) -> 2693.05719 | O34: 7 | P34: 0.07407407407 | Q34: =INDEX('Compile Data'!$L$123:$AI$204,$O34,'Report - ALL (DASHBOARD)'!$W$4) -> 3400 | R34: =INDEX('Compile Data'!$AL$123:$BI$204,$O34,'Report - ALL (DASHBOARD)'!$W$4) -> 3400 | S34: =INDEX('Compile Data'!$BL$123:$CI$204,$O34,'Report - ALL (DASHBOARD)'!$W$4) -> 3400 | T34: =INDEX('Compile Data'!$CL$123:$DI$204,$O34,'Report - ALL (DASHBOARD)'!$W$4) -> 3400 | U34: =INDEX('Compile Data'!$DL$123:$EI$204,$O34,'Report - ALL (DASHBOARD)'!$W$4) -> 3400 | V34: =INDEX('Compile Data'!$EL$123:$FI$204,$O34,'Report - ALL (DASHBOARD)'!$W$4) -> 3400
A35: 1929 | B35: =INDEX('Compile Data'!$L$12:$AI$93,$A35-1921,'Report - ALL (DASHBOARD)'!$W$4) -> 2020.162497 | C35: =INDEX('Compile Data'!$AL$12:$BI$93,$A35-1921,'Report - ALL (DASHBOARD)'!$W$4) -> 2076.07928 | D35: =INDEX('Compile Data'!$BL$12:$CI$93,$A35-1921,'Report - ALL (DASHBOARD)'!$W$4) -> 2106.591804 | E35: =INDEX('Compile Data'!$CL$12:$DI$93,$A35-1921,'Report - ALL (DASHBOARD)'!$W$4) -> 2075.930209 | F35: =INDEX('Compile Data'!$DL$12:$EI$93,$A35-1921,'Report - ALL (DASHBOARD)'!$W$4) -> 2176.486694 | G35: =INDEX('Compile Data'!$EL$12:$FI$93,$A35-1921,'Report - ALL (DASHBOARD)'!$W$4) -> 2180.464337 | O35: 8 | P35: 0.08641975309 | Q35: =INDEX('Compile Data'!$L$123:$AI$204,$O35,'Report - ALL (DASHBOARD)'!$W$4) -> 3400 | R35: =INDEX('Compile Data'!$AL$123:$BI$204,$O35,'Report - ALL (DASHBOARD)'!$W$4) -> 3400 | S35: =INDEX('Compile Data'!$BL$123:$CI$204,$O35,'Report - ALL (DASHBOARD)'!$W$4) -> 3400 | T35: =INDEX('Compile Data'!$CL$123:$DI$204,$O35,'Report - ALL (DASHBOARD)'!$W$4) -> 3400 | U35: =INDEX('Compile Data'!$DL$123:$EI$204,$O35,'Report - ALL (DASHBOARD)'!$W$4) -> 3400 | V35: =INDEX('Compile Data'!$EL$123:$FI$204,$O35,'Report - ALL (DASHBOARD)'!$W$4) -> 3400
A36: 1930 | B36: =INDEX('Compile Data'!$L$12:$AI$93,$A36-1921,'Report - ALL (DASHBOARD)'!$W$4) -> 2532.002882 | C36: =INDEX('Compile Data'!$AL$12:$BI$93,$A36-1921,'Report - ALL (DASHBOARD)'!$W$4) -> 2630.193049 | D36: =INDEX('Compile Data'!$BL$12:$CI$93,$A36-1921,'Report - ALL (DASHBOARD)'!$W$4) -> 2653.842406 | E36: =INDEX('Compile Data'!$CL$12:$DI$93,$A36-1921,'Report - ALL (DASHBOARD)'!$W$4) -> 2633.541664 | F36: =INDEX('Compile Data'!$DL$12:$EI$93,$A36-1921,'Report - ALL (DASHBOARD)'!$W$4) -> 2722.109706 | G36: =INDEX('Compile Data'!$EL$12:$FI$93,$A36-1921,'Report - ALL (DASHBOARD)'!$W$4) -> 2697.022103 | O36: 9 | P36: 0.0987654321 | Q36: =INDEX('Compile Data'!$L$123:$AI$204,$O36,'Report - ALL (DASHBOARD)'!$W$4) -> 3400 | R36: =INDEX('Compile Data'!$AL$123:$BI$204,$O36,'Report - ALL (DASHBOARD)'!$W$4) -> 3400 | S36: =INDEX('Compile Data'!$BL$123:$CI$204,$O36,'Report - ALL (DASHBOARD)'!$W$4) -> 3400 | T36: =INDEX('Compile Data'!$CL$123:$DI$204,$O36,'Report - ALL (DASHBOARD)'!$W$4) -> 3400 | U36: =INDEX('Compile Data'!$DL$123:$EI$204,$O36,'Report - ALL (DASHBOARD)'!$W$4) -> 3400 | V36: =INDEX('Compile Data'!$EL$123:$FI$204,$O36,'Report - ALL (DASHBOARD)'!$W$4) -> 3400
A37: 1931 | B37: =INDEX('Compile Data'!$L$12:$AI$93,$A37-1921,'Report - ALL (DASHBOARD)'!$W$4) -> 1330.316421 | C37: =INDEX('Compile Data'!$AL$12:$BI$93,$A37-1921,'Report - ALL (DASHBOARD)'!$W$4) -> 1269.413709 | D37: =INDEX('Compile Data'!$BL$12:$CI$93,$A37-1921,'Report - ALL (DASHBOARD)'!$W$4) -> 1290.382007 | E37: =INDEX('Compile Data'!$CL$12:$DI$93,$A37-1921,'Report - ALL (DASHBOARD)'!$W$4) -> 1272.562266 | F37: =INDEX('Compile Data'!$DL$12:$EI$93,$A37-1921,'Report - ALL (DASHBOARD)'!$W$4) -> 1312.222125 | G37: =INDEX('Compile Data'!$EL$12:$FI$93,$A37-1921,'Report - ALL (DASHBOARD)'!$W$4) -> 1319.216949 | O37: 10 | P37: 0.1111111111 | Q37: =INDEX('Compile Data'!$L$123:$AI$204,$O37,'Report - ALL (DASHBOARD)'!$W$4) -> 3400 | R37: =INDEX('Compile Data'!$AL$123:$BI$204,$O37,'Report - ALL (DASHBOARD)'!$W$4) -> 3400 | S37: =INDEX('Compile Data'!$BL$123:$CI$204,$O37,'Report - ALL (DASHBOARD)'!$W$4) -> 3400 | T37: =INDEX('Compile Data'!$CL$123:$DI$204,$O37,'Report - ALL (DASHBOARD)'!$W$4) -> 3400 | U37: =INDEX('Compile Data'!$DL$123:$EI$204,$O37,'Report - ALL (DASHBOARD)'!$W$4) -> 3400 | V37: =INDEX('Compile Data'!$EL$123:$FI$204,$O37,'Report - ALL (DASHBOARD)'!$W$4) -> 3400
A38: 1932 | B38: =INDEX('Compile Data'!$L$12:$AI$93,$A38-1921,'Report - ALL (DASHBOARD)'!$W$4) -> 1705.724077 | C38: =INDEX('Compile Data'!$AL$12:$BI$93,$A38-1921,'Report - ALL (DASHBOARD)'!$W$4) -> 1697.79684 | D38: =INDEX('Compile Data'!$BL$12:$CI$93,$A38-1921,'Report - ALL (DASHBOARD)'!$W$4) -> 1718.4424 | E38: =INDEX('Compile Data'!$CL$12:$DI$93,$A38-1921,'Report - ALL (DASHBOARD)'!$W$4) -> 1700.266236 | F38: =INDEX('Compile Data'!$DL$12:$EI$93,$A38-1921,'Report - ALL (DASHBOARD)'!$W$4) -> 1708.052422 | G38: =INDEX('Compile Data'!$EL$12:$FI$93,$A38-1921,'Report - ALL (DASHBOARD)'!$W$4) -> 1731.502495 | O38: 11 | P38: 0.1234567901 | Q38: =INDEX('Compile Data'!$L$123:$AI$204,$O38,'Report - ALL (DASHBOARD)'!$W$4) -> 3400 | R38: =INDEX('Compile Data'!$AL$123:$BI$204,$O38,'Report - ALL (DASHBOARD)'!$W$4) -> 3400 | S38: =INDEX('Compile Data'!$BL$123:$CI$204,$O38,'Report - ALL (DASHBOARD)'!$W$4) -> 3400 | T38: =INDEX('Compile Data'!$CL$123:$DI$204,$O38,'Report - ALL (DASHBOARD)'!$W$4) -> 3400 | U38: =INDEX('Compile Data'!$DL$123:$EI$204,$O38,'Report - ALL (DASHBOARD)'!$W$4) -> 3400 | V38: =INDEX('Compile Data'!$EL$123:$FI$204,$O38,'Report - ALL (DASHBOARD)'!$W$4) -> 3400
A39: 1933 | B39: =INDEX('Compile Data'!$L$12:$AI$93,$A39-1921,'Report - ALL (DASHBOARD)'!$W$4) -> 1518.788968 | C39: =INDEX('Compile Data'!$AL$12:$BI$93,$A39-1921,'Report - ALL (DASHBOARD)'!$W$4) -> 1641.761823 | D39: =INDEX('Compile Data'!$BL$12:$CI$93,$A39-1921,'Report - ALL (DASHBOARD)'!$W$4) -> 1551.20908 | E39: =INDEX('Compile Data'!$CL$12:$DI$93,$A39-1921,'Report - ALL (DASHBOARD)'!$W$4) -> 1522.276428 | F39: =INDEX('Compile Data'!$DL$12:$EI$93,$A39-1921,'Report - ALL (DASHBOARD)'!$W$4) -> 1547.601888 | G39: =INDEX('Compile Data'!$EL$12:$FI$93,$A39-1921,'Report - ALL (DASHBOARD)'!$W$4) -> 1561.153055 | O39: 12 | P39: 0.1358024691 | Q39: =INDEX('Compile Data'!$L$123:$AI$204,$O39,'Report - ALL (DASHBOARD)'!$W$4) -> 3400 | R39: =INDEX('Compile Data'!$AL$123:$BI$204,$O39,'Report - ALL (DASHBOARD)'!$W$4) -> 3400 | S39: =INDEX('Compile Data'!$BL$123:$CI$204,$O39,'Report - ALL (DASHBOARD)'!$W$4) -> 3400 | T39: =INDEX('Compile Data'!$CL$123:$DI$204,$O39,'Report - ALL (DASHBOARD)'!$W$4) -> 3400 | U39: =INDEX('Compile Data'!$DL$123:$EI$204,$O39,'Report - ALL (DASHBOARD)'!$W$4) -> 3400 | V39: =INDEX('Compile Data'!$EL$123:$FI$204,$O39,'Report - ALL (DASHBOARD)'!$W$4) -> 3400
A40: 1934 | B40: =INDEX('Compile Data'!$L$12:$AI$93,$A40-1921,'Report - ALL (DASHBOARD)'!$W$4) -> 1116.135388 | C40: =INDEX('Compile Data'!$AL$12:$BI$93,$A40-1921,'Report - ALL (DASHBOARD)'!$W$4) -> 1122.974902 | D40: =INDEX('Compile Data'!$BL$12:$CI$93,$A40-1921,'Report - ALL (DASHBOARD)'!$W$4) -> 1081.280772 | E40: =INDEX('Compile Data'!$CL$12:$DI$93,$A40-1921,'Report - ALL (DASHBOARD)'!$W$4) -> 1052.830565 | F40: =INDEX('Compile Data'!$DL$12:$EI$93,$A40-1921,'Report - ALL (DASHBOARD)'!$W$4) -> 1038.060321 | G40: =INDEX('Compile Data'!$EL$12:$FI$93,$A40-1921,'Report - ALL (DASHBOARD)'!$W$4) -> 1050.813259 | O40: 13 | P40: 0.1481481481 | Q40: =INDEX('Compile Data'!$L$123:$AI$204,$O40,'Report - ALL (DASHBOARD)'!$W$4) -> 3400 | R40: =INDEX('Compile Data'!$AL$123:$BI$204,$O40,'Report - ALL (DASHBOARD)'!$W$4) -> 3400 | S40: =INDEX('Compile Data'!$BL$123:$CI$204,$O40,'Report - ALL (DASHBOARD)'!$W$4) -> 3400 | T40: =INDEX('Compile Data'!$CL$123:$DI$204,$O40,'Report - ALL (DASHBOARD)'!$W$4) -> 3400 | U40: =INDEX('Compile Data'!$DL$123:$EI$204,$O40,'Report - ALL (DASHBOARD)'!$W$4) -> 3400 | V40: =INDEX('Compile Data'!$EL$123:$FI$204,$O40,'Report - ALL (DASHBOARD)'!$W$4) -> 3400
A41: 1935 | B41: =INDEX('Compile Data'!$L$12:$AI$93,$A41-1921,'Report - ALL (DASHBOARD)'!$W$4) -> 2433.015954 | C41: =INDEX('Compile Data'!$AL$12:$BI$93,$A41-1921,'Report - ALL (DASHBOARD)'!$W$4) -> 2484.850334 | D41: =INDEX('Compile Data'!$BL$12:$CI$93,$A41-1921,'Report - ALL (DASHBOARD)'!$W$4) -> 2482.202405 | E41: =INDEX('Compile Data'!$CL$12:$DI$93,$A41-1921,'Report - ALL (DASHBOARD)'!$W$4) -> 2421.844637 | F41: =INDEX('Compile Data'!$DL$12:$EI$93,$A41-1921,'Report - ALL (DASHBOARD)'!$W$4) -> 2500.931387 | G41: =INDEX('Compile Data'!$EL$12:$FI$93,$A41-1921,'Report - ALL (DASHBOARD)'!$W$4) -> 2527.978492 | O41: 14 | P41: 0.1604938272 | Q41: =INDEX('Compile Data'!$L$123:$AI$204,$O41,'Report - ALL (DASHBOARD)'!$W$4) -> 3400 | R41: =INDEX('Compile Data'!$AL$123:$BI$204,$O41,'Report - ALL (DASHBOARD)'!$W$4) -> 3400 | S41: =INDEX('Compile Data'!$BL$123:$CI$204,$O41,'Report - ALL (DASHBOARD)'!$W$4) -> 3400 | T41: =INDEX('Compile Data'!$CL$123:$DI$204,$O41,'Report - ALL (DASHBOARD)'!$W$4) -> 3400 | U41: =INDEX('Compile Data'!$DL$123:$EI$204,$O41,'Report - ALL (DASHBOARD)'!$W$4) -> 3400 | V41: =INDEX('Compile Data'!$EL$123:$FI$204,$O41,'Report - ALL (DASHBOARD)'!$W$4) -> 3400
A42: 1936 | B42: =INDEX('Compile Data'!$L$12:$AI$93,$A42-1921,'Report - ALL (DASHBOARD)'!$W$4) -> 2966.720554 | C42: =INDEX('Compile Data'!$AL$12:$BI$93,$A42-1921,'Report - ALL (DASHBOARD)'!$W$4) -> 2970.960218 | D42: =INDEX('Compile Data'!$BL$12:$CI$93,$A42-1921,'Report - ALL (DASHBOARD)'!$W$4) -> 3022.221542 | E42: =INDEX('Compile Data'!$CL$12:$DI$93,$A42-1921,'Report - ALL (DASHBOARD)'!$W$4) -> 2970.097132 | F42: =INDEX('Compile Data'!$DL$12:$EI$93,$A42-1921,'Report - ALL (DASHBOARD)'!$W$4) -> 3071.152898 | G42: =INDEX('Compile Data'!$EL$12:$FI$93,$A42-1921,'Report - ALL (DASHBOARD)'!$W$4) -> 3071.891881 | O42: 15 | P42: 0.1728395062 | Q42: =INDEX('Compile Data'!$L$123:$AI$204,$O42,'Report - ALL (DASHBOARD)'!$W$4) -> 3400 | R42: =INDEX('Compile Data'!$AL$123:$BI$204,$O42,'Report - ALL (DASHBOARD)'!$W$4) -> 3400 | S42: =INDEX('Compile Data'!$BL$123:$CI$204,$O42,'Report - ALL (DASHBOARD)'!$W$4) -> 3400 | T42: =INDEX('Compile Data'!$CL$123:$DI$204,$O42,'Report - ALL (DASHBOARD)'!$W$4) -> 3400 | U42: =INDEX('Compile Data'!$DL$123:$EI$204,$O42,'Report - ALL (DASHBOARD)'!$W$4) -> 3400 | V42: =INDEX('Compile Data'!$EL$123:$FI$204,$O42,'Report - ALL (DASHBOARD)'!$W$4) -> 3400
A43: 1937 | B43: =INDEX('Compile Data'!$L$12:$AI$93,$A43-1921,'Report - ALL (DASHBOARD)'!$W$4) -> 3002.573964 | C43: =INDEX('Compile Data'!$AL$12:$BI$93,$A43-1921,'Report - ALL (DASHBOARD)'!$W$4) -> 3017.323228 | D43: =INDEX('Compile Data'!$BL$12:$CI$93,$A43-1921,'Report - ALL (DASHBOARD)'!$W$4) -> 3074.347311 | E43: =INDEX('Compile Data'!$CL$12:$DI$93,$A43-1921,'Report - ALL (DASHBOARD)'!$W$4) -> 3016.74138 | F43: =INDEX('Compile Data'!$DL$12:$EI$93,$A43-1921,'Report - ALL (DASHBOARD)'!$W$4) -> 3052.571171 | G43: =INDEX('Compile Data'!$EL$12:$FI$93,$A43-1921,'Report - ALL (DASHBOARD)'!$W$4) -> 3052.169919 | O43: 16 | P43: 0.1851851852 | Q43: =INDEX('Compile Data'!$L$123:$AI$204,$O43,'Report - ALL (DASHBOARD)'!$W$4) -> 3400 | R43: =INDEX('Compile Data'!$AL$123:$BI$204,$O43,'Report - ALL (DASHBOARD)'!$W$4) -> 3400 | S43: =INDEX('Compile Data'!$BL$123:$CI$204,$O43,'Report - ALL (DASHBOARD)'!$W$4) -> 3400 | T43: =INDEX('Compile Data'!$CL$123:$DI$204,$O43,'Report - ALL (DASHBOARD)'!$W$4) -> 3400 | U43: =INDEX('Compile Data'!$DL$123:$EI$204,$O43,'Report - ALL (DASHBOARD)'!$W$4) -> 3400 | V43: =INDEX('Compile Data'!$EL$123:$FI$204,$O43,'Report - ALL (DASHBOARD)'!$W$4) -> 3400
A44: 1938 | B44: =INDEX('Compile Data'!$L$12:$AI$93,$A44-1921,'Report - ALL (DASHBOARD)'!$W$4) -> 3400 | C44: =INDEX('Compile Data'!$AL$12:$BI$93,$A44-1921,'Report - ALL (DASHBOARD)'!$W$4) -> 3400 | D44: =INDEX('Compile Data'!$BL$12:$CI$93,$A44-1921,'Report - ALL (DASHBOARD)'!$W$4) -> 3400 | E44: =INDEX('Compile Data'!$CL$12:$DI$93,$A44-1921,'Report - ALL (DASHBOARD)'!$W$4) -> 3400 | F44: =INDEX('Compile Data'!$DL$12:$EI$93,$A44-1921,'Report - ALL (DASHBOARD)'!$W$4) -> 3400 | G44: =INDEX('Compile Data'!$EL$12:$FI$93,$A44-1921,'Report - ALL (DASHBOARD)'!$W$4) -> 3400 | O44: 17 | P44: 0.1975308642 | Q44: =INDEX('Compile Data'!$L$123:$AI$204,$O44,'Report - ALL (DASHBOARD)'!$W$4) -> 3400 | R44: =INDEX('Compile Data'!$AL$123:$BI$204,$O44,'Report - ALL (DASHBOARD)'!$W$4) -> 3400 | S44: =INDEX('Compile Data'!$BL$123:$CI$204,$O44,'Report - ALL (DASHBOARD)'!$W$4) -> 3400 | T44: =INDEX('Compile Data'!$CL$123:$DI$204,$O44,'Report - ALL (DASHBOARD)'!$W$4) -> 3400 | U44: =INDEX('Compile Data'!$DL$123:$EI$204,$O44,'Report - ALL (DASHBOARD)'!$W$4) -> 3400 | V44: =INDEX('Compile Data'!$EL$123:$FI$204,$O44,'Report - ALL (DASHBOARD)'!$W$4) -> 3400
A45: 1939 | B45: =INDEX('Compile Data'!$L$12:$AI$93,$A45-1921,'Report - ALL (DASHBOARD)'!$W$4) -> 2522.828836 | C45: =INDEX('Compile Data'!$AL$12:$BI$93,$A45-1921,'Report - ALL (DASHBOARD)'!$W$4) -> 2551.63504 | D45: =INDEX('Compile Data'!$BL$12:$CI$93,$A45-1921,'Report - ALL (DASHBOARD)'!$W$4) -> 2583.345733 | E45: =INDEX('Compile Data'!$CL$12:$DI$93,$A45-1921,'Report - ALL (DASHBOARD)'!$W$4) -> 2551.638665 | F45: =INDEX('Compile Data'!$DL$12:$EI$93,$A45-1921,'Report - ALL (DASHBOARD)'!$W$4) -> 2799.929982 | G45: =INDEX('Compile Data'!$EL$12:$FI$93,$A45-1921,'Report - ALL (DASHBOARD)'!$W$4) -> 2799.979924 | O45: 18 | P45: 0.2098765432 | Q45: =INDEX('Compile Data'!$L$123:$AI$204,$O45,'Report - ALL (DASHBOARD)'!$W$4) -> 3400 | R45: =INDEX('Compile Data'!$AL$123:$BI$204,$O45,'Report - ALL (DASHBOARD)'!$W$4) -> 3400 | S45: =INDEX('Compile Data'!$BL$123:$CI$204,$O45,'Report - ALL (DASHBOARD)'!$W$4) -> 3400 | T45: =INDEX('Compile Data'!$CL$123:$DI$204,$O45,'Report - ALL (DASHBOARD)'!$W$4) -> 3400 | U45: =INDEX('Compile Data'!$DL$123:$EI$204,$O45,'Report - ALL (DASHBOARD)'!$W$4) -> 3400 | V45: =INDEX('Compile Data'!$EL$123:$FI$204,$O45,'Report - ALL (DASHBOARD)'!$W$4) -> 3400
A46: 1940 | B46: =INDEX('Compile Data'!$L$12:$AI$93,$A46-1921,'Report - ALL (DASHBOARD)'!$W$4) -> 2656.455073 | C46: =INDEX('Compile Data'!$AL$12:$BI$93,$A46-1921,'Report - ALL (DASHBOARD)'!$W$4) -> 2674.622891 | D46: =INDEX('Compile Data'!$BL$12:$CI$93,$A46-1921,'Report - ALL (DASHBOARD)'!$W$4) -> 2712.717765 | E46: =INDEX('Compile Data'!$CL$12:$DI$93,$A46-1921,'Report - ALL (DASHBOARD)'!$W$4) -> 2676.005548 | F46: =INDEX('Compile Data'!$DL$12:$EI$93,$A46-1921,'Report - ALL (DASHBOARD)'!$W$4) -> 2788.360657 | G46: =INDEX('Compile Data'!$EL$12:$FI$93,$A46-1921,'Report - ALL (DASHBOARD)'!$W$4) -> 2789.982832 | O46: 19 | P46: 0.2222222222 | Q46: =INDEX('Compile Data'!$L$123:$AI$204,$O46,'Report - ALL (DASHBOARD)'!$W$4) -> 3400 | R46: =INDEX('Compile Data'!$AL$123:$BI$204,$O46,'Report - ALL (DASHBOARD)'!$W$4) -> 3400 | S46: =INDEX('Compile Data'!$BL$123:$CI$204,$O46,'Report - ALL (DASHBOARD)'!$W$4) -> 3400 | T46: =INDEX('Compile Data'!$CL$123:$DI$204,$O46,'Report - ALL (DASHBOARD)'!$W$4) -> 3400 | U46: =INDEX('Compile Data'!$DL$123:$EI$204,$O46,'Report - ALL (DASHBOARD)'!$W$4) -> 3400 | V46: =INDEX('Compile Data'!$EL$123:$FI$204,$O46,'Report - ALL (DASHBOARD)'!$W$4) -> 3400
A47: 1941 | B47: =INDEX('Compile Data'!$L$12:$AI$93,$A47-1921,'Report - ALL (DASHBOARD)'!$W$4) -> 3400 | C47: =INDEX('Compile Data'!$AL$12:$BI$93,$A47-1921,'Report - ALL (DASHBOARD)'!$W$4) -> 3400 | D47: =INDEX('Compile Data'!$BL$12:$CI$93,$A47-1921,'Report - ALL (DASHBOARD)'!$W$4) -> 3400 | E47: =INDEX('Compile Data'!$CL$12:$DI$93,$A47-1921,'Report - ALL (DASHBOARD)'!$W$4) -> 3400 | F47: =INDEX('Compile Data'!$DL$12:$EI$93,$A47-1921,'Report - ALL (DASHBOARD)'!$W$4) -> 3400 | G47: =INDEX('Compile Data'!$EL$12:$FI$93,$A47-1921,'Report - ALL (DASHBOARD)'!$W$4) -> 3400 | O47: 20 | P47: 0.2345679012 | Q47: =INDEX('Compile Data'!$L$123:$AI$204,$O47,'Report - ALL (DASHBOARD)'!$W$4) -> 3400 | R47: =INDEX('Compile Data'!$AL$123:$BI$204,$O47,'Report - ALL (DASHBOARD)'!$W$4) -> 3400 | S47: =INDEX('Compile Data'!$BL$123:$CI$204,$O47,'Report - ALL (DASHBOARD)'!$W$4) -> 3400 | T47: =INDEX('Compile Data'!$CL$123:$DI$204,$O47,'Report - ALL (DASHBOARD)'!$W$4) -> 3400 | U47: =INDEX('Compile Data'!$DL$123:$EI$204,$O47,'Report - ALL (DASHBOARD)'!$W$4) -> 3400 | V47: =INDEX('Compile Data'!$EL$123:$FI$204,$O47,'Report - ALL (DASHBOARD)'!$W$4) -> 3400
A48: 1942 | B48: =INDEX('Compile Data'!$L$12:$AI$93,$A48-1921,'Report - ALL (DASHBOARD)'!$W$4) -> 3400 | C48: =INDEX('Compile Data'!$AL$12:$BI$93,$A48-1921,'Report - ALL (DASHBOARD)'!$W$4) -> 3400 | D48: =INDEX('Compile Data'!$BL$12:$CI$93,$A48-1921,'Report - ALL (DASHBOARD)'!$W$4) -> 3400 | E48: =INDEX('Compile Data'!$CL$12:$DI$93,$A48-1921,'Report - ALL (DASHBOARD)'!$W$4) -> 3400 | F48: =INDEX('Compile Data'!$DL$12:$EI$93,$A48-1921,'Report - ALL (DASHBOARD)'!$W$4) -> 3400 | G48: =INDEX('Compile Data'!$EL$12:$FI$93,$A48-1921,'Report - ALL (DASHBOARD)'!$W$4) -> 3400 | O48: 21 | P48: 0.2469135802 | Q48: =INDEX('Compile Data'!$L$123:$AI$204,$O48,'Report - ALL (DASHBOARD)'!$W$4) -> 3400 | R48: =INDEX('Compile Data'!$AL$123:$BI$204,$O48,'Report - ALL (DASHBOARD)'!$W$4) -> 3400 | S48: =INDEX('Compile Data'!$BL$123:$CI$204,$O48,'Report - ALL (DASHBOARD)'!$W$4) -> 3400 | T48: =INDEX('Compile Data'!$CL$123:$DI$204,$O48,'Report - ALL (DASHBOARD)'!$W$4) -> 3400 | U48: =INDEX('Compile Data'!$DL$123:$EI$204,$O48,'Report - ALL (DASHBOARD)'!$W$4) -> 3400 | V48: =INDEX('Compile Data'!$EL$123:$FI$204,$O48,'Report - ALL (DASHBOARD)'!$W$4) -> 3400
A49: 1943 | B49: =INDEX('Compile Data'!$L$12:$AI$93,$A49-1921,'Report - ALL (DASHBOARD)'!$W$4) -> 3102.077961 | C49: =INDEX('Compile Data'!$AL$12:$BI$93,$A49-1921,'Report - ALL (DASHBOARD)'!$W$4) -> 3119.282881 | D49: =INDEX('Compile Data'!$BL$12:$CI$93,$A49-1921,'Report - ALL (DASHBOARD)'!$W$4) -> 3119.369419 | E49: =INDEX('Compile Data'!$CL$12:$DI$93,$A49-1921,'Report - ALL (DASHBOARD)'!$W$4) -> 3119.292717 | F49: =INDEX('Compile Data'!$DL$12:$EI$93,$A49-1921,'Report - ALL (DASHBOARD)'!$W$4) -> 3118.358072 | G49: =INDEX('Compile Data'!$EL$12:$FI$93,$A49-1921,'Report - ALL (DASHBOARD)'!$W$4) -> 3119.491567 | O49: 22 | P49: 0.2592592593 | Q49: =INDEX('Compile Data'!$L$123:$AI$204,$O49,'Report - ALL (DASHBOARD)'!$W$4) -> 3378.750746 | R49: =INDEX('Compile Data'!$AL$123:$BI$204,$O49,'Report - ALL (DASHBOARD)'!$W$4) -> 3381.834579 | S49: =INDEX('Compile Data'!$BL$123:$CI$204,$O49,'Report - ALL (DASHBOARD)'!$W$4) -> 3386.919376 | T49: =INDEX('Compile Data'!$CL$123:$DI$204,$O49,'Report - ALL (DASHBOARD)'!$W$4) -> 3381.834579 | U49: =INDEX('Compile Data'!$DL$123:$EI$204,$O49,'Report - ALL (DASHBOARD)'!$W$4) -> 3400 | V49: =INDEX('Compile Data'!$EL$123:$FI$204,$O49,'Report - ALL (DASHBOARD)'!$W$4) -> 3400
A50: 1944 | B50: =INDEX('Compile Data'!$L$12:$AI$93,$A50-1921,'Report - ALL (DASHBOARD)'!$W$4) -> 2637.760857 | C50: =INDEX('Compile Data'!$AL$12:$BI$93,$A50-1921,'Report - ALL (DASHBOARD)'!$W$4) -> 2645.060359 | D50: =INDEX('Compile Data'!$BL$12:$CI$93,$A50-1921,'Report - ALL (DASHBOARD)'!$W$4) -> 2723.302941 | E50: =INDEX('Compile Data'!$CL$12:$DI$93,$A50-1921,'Report - ALL (DASHBOARD)'!$W$4) -> 2645.088743 | F50: =INDEX('Compile Data'!$DL$12:$EI$93,$A50-1921,'Report - ALL (DASHBOARD)'!$W$4) -> 2862.154085 | G50: =INDEX('Compile Data'!$EL$12:$FI$93,$A50-1921,'Report - ALL (DASHBOARD)'!$W$4) -> 2859.437309 | O50: 23 | P50: 0.2716049383 | Q50: =INDEX('Compile Data'!$L$123:$AI$204,$O50,'Report - ALL (DASHBOARD)'!$W$4) -> 3353.49032 | R50: =INDEX('Compile Data'!$AL$123:$BI$204,$O50,'Report - ALL (DASHBOARD)'!$W$4) -> 3347.90864 | S50: =INDEX('Compile Data'!$BL$123:$CI$204,$O50,'Report - ALL (DASHBOARD)'!$W$4) -> 3355.633132 | T50: =INDEX('Compile Data'!$CL$123:$DI$204,$O50,'Report - ALL (DASHBOARD)'!$W$4) -> 3347.829401 | U50: =INDEX('Compile Data'!$DL$123:$EI$204,$O50,'Report - ALL (DASHBOARD)'!$W$4) -> 3386.689695 | V50: =INDEX('Compile Data'!$EL$123:$FI$204,$O50,'Report - ALL (DASHBOARD)'!$W$4) -> 3400
A51: 1945 | B51: =INDEX('Compile Data'!$L$12:$AI$93,$A51-1921,'Report - ALL (DASHBOARD)'!$W$4) -> 3283.65164 | C51: =INDEX('Compile Data'!$AL$12:$BI$93,$A51-1921,'Report - ALL (DASHBOARD)'!$W$4) -> 3287.107698 | D51: =INDEX('Compile Data'!$BL$12:$CI$93,$A51-1921,'Report - ALL (DASHBOARD)'!$W$4) -> 3307.247727 | E51: =INDEX('Compile Data'!$CL$12:$DI$93,$A51-1921,'Report - ALL (DASHBOARD)'!$W$4) -> 3287.159895 | F51: =INDEX('Compile Data'!$DL$12:$EI$93,$A51-1921,'Report - ALL (DASHBOARD)'!$W$4) -> 3377.008798 | G51: =INDEX('Compile Data'!$EL$12:$FI$93,$A51-1921,'Report - ALL (DASHBOARD)'!$W$4) -> 3377.270499 | O51: 24 | P51: 0.2839506173 | Q51: =INDEX('Compile Data'!$L$123:$AI$204,$O51,'Report - ALL (DASHBOARD)'!$W$4) -> 3283.65164 | R51: =INDEX('Compile Data'!$AL$123:$BI$204,$O51,'Report - ALL (DASHBOARD)'!$W$4) -> 3287.107698 | S51: =INDEX('Compile Data'!$BL$123:$CI$204,$O51,'Report - ALL (DASHBOARD)'!$W$4) -> 3307.247727 | T51: =INDEX('Compile Data'!$CL$123:$DI$204,$O51,'Report - ALL (DASHBOARD)'!$W$4) -> 3287.159895 | U51: =INDEX('Compile Data'!$DL$123:$EI$204,$O51,'Report - ALL (DASHBOARD)'!$W$4) -> 3382.48372 | V51: =INDEX('Compile Data'!$EL$123:$FI$204,$O51,'Report - ALL (DASHBOARD)'!$W$4) -> 3387.630953
A52: 1946 | B52: =INDEX('Compile Data'!$L$12:$AI$93,$A52-1921,'Report - ALL (DASHBOARD)'!$W$4) -> 3200 | C52: =INDEX('Compile Data'!$AL$12:$BI$93,$A52-1921,'Report - ALL (DASHBOARD)'!$W$4) -> 3214.725536 | D52: =INDEX('Compile Data'!$BL$12:$CI$93,$A52-1921,'Report - ALL (DASHBOARD)'!$W$4) -> 3220.995759 | E52: =INDEX('Compile Data'!$CL$12:$DI$93,$A52-1921,'Report - ALL (DASHBOARD)'!$W$4) -> 3214.848322 | F52: =INDEX('Compile Data'!$DL$12:$EI$93,$A52-1921,'Report - ALL (DASHBOARD)'!$W$4) -> 3241.410685 | G52: =INDEX('Compile Data'!$EL$12:$FI$93,$A52-1921,'Report - ALL (DASHBOARD)'!$W$4) -> 3240.76963 | O52: 25 | P52: 0.2962962963 | Q52: =INDEX('Compile Data'!$L$123:$AI$204,$O52,'Report - ALL (DASHBOARD)'!$W$4) -> 3266.772226 | R52: =INDEX('Compile Data'!$AL$123:$BI$204,$O52,'Report - ALL (DASHBOARD)'!$W$4) -> 3267.789016 | S52: =INDEX('Compile Data'!$BL$123:$CI$204,$O52,'Report - ALL (DASHBOARD)'!$W$4) -> 3296.894297 | T52: =INDEX('Compile Data'!$CL$123:$DI$204,$O52,'Report - ALL (DASHBOARD)'!$W$4) -> 3268.006574 | U52: =INDEX('Compile Data'!$DL$123:$EI$204,$O52,'Report - ALL (DASHBOARD)'!$W$4) -> 3377.008798 | V52: =INDEX('Compile Data'!$EL$123:$FI$204,$O52,'Report - ALL (DASHBOARD)'!$W$4) -> 3377.270499
A53: 1947 | B53: =INDEX('Compile Data'!$L$12:$AI$93,$A53-1921,'Report - ALL (DASHBOARD)'!$W$4) -> 2677.299546 | C53: =INDEX('Compile Data'!$AL$12:$BI$93,$A53-1921,'Report - ALL (DASHBOARD)'!$W$4) -> 2659.034618 | D53: =INDEX('Compile Data'!$BL$12:$CI$93,$A53-1921,'Report - ALL (DASHBOARD)'!$W$4) -> 2668.722753 | E53: =INDEX('Compile Data'!$CL$12:$DI$93,$A53-1921,'Report - ALL (DASHBOARD)'!$W$4) -> 2659.222751 | F53: =INDEX('Compile Data'!$DL$12:$EI$93,$A53-1921,'Report - ALL (DASHBOARD)'!$W$4) -> 2709.040728 | G53: =INDEX('Compile Data'!$EL$12:$FI$93,$A53-1921,'Report - ALL (DASHBOARD)'!$W$4) -> 2728.008854 | O53: 26 | P53: 0.3086419753 | Q53: =INDEX('Compile Data'!$L$123:$AI$204,$O53,'Report - ALL (DASHBOARD)'!$W$4) -> 3236.994921 | R53: =INDEX('Compile Data'!$AL$123:$BI$204,$O53,'Report - ALL (DASHBOARD)'!$W$4) -> 3227.652886 | S53: =INDEX('Compile Data'!$BL$123:$CI$204,$O53,'Report - ALL (DASHBOARD)'!$W$4) -> 3271.739599 | T53: =INDEX('Compile Data'!$CL$123:$DI$204,$O53,'Report - ALL (DASHBOARD)'!$W$4) -> 3234.072 | U53: =INDEX('Compile Data'!$DL$123:$EI$204,$O53,'Report - ALL (DASHBOARD)'!$W$4) -> 3346.927724 | V53: =INDEX('Compile Data'!$EL$123:$FI$204,$O53,'Report - ALL (DASHBOARD)'!$W$4) -> 3375.806423
A54: 1948 | B54: =INDEX('Compile Data'!$L$12:$AI$93,$A54-1921,'Report - ALL (DASHBOARD)'!$W$4) -> 3400 | C54: =INDEX('Compile Data'!$AL$12:$BI$93,$A54-1921,'Report - ALL (DASHBOARD)'!$W$4) -> 3347.90864 | D54: =INDEX('Compile Data'!$BL$12:$CI$93,$A54-1921,'Report - ALL (DASHBOARD)'!$W$4) -> 3355.633132 | E54: =INDEX('Compile Data'!$CL$12:$DI$93,$A54-1921,'Report - ALL (DASHBOARD)'!$W$4) -> 3347.829401 | F54: =INDEX('Compile Data'!$DL$12:$EI$93,$A54-1921,'Report - ALL (DASHBOARD)'!$W$4) -> 3382.48372 | G54: =INDEX('Compile Data'!$EL$12:$FI$93,$A54-1921,'Report - ALL (DASHBOARD)'!$W$4) -> 3400 | O54: 27 | P54: 0.3209876543 | Q54: =INDEX('Compile Data'!$L$123:$AI$204,$O54,'Report - ALL (DASHBOARD)'!$W$4) -> 3233.332407 | R54: =INDEX('Compile Data'!$AL$123:$BI$204,$O54,'Report - ALL (DASHBOARD)'!$W$4) -> 3217.643271 | S54: =INDEX('Compile Data'!$BL$123:$CI$204,$O54,'Report - ALL (DASHBOARD)'!$W$4) -> 3232.920391 | T54: =INDEX('Compile Data'!$CL$123:$DI$204,$O54,'Report - ALL (DASHBOARD)'!$W$4) -> 3227.664004 | U54: =INDEX('Compile Data'!$DL$123:$EI$204,$O54,'Report - ALL (DASHBOARD)'!$W$4) -> 3334.078562 | V54: =INDEX('Compile Data'!$EL$123:$FI$204,$O54,'Report - ALL (DASHBOARD)'!$W$4) -> 3334.253986
A55: 1949 | B55: =INDEX('Compile Data'!$L$12:$AI$93,$A55-1921,'Report - ALL (DASHBOARD)'!$W$4) -> 3203.978232 | C55: =INDEX('Compile Data'!$AL$12:$BI$93,$A55-1921,'Report - ALL (DASHBOARD)'!$W$4) -> 3211.029815 | D55: =INDEX('Compile Data'!$BL$12:$CI$93,$A55-1921,'Report - ALL (DASHBOARD)'!$W$4) -> 3219.270778 | E55: =INDEX('Compile Data'!$CL$12:$DI$93,$A55-1921,'Report - ALL (DASHBOARD)'!$W$4) -> 3211.401792 | F55: =INDEX('Compile Data'!$DL$12:$EI$93,$A55-1921,'Report - ALL (DASHBOARD)'!$W$4) -> 3247.091627 | G55: =INDEX('Compile Data'!$EL$12:$FI$93,$A55-1921,'Report - ALL (DASHBOARD)'!$W$4) -> 3223.987504 | O55: 28 | P55: 0.3333333333 | Q55: =INDEX('Compile Data'!$L$123:$AI$204,$O55,'Report - ALL (DASHBOARD)'!$W$4) -> 3203.978232 | R55: =INDEX('Compile Data'!$AL$123:$BI$204,$O55,'Report - ALL (DASHBOARD)'!$W$4) -> 3214.725536 | S55: =INDEX('Compile Data'!$BL$123:$CI$204,$O55,'Report - ALL (DASHBOARD)'!$W$4) -> 3227.625074 | T55: =INDEX('Compile Data'!$CL$123:$DI$204,$O55,'Report - ALL (DASHBOARD)'!$W$4) -> 3216.874563 | U55: =INDEX('Compile Data'!$DL$123:$EI$204,$O55,'Report - ALL (DASHBOARD)'!$W$4) -> 3284.971745 | V55: =INDEX('Compile Data'!$EL$123:$FI$204,$O55,'Report - ALL (DASHBOARD)'!$W$4) -> 3284.948391
A56: 1950 | B56: =INDEX('Compile Data'!$L$12:$AI$93,$A56-1921,'Report - ALL (DASHBOARD)'!$W$4) -> 3203.512854 | C56: =INDEX('Compile Data'!$AL$12:$BI$93,$A56-1921,'Report - ALL (DASHBOARD)'!$W$4) -> 3203.776245 | D56: =INDEX('Compile Data'!$BL$12:$CI$93,$A56-1921,'Report - ALL (DASHBOARD)'!$W$4) -> 3226.590999 | E56: =INDEX('Compile Data'!$CL$12:$DI$93,$A56-1921,'Report - ALL (DASHBOARD)'!$W$4) -> 3234.072 | F56: =INDEX('Compile Data'!$DL$12:$EI$93,$A56-1921,'Report - ALL (DASHBOARD)'!$W$4) -> 3239.269839 | G56: =INDEX('Compile Data'!$EL$12:$FI$93,$A56-1921,'Report - ALL (DASHBOARD)'!$W$4) -> 3249.053323 | O56: 29 | P56: 0.3456790123 | Q56: =INDEX('Compile Data'!$L$123:$AI$204,$O56,'Report - ALL (DASHBOARD)'!$W$4) -> 3203.512854 | R56: =INDEX('Compile Data'!$AL$123:$BI$204,$O56,'Report - ALL (DASHBOARD)'!$W$4) -> 3211.029815 | S56: =INDEX('Compile Data'!$BL$123:$CI$204,$O56,'Report - ALL (DASHBOARD)'!$W$4) -> 3226.590999 | T56: =INDEX('Compile Data'!$CL$123:$DI$204,$O56,'Report - ALL (DASHBOARD)'!$W$4) -> 3214.848322 | U56: =INDEX('Compile Data'!$DL$123:$EI$204,$O56,'Report - ALL (DASHBOARD)'!$W$4) -> 3276.574724 | V56: =INDEX('Compile Data'!$EL$123:$FI$204,$O56,'Report - ALL (DASHBOARD)'!$W$4) -> 3277.438657
A57: 1951 | B57: =INDEX('Compile Data'!$L$12:$AI$93,$A57-1921,'Report - ALL (DASHBOARD)'!$W$4) -> 2901.943057 | C57: =INDEX('Compile Data'!$AL$12:$BI$93,$A57-1921,'Report - ALL (DASHBOARD)'!$W$4) -> 2894.103042 | D57: =INDEX('Compile Data'!$BL$12:$CI$93,$A57-1921,'Report - ALL (DASHBOARD)'!$W$4) -> 2933.321453 | E57: =INDEX('Compile Data'!$CL$12:$DI$93,$A57-1921,'Report - ALL (DASHBOARD)'!$W$4) -> 2894.066029 | F57: =INDEX('Compile Data'!$DL$12:$EI$93,$A57-1921,'Report - ALL (DASHBOARD)'!$W$4) -> 2984.954434 | G57: =INDEX('Compile Data'!$EL$12:$FI$93,$A57-1921,'Report - ALL (DASHBOARD)'!$W$4) -> 3001.827508 | O57: 30 | P57: 0.3580246914 | Q57: =INDEX('Compile Data'!$L$123:$AI$204,$O57,'Report - ALL (DASHBOARD)'!$W$4) -> 3200 | R57: =INDEX('Compile Data'!$AL$123:$BI$204,$O57,'Report - ALL (DASHBOARD)'!$W$4) -> 3203.776245 | S57: =INDEX('Compile Data'!$BL$123:$CI$204,$O57,'Report - ALL (DASHBOARD)'!$W$4) -> 3220.995759 | T57: =INDEX('Compile Data'!$CL$123:$DI$204,$O57,'Report - ALL (DASHBOARD)'!$W$4) -> 3211.401792 | U57: =INDEX('Compile Data'!$DL$123:$EI$204,$O57,'Report - ALL (DASHBOARD)'!$W$4) -> 3247.091627 | V57: =INDEX('Compile Data'!$EL$123:$FI$204,$O57,'Report - ALL (DASHBOARD)'!$W$4) -> 3249.053323
A58: 1952 | B58: =INDEX('Compile Data'!$L$12:$AI$93,$A58-1921,'Report - ALL (DASHBOARD)'!$W$4) -> 3400 | C58: =INDEX('Compile Data'!$AL$12:$BI$93,$A58-1921,'Report - ALL (DASHBOARD)'!$W$4) -> 3400 | D58: =INDEX('Compile Data'!$BL$12:$CI$93,$A58-1921,'Report - ALL (DASHBOARD)'!$W$4) -> 3386.919376 | E58: =INDEX('Compile Data'!$CL$12:$DI$93,$A58-1921,'Report - ALL (DASHBOARD)'!$W$4) -> 3400 | F58: =INDEX('Compile Data'!$DL$12:$EI$93,$A58-1921,'Report - ALL (DASHBOARD)'!$W$4) -> 3400 | G58: =INDEX('Compile Data'!$EL$12:$FI$93,$A58-1921,'Report - ALL (DASHBOARD)'!$W$4) -> 3400 | O58: 31 | P58: 0.3703703704 | Q58: =INDEX('Compile Data'!$L$123:$AI$204,$O58,'Report - ALL (DASHBOARD)'!$W$4) -> 3200 | R58: =INDEX('Compile Data'!$AL$123:$BI$204,$O58,'Report - ALL (DASHBOARD)'!$W$4) -> 3200.588073 | S58: =INDEX('Compile Data'!$BL$123:$CI$204,$O58,'Report - ALL (DASHBOARD)'!$W$4) -> 3219.270778 | T58: =INDEX('Compile Data'!$CL$123:$DI$204,$O58,'Report - ALL (DASHBOARD)'!$W$4) -> 3200.596566 | U58: =INDEX('Compile Data'!$DL$123:$EI$204,$O58,'Report - ALL (DASHBOARD)'!$W$4) -> 3241.410685 | V58: =INDEX('Compile Data'!$EL$123:$FI$204,$O58,'Report - ALL (DASHBOARD)'!$W$4) -> 3240.76963
A59: 1953 | B59: =INDEX('Compile Data'!$L$12:$AI$93,$A59-1921,'Report - ALL (DASHBOARD)'!$W$4) -> 3400 | C59: =INDEX('Compile Data'!$AL$12:$BI$93,$A59-1921,'Report - ALL (DASHBOARD)'!$W$4) -> 3400 | D59: =INDEX('Compile Data'!$BL$12:$CI$93,$A59-1921,'Report - ALL (DASHBOARD)'!$W$4) -> 3400 | E59: =INDEX('Compile Data'!$CL$12:$DI$93,$A59-1921,'Report - ALL (DASHBOARD)'!$W$4) -> 3400 | F59: =INDEX('Compile Data'!$DL$12:$EI$93,$A59-1921,'Report - ALL (DASHBOARD)'!$W$4) -> 3400 | G59: =INDEX('Compile Data'!$EL$12:$FI$93,$A59-1921,'Report - ALL (DASHBOARD)'!$W$4) -> 3400 | O59: 32 | P59: 0.3827160494 | Q59: =INDEX('Compile Data'!$L$123:$AI$204,$O59,'Report - ALL (DASHBOARD)'!$W$4) -> 3184.04974 | R59: =INDEX('Compile Data'!$AL$123:$BI$204,$O59,'Report - ALL (DASHBOARD)'!$W$4) -> 3190.288264 | S59: =INDEX('Compile Data'!$BL$123:$CI$204,$O59,'Report - ALL (DASHBOARD)'!$W$4) -> 3217.227853 | T59: =INDEX('Compile Data'!$CL$123:$DI$204,$O59,'Report - ALL (DASHBOARD)'!$W$4) -> 3189.831747 | U59: =INDEX('Compile Data'!$DL$123:$EI$204,$O59,'Report - ALL (DASHBOARD)'!$W$4) -> 3239.269839 | V59: =INDEX('Compile Data'!$EL$123:$FI$204,$O59,'Report - ALL (DASHBOARD)'!$W$4) -> 3229.893553
A60: 1954 | B60: =INDEX('Compile Data'!$L$12:$AI$93,$A60-1921,'Report - ALL (DASHBOARD)'!$W$4) -> 3089.462031 | C60: =INDEX('Compile Data'!$AL$12:$BI$93,$A60-1921,'Report - ALL (DASHBOARD)'!$W$4) -> 3092.722413 | D60: =INDEX('Compile Data'!$BL$12:$CI$93,$A60-1921,'Report - ALL (DASHBOARD)'!$W$4) -> 3155.800977 | E60: =INDEX('Compile Data'!$CL$12:$DI$93,$A60-1921,'Report - ALL (DASHBOARD)'!$W$4) -> 3092.786013 | F60: =INDEX('Compile Data'!$DL$12:$EI$93,$A60-1921,'Report - ALL (DASHBOARD)'!$W$4) -> 3276.574724 | G60: =INDEX('Compile Data'!$EL$12:$FI$93,$A60-1921,'Report - ALL (DASHBOARD)'!$W$4) -> 3277.438657 | O60: 33 | P60: 0.3950617284 | Q60: =INDEX('Compile Data'!$L$123:$AI$204,$O60,'Report - ALL (DASHBOARD)'!$W$4) -> 3164.43635 | R60: =INDEX('Compile Data'!$AL$123:$BI$204,$O60,'Report - ALL (DASHBOARD)'!$W$4) -> 3182.594282 | S60: =INDEX('Compile Data'!$BL$123:$CI$204,$O60,'Report - ALL (DASHBOARD)'!$W$4) -> 3190.876884 | T60: =INDEX('Compile Data'!$CL$123:$DI$204,$O60,'Report - ALL (DASHBOARD)'!$W$4) -> 3182.599586 | U60: =INDEX('Compile Data'!$DL$123:$EI$204,$O60,'Report - ALL (DASHBOARD)'!$W$4) -> 3228.235327 | V60: =INDEX('Compile Data'!$EL$123:$FI$204,$O60,'Report - ALL (DASHBOARD)'!$W$4) -> 3227.726584
A61: 1955 | B61: =INDEX('Compile Data'!$L$12:$AI$93,$A61-1921,'Report - ALL (DASHBOARD)'!$W$4) -> 2992.927769 | C61: =INDEX('Compile Data'!$AL$12:$BI$93,$A61-1921,'Report - ALL (DASHBOARD)'!$W$4) -> 3011.33443 | D61: =INDEX('Compile Data'!$BL$12:$CI$93,$A61-1921,'Report - ALL (DASHBOARD)'!$W$4) -> 2980.168025 | E61: =INDEX('Compile Data'!$CL$12:$DI$93,$A61-1921,'Report - ALL (DASHBOARD)'!$W$4) -> 3010.795907 | F61: =INDEX('Compile Data'!$DL$12:$EI$93,$A61-1921,'Report - ALL (DASHBOARD)'!$W$4) -> 3058.84422 | G61: =INDEX('Compile Data'!$EL$12:$FI$93,$A61-1921,'Report - ALL (DASHBOARD)'!$W$4) -> 3059.662581 | O61: 34 | P61: 0.4074074074 | Q61: =INDEX('Compile Data'!$L$123:$AI$204,$O61,'Report - ALL (DASHBOARD)'!$W$4) -> 3162.722859 | R61: =INDEX('Compile Data'!$AL$123:$BI$204,$O61,'Report - ALL (DASHBOARD)'!$W$4) -> 3178.8869 | S61: =INDEX('Compile Data'!$BL$123:$CI$204,$O61,'Report - ALL (DASHBOARD)'!$W$4) -> 3190.01374 | T61: =INDEX('Compile Data'!$CL$123:$DI$204,$O61,'Report - ALL (DASHBOARD)'!$W$4) -> 3178.921469 | U61: =INDEX('Compile Data'!$DL$123:$EI$204,$O61,'Report - ALL (DASHBOARD)'!$W$4) -> 3227.383212 | V61: =INDEX('Compile Data'!$EL$123:$FI$204,$O61,'Report - ALL (DASHBOARD)'!$W$4) -> 3223.987504
A62: 1956 | B62: =INDEX('Compile Data'!$L$12:$AI$93,$A62-1921,'Report - ALL (DASHBOARD)'!$W$4) -> 3400 | C62: =INDEX('Compile Data'!$AL$12:$BI$93,$A62-1921,'Report - ALL (DASHBOARD)'!$W$4) -> 3400 | D62: =INDEX('Compile Data'!$BL$12:$CI$93,$A62-1921,'Report - ALL (DASHBOARD)'!$W$4) -> 3400 | E62: =INDEX('Compile Data'!$CL$12:$DI$93,$A62-1921,'Report - ALL (DASHBOARD)'!$W$4) -> 3400 | F62: =INDEX('Compile Data'!$DL$12:$EI$93,$A62-1921,'Report - ALL (DASHBOARD)'!$W$4) -> 3400 | G62: =INDEX('Compile Data'!$EL$12:$FI$93,$A62-1921,'Report - ALL (DASHBOARD)'!$W$4) -> 3400 | O62: 35 | P62: 0.4197530864 | Q62: =INDEX('Compile Data'!$L$123:$AI$204,$O62,'Report - ALL (DASHBOARD)'!$W$4) -> 3158.645217 | R62: =INDEX('Compile Data'!$AL$123:$BI$204,$O62,'Report - ALL (DASHBOARD)'!$W$4) -> 3170.53036 | S62: =INDEX('Compile Data'!$BL$123:$CI$204,$O62,'Report - ALL (DASHBOARD)'!$W$4) -> 3186.048432 | T62: =INDEX('Compile Data'!$CL$123:$DI$204,$O62,'Report - ALL (DASHBOARD)'!$W$4) -> 3170.465492 | U62: =INDEX('Compile Data'!$DL$123:$EI$204,$O62,'Report - ALL (DASHBOARD)'!$W$4) -> 3216.973877 | V62: =INDEX('Compile Data'!$EL$123:$FI$204,$O62,'Report - ALL (DASHBOARD)'!$W$4) -> 3221.871627
A63: 1957 | B63: =INDEX('Compile Data'!$L$12:$AI$93,$A63-1921,'Report - ALL (DASHBOARD)'!$W$4) -> 3162.722859 | C63: =INDEX('Compile Data'!$AL$12:$BI$93,$A63-1921,'Report - ALL (DASHBOARD)'!$W$4) -> 3178.8869 | D63: =INDEX('Compile Data'!$BL$12:$CI$93,$A63-1921,'Report - ALL (DASHBOARD)'!$W$4) -> 3232.920391 | E63: =INDEX('Compile Data'!$CL$12:$DI$93,$A63-1921,'Report - ALL (DASHBOARD)'!$W$4) -> 3178.921469 | F63: =INDEX('Compile Data'!$DL$12:$EI$93,$A63-1921,'Report - ALL (DASHBOARD)'!$W$4) -> 3284.971745 | G63: =INDEX('Compile Data'!$EL$12:$FI$93,$A63-1921,'Report - ALL (DASHBOARD)'!$W$4) -> 3284.948391 | O63: 36 | P63: 0.4320987654 | Q63: =INDEX('Compile Data'!$L$123:$AI$204,$O63,'Report - ALL (DASHBOARD)'!$W$4) -> 3151.505254 | R63: =INDEX('Compile Data'!$AL$123:$BI$204,$O63,'Report - ALL (DASHBOARD)'!$W$4) -> 3161.651974 | S63: =INDEX('Compile Data'!$BL$123:$CI$204,$O63,'Report - ALL (DASHBOARD)'!$W$4) -> 3181.792347 | T63: =INDEX('Compile Data'!$CL$123:$DI$204,$O63,'Report - ALL (DASHBOARD)'!$W$4) -> 3161.210617 | U63: =INDEX('Compile Data'!$DL$123:$EI$204,$O63,'Report - ALL (DASHBOARD)'!$W$4) -> 3214.717924 | V63: =INDEX('Compile Data'!$EL$123:$FI$204,$O63,'Report - ALL (DASHBOARD)'!$W$4) -> 3217.076079
A64: 1958 | B64: =INDEX('Compile Data'!$L$12:$AI$93,$A64-1921,'Report - ALL (DASHBOARD)'!$W$4) -> 3400 | C64: =INDEX('Compile Data'!$AL$12:$BI$93,$A64-1921,'Report - ALL (DASHBOARD)'!$W$4) -> 3400 | D64: =INDEX('Compile Data'!$BL$12:$CI$93,$A64-1921,'Report - ALL (DASHBOARD)'!$W$4) -> 3400 | E64: =INDEX('Compile Data'!$CL$12:$DI$93,$A64-1921,'Report - ALL (DASHBOARD)'!$W$4) -> 3400 | F64: =INDEX('Compile Data'!$DL$12:$EI$93,$A64-1921,'Report - ALL (DASHBOARD)'!$W$4) -> 3400 | G64: =INDEX('Compile Data'!$EL$12:$FI$93,$A64-1921,'Report - ALL (DASHBOARD)'!$W$4) -> 3400 | O64: 37 | P64: 0.4444444444 | Q64: =INDEX('Compile Data'!$L$123:$AI$204,$O64,'Report - ALL (DASHBOARD)'!$W$4) -> 3134.827548 | R64: =INDEX('Compile Data'!$AL$123:$BI$204,$O64,'Report - ALL (DASHBOARD)'!$W$4) -> 3149.853106 | S64: =INDEX('Compile Data'!$BL$123:$CI$204,$O64,'Report - ALL (DASHBOARD)'!$W$4) -> 3160.818986 | T64: =INDEX('Compile Data'!$CL$123:$DI$204,$O64,'Report - ALL (DASHBOARD)'!$W$4) -> 3148.936093 | U64: =INDEX('Compile Data'!$DL$123:$EI$204,$O64,'Report - ALL (DASHBOARD)'!$W$4) -> 3203.186587 | V64: =INDEX('Compile Data'!$EL$123:$FI$204,$O64,'Report - ALL (DASHBOARD)'!$W$4) -> 3216.521937
A65: 1959 | B65: =INDEX('Compile Data'!$L$12:$AI$93,$A65-1921,'Report - ALL (DASHBOARD)'!$W$4) -> 2819.708297 | C65: =INDEX('Compile Data'!$AL$12:$BI$93,$A65-1921,'Report - ALL (DASHBOARD)'!$W$4) -> 2814.52686 | D65: =INDEX('Compile Data'!$BL$12:$CI$93,$A65-1921,'Report - ALL (DASHBOARD)'!$W$4) -> 2907.170249 | E65: =INDEX('Compile Data'!$CL$12:$DI$93,$A65-1921,'Report - ALL (DASHBOARD)'!$W$4) -> 2814.597256 | F65: =INDEX('Compile Data'!$DL$12:$EI$93,$A65-1921,'Report - ALL (DASHBOARD)'!$W$4) -> 3018.002344 | G65: =INDEX('Compile Data'!$EL$12:$FI$93,$A65-1921,'Report - ALL (DASHBOARD)'!$W$4) -> 3018.062119 | O65: 38 | P65: 0.4567901235 | Q65: =INDEX('Compile Data'!$L$123:$AI$204,$O65,'Report - ALL (DASHBOARD)'!$W$4) -> 3119.737874 | R65: =INDEX('Compile Data'!$AL$123:$BI$204,$O65,'Report - ALL (DASHBOARD)'!$W$4) -> 3129.383962 | S65: =INDEX('Compile Data'!$BL$123:$CI$204,$O65,'Report - ALL (DASHBOARD)'!$W$4) -> 3155.800977 | T65: =INDEX('Compile Data'!$CL$123:$DI$204,$O65,'Report - ALL (DASHBOARD)'!$W$4) -> 3134.996617 | U65: =INDEX('Compile Data'!$DL$123:$EI$204,$O65,'Report - ALL (DASHBOARD)'!$W$4) -> 3202.582315 | V65: =INDEX('Compile Data'!$EL$123:$FI$204,$O65,'Report - ALL (DASHBOARD)'!$W$4) -> 3202.985198
A66: 1960 | B66: =INDEX('Compile Data'!$L$12:$AI$93,$A66-1921,'Report - ALL (DASHBOARD)'!$W$4) -> 2823.546091 | C66: =INDEX('Compile Data'!$AL$12:$BI$93,$A66-1921,'Report - ALL (DASHBOARD)'!$W$4) -> 2818.873989 | D66: =INDEX('Compile Data'!$BL$12:$CI$93,$A66-1921,'Report - ALL (DASHBOARD)'!$W$4) -> 2926.379206 | E66: =INDEX('Compile Data'!$CL$12:$DI$93,$A66-1921,'Report - ALL (DASHBOARD)'!$W$4) -> 2818.969044 | F66: =INDEX('Compile Data'!$DL$12:$EI$93,$A66-1921,'Report - ALL (DASHBOARD)'!$W$4) -> 3127.275453 | G66: =INDEX('Compile Data'!$EL$12:$FI$93,$A66-1921,'Report - ALL (DASHBOARD)'!$W$4) -> 3127.273376 | O66: 39 | P66: 0.4691358025 | Q66: =INDEX('Compile Data'!$L$123:$AI$204,$O66,'Report - ALL (DASHBOARD)'!$W$4) -> 3102.077961 | R66: =INDEX('Compile Data'!$AL$123:$BI$204,$O66,'Report - ALL (DASHBOARD)'!$W$4) -> 3119.282881 | S66: =INDEX('Compile Data'!$BL$123:$CI$204,$O66,'Report - ALL (DASHBOARD)'!$W$4) -> 3149.903499 | T66: =INDEX('Compile Data'!$CL$123:$DI$204,$O66,'Report - ALL (DASHBOARD)'!$W$4) -> 3122.482185 | U66: =INDEX('Compile Data'!$DL$123:$EI$204,$O66,'Report - ALL (DASHBOARD)'!$W$4) -> 3191.084079 | V66: =INDEX('Compile Data'!$EL$123:$FI$204,$O66,'Report - ALL (DASHBOARD)'!$W$4) -> 3193.520697
A67: 1961 | B67: =INDEX('Compile Data'!$L$12:$AI$93,$A67-1921,'Report - ALL (DASHBOARD)'!$W$4) -> 3039.018189 | C67: =INDEX('Compile Data'!$AL$12:$BI$93,$A67-1921,'Report - ALL (DASHBOARD)'!$W$4) -> 2997.388215 | D67: =INDEX('Compile Data'!$BL$12:$CI$93,$A67-1921,'Report - ALL (DASHBOARD)'!$W$4) -> 3021.436736 | E67: =INDEX('Compile Data'!$CL$12:$DI$93,$A67-1921,'Report - ALL (DASHBOARD)'!$W$4) -> 2997.870116 | F67: =INDEX('Compile Data'!$DL$12:$EI$93,$A67-1921,'Report - ALL (DASHBOARD)'!$W$4) -> 2954.849721 | G67: =INDEX('Compile Data'!$EL$12:$FI$93,$A67-1921,'Report - ALL (DASHBOARD)'!$W$4) -> 2953.3185 | O67: 40 | P67: 0.4814814815 | Q67: =INDEX('Compile Data'!$L$123:$AI$204,$O67,'Report - ALL (DASHBOARD)'!$W$4) -> 3089.462031 | R67: =INDEX('Compile Data'!$AL$123:$BI$204,$O67,'Report - ALL (DASHBOARD)'!$W$4) -> 3112.928703 | S67: =INDEX('Compile Data'!$BL$123:$CI$204,$O67,'Report - ALL (DASHBOARD)'!$W$4) -> 3135.689927 | T67: =INDEX('Compile Data'!$CL$123:$DI$204,$O67,'Report - ALL (DASHBOARD)'!$W$4) -> 3119.292717 | U67: =INDEX('Compile Data'!$DL$123:$EI$204,$O67,'Report - ALL (DASHBOARD)'!$W$4) -> 3189.157548 | V67: =INDEX('Compile Data'!$EL$123:$FI$204,$O67,'Report - ALL (DASHBOARD)'!$W$4) -> 3190.153281
A68: 1962 | B68: =INDEX('Compile Data'!$L$12:$AI$93,$A68-1921,'Report - ALL (DASHBOARD)'!$W$4) -> 3119.737874 | C68: =INDEX('Compile Data'!$AL$12:$BI$93,$A68-1921,'Report - ALL (DASHBOARD)'!$W$4) -> 3129.383962 | D68: =INDEX('Compile Data'!$BL$12:$CI$93,$A68-1921,'Report - ALL (DASHBOARD)'!$W$4) -> 3135.689927 | E68: =INDEX('Compile Data'!$CL$12:$DI$93,$A68-1921,'Report - ALL (DASHBOARD)'!$W$4) -> 3134.996617 | F68: =INDEX('Compile Data'!$DL$12:$EI$93,$A68-1921,'Report - ALL (DASHBOARD)'!$W$4) -> 3160.432646 | G68: =INDEX('Compile Data'!$EL$12:$FI$93,$A68-1921,'Report - ALL (DASHBOARD)'!$W$4) -> 3152.321574 | O68: 41 | P68: 0.4938271605 | Q68: =INDEX('Compile Data'!$L$123:$AI$204,$O68,'Report - ALL (DASHBOARD)'!$W$4) -> 3075.156219 | R68: =INDEX('Compile Data'!$AL$123:$BI$204,$O68,'Report - ALL (DASHBOARD)'!$W$4) -> 3092.722413 | S68: =INDEX('Compile Data'!$BL$123:$CI$204,$O68,'Report - ALL (DASHBOARD)'!$W$4) -> 3120.215218 | T68: =INDEX('Compile Data'!$CL$123:$DI$204,$O68,'Report - ALL (DASHBOARD)'!$W$4) -> 3092.786013 | U68: =INDEX('Compile Data'!$DL$123:$EI$204,$O68,'Report - ALL (DASHBOARD)'!$W$4) -> 3189.06591 | V68: =INDEX('Compile Data'!$EL$123:$FI$204,$O68,'Report - ALL (DASHBOARD)'!$W$4) -> 3188.586808
A69: 1963 | B69: =INDEX('Compile Data'!$L$12:$AI$93,$A69-1921,'Report - ALL (DASHBOARD)'!$W$4) -> 3236.994921 | C69: =INDEX('Compile Data'!$AL$12:$BI$93,$A69-1921,'Report - ALL (DASHBOARD)'!$W$4) -> 3217.643271 | D69: =INDEX('Compile Data'!$BL$12:$CI$93,$A69-1921,'Report - ALL (DASHBOARD)'!$W$4) -> 3217.227853 | E69: =INDEX('Compile Data'!$CL$12:$DI$93,$A69-1921,'Report - ALL (DASHBOARD)'!$W$4) -> 3216.874563 | F69: =INDEX('Compile Data'!$DL$12:$EI$93,$A69-1921,'Report - ALL (DASHBOARD)'!$W$4) -> 3214.717924 | G69: =INDEX('Compile Data'!$EL$12:$FI$93,$A69-1921,'Report - ALL (DASHBOARD)'!$W$4) -> 3216.521937 | O69: 42 | P69: 0.5061728395 | Q69: =INDEX('Compile Data'!$L$123:$AI$204,$O69,'Report - ALL (DASHBOARD)'!$W$4) -> 3067.864588 | R69: =INDEX('Compile Data'!$AL$123:$BI$204,$O69,'Report - ALL (DASHBOARD)'!$W$4) -> 3084.253588 | S69: =INDEX('Compile Data'!$BL$123:$CI$204,$O69,'Report - ALL (DASHBOARD)'!$W$4) -> 3119.369419 | T69: =INDEX('Compile Data'!$CL$123:$DI$204,$O69,'Report - ALL (DASHBOARD)'!$W$4) -> 3084.318742 | U69: =INDEX('Compile Data'!$DL$123:$EI$204,$O69,'Report - ALL (DASHBOARD)'!$W$4) -> 3178.763839 | V69: =INDEX('Compile Data'!$EL$123:$FI$204,$O69,'Report - ALL (DASHBOARD)'!$W$4) -> 3183.866415
A70: 1964 | B70: =INDEX('Compile Data'!$L$12:$AI$93,$A70-1921,'Report - ALL (DASHBOARD)'!$W$4) -> 2820.756265 | C70: =INDEX('Compile Data'!$AL$12:$BI$93,$A70-1921,'Report - ALL (DASHBOARD)'!$W$4) -> 2831.740862 | D70: =INDEX('Compile Data'!$BL$12:$CI$93,$A70-1921,'Report - ALL (DASHBOARD)'!$W$4) -> 2849.819109 | E70: =INDEX('Compile Data'!$CL$12:$DI$93,$A70-1921,'Report - ALL (DASHBOARD)'!$W$4) -> 2831.478657 | F70: =INDEX('Compile Data'!$DL$12:$EI$93,$A70-1921,'Report - ALL (DASHBOARD)'!$W$4) -> 2947.438742 | G70: =INDEX('Compile Data'!$EL$12:$FI$93,$A70-1921,'Report - ALL (DASHBOARD)'!$W$4) -> 2949.942208 | O70: 43 | P70: 0.5185185185 | Q70: =INDEX('Compile Data'!$L$123:$AI$204,$O70,'Report - ALL (DASHBOARD)'!$W$4) -> 3039.018189 | R70: =INDEX('Compile Data'!$AL$123:$BI$204,$O70,'Report - ALL (DASHBOARD)'!$W$4) -> 3030.400062 | S70: =INDEX('Compile Data'!$BL$123:$CI$204,$O70,'Report - ALL (DASHBOARD)'!$W$4) -> 3104.113457 | T70: =INDEX('Compile Data'!$CL$123:$DI$204,$O70,'Report - ALL (DASHBOARD)'!$W$4) -> 3030.433834 | U70: =INDEX('Compile Data'!$DL$123:$EI$204,$O70,'Report - ALL (DASHBOARD)'!$W$4) -> 3160.432646 | V70: =INDEX('Compile Data'!$EL$123:$FI$204,$O70,'Report - ALL (DASHBOARD)'!$W$4) -> 3152.321574
A71: 1965 | B71: =INDEX('Compile Data'!$L$12:$AI$93,$A71-1921,'Report - ALL (DASHBOARD)'!$W$4) -> 3400 | C71: =INDEX('Compile Data'!$AL$12:$BI$93,$A71-1921,'Report - ALL (DASHBOARD)'!$W$4) -> 3400 | D71: =INDEX('Compile Data'!$BL$12:$CI$93,$A71-1921,'Report - ALL (DASHBOARD)'!$W$4) -> 3400 | E71: =INDEX('Compile Data'!$CL$12:$DI$93,$A71-1921,'Report - ALL (DASHBOARD)'!$W$4) -> 3400 | F71: =INDEX('Compile Data'!$DL$12:$EI$93,$A71-1921,'Report - ALL (DASHBOARD)'!$W$4) -> 3400 | G71: =INDEX('Compile Data'!$EL$12:$FI$93,$A71-1921,'Report - ALL (DASHBOARD)'!$W$4) -> 3400 | O71: 44 | P71: 0.5308641975 | Q71: =INDEX('Compile Data'!$L$123:$AI$204,$O71,'Report - ALL (DASHBOARD)'!$W$4) -> 3026.323497 | R71: =INDEX('Compile Data'!$AL$123:$BI$204,$O71,'Report - ALL (DASHBOARD)'!$W$4) -> 3030.354889 | S71: =INDEX('Compile Data'!$BL$123:$CI$204,$O71,'Report - ALL (DASHBOARD)'!$W$4) -> 3086.358975 | T71: =INDEX('Compile Data'!$CL$123:$DI$204,$O71,'Report - ALL (DASHBOARD)'!$W$4) -> 3028.54946 | U71: =INDEX('Compile Data'!$DL$123:$EI$204,$O71,'Report - ALL (DASHBOARD)'!$W$4) -> 3134.898618 | V71: =INDEX('Compile Data'!$EL$123:$FI$204,$O71,'Report - ALL (DASHBOARD)'!$W$4) -> 3136.944596
A72: 1966 | B72: =INDEX('Compile Data'!$L$12:$AI$93,$A72-1921,'Report - ALL (DASHBOARD)'!$W$4) -> 2809.750365 | C72: =INDEX('Compile Data'!$AL$12:$BI$93,$A72-1921,'Report - ALL (DASHBOARD)'!$W$4) -> 2819.356747 | D72: =INDEX('Compile Data'!$BL$12:$CI$93,$A72-1921,'Report - ALL (DASHBOARD)'!$W$4) -> 2875.957107 | E72: =INDEX('Compile Data'!$CL$12:$DI$93,$A72-1921,'Report - ALL (DASHBOARD)'!$W$4) -> 2819.460767 | F72: =INDEX('Compile Data'!$DL$12:$EI$93,$A72-1921,'Report - ALL (DASHBOARD)'!$W$4) -> 2996.519766 | G72: =INDEX('Compile Data'!$EL$12:$FI$93,$A72-1921,'Report - ALL (DASHBOARD)'!$W$4) -> 2996.514911 | O72: 45 | P72: 0.5432098765 | Q72: =INDEX('Compile Data'!$L$123:$AI$204,$O72,'Report - ALL (DASHBOARD)'!$W$4) -> 3020.072703 | R72: =INDEX('Compile Data'!$AL$123:$BI$204,$O72,'Report - ALL (DASHBOARD)'!$W$4) -> 3017.323228 | S72: =INDEX('Compile Data'!$BL$123:$CI$204,$O72,'Report - ALL (DASHBOARD)'!$W$4) -> 3077.562733 | T72: =INDEX('Compile Data'!$CL$123:$DI$204,$O72,'Report - ALL (DASHBOARD)'!$W$4) -> 3016.74138 | U72: =INDEX('Compile Data'!$DL$123:$EI$204,$O72,'Report - ALL (DASHBOARD)'!$W$4) -> 3127.275453 | V72: =INDEX('Compile Data'!$EL$123:$FI$204,$O72,'Report - ALL (DASHBOARD)'!$W$4) -> 3127.273376
A73: 1967 | B73: =INDEX('Compile Data'!$L$12:$AI$93,$A73-1921,'Report - ALL (DASHBOARD)'!$W$4) -> 3400 | C73: =INDEX('Compile Data'!$AL$12:$BI$93,$A73-1921,'Report - ALL (DASHBOARD)'!$W$4) -> 3400 | D73: =INDEX('Compile Data'!$BL$12:$CI$93,$A73-1921,'Report - ALL (DASHBOARD)'!$W$4) -> 3400 | E73: =INDEX('Compile Data'!$CL$12:$DI$93,$A73-1921,'Report - ALL (DASHBOARD)'!$W$4) -> 3400 | F73: =INDEX('Compile Data'!$DL$12:$EI$93,$A73-1921,'Report - ALL (DASHBOARD)'!$W$4) -> 3400 | G73: =INDEX('Compile Data'!$EL$12:$FI$93,$A73-1921,'Report - ALL (DASHBOARD)'!$W$4) -> 3400 | O73: 46 | P73: 0.5555555556 | Q73: =INDEX('Compile Data'!$L$123:$AI$204,$O73,'Report - ALL (DASHBOARD)'!$W$4) -> 3002.573964 | R73: =INDEX('Compile Data'!$AL$123:$BI$204,$O73,'Report - ALL (DASHBOARD)'!$W$4) -> 3014.744002 | S73: =INDEX('Compile Data'!$BL$123:$CI$204,$O73,'Report - ALL (DASHBOARD)'!$W$4) -> 3074.347311 | T73: =INDEX('Compile Data'!$CL$123:$DI$204,$O73,'Report - ALL (DASHBOARD)'!$W$4) -> 3011.917422 | U73: =INDEX('Compile Data'!$DL$123:$EI$204,$O73,'Report - ALL (DASHBOARD)'!$W$4) -> 3118.358072 | V73: =INDEX('Compile Data'!$EL$123:$FI$204,$O73,'Report - ALL (DASHBOARD)'!$W$4) -> 3119.491567
A74: 1968 | B74: =INDEX('Compile Data'!$L$12:$AI$93,$A74-1921,'Report - ALL (DASHBOARD)'!$W$4) -> 3020.072703 | C74: =INDEX('Compile Data'!$AL$12:$BI$93,$A74-1921,'Report - ALL (DASHBOARD)'!$W$4) -> 3030.400062 | D74: =INDEX('Compile Data'!$BL$12:$CI$93,$A74-1921,'Report - ALL (DASHBOARD)'!$W$4) -> 3104.113457 | E74: =INDEX('Compile Data'!$CL$12:$DI$93,$A74-1921,'Report - ALL (DASHBOARD)'!$W$4) -> 3028.54946 | F74: =INDEX('Compile Data'!$DL$12:$EI$93,$A74-1921,'Report - ALL (DASHBOARD)'!$W$4) -> 3202.582315 | G74: =INDEX('Compile Data'!$EL$12:$FI$93,$A74-1921,'Report - ALL (DASHBOARD)'!$W$4) -> 3202.985198 | O74: 47 | P74: 0.5679012346 | Q74: =INDEX('Compile Data'!$L$123:$AI$204,$O74,'Report - ALL (DASHBOARD)'!$W$4) -> 2992.927769 | R74: =INDEX('Compile Data'!$AL$123:$BI$204,$O74,'Report - ALL (DASHBOARD)'!$W$4) -> 3011.33443 | S74: =INDEX('Compile Data'!$BL$123:$CI$204,$O74,'Report - ALL (DASHBOARD)'!$W$4) -> 3022.221542 | T74: =INDEX('Compile Data'!$CL$123:$DI$204,$O74,'Report - ALL (DASHBOARD)'!$W$4) -> 3010.795907 | U74: =INDEX('Compile Data'!$DL$123:$EI$204,$O74,'Report - ALL (DASHBOARD)'!$W$4) -> 3071.152898 | V74: =INDEX('Compile Data'!$EL$123:$FI$204,$O74,'Report - ALL (DASHBOARD)'!$W$4) -> 3071.891881
A75: 1969 | B75: =INDEX('Compile Data'!$L$12:$AI$93,$A75-1921,'Report - ALL (DASHBOARD)'!$W$4) -> 3400 | C75: =INDEX('Compile Data'!$AL$12:$BI$93,$A75-1921,'Report - ALL (DASHBOARD)'!$W$4) -> 3400 | D75: =INDEX('Compile Data'!$BL$12:$CI$93,$A75-1921,'Report - ALL (DASHBOARD)'!$W$4) -> 3400 | E75: =INDEX('Compile Data'!$CL$12:$DI$93,$A75-1921,'Report - ALL (DASHBOARD)'!$W$4) -> 3400 | F75: =INDEX('Compile Data'!$DL$12:$EI$93,$A75-1921,'Report - ALL (DASHBOARD)'!$W$4) -> 3400 | G75: =INDEX('Compile Data'!$EL$12:$FI$93,$A75-1921,'Report - ALL (DASHBOARD)'!$W$4) -> 3400 | O75: 48 | P75: 0.5802469136 | Q75: =INDEX('Compile Data'!$L$123:$AI$204,$O75,'Report - ALL (DASHBOARD)'!$W$4) -> 2966.720554 | R75: =INDEX('Compile Data'!$AL$123:$BI$204,$O75,'Report - ALL (DASHBOARD)'!$W$4) -> 2997.388215 | S75: =INDEX('Compile Data'!$BL$123:$CI$204,$O75,'Report - ALL (DASHBOARD)'!$W$4) -> 3021.436736 | T75: =INDEX('Compile Data'!$CL$123:$DI$204,$O75,'Report - ALL (DASHBOARD)'!$W$4) -> 2997.870116 | U75: =INDEX('Compile Data'!$DL$123:$EI$204,$O75,'Report - ALL (DASHBOARD)'!$W$4) -> 3058.84422 | V75: =INDEX('Compile Data'!$EL$123:$FI$204,$O75,'Report - ALL (DASHBOARD)'!$W$4) -> 3059.662581
A76: 1970 | B76: =INDEX('Compile Data'!$L$12:$AI$93,$A76-1921,'Report - ALL (DASHBOARD)'!$W$4) -> 2609.23813 | C76: =INDEX('Compile Data'!$AL$12:$BI$93,$A76-1921,'Report - ALL (DASHBOARD)'!$W$4) -> 2612.068052 | D76: =INDEX('Compile Data'!$BL$12:$CI$93,$A76-1921,'Report - ALL (DASHBOARD)'!$W$4) -> 2612.173636 | E76: =INDEX('Compile Data'!$CL$12:$DI$93,$A76-1921,'Report - ALL (DASHBOARD)'!$W$4) -> 2612.101492 | F76: =INDEX('Compile Data'!$DL$12:$EI$93,$A76-1921,'Report - ALL (DASHBOARD)'!$W$4) -> 2611.421499 | G76: =INDEX('Compile Data'!$EL$12:$FI$93,$A76-1921,'Report - ALL (DASHBOARD)'!$W$4) -> 2612.280661 | O76: 49 | P76: 0.5925925926 | Q76: =INDEX('Compile Data'!$L$123:$AI$204,$O76,'Report - ALL (DASHBOARD)'!$W$4) -> 2963.304111 | R76: =INDEX('Compile Data'!$AL$123:$BI$204,$O76,'Report - ALL (DASHBOARD)'!$W$4) -> 2970.960218 | S76: =INDEX('Compile Data'!$BL$123:$CI$204,$O76,'Report - ALL (DASHBOARD)'!$W$4) -> 2980.168025 | T76: =INDEX('Compile Data'!$CL$123:$DI$204,$O76,'Report - ALL (DASHBOARD)'!$W$4) -> 2970.097132 | U76: =INDEX('Compile Data'!$DL$123:$EI$204,$O76,'Report - ALL (DASHBOARD)'!$W$4) -> 3052.571171 | V76: =INDEX('Compile Data'!$EL$123:$FI$204,$O76,'Report - ALL (DASHBOARD)'!$W$4) -> 3052.169919
A77: 1971 | B77: =INDEX('Compile Data'!$L$12:$AI$93,$A77-1921,'Report - ALL (DASHBOARD)'!$W$4) -> 3400 | C77: =INDEX('Compile Data'!$AL$12:$BI$93,$A77-1921,'Report - ALL (DASHBOARD)'!$W$4) -> 3400 | D77: =INDEX('Compile Data'!$BL$12:$CI$93,$A77-1921,'Report - ALL (DASHBOARD)'!$W$4) -> 3400 | E77: =INDEX('Compile Data'!$CL$12:$DI$93,$A77-1921,'Report - ALL (DASHBOARD)'!$W$4) -> 3400 | F77: =INDEX('Compile Data'!$DL$12:$EI$93,$A77-1921,'Report - ALL (DASHBOARD)'!$W$4) -> 3400 | G77: =INDEX('Compile Data'!$EL$12:$FI$93,$A77-1921,'Report - ALL (DASHBOARD)'!$W$4) -> 3400 | O77: 50 | P77: 0.6049382716 | Q77: =INDEX('Compile Data'!$L$123:$AI$204,$O77,'Report - ALL (DASHBOARD)'!$W$4) -> 2918.581988 | R77: =INDEX('Compile Data'!$AL$123:$BI$204,$O77,'Report - ALL (DASHBOARD)'!$W$4) -> 2951.114378 | S77: =INDEX('Compile Data'!$BL$123:$CI$204,$O77,'Report - ALL (DASHBOARD)'!$W$4) -> 2954.070677 | T77: =INDEX('Compile Data'!$CL$123:$DI$204,$O77,'Report - ALL (DASHBOARD)'!$W$4) -> 2951.114378 | U77: =INDEX('Compile Data'!$DL$123:$EI$204,$O77,'Report - ALL (DASHBOARD)'!$W$4) -> 3024.124448 | V77: =INDEX('Compile Data'!$EL$123:$FI$204,$O77,'Report - ALL (DASHBOARD)'!$W$4) -> 3020.240075
A78: 1972 | B78: =INDEX('Compile Data'!$L$12:$AI$93,$A78-1921,'Report - ALL (DASHBOARD)'!$W$4) -> 3026.323497 | C78: =INDEX('Compile Data'!$AL$12:$BI$93,$A78-1921,'Report - ALL (DASHBOARD)'!$W$4) -> 3030.354889 | D78: =INDEX('Compile Data'!$BL$12:$CI$93,$A78-1921,'Report - ALL (DASHBOARD)'!$W$4) -> 3086.358975 | E78: =INDEX('Compile Data'!$CL$12:$DI$93,$A78-1921,'Report - ALL (DASHBOARD)'!$W$4) -> 3030.433834 | F78: =INDEX('Compile Data'!$DL$12:$EI$93,$A78-1921,'Report - ALL (DASHBOARD)'!$W$4) -> 3216.973877 | G78: =INDEX('Compile Data'!$EL$12:$FI$93,$A78-1921,'Report - ALL (DASHBOARD)'!$W$4) -> 3217.076079 | O78: 51 | P78: 0.6172839506 | Q78: =INDEX('Compile Data'!$L$123:$AI$204,$O78,'Report - ALL (DASHBOARD)'!$W$4) -> 2901.943057 | R78: =INDEX('Compile Data'!$AL$123:$BI$204,$O78,'Report - ALL (DASHBOARD)'!$W$4) -> 2917.96766 | S78: =INDEX('Compile Data'!$BL$123:$CI$204,$O78,'Report - ALL (DASHBOARD)'!$W$4) -> 2947.288212 | T78: =INDEX('Compile Data'!$CL$123:$DI$204,$O78,'Report - ALL (DASHBOARD)'!$W$4) -> 2926.541646 | U78: =INDEX('Compile Data'!$DL$123:$EI$204,$O78,'Report - ALL (DASHBOARD)'!$W$4) -> 3023.004736 | V78: =INDEX('Compile Data'!$EL$123:$FI$204,$O78,'Report - ALL (DASHBOARD)'!$W$4) -> 3019.606336
A79: 1973 | B79: =INDEX('Compile Data'!$L$12:$AI$93,$A79-1921,'Report - ALL (DASHBOARD)'!$W$4) -> 3075.156219 | C79: =INDEX('Compile Data'!$AL$12:$BI$93,$A79-1921,'Report - ALL (DASHBOARD)'!$W$4) -> 3084.253588 | D79: =INDEX('Compile Data'!$BL$12:$CI$93,$A79-1921,'Report - ALL (DASHBOARD)'!$W$4) -> 3149.903499 | E79: =INDEX('Compile Data'!$CL$12:$DI$93,$A79-1921,'Report - ALL (DASHBOARD)'!$W$4) -> 3084.318742 | F79: =INDEX('Compile Data'!$DL$12:$EI$93,$A79-1921,'Report - ALL (DASHBOARD)'!$W$4) -> 3334.078562 | G79: =INDEX('Compile Data'!$EL$12:$FI$93,$A79-1921,'Report - ALL (DASHBOARD)'!$W$4) -> 3334.253986 | O79: 52 | P79: 0.6296296296 | Q79: =INDEX('Compile Data'!$L$123:$AI$204,$O79,'Report - ALL (DASHBOARD)'!$W$4) -> 2900.669761 | R79: =INDEX('Compile Data'!$AL$123:$BI$204,$O79,'Report - ALL (DASHBOARD)'!$W$4) -> 2894.103042 | S79: =INDEX('Compile Data'!$BL$123:$CI$204,$O79,'Report - ALL (DASHBOARD)'!$W$4) -> 2933.321453 | T79: =INDEX('Compile Data'!$CL$123:$DI$204,$O79,'Report - ALL (DASHBOARD)'!$W$4) -> 2894.066029 | U79: =INDEX('Compile Data'!$DL$123:$EI$204,$O79,'Report - ALL (DASHBOARD)'!$W$4) -> 3018.002344 | V79: =INDEX('Compile Data'!$EL$123:$FI$204,$O79,'Report - ALL (DASHBOARD)'!$W$4) -> 3018.062119
A80: 1974 | B80: =INDEX('Compile Data'!$L$12:$AI$93,$A80-1921,'Report - ALL (DASHBOARD)'!$W$4) -> 3400 | C80: =INDEX('Compile Data'!$AL$12:$BI$93,$A80-1921,'Report - ALL (DASHBOARD)'!$W$4) -> 3400 | D80: =INDEX('Compile Data'!$BL$12:$CI$93,$A80-1921,'Report - ALL (DASHBOARD)'!$W$4) -> 3400 | E80: =INDEX('Compile Data'!$CL$12:$DI$93,$A80-1921,'Report - ALL (DASHBOARD)'!$W$4) -> 3400 | F80: =INDEX('Compile Data'!$DL$12:$EI$93,$A80-1921,'Report - ALL (DASHBOARD)'!$W$4) -> 3400 | G80: =INDEX('Compile Data'!$EL$12:$FI$93,$A80-1921,'Report - ALL (DASHBOARD)'!$W$4) -> 3400 | O80: 53 | P80: 0.6419753086 | Q80: =INDEX('Compile Data'!$L$123:$AI$204,$O80,'Report - ALL (DASHBOARD)'!$W$4) -> 2864.022912 | R80: =INDEX('Compile Data'!$AL$123:$BI$204,$O80,'Report - ALL (DASHBOARD)'!$W$4) -> 2870.772556 | S80: =INDEX('Compile Data'!$BL$123:$CI$204,$O80,'Report - ALL (DASHBOARD)'!$W$4) -> 2927.292621 | T80: =INDEX('Compile Data'!$CL$123:$DI$204,$O80,'Report - ALL (DASHBOARD)'!$W$4) -> 2872.372816 | U80: =INDEX('Compile Data'!$DL$123:$EI$204,$O80,'Report - ALL (DASHBOARD)'!$W$4) -> 2996.519766 | V80: =INDEX('Compile Data'!$EL$123:$FI$204,$O80,'Report - ALL (DASHBOARD)'!$W$4) -> 3001.827508
A81: 1975 | B81: =INDEX('Compile Data'!$L$12:$AI$93,$A81-1921,'Report - ALL (DASHBOARD)'!$W$4) -> 3400 | C81: =INDEX('Compile Data'!$AL$12:$BI$93,$A81-1921,'Report - ALL (DASHBOARD)'!$W$4) -> 3400 | D81: =INDEX('Compile Data'!$BL$12:$CI$93,$A81-1921,'Report - ALL (DASHBOARD)'!$W$4) -> 3400 | E81: =INDEX('Compile Data'!$CL$12:$DI$93,$A81-1921,'Report - ALL (DASHBOARD)'!$W$4) -> 3400 | F81: =INDEX('Compile Data'!$DL$12:$EI$93,$A81-1921,'Report - ALL (DASHBOARD)'!$W$4) -> 3400 | G81: =INDEX('Compile Data'!$EL$12:$FI$93,$A81-1921,'Report - ALL (DASHBOARD)'!$W$4) -> 3400 | O81: 54 | P81: 0.6543209877 | Q81: =INDEX('Compile Data'!$L$123:$AI$204,$O81,'Report - ALL (DASHBOARD)'!$W$4) -> 2823.546091 | R81: =INDEX('Compile Data'!$AL$123:$BI$204,$O81,'Report - ALL (DASHBOARD)'!$W$4) -> 2831.740862 | S81: =INDEX('Compile Data'!$BL$123:$CI$204,$O81,'Report - ALL (DASHBOARD)'!$W$4) -> 2926.379206 | T81: =INDEX('Compile Data'!$CL$123:$DI$204,$O81,'Report - ALL (DASHBOARD)'!$W$4) -> 2831.478657 | U81: =INDEX('Compile Data'!$DL$123:$EI$204,$O81,'Report - ALL (DASHBOARD)'!$W$4) -> 2984.954434 | V81: =INDEX('Compile Data'!$EL$123:$FI$204,$O81,'Report - ALL (DASHBOARD)'!$W$4) -> 2996.514911
A82: 1976 | B82: =INDEX('Compile Data'!$L$12:$AI$93,$A82-1921,'Report - ALL (DASHBOARD)'!$W$4) -> 2963.304111 | C82: =INDEX('Compile Data'!$AL$12:$BI$93,$A82-1921,'Report - ALL (DASHBOARD)'!$W$4) -> 3014.744002 | D82: =INDEX('Compile Data'!$BL$12:$CI$93,$A82-1921,'Report - ALL (DASHBOARD)'!$W$4) -> 3077.562733 | E82: =INDEX('Compile Data'!$CL$12:$DI$93,$A82-1921,'Report - ALL (DASHBOARD)'!$W$4) -> 3011.917422 | F82: =INDEX('Compile Data'!$DL$12:$EI$93,$A82-1921,'Report - ALL (DASHBOARD)'!$W$4) -> 3134.898618 | G82: =INDEX('Compile Data'!$EL$12:$FI$93,$A82-1921,'Report - ALL (DASHBOARD)'!$W$4) -> 3136.944596 | O82: 55 | P82: 0.6666666667 | Q82: =INDEX('Compile Data'!$L$123:$AI$204,$O82,'Report - ALL (DASHBOARD)'!$W$4) -> 2820.756265 | R82: =INDEX('Compile Data'!$AL$123:$BI$204,$O82,'Report - ALL (DASHBOARD)'!$W$4) -> 2819.356747 | S82: =INDEX('Compile Data'!$BL$123:$CI$204,$O82,'Report - ALL (DASHBOARD)'!$W$4) -> 2907.170249 | T82: =INDEX('Compile Data'!$CL$123:$DI$204,$O82,'Report - ALL (DASHBOARD)'!$W$4) -> 2819.460767 | U82: =INDEX('Compile Data'!$DL$123:$EI$204,$O82,'Report - ALL (DASHBOARD)'!$W$4) -> 2981.943833 | V82: =INDEX('Compile Data'!$EL$123:$FI$204,$O82,'Report - ALL (DASHBOARD)'!$W$4) -> 2977.924703
A83: 1977 | B83: =INDEX('Compile Data'!$L$12:$AI$93,$A83-1921,'Report - ALL (DASHBOARD)'!$W$4) -> 641.4961471 | C83: =INDEX('Compile Data'!$AL$12:$BI$93,$A83-1921,'Report - ALL (DASHBOARD)'!$W$4) -> 748.3126838 | D83: =INDEX('Compile Data'!$BL$12:$CI$93,$A83-1921,'Report - ALL (DASHBOARD)'!$W$4) -> 794.6766998 | E83: =INDEX('Compile Data'!$CL$12:$DI$93,$A83-1921,'Report - ALL (DASHBOARD)'!$W$4) -> 746.8634617 | F83: =INDEX('Compile Data'!$DL$12:$EI$93,$A83-1921,'Report - ALL (DASHBOARD)'!$W$4) -> 1006.641141 | G83: =INDEX('Compile Data'!$EL$12:$FI$93,$A83-1921,'Report - ALL (DASHBOARD)'!$W$4) -> 1006.917769 | O83: 56 | P83: 0.6790123457 | Q83: =INDEX('Compile Data'!$L$123:$AI$204,$O83,'Report - ALL (DASHBOARD)'!$W$4) -> 2819.708297 | R83: =INDEX('Compile Data'!$AL$123:$BI$204,$O83,'Report - ALL (DASHBOARD)'!$W$4) -> 2818.873989 | S83: =INDEX('Compile Data'!$BL$123:$CI$204,$O83,'Report - ALL (DASHBOARD)'!$W$4) -> 2905.120951 | T83: =INDEX('Compile Data'!$CL$123:$DI$204,$O83,'Report - ALL (DASHBOARD)'!$W$4) -> 2818.969044 | U83: =INDEX('Compile Data'!$DL$123:$EI$204,$O83,'Report - ALL (DASHBOARD)'!$W$4) -> 2964.122145 | V83: =INDEX('Compile Data'!$EL$123:$FI$204,$O83,'Report - ALL (DASHBOARD)'!$W$4) -> 2965.86664
A84: 1978 | B84: =INDEX('Compile Data'!$L$12:$AI$93,$A84-1921,'Report - ALL (DASHBOARD)'!$W$4) -> 3400 | C84: =INDEX('Compile Data'!$AL$12:$BI$93,$A84-1921,'Report - ALL (DASHBOARD)'!$W$4) -> 3400 | D84: =INDEX('Compile Data'!$BL$12:$CI$93,$A84-1921,'Report - ALL (DASHBOARD)'!$W$4) -> 3400 | E84: =INDEX('Compile Data'!$CL$12:$DI$93,$A84-1921,'Report - ALL (DASHBOARD)'!$W$4) -> 3400 | F84: =INDEX('Compile Data'!$DL$12:$EI$93,$A84-1921,'Report - ALL (DASHBOARD)'!$W$4) -> 3400 | G84: =INDEX('Compile Data'!$EL$12:$FI$93,$A84-1921,'Report - ALL (DASHBOARD)'!$W$4) -> 3400 | O84: 57 | P84: 0.6913580247 | Q84: =INDEX('Compile Data'!$L$123:$AI$204,$O84,'Report - ALL (DASHBOARD)'!$W$4) -> 2809.750365 | R84: =INDEX('Compile Data'!$AL$123:$BI$204,$O84,'Report - ALL (DASHBOARD)'!$W$4) -> 2814.52686 | S84: =INDEX('Compile Data'!$BL$123:$CI$204,$O84,'Report - ALL (DASHBOARD)'!$W$4) -> 2875.957107 | T84: =INDEX('Compile Data'!$CL$123:$DI$204,$O84,'Report - ALL (DASHBOARD)'!$W$4) -> 2814.597256 | U84: =INDEX('Compile Data'!$DL$123:$EI$204,$O84,'Report - ALL (DASHBOARD)'!$W$4) -> 2954.849721 | V84: =INDEX('Compile Data'!$EL$123:$FI$204,$O84,'Report - ALL (DASHBOARD)'!$W$4) -> 2953.3185
A85: 1979 | B85: =INDEX('Compile Data'!$L$12:$AI$93,$A85-1921,'Report - ALL (DASHBOARD)'!$W$4) -> 3134.827548 | C85: =INDEX('Compile Data'!$AL$12:$BI$93,$A85-1921,'Report - ALL (DASHBOARD)'!$W$4) -> 3149.853106 | D85: =INDEX('Compile Data'!$BL$12:$CI$93,$A85-1921,'Report - ALL (DASHBOARD)'!$W$4) -> 3160.818986 | E85: =INDEX('Compile Data'!$CL$12:$DI$93,$A85-1921,'Report - ALL (DASHBOARD)'!$W$4) -> 3148.936093 | F85: =INDEX('Compile Data'!$DL$12:$EI$93,$A85-1921,'Report - ALL (DASHBOARD)'!$W$4) -> 3189.157548 | G85: =INDEX('Compile Data'!$EL$12:$FI$93,$A85-1921,'Report - ALL (DASHBOARD)'!$W$4) -> 3188.586808 | O85: 58 | P85: 0.7037037037 | Q85: =INDEX('Compile Data'!$L$123:$AI$204,$O85,'Report - ALL (DASHBOARD)'!$W$4) -> 2792.208948 | R85: =INDEX('Compile Data'!$AL$123:$BI$204,$O85,'Report - ALL (DASHBOARD)'!$W$4) -> 2787.848348 | S85: =INDEX('Compile Data'!$BL$123:$CI$204,$O85,'Report - ALL (DASHBOARD)'!$W$4) -> 2849.819109 | T85: =INDEX('Compile Data'!$CL$123:$DI$204,$O85,'Report - ALL (DASHBOARD)'!$W$4) -> 2787.850331 | U85: =INDEX('Compile Data'!$DL$123:$EI$204,$O85,'Report - ALL (DASHBOARD)'!$W$4) -> 2947.438742 | V85: =INDEX('Compile Data'!$EL$123:$FI$204,$O85,'Report - ALL (DASHBOARD)'!$W$4) -> 2949.942208
A86: 1980 | B86: =INDEX('Compile Data'!$L$12:$AI$93,$A86-1921,'Report - ALL (DASHBOARD)'!$W$4) -> 3378.750746 | C86: =INDEX('Compile Data'!$AL$12:$BI$93,$A86-1921,'Report - ALL (DASHBOARD)'!$W$4) -> 3400 | D86: =INDEX('Compile Data'!$BL$12:$CI$93,$A86-1921,'Report - ALL (DASHBOARD)'!$W$4) -> 3400 | E86: =INDEX('Compile Data'!$CL$12:$DI$93,$A86-1921,'Report - ALL (DASHBOARD)'!$W$4) -> 3400 | F86: =INDEX('Compile Data'!$DL$12:$EI$93,$A86-1921,'Report - ALL (DASHBOARD)'!$W$4) -> 3400 | G86: =INDEX('Compile Data'!$EL$12:$FI$93,$A86-1921,'Report - ALL (DASHBOARD)'!$W$4) -> 3400 | O86: 59 | P86: 0.7160493827 | Q86: =INDEX('Compile Data'!$L$123:$AI$204,$O86,'Report - ALL (DASHBOARD)'!$W$4) -> 2771.67479 | R86: =INDEX('Compile Data'!$AL$123:$BI$204,$O86,'Report - ALL (DASHBOARD)'!$W$4) -> 2786.307932 | S86: =INDEX('Compile Data'!$BL$123:$CI$204,$O86,'Report - ALL (DASHBOARD)'!$W$4) -> 2786.346756 | T86: =INDEX('Compile Data'!$CL$123:$DI$204,$O86,'Report - ALL (DASHBOARD)'!$W$4) -> 2786.359643 | U86: =INDEX('Compile Data'!$DL$123:$EI$204,$O86,'Report - ALL (DASHBOARD)'!$W$4) -> 2901.171283 | V86: =INDEX('Compile Data'!$EL$123:$FI$204,$O86,'Report - ALL (DASHBOARD)'!$W$4) -> 2901.348939
A87: 1981 | B87: =INDEX('Compile Data'!$L$12:$AI$93,$A87-1921,'Report - ALL (DASHBOARD)'!$W$4) -> 2864.022912 | C87: =INDEX('Compile Data'!$AL$12:$BI$93,$A87-1921,'Report - ALL (DASHBOARD)'!$W$4) -> 2870.772556 | D87: =INDEX('Compile Data'!$BL$12:$CI$93,$A87-1921,'Report - ALL (DASHBOARD)'!$W$4) -> 2947.288212 | E87: =INDEX('Compile Data'!$CL$12:$DI$93,$A87-1921,'Report - ALL (DASHBOARD)'!$W$4) -> 2872.372816 | F87: =INDEX('Compile Data'!$DL$12:$EI$93,$A87-1921,'Report - ALL (DASHBOARD)'!$W$4) -> 2981.943833 | G87: =INDEX('Compile Data'!$EL$12:$FI$93,$A87-1921,'Report - ALL (DASHBOARD)'!$W$4) -> 2977.924703 | O87: 60 | P87: 0.7283950617 | Q87: =INDEX('Compile Data'!$L$123:$AI$204,$O87,'Report - ALL (DASHBOARD)'!$W$4) -> 2719.827887 | R87: =INDEX('Compile Data'!$AL$123:$BI$204,$O87,'Report - ALL (DASHBOARD)'!$W$4) -> 2761.841581 | S87: =INDEX('Compile Data'!$BL$123:$CI$204,$O87,'Report - ALL (DASHBOARD)'!$W$4) -> 2734.265529 | T87: =INDEX('Compile Data'!$CL$123:$DI$204,$O87,'Report - ALL (DASHBOARD)'!$W$4) -> 2766.680706 | U87: =INDEX('Compile Data'!$DL$123:$EI$204,$O87,'Report - ALL (DASHBOARD)'!$W$4) -> 2862.154085 | V87: =INDEX('Compile Data'!$EL$123:$FI$204,$O87,'Report - ALL (DASHBOARD)'!$W$4) -> 2859.437309
A88: 1982 | B88: =INDEX('Compile Data'!$L$12:$AI$93,$A88-1921,'Report - ALL (DASHBOARD)'!$W$4) -> 3400 | C88: =INDEX('Compile Data'!$AL$12:$BI$93,$A88-1921,'Report - ALL (DASHBOARD)'!$W$4) -> 3400 | D88: =INDEX('Compile Data'!$BL$12:$CI$93,$A88-1921,'Report - ALL (DASHBOARD)'!$W$4) -> 3400 | E88: =INDEX('Compile Data'!$CL$12:$DI$93,$A88-1921,'Report - ALL (DASHBOARD)'!$W$4) -> 3400 | F88: =INDEX('Compile Data'!$DL$12:$EI$93,$A88-1921,'Report - ALL (DASHBOARD)'!$W$4) -> 3400 | G88: =INDEX('Compile Data'!$EL$12:$FI$93,$A88-1921,'Report - ALL (DASHBOARD)'!$W$4) -> 3400 | O88: 61 | P88: 0.7407407407 | Q88: =INDEX('Compile Data'!$L$123:$AI$204,$O88,'Report - ALL (DASHBOARD)'!$W$4) -> 2677.299546 | R88: =INDEX('Compile Data'!$AL$123:$BI$204,$O88,'Report - ALL (DASHBOARD)'!$W$4) -> 2705.242558 | S88: =INDEX('Compile Data'!$BL$123:$CI$204,$O88,'Report - ALL (DASHBOARD)'!$W$4) -> 2723.302941 | T88: =INDEX('Compile Data'!$CL$123:$DI$204,$O88,'Report - ALL (DASHBOARD)'!$W$4) -> 2709.696949 | U88: =INDEX('Compile Data'!$DL$123:$EI$204,$O88,'Report - ALL (DASHBOARD)'!$W$4) -> 2799.929982 | V88: =INDEX('Compile Data'!$EL$123:$FI$204,$O88,'Report - ALL (DASHBOARD)'!$W$4) -> 2799.979924
A89: 1983 | B89: =INDEX('Compile Data'!$L$12:$AI$93,$A89-1921,'Report - ALL (DASHBOARD)'!$W$4) -> 3400 | C89: =INDEX('Compile Data'!$AL$12:$BI$93,$A89-1921,'Report - ALL (DASHBOARD)'!$W$4) -> 3400 | D89: =INDEX('Compile Data'!$BL$12:$CI$93,$A89-1921,'Report - ALL (DASHBOARD)'!$W$4) -> 3400 | E89: =INDEX('Compile Data'!$CL$12:$DI$93,$A89-1921,'Report - ALL (DASHBOARD)'!$W$4) -> 3400 | F89: =INDEX('Compile Data'!$DL$12:$EI$93,$A89-1921,'Report - ALL (DASHBOARD)'!$W$4) -> 3400 | G89: =INDEX('Compile Data'!$EL$12:$FI$93,$A89-1921,'Report - ALL (DASHBOARD)'!$W$4) -> 3400 | O89: 62 | P89: 0.7530864198 | Q89: =INDEX('Compile Data'!$L$123:$AI$204,$O89,'Report - ALL (DASHBOARD)'!$W$4) -> 2656.455073 | R89: =INDEX('Compile Data'!$AL$123:$BI$204,$O89,'Report - ALL (DASHBOARD)'!$W$4) -> 2700.859347 | S89: =INDEX('Compile Data'!$BL$123:$CI$204,$O89,'Report - ALL (DASHBOARD)'!$W$4) -> 2712.717765 | T89: =INDEX('Compile Data'!$CL$123:$DI$204,$O89,'Report - ALL (DASHBOARD)'!$W$4) -> 2706.362958 | U89: =INDEX('Compile Data'!$DL$123:$EI$204,$O89,'Report - ALL (DASHBOARD)'!$W$4) -> 2788.360657 | V89: =INDEX('Compile Data'!$EL$123:$FI$204,$O89,'Report - ALL (DASHBOARD)'!$W$4) -> 2789.982832
A90: 1984 | B90: =INDEX('Compile Data'!$L$12:$AI$93,$A90-1921,'Report - ALL (DASHBOARD)'!$W$4) -> 3233.332407 | C90: =INDEX('Compile Data'!$AL$12:$BI$93,$A90-1921,'Report - ALL (DASHBOARD)'!$W$4) -> 3227.652886 | D90: =INDEX('Compile Data'!$BL$12:$CI$93,$A90-1921,'Report - ALL (DASHBOARD)'!$W$4) -> 3227.625074 | E90: =INDEX('Compile Data'!$CL$12:$DI$93,$A90-1921,'Report - ALL (DASHBOARD)'!$W$4) -> 3227.664004 | F90: =INDEX('Compile Data'!$DL$12:$EI$93,$A90-1921,'Report - ALL (DASHBOARD)'!$W$4) -> 3227.383212 | G90: =INDEX('Compile Data'!$EL$12:$FI$93,$A90-1921,'Report - ALL (DASHBOARD)'!$W$4) -> 3227.726584 | O90: 63 | P90: 0.7654320988 | Q90: =INDEX('Compile Data'!$L$123:$AI$204,$O90,'Report - ALL (DASHBOARD)'!$W$4) -> 2649.679033 | R90: =INDEX('Compile Data'!$AL$123:$BI$204,$O90,'Report - ALL (DASHBOARD)'!$W$4) -> 2674.622891 | S90: =INDEX('Compile Data'!$BL$123:$CI$204,$O90,'Report - ALL (DASHBOARD)'!$W$4) -> 2712.282039 | T90: =INDEX('Compile Data'!$CL$123:$DI$204,$O90,'Report - ALL (DASHBOARD)'!$W$4) -> 2676.005548 | U90: =INDEX('Compile Data'!$DL$123:$EI$204,$O90,'Report - ALL (DASHBOARD)'!$W$4) -> 2785.7893 | V90: =INDEX('Compile Data'!$EL$123:$FI$204,$O90,'Report - ALL (DASHBOARD)'!$W$4) -> 2786.579856
A91: 1985 | B91: =INDEX('Compile Data'!$L$12:$AI$93,$A91-1921,'Report - ALL (DASHBOARD)'!$W$4) -> 2649.679033 | C91: =INDEX('Compile Data'!$AL$12:$BI$93,$A91-1921,'Report - ALL (DASHBOARD)'!$W$4) -> 2631.34435 | D91: =INDEX('Compile Data'!$BL$12:$CI$93,$A91-1921,'Report - ALL (DASHBOARD)'!$W$4) -> 2689.995797 | E91: =INDEX('Compile Data'!$CL$12:$DI$93,$A91-1921,'Report - ALL (DASHBOARD)'!$W$4) -> 2631.356167 | F91: =INDEX('Compile Data'!$DL$12:$EI$93,$A91-1921,'Report - ALL (DASHBOARD)'!$W$4) -> 2901.171283 | G91: =INDEX('Compile Data'!$EL$12:$FI$93,$A91-1921,'Report - ALL (DASHBOARD)'!$W$4) -> 2901.348939 | O91: 64 | P91: 0.7777777778 | Q91: =INDEX('Compile Data'!$L$123:$AI$204,$O91,'Report - ALL (DASHBOARD)'!$W$4) -> 2637.760857 | R91: =INDEX('Compile Data'!$AL$123:$BI$204,$O91,'Report - ALL (DASHBOARD)'!$W$4) -> 2659.034618 | S91: =INDEX('Compile Data'!$BL$123:$CI$204,$O91,'Report - ALL (DASHBOARD)'!$W$4) -> 2689.995797 | T91: =INDEX('Compile Data'!$CL$123:$DI$204,$O91,'Report - ALL (DASHBOARD)'!$W$4) -> 2659.222751 | U91: =INDEX('Compile Data'!$DL$123:$EI$204,$O91,'Report - ALL (DASHBOARD)'!$W$4) -> 2748.805929 | V91: =INDEX('Compile Data'!$EL$123:$FI$204,$O91,'Report - ALL (DASHBOARD)'!$W$4) -> 2751.882762
A92: 1986 | B92: =INDEX('Compile Data'!$L$12:$AI$93,$A92-1921,'Report - ALL (DASHBOARD)'!$W$4) -> 3158.645217 | C92: =INDEX('Compile Data'!$AL$12:$BI$93,$A92-1921,'Report - ALL (DASHBOARD)'!$W$4) -> 3182.594282 | D92: =INDEX('Compile Data'!$BL$12:$CI$93,$A92-1921,'Report - ALL (DASHBOARD)'!$W$4) -> 3181.792347 | E92: =INDEX('Compile Data'!$CL$12:$DI$93,$A92-1921,'Report - ALL (DASHBOARD)'!$W$4) -> 3182.599586 | F92: =INDEX('Compile Data'!$DL$12:$EI$93,$A92-1921,'Report - ALL (DASHBOARD)'!$W$4) -> 3178.763839 | G92: =INDEX('Compile Data'!$EL$12:$FI$93,$A92-1921,'Report - ALL (DASHBOARD)'!$W$4) -> 3183.866415 | O92: 65 | P92: =(O92-1)/81 -> 0.7901234568 | Q92: =INDEX('Compile Data'!$L$123:$AI$204,$O92,'Report - ALL (DASHBOARD)'!$W$4) -> 2634.760748 | R92: =INDEX('Compile Data'!$AL$123:$BI$204,$O92,'Report - ALL (DASHBOARD)'!$W$4) -> 2645.060359 | S92: =INDEX('Compile Data'!$BL$123:$CI$204,$O92,'Report - ALL (DASHBOARD)'!$W$4) -> 2668.722753 | T92: =INDEX('Compile Data'!$CL$123:$DI$204,$O92,'Report - ALL (DASHBOARD)'!$W$4) -> 2645.088743 | U92: =INDEX('Compile Data'!$DL$123:$EI$204,$O92,'Report - ALL (DASHBOARD)'!$W$4) -> 2722.109706 | V92: =INDEX('Compile Data'!$EL$123:$FI$204,$O92,'Report - ALL (DASHBOARD)'!$W$4) -> 2728.008854
A93: 1987 | B93: =INDEX('Compile Data'!$L$12:$AI$93,$A93-1921,'Report - ALL (DASHBOARD)'!$W$4) -> 2453.523125 | C93: =INDEX('Compile Data'!$AL$12:$BI$93,$A93-1921,'Report - ALL (DASHBOARD)'!$W$4) -> 2335.265528 | D93: =INDEX('Compile Data'!$BL$12:$CI$93,$A93-1921,'Report - ALL (DASHBOARD)'!$W$4) -> 2287.965681 | E93: =INDEX('Compile Data'!$CL$12:$DI$93,$A93-1921,'Report - ALL (DASHBOARD)'!$W$4) -> 2335.288327 | F93: =INDEX('Compile Data'!$DL$12:$EI$93,$A93-1921,'Report - ALL (DASHBOARD)'!$W$4) -> 2519.48449 | G93: =INDEX('Compile Data'!$EL$12:$FI$93,$A93-1921,'Report - ALL (DASHBOARD)'!$W$4) -> 2527.788686 | O93: 66 | P93: 0.8024691358 | Q93: =INDEX('Compile Data'!$L$123:$AI$204,$O93,'Report - ALL (DASHBOARD)'!$W$4) -> 2609.23813 | R93: =INDEX('Compile Data'!$AL$123:$BI$204,$O93,'Report - ALL (DASHBOARD)'!$W$4) -> 2631.34435 | S93: =INDEX('Compile Data'!$BL$123:$CI$204,$O93,'Report - ALL (DASHBOARD)'!$W$4) -> 2653.842406 | T93: =INDEX('Compile Data'!$CL$123:$DI$204,$O93,'Report - ALL (DASHBOARD)'!$W$4) -> 2633.541664 | U93: =INDEX('Compile Data'!$DL$123:$EI$204,$O93,'Report - ALL (DASHBOARD)'!$W$4) -> 2709.040728 | V93: =INDEX('Compile Data'!$EL$123:$FI$204,$O93,'Report - ALL (DASHBOARD)'!$W$4) -> 2706.189358
A94: =A93+1 -> 1988 | B94: =INDEX('Compile Data'!$L$12:$AI$93,$A94-1921,'Report - ALL (DASHBOARD)'!$W$4) -> 2274.009432 | C94: =INDEX('Compile Data'!$AL$12:$BI$93,$A94-1921,'Report - ALL (DASHBOARD)'!$W$4) -> 2174.153733 | D94: =INDEX('Compile Data'!$BL$12:$CI$93,$A94-1921,'Report - ALL (DASHBOARD)'!$W$4) -> 2160.492235 | E94: =INDEX('Compile Data'!$CL$12:$DI$93,$A94-1921,'Report - ALL (DASHBOARD)'!$W$4) -> 2176.119043 | F94: =INDEX('Compile Data'!$DL$12:$EI$93,$A94-1921,'Report - ALL (DASHBOARD)'!$W$4) -> 2369.883636 | G94: =INDEX('Compile Data'!$EL$12:$FI$93,$A94-1921,'Report - ALL (DASHBOARD)'!$W$4) -> 2376.877364 | O94: 67 | P94: 0.8148148148 | Q94: =INDEX('Compile Data'!$L$123:$AI$204,$O94,'Report - ALL (DASHBOARD)'!$W$4) -> 2573.693903 | R94: =INDEX('Compile Data'!$AL$123:$BI$204,$O94,'Report - ALL (DASHBOARD)'!$W$4) -> 2630.193049 | S94: =INDEX('Compile Data'!$BL$123:$CI$204,$O94,'Report - ALL (DASHBOARD)'!$W$4) -> 2622.633482 | T94: =INDEX('Compile Data'!$CL$123:$DI$204,$O94,'Report - ALL (DASHBOARD)'!$W$4) -> 2631.356167 | U94: =INDEX('Compile Data'!$DL$123:$EI$204,$O94,'Report - ALL (DASHBOARD)'!$W$4) -> 2689.558144 | V94: =INDEX('Compile Data'!$EL$123:$FI$204,$O94,'Report - ALL (DASHBOARD)'!$W$4) -> 2697.022103
A95: 1989 | B95: =INDEX('Compile Data'!$L$12:$AI$93,$A95-1921,'Report - ALL (DASHBOARD)'!$W$4) -> 2900.669761 | C95: =INDEX('Compile Data'!$AL$12:$BI$93,$A95-1921,'Report - ALL (DASHBOARD)'!$W$4) -> 2917.96766 | D95: =INDEX('Compile Data'!$BL$12:$CI$93,$A95-1921,'Report - ALL (DASHBOARD)'!$W$4) -> 2927.292621 | E95: =INDEX('Compile Data'!$CL$12:$DI$93,$A95-1921,'Report - ALL (DASHBOARD)'!$W$4) -> 2926.541646 | F95: =INDEX('Compile Data'!$DL$12:$EI$93,$A95-1921,'Report - ALL (DASHBOARD)'!$W$4) -> 2964.122145 | G95: =INDEX('Compile Data'!$EL$12:$FI$93,$A95-1921,'Report - ALL (DASHBOARD)'!$W$4) -> 2965.86664 | O95: 68 | P95: 0.8271604938 | Q95: =INDEX('Compile Data'!$L$123:$AI$204,$O95,'Report - ALL (DASHBOARD)'!$W$4) -> 2542.848237 | R95: =INDEX('Compile Data'!$AL$123:$BI$204,$O95,'Report - ALL (DASHBOARD)'!$W$4) -> 2612.068052 | S95: =INDEX('Compile Data'!$BL$123:$CI$204,$O95,'Report - ALL (DASHBOARD)'!$W$4) -> 2614.01502 | T95: =INDEX('Compile Data'!$CL$123:$DI$204,$O95,'Report - ALL (DASHBOARD)'!$W$4) -> 2612.101492 | U95: =INDEX('Compile Data'!$DL$123:$EI$204,$O95,'Report - ALL (DASHBOARD)'!$W$4) -> 2642.681794 | V95: =INDEX('Compile Data'!$EL$123:$FI$204,$O95,'Report - ALL (DASHBOARD)'!$W$4) -> 2693.05719
A96: 1990 | B96: =INDEX('Compile Data'!$L$12:$AI$93,$A96-1921,'Report - ALL (DASHBOARD)'!$W$4) -> 2634.760748 | C96: =INDEX('Compile Data'!$AL$12:$BI$93,$A96-1921,'Report - ALL (DASHBOARD)'!$W$4) -> 2700.859347 | D96: =INDEX('Compile Data'!$BL$12:$CI$93,$A96-1921,'Report - ALL (DASHBOARD)'!$W$4) -> 2712.282039 | E96: =INDEX('Compile Data'!$CL$12:$DI$93,$A96-1921,'Report - ALL (DASHBOARD)'!$W$4) -> 2709.696949 | F96: =INDEX('Compile Data'!$DL$12:$EI$93,$A96-1921,'Report - ALL (DASHBOARD)'!$W$4) -> 2748.805929 | G96: =INDEX('Compile Data'!$EL$12:$FI$93,$A96-1921,'Report - ALL (DASHBOARD)'!$W$4) -> 2751.882762 | O96: 69 | P96: 0.8395061728 | Q96: =INDEX('Compile Data'!$L$123:$AI$204,$O96,'Report - ALL (DASHBOARD)'!$W$4) -> 2532.002882 | R96: =INDEX('Compile Data'!$AL$123:$BI$204,$O96,'Report - ALL (DASHBOARD)'!$W$4) -> 2590.73183 | S96: =INDEX('Compile Data'!$BL$123:$CI$204,$O96,'Report - ALL (DASHBOARD)'!$W$4) -> 2612.173636 | T96: =INDEX('Compile Data'!$CL$123:$DI$204,$O96,'Report - ALL (DASHBOARD)'!$W$4) -> 2590.041586 | U96: =INDEX('Compile Data'!$DL$123:$EI$204,$O96,'Report - ALL (DASHBOARD)'!$W$4) -> 2619.119907 | V96: =INDEX('Compile Data'!$EL$123:$FI$204,$O96,'Report - ALL (DASHBOARD)'!$W$4) -> 2656.499786
A97: 1991 | B97: =INDEX('Compile Data'!$L$12:$AI$93,$A97-1921,'Report - ALL (DASHBOARD)'!$W$4) -> 1960.766191 | C97: =INDEX('Compile Data'!$AL$12:$BI$93,$A97-1921,'Report - ALL (DASHBOARD)'!$W$4) -> 2039.492627 | D97: =INDEX('Compile Data'!$BL$12:$CI$93,$A97-1921,'Report - ALL (DASHBOARD)'!$W$4) -> 2059.127258 | E97: =INDEX('Compile Data'!$CL$12:$DI$93,$A97-1921,'Report - ALL (DASHBOARD)'!$W$4) -> 2043.600527 | F97: =INDEX('Compile Data'!$DL$12:$EI$93,$A97-1921,'Report - ALL (DASHBOARD)'!$W$4) -> 2028.931867 | G97: =INDEX('Compile Data'!$EL$12:$FI$93,$A97-1921,'Report - ALL (DASHBOARD)'!$W$4) -> 2030.475326 | O97: 70 | P97: 0.8518518519 | Q97: =INDEX('Compile Data'!$L$123:$AI$204,$O97,'Report - ALL (DASHBOARD)'!$W$4) -> 2522.828836 | R97: =INDEX('Compile Data'!$AL$123:$BI$204,$O97,'Report - ALL (DASHBOARD)'!$W$4) -> 2551.63504 | S97: =INDEX('Compile Data'!$BL$123:$CI$204,$O97,'Report - ALL (DASHBOARD)'!$W$4) -> 2583.345733 | T97: =INDEX('Compile Data'!$CL$123:$DI$204,$O97,'Report - ALL (DASHBOARD)'!$W$4) -> 2551.638665 | U97: =INDEX('Compile Data'!$DL$123:$EI$204,$O97,'Report - ALL (DASHBOARD)'!$W$4) -> 2611.421499 | V97: =INDEX('Compile Data'!$EL$123:$FI$204,$O97,'Report - ALL (DASHBOARD)'!$W$4) -> 2612.280661
A98: 1992 | B98: =INDEX('Compile Data'!$L$12:$AI$93,$A98-1921,'Report - ALL (DASHBOARD)'!$W$4) -> 1621.600701 | C98: =INDEX('Compile Data'!$AL$12:$BI$93,$A98-1921,'Report - ALL (DASHBOARD)'!$W$4) -> 1704.648863 | D98: =INDEX('Compile Data'!$BL$12:$CI$93,$A98-1921,'Report - ALL (DASHBOARD)'!$W$4) -> 1744.003635 | E98: =INDEX('Compile Data'!$CL$12:$DI$93,$A98-1921,'Report - ALL (DASHBOARD)'!$W$4) -> 1704.486433 | F98: =INDEX('Compile Data'!$DL$12:$EI$93,$A98-1921,'Report - ALL (DASHBOARD)'!$W$4) -> 1690.699006 | G98: =INDEX('Compile Data'!$EL$12:$FI$93,$A98-1921,'Report - ALL (DASHBOARD)'!$W$4) -> 1678.760119 | O98: 71 | P98: 0.8641975309 | Q98: =INDEX('Compile Data'!$L$123:$AI$204,$O98,'Report - ALL (DASHBOARD)'!$W$4) -> 2453.523125 | R98: =INDEX('Compile Data'!$AL$123:$BI$204,$O98,'Report - ALL (DASHBOARD)'!$W$4) -> 2484.850334 | S98: =INDEX('Compile Data'!$BL$123:$CI$204,$O98,'Report - ALL (DASHBOARD)'!$W$4) -> 2482.202405 | T98: =INDEX('Compile Data'!$CL$123:$DI$204,$O98,'Report - ALL (DASHBOARD)'!$W$4) -> 2421.844637 | U98: =INDEX('Compile Data'!$DL$123:$EI$204,$O98,'Report - ALL (DASHBOARD)'!$W$4) -> 2519.48449 | V98: =INDEX('Compile Data'!$EL$123:$FI$204,$O98,'Report - ALL (DASHBOARD)'!$W$4) -> 2527.978492
A99: 1993 | B99: =INDEX('Compile Data'!$L$12:$AI$93,$A99-1921,'Report - ALL (DASHBOARD)'!$W$4) -> 3266.772226 | C99: =INDEX('Compile Data'!$AL$12:$BI$93,$A99-1921,'Report - ALL (DASHBOARD)'!$W$4) -> 3267.789016 | D99: =INDEX('Compile Data'!$BL$12:$CI$93,$A99-1921,'Report - ALL (DASHBOARD)'!$W$4) -> 3296.894297 | E99: =INDEX('Compile Data'!$CL$12:$DI$93,$A99-1921,'Report - ALL (DASHBOARD)'!$W$4) -> 3268.006574 | F99: =INDEX('Compile Data'!$DL$12:$EI$93,$A99-1921,'Report - ALL (DASHBOARD)'!$W$4) -> 3346.927724 | G99: =INDEX('Compile Data'!$EL$12:$FI$93,$A99-1921,'Report - ALL (DASHBOARD)'!$W$4) -> 3375.806423 | O99: 72 | P99: 0.8765432099 | Q99: =INDEX('Compile Data'!$L$123:$AI$204,$O99,'Report - ALL (DASHBOARD)'!$W$4) -> 2433.015954 | R99: =INDEX('Compile Data'!$AL$123:$BI$204,$O99,'Report - ALL (DASHBOARD)'!$W$4) -> 2335.265528 | S99: =INDEX('Compile Data'!$BL$123:$CI$204,$O99,'Report - ALL (DASHBOARD)'!$W$4) -> 2287.965681 | T99: =INDEX('Compile Data'!$CL$123:$DI$204,$O99,'Report - ALL (DASHBOARD)'!$W$4) -> 2335.288327 | U99: =INDEX('Compile Data'!$DL$123:$EI$204,$O99,'Report - ALL (DASHBOARD)'!$W$4) -> 2500.931387 | V99: =INDEX('Compile Data'!$EL$123:$FI$204,$O99,'Report - ALL (DASHBOARD)'!$W$4) -> 2527.788686
A100: 1994 | B100: =INDEX('Compile Data'!$L$12:$AI$93,$A100-1921,'Report - ALL (DASHBOARD)'!$W$4) -> 2542.848237 | C100: =INDEX('Compile Data'!$AL$12:$BI$93,$A100-1921,'Report - ALL (DASHBOARD)'!$W$4) -> 2705.242558 | D100: =INDEX('Compile Data'!$BL$12:$CI$93,$A100-1921,'Report - ALL (DASHBOARD)'!$W$4) -> 2734.265529 | E100: =INDEX('Compile Data'!$CL$12:$DI$93,$A100-1921,'Report - ALL (DASHBOARD)'!$W$4) -> 2706.362958 | F100: =INDEX('Compile Data'!$DL$12:$EI$93,$A100-1921,'Report - ALL (DASHBOARD)'!$W$4) -> 2619.119907 | G100: =INDEX('Compile Data'!$EL$12:$FI$93,$A100-1921,'Report - ALL (DASHBOARD)'!$W$4) -> 2706.189358 | O100: 73 | P100: 0.8888888889 | Q100: =INDEX('Compile Data'!$L$123:$AI$204,$O100,'Report - ALL (DASHBOARD)'!$W$4) -> 2274.009432 | R100: =INDEX('Compile Data'!$AL$123:$BI$204,$O100,'Report - ALL (DASHBOARD)'!$W$4) -> 2174.153733 | S100: =INDEX('Compile Data'!$BL$123:$CI$204,$O100,'Report - ALL (DASHBOARD)'!$W$4) -> 2160.492235 | T100: =INDEX('Compile Data'!$CL$123:$DI$204,$O100,'Report - ALL (DASHBOARD)'!$W$4) -> 2176.119043 | U100: =INDEX('Compile Data'!$DL$123:$EI$204,$O100,'Report - ALL (DASHBOARD)'!$W$4) -> 2369.883636 | V100: =INDEX('Compile Data'!$EL$123:$FI$204,$O100,'Report - ALL (DASHBOARD)'!$W$4) -> 2376.877364
A101: 1995 | B101: =INDEX('Compile Data'!$L$12:$AI$93,$A101-1921,'Report - ALL (DASHBOARD)'!$W$4) -> 3400 | C101: =INDEX('Compile Data'!$AL$12:$BI$93,$A101-1921,'Report - ALL (DASHBOARD)'!$W$4) -> 3400 | D101: =INDEX('Compile Data'!$BL$12:$CI$93,$A101-1921,'Report - ALL (DASHBOARD)'!$W$4) -> 3400 | E101: =INDEX('Compile Data'!$CL$12:$DI$93,$A101-1921,'Report - ALL (DASHBOARD)'!$W$4) -> 3400 | F101: =INDEX('Compile Data'!$DL$12:$EI$93,$A101-1921,'Report - ALL (DASHBOARD)'!$W$4) -> 3400 | G101: =INDEX('Compile Data'!$EL$12:$FI$93,$A101-1921,'Report - ALL (DASHBOARD)'!$W$4) -> 3400 | O101: 74 | P101: 0.9012345679 | Q101: =INDEX('Compile Data'!$L$123:$AI$204,$O101,'Report - ALL (DASHBOARD)'!$W$4) -> 2020.162497 | R101: =INDEX('Compile Data'!$AL$123:$BI$204,$O101,'Report - ALL (DASHBOARD)'!$W$4) -> 2076.07928 | S101: =INDEX('Compile Data'!$BL$123:$CI$204,$O101,'Report - ALL (DASHBOARD)'!$W$4) -> 2106.591804 | T101: =INDEX('Compile Data'!$CL$123:$DI$204,$O101,'Report - ALL (DASHBOARD)'!$W$4) -> 2075.930209 | U101: =INDEX('Compile Data'!$DL$123:$EI$204,$O101,'Report - ALL (DASHBOARD)'!$W$4) -> 2176.486694 | V101: =INDEX('Compile Data'!$EL$123:$FI$204,$O101,'Report - ALL (DASHBOARD)'!$W$4) -> 2180.464337
A102: 1996 | B102: =INDEX('Compile Data'!$L$12:$AI$93,$A102-1921,'Report - ALL (DASHBOARD)'!$W$4) -> 3400 | C102: =INDEX('Compile Data'!$AL$12:$BI$93,$A102-1921,'Report - ALL (DASHBOARD)'!$W$4) -> 3400 | D102: =INDEX('Compile Data'!$BL$12:$CI$93,$A102-1921,'Report - ALL (DASHBOARD)'!$W$4) -> 3400 | E102: =INDEX('Compile Data'!$CL$12:$DI$93,$A102-1921,'Report - ALL (DASHBOARD)'!$W$4) -> 3400 | F102: =INDEX('Compile Data'!$DL$12:$EI$93,$A102-1921,'Report - ALL (DASHBOARD)'!$W$4) -> 3400 | G102: =INDEX('Compile Data'!$EL$12:$FI$93,$A102-1921,'Report - ALL (DASHBOARD)'!$W$4) -> 3400 | O102: 75 | P102: 0.9135802469 | Q102: =INDEX('Compile Data'!$L$123:$AI$204,$O102,'Report - ALL (DASHBOARD)'!$W$4) -> 1960.766191 | R102: =INDEX('Compile Data'!$AL$123:$BI$204,$O102,'Report - ALL (DASHBOARD)'!$W$4) -> 2039.492627 | S102: =INDEX('Compile Data'!$BL$123:$CI$204,$O102,'Report - ALL (DASHBOARD)'!$W$4) -> 2059.127258 | T102: =INDEX('Compile Data'!$CL$123:$DI$204,$O102,'Report - ALL (DASHBOARD)'!$W$4) -> 2043.600527 | U102: =INDEX('Compile Data'!$DL$123:$EI$204,$O102,'Report - ALL (DASHBOARD)'!$W$4) -> 2028.931867 | V102: =INDEX('Compile Data'!$EL$123:$FI$204,$O102,'Report - ALL (DASHBOARD)'!$W$4) -> 2030.475326
A103: 1997 | B103: =INDEX('Compile Data'!$L$12:$AI$93,$A103-1921,'Report - ALL (DASHBOARD)'!$W$4) -> 2771.67479 | C103: =INDEX('Compile Data'!$AL$12:$BI$93,$A103-1921,'Report - ALL (DASHBOARD)'!$W$4) -> 2786.307932 | D103: =INDEX('Compile Data'!$BL$12:$CI$93,$A103-1921,'Report - ALL (DASHBOARD)'!$W$4) -> 2786.346756 | E103: =INDEX('Compile Data'!$CL$12:$DI$93,$A103-1921,'Report - ALL (DASHBOARD)'!$W$4) -> 2786.359643 | F103: =INDEX('Compile Data'!$DL$12:$EI$93,$A103-1921,'Report - ALL (DASHBOARD)'!$W$4) -> 2785.7893 | G103: =INDEX('Compile Data'!$EL$12:$FI$93,$A103-1921,'Report - ALL (DASHBOARD)'!$W$4) -> 2786.579856 | O103: 76 | P103: 0.9259259259 | Q103: =INDEX('Compile Data'!$L$123:$AI$204,$O103,'Report - ALL (DASHBOARD)'!$W$4) -> 1705.724077 | R103: =INDEX('Compile Data'!$AL$123:$BI$204,$O103,'Report - ALL (DASHBOARD)'!$W$4) -> 1704.648863 | S103: =INDEX('Compile Data'!$BL$123:$CI$204,$O103,'Report - ALL (DASHBOARD)'!$W$4) -> 1744.003635 | T103: =INDEX('Compile Data'!$CL$123:$DI$204,$O103,'Report - ALL (DASHBOARD)'!$W$4) -> 1704.486433 | U103: =INDEX('Compile Data'!$DL$123:$EI$204,$O103,'Report - ALL (DASHBOARD)'!$W$4) -> 1708.052422 | V103: =INDEX('Compile Data'!$EL$123:$FI$204,$O103,'Report - ALL (DASHBOARD)'!$W$4) -> 1731.502495
A104: 1998 | B104: =INDEX('Compile Data'!$L$12:$AI$93,$A104-1921,'Report - ALL (DASHBOARD)'!$W$4) -> 3400 | C104: =INDEX('Compile Data'!$AL$12:$BI$93,$A104-1921,'Report - ALL (DASHBOARD)'!$W$4) -> 3400 | D104: =INDEX('Compile Data'!$BL$12:$CI$93,$A104-1921,'Report - ALL (DASHBOARD)'!$W$4) -> 3400 | E104: =INDEX('Compile Data'!$CL$12:$DI$93,$A104-1921,'Report - ALL (DASHBOARD)'!$W$4) -> 3400 | F104: =INDEX('Compile Data'!$DL$12:$EI$93,$A104-1921,'Report - ALL (DASHBOARD)'!$W$4) -> 3400 | G104: =INDEX('Compile Data'!$EL$12:$FI$93,$A104-1921,'Report - ALL (DASHBOARD)'!$W$4) -> 3400 | O104: 77 | P104: 0.9382716049 | Q104: =INDEX('Compile Data'!$L$123:$AI$204,$O104,'Report - ALL (DASHBOARD)'!$W$4) -> 1621.600701 | R104: =INDEX('Compile Data'!$AL$123:$BI$204,$O104,'Report - ALL (DASHBOARD)'!$W$4) -> 1697.79684 | S104: =INDEX('Compile Data'!$BL$123:$CI$204,$O104,'Report - ALL (DASHBOARD)'!$W$4) -> 1718.4424 | T104: =INDEX('Compile Data'!$CL$123:$DI$204,$O104,'Report - ALL (DASHBOARD)'!$W$4) -> 1700.266236 | U104: =INDEX('Compile Data'!$DL$123:$EI$204,$O104,'Report - ALL (DASHBOARD)'!$W$4) -> 1690.699006 | V104: =INDEX('Compile Data'!$EL$123:$FI$204,$O104,'Report - ALL (DASHBOARD)'!$W$4) -> 1678.760119
A105: 1999 | B105: =INDEX('Compile Data'!$L$12:$AI$93,$A105-1921,'Report - ALL (DASHBOARD)'!$W$4) -> 3400 | C105: =INDEX('Compile Data'!$AL$12:$BI$93,$A105-1921,'Report - ALL (DASHBOARD)'!$W$4) -> 3400 | D105: =INDEX('Compile Data'!$BL$12:$CI$93,$A105-1921,'Report - ALL (DASHBOARD)'!$W$4) -> 3400 | E105: =INDEX('Compile Data'!$CL$12:$DI$93,$A105-1921,'Report - ALL (DASHBOARD)'!$W$4) -> 3400 | F105: =INDEX('Compile Data'!$DL$12:$EI$93,$A105-1921,'Report - ALL (DASHBOARD)'!$W$4) -> 3400 | G105: =INDEX('Compile Data'!$EL$12:$FI$93,$A105-1921,'Report - ALL (DASHBOARD)'!$W$4) -> 3400 | O105: 78 | P105: 0.950617284 | Q105: =INDEX('Compile Data'!$L$123:$AI$204,$O105,'Report - ALL (DASHBOARD)'!$W$4) -> 1518.788968 | R105: =INDEX('Compile Data'!$AL$123:$BI$204,$O105,'Report - ALL (DASHBOARD)'!$W$4) -> 1641.761823 | S105: =INDEX('Compile Data'!$BL$123:$CI$204,$O105,'Report - ALL (DASHBOARD)'!$W$4) -> 1551.20908 | T105: =INDEX('Compile Data'!$CL$123:$DI$204,$O105,'Report - ALL (DASHBOARD)'!$W$4) -> 1522.276428 | U105: =INDEX('Compile Data'!$DL$123:$EI$204,$O105,'Report - ALL (DASHBOARD)'!$W$4) -> 1547.601888 | V105: =INDEX('Compile Data'!$EL$123:$FI$204,$O105,'Report - ALL (DASHBOARD)'!$W$4) -> 1561.153055
A106: 2000 | B106: =INDEX('Compile Data'!$L$12:$AI$93,$A106-1921,'Report - ALL (DASHBOARD)'!$W$4) -> 3200 | C106: =INDEX('Compile Data'!$AL$12:$BI$93,$A106-1921,'Report - ALL (DASHBOARD)'!$W$4) -> 3200.588073 | D106: =INDEX('Compile Data'!$BL$12:$CI$93,$A106-1921,'Report - ALL (DASHBOARD)'!$W$4) -> 3271.739599 | E106: =INDEX('Compile Data'!$CL$12:$DI$93,$A106-1921,'Report - ALL (DASHBOARD)'!$W$4) -> 3200.596566 | F106: =INDEX('Compile Data'!$DL$12:$EI$93,$A106-1921,'Report - ALL (DASHBOARD)'!$W$4) -> 3386.689695 | G106: =INDEX('Compile Data'!$EL$12:$FI$93,$A106-1921,'Report - ALL (DASHBOARD)'!$W$4) -> 3387.630953 | O106: 79 | P106: 0.962962963 | Q106: =INDEX('Compile Data'!$L$123:$AI$204,$O106,'Report - ALL (DASHBOARD)'!$W$4) -> 1350.069812 | R106: =INDEX('Compile Data'!$AL$123:$BI$204,$O106,'Report - ALL (DASHBOARD)'!$W$4) -> 1387.570543 | S106: =INDEX('Compile Data'!$BL$123:$CI$204,$O106,'Report - ALL (DASHBOARD)'!$W$4) -> 1385.799051 | T106: =INDEX('Compile Data'!$CL$123:$DI$204,$O106,'Report - ALL (DASHBOARD)'!$W$4) -> 1397.944504 | U106: =INDEX('Compile Data'!$DL$123:$EI$204,$O106,'Report - ALL (DASHBOARD)'!$W$4) -> 1455.263356 | V106: =INDEX('Compile Data'!$EL$123:$FI$204,$O106,'Report - ALL (DASHBOARD)'!$W$4) -> 1449.845629
A107: 2001 | B107: =INDEX('Compile Data'!$L$12:$AI$93,$A107-1921,'Report - ALL (DASHBOARD)'!$W$4) -> 2792.208948 | C107: =INDEX('Compile Data'!$AL$12:$BI$93,$A107-1921,'Report - ALL (DASHBOARD)'!$W$4) -> 2787.848348 | D107: =INDEX('Compile Data'!$BL$12:$CI$93,$A107-1921,'Report - ALL (DASHBOARD)'!$W$4) -> 2905.120951 | E107: =INDEX('Compile Data'!$CL$12:$DI$93,$A107-1921,'Report - ALL (DASHBOARD)'!$W$4) -> 2787.850331 | F107: =INDEX('Compile Data'!$DL$12:$EI$93,$A107-1921,'Report - ALL (DASHBOARD)'!$W$4) -> 3023.004736 | G107: =INDEX('Compile Data'!$EL$12:$FI$93,$A107-1921,'Report - ALL (DASHBOARD)'!$W$4) -> 3020.240075 | O107: 80 | P107: 0.975308642 | Q107: =INDEX('Compile Data'!$L$123:$AI$204,$O107,'Report - ALL (DASHBOARD)'!$W$4) -> 1330.316421 | R107: =INDEX('Compile Data'!$AL$123:$BI$204,$O107,'Report - ALL (DASHBOARD)'!$W$4) -> 1269.413709 | S107: =INDEX('Compile Data'!$BL$123:$CI$204,$O107,'Report - ALL (DASHBOARD)'!$W$4) -> 1290.382007 | T107: =INDEX('Compile Data'!$CL$123:$DI$204,$O107,'Report - ALL (DASHBOARD)'!$W$4) -> 1272.562266 | U107: =INDEX('Compile Data'!$DL$123:$EI$204,$O107,'Report - ALL (DASHBOARD)'!$W$4) -> 1312.222125 | V107: =INDEX('Compile Data'!$EL$123:$FI$204,$O107,'Report - ALL (DASHBOARD)'!$W$4) -> 1319.216949
A108: 2002 | B108: =INDEX('Compile Data'!$L$12:$AI$93,$A108-1921,'Report - ALL (DASHBOARD)'!$W$4) -> 3164.43635 | C108: =INDEX('Compile Data'!$AL$12:$BI$93,$A108-1921,'Report - ALL (DASHBOARD)'!$W$4) -> 3170.53036 | D108: =INDEX('Compile Data'!$BL$12:$CI$93,$A108-1921,'Report - ALL (DASHBOARD)'!$W$4) -> 3190.876884 | E108: =INDEX('Compile Data'!$CL$12:$DI$93,$A108-1921,'Report - ALL (DASHBOARD)'!$W$4) -> 3170.465492 | F108: =INDEX('Compile Data'!$DL$12:$EI$93,$A108-1921,'Report - ALL (DASHBOARD)'!$W$4) -> 3191.084079 | G108: =INDEX('Compile Data'!$EL$12:$FI$93,$A108-1921,'Report - ALL (DASHBOARD)'!$W$4) -> 3193.520697 | O108: 81 | P108: 0.987654321 | Q108: =INDEX('Compile Data'!$L$123:$AI$204,$O108,'Report - ALL (DASHBOARD)'!$W$4) -> 1116.135388 | R108: =INDEX('Compile Data'!$AL$123:$BI$204,$O108,'Report - ALL (DASHBOARD)'!$W$4) -> 1122.974902 | S108: =INDEX('Compile Data'!$BL$123:$CI$204,$O108,'Report - ALL (DASHBOARD)'!$W$4) -> 1081.280772 | T108: =INDEX('Compile Data'!$CL$123:$DI$204,$O108,'Report - ALL (DASHBOARD)'!$W$4) -> 1052.830565 | U108: =INDEX('Compile Data'!$DL$123:$EI$204,$O108,'Report - ALL (DASHBOARD)'!$W$4) -> 1038.060321 | V108: =INDEX('Compile Data'!$EL$123:$FI$204,$O108,'Report - ALL (DASHBOARD)'!$W$4) -> 1050.813259
A109: 2003 | B109: =INDEX('Compile Data'!$L$12:$AI$93,$A109-1921,'Report - ALL (DASHBOARD)'!$W$4) -> 3151.505254 | C109: =INDEX('Compile Data'!$AL$12:$BI$93,$A109-1921,'Report - ALL (DASHBOARD)'!$W$4) -> 3161.651974 | D109: =INDEX('Compile Data'!$BL$12:$CI$93,$A109-1921,'Report - ALL (DASHBOARD)'!$W$4) -> 3186.048432 | E109: =INDEX('Compile Data'!$CL$12:$DI$93,$A109-1921,'Report - ALL (DASHBOARD)'!$W$4) -> 3161.210617 | F109: =INDEX('Compile Data'!$DL$12:$EI$93,$A109-1921,'Report - ALL (DASHBOARD)'!$W$4) -> 3228.235327 | G109: =INDEX('Compile Data'!$EL$12:$FI$93,$A109-1921,'Report - ALL (DASHBOARD)'!$W$4) -> 3229.893553 | O109: 82 | P109: 1 | Q109: =INDEX('Compile Data'!$L$123:$AI$204,$O109,'Report - ALL (DASHBOARD)'!$W$4) -> 641.4961471 | R109: =INDEX('Compile Data'!$AL$123:$BI$204,$O109,'Report - ALL (DASHBOARD)'!$W$4) -> 748.3126838 | S109: =INDEX('Compile Data'!$BL$123:$CI$204,$O109,'Report - ALL (DASHBOARD)'!$W$4) -> 794.6766998 | T109: =INDEX('Compile Data'!$CL$123:$DI$204,$O109,'Report - ALL (DASHBOARD)'!$W$4) -> 746.8634617 | U109: =INDEX('Compile Data'!$DL$123:$EI$204,$O109,'Report - ALL (DASHBOARD)'!$W$4) -> 1006.641141 | V109: =INDEX('Compile Data'!$EL$123:$FI$204,$O109,'Report - ALL (DASHBOARD)'!$W$4) -> 1006.917769

Sheet Compile Data
B1: =Control!$B$5 -> NAA 011221 | C1: =Control!$B$6 -> Alt 1A 011221 | D1: =Control!$B$7 -> Alt 1B 011221 | E1: =Control!$B$8 -> Alt 2 011221 | F1: =Control!$B$9 -> Alt 3 012221 | G1: =Control!$B$10 -> Alt 3 012221 SA Proportional | AE1: =$B$8 -> INST-VAL | BE1: =$C$8 -> INST-VAL | CE1: =$D$8 -> INST-VAL | DE1: =$E$8 -> INST-VAL | EE1: =$F$8 -> INST-VAL | FE1: =$G$8 -> INST-VAL
A2: Index: | B2: ='Report - ALL (DASHBOARD)'!W2 -> 5 | C2: =B2 -> 5 | D2: 5 | E2: 5 | F2: 5 | G2: 5
A3: Convert? | B3: =IF('Report - ALL (DASHBOARD)'!W5,1,0) -> 1 | C3: 1 | D3: 1 | E3: 1 | F3: 1 | G3: 1
A4: Column: | B4: =TRIM(VLOOKUP(B$2+2,DSSPathnames!$H$7:$K$165,2)) -> G | C4: G | D4: G | E4: G | F4: G | G4: G
A5: Title: | B5: =TRIM(VLOOKUP(B$2+2,DSSPathnames!$H$7:$K$165,4)) -> Shasta Storage | C5: =TRIM(VLOOKUP(C$2+2,DSSPathnames!$H$7:$K$165,4)) -> Shasta Storage | D5: =TRIM(VLOOKUP(D$2+2,DSSPathnames!$H$7:$K$165,4)) -> Shasta Storage | E5: =TRIM(VLOOKUP(E$2+2,DSSPathnames!$H$7:$K$165,4)) -> Shasta Storage | F5: =TRIM(VLOOKUP(F$2+2,DSSPathnames!$H$7:$K$165,4)) -> Shasta Storage | G5: =TRIM(VLOOKUP(G$2+2,DSSPathnames!$H$7:$K$165,4)) -> Shasta Storage
A6: Parameter: | B6: =INDIRECT(CONCATENATE("'",B$1,"'!",B$4,2)) -> S4 | C6: S4 | D6: S4 | E6: S4 | F6: S4 | G6: S4
B7: =INDIRECT(CONCATENATE("'",B$1,"'!",B$4,3)) -> STORAGE | C7: STORAGE | D7: STORAGE | E7: STORAGE | F7: STORAGE | G7: STORAGE
A8: Type: | B8: =TRIM(VLOOKUP(B$2+2,DSSPathnames!$H$7:$K$165,3)) -> INST-VAL | C8: =TRIM(VLOOKUP(C$2+2,DSSPathnames!$H$7:$K$165,3)) -> INST-VAL | D8: =TRIM(VLOOKUP(D$2+2,DSSPathnames!$H$7:$K$165,3)) -> INST-VAL | E8: =TRIM(VLOOKUP(E$2+2,DSSPathnames!$H$7:$K$165,3)) -> INST-VAL | F8: =TRIM(VLOOKUP(F$2+2,DSSPathnames!$H$7:$K$165,3)) -> INST-VAL | G8: =TRIM(VLOOKUP(G$2+2,DSSPathnames!$H$7:$K$165,3)) -> INST-VAL | K8: =CONCATENATE(TRIM(B$1),": ",TRIM(B$5)," - ",TRIM(B$6)," ",TRIM(B$7)," (",TRIM(B$10),") ",TRIM(B$11)) -> NAA 011221: Shasta Storage - S4 STORAGE (TAF) | AK8: =CONCATENATE(TRIM(C$1),": ",TRIM(C$5)," - ",TRIM(C$6)," ",TRIM(C$7)," (",TRIM(C$10),") ",TRIM(C$11)) -> Alt 1A 011221: Shasta Storage - S4 STORAGE (TAF) | BK8: =CONCATENATE(TRIM(D$1),": ",TRIM(D$5)," - ",TRIM(D$6)," ",TRIM(D$7)," (",TRIM(D$10),") ",TRIM(D$11)) -> Alt 1B 011221: Shasta Storage - S4 STORAGE (TAF) | CK8: =CONCATENATE(TRIM(E$1),": ",TRIM(E$5)," - ",TRIM(E$6)," ",TRIM(E$7)," (",TRIM(E$10),") ",TRIM(E$11)) -> Alt 2 011221: Shasta Storage - S4 STORAGE (TAF) | DK8: =CONCATENATE(TRIM(F$1),": ",TRIM(F$5)," - ",TRIM(F$6)," ",TRIM(F$7)," (",TRIM(F$10),") ",TRIM(F$11)) -> Alt 3 012221: Shasta Storage - S4 STORAGE (TAF) | EK8: =CONCATENATE(TRIM(G$1),": ",TRIM(G$5)," - ",TRIM(G$6)," ",TRIM(G$7)," (",TRIM(G$10),") ",TRIM(G$11)) -> Alt 3 012221 SA Proportional: Shasta Storage - S4 STORAGE (TAF)
A9: Units-native: | B9: =TRIM(INDIRECT(CONCATENATE("'",B$1,"'!",B$4,11))) -> TAF | C9: TAF | D9: TAF | E9: TAF | F9: TAF | G9: TAF
A10: Units-shown: | B10: =IF(AND(B$3>0,B$9="CFS"),"TAF",B$9) -> TAF | C10: TAF | D10: TAF | E10: TAF | F10: TAF | G10: TAF | Y10: Jan-Dec | Z10: Mar-Feb | AA10: Oct-Sep | AC10: Nov-Mar | AD10: Aug-Oct | AE10: Oct-Jan | AF10: Dec-Feb | AG10: Mar-Jun | AH10: Jun-Sep | AI10: Sep-Nov | AY10: Jan-Dec | AZ10: Mar-Feb | BA10: Oct-Sep | BC10: Nov-Mar | BD10: Aug-Oct | BE10: Oct-Jan | BF10: Dec-Feb | BG10: Mar-Jun | BH10: Jun-Sep | BI10: Sep-Nov | BY10: Jan-Dec | BZ10: Mar-Feb | CA10: Oct-Sep | CC10: Nov-Mar | CD10: Aug-Oct | CE10: Oct-Jan | CF10: Dec-Feb | CG10: Mar-Jun | CH10: Jun-Sep | CI10: Sep-Nov | CY10: Jan-Dec | CZ10: Mar-Feb | DA10: Oct-Sep | DC10: Nov-Mar | DD10: Aug-Oct | DE10: Oct-Jan | DF10: Dec-Feb | DG10: Mar-Jun | DH10: Jun-Sep | DI10: Sep-Nov | DY10: Jan-Dec | DZ10: Mar-Feb | EA10: Oct-Sep | EC10: Nov-Mar | ED10: Aug-Oct | EE10: Oct-Jan | EF10: Dec-Feb | EG10: Mar-Jun | EH10: Jun-Sep | EI10: Sep-Nov | EY10: Jan-Dec | EZ10: Mar-Feb | FA10: Oct-Sep | FC10: Nov-Mar | FD10: Aug-Oct | FE10: Oct-Jan | FF10: Dec-Feb | FG10: Mar-Jun | FH10: Jun-Sep | FI10: Sep-Nov
A11: Date | B11: =IF(ISNUMBER(FIND("PRV",B$6)),"SHIFTED","") ->  | C11: =IF(ISNUMBER(FIND("PRV",C$6)),"SHIFTED","") ->  | D11: =IF(ISNUMBER(FIND("PRV",D$6)),"SHIFTED","") ->  | E11: =IF(ISNUMBER(FIND("PRV",E$6)),"SHIFTED","") ->  | F11: =IF(ISNUMBER(FIND("PRV",F$6)),"SHIFTED","") ->  | K11: YEAR | L11: OCT | M11: NOV | N11: DEC | O11: JAN | P11: FEB | Q11: MAR | R11: APR | S11: MAY | T11: JUN | U11: JUL | V11: AUG | W11: SEP | Y11: =IF(AND($B$10="TAF",$B$8="PER-AVER"),"TOT","AVG") -> AVG | Z11: =IF(AND($B$10="TAF",$B$8="PER-AVER"),"TOT","AVG") -> AVG | AA11: =IF(AND($B$10="TAF",$B$8="PER-AVER"),"TOT","AVG") -> AVG | AC11: =IF(AND($B$10="TAF",$B$8="PER-AVER"),"TOT","AVG") -> AVG | AD11: AVG | AE11: AVG | AF11: AVG | AG11: AVG | AH11: AVG | AI11: AVG | AK11: YEAR | AL11: OCT | AM11: NOV | AN11: DEC | AO11: JAN | AP11: FEB | AQ11: MAR | AR11: APR | AS11: MAY | AT11: JUN | AU11: JUL | AV11: AUG | AW11: SEP | AY11: =IF(AND($C$10="TAF",$C$8="PER-AVER"),"TOT","AVG") -> AVG | AZ11: =IF(AND($C$10="TAF",$C$8="PER-AVER"),"TOT","AVG") -> AVG | BA11: =IF(AND($C$10="TAF",$C$8="PER-AVER"),"TOT","AVG") -> AVG | BC11: =IF(AND($B$10="TAF",$B$8="PER-AVER"),"TOT","AVG") -> AVG | BD11: =IF(AND($B$10="TAF",$B$8="PER-AVER"),"TOT","AVG") -> AVG | BE11: =IF(AND($C$10="TAF",$C$8="PER-AVER"),"TOT","AVG") -> AVG | BF11: =IF(AND($C$10="TAF",$C$8="PER-AVER"),"TOT","AVG") -> AVG | BG11: =IF(AND($C$10="TAF",$C$8="PER-AVER"),"TOT","AVG") -> AVG | BH11: =IF(AND($C$10="TAF",$C$8="PER-AVER"),"TOT","AVG") -> AVG | BI11: =IF(AND($C$10="TAF",$C$8="PER-AVER"),"TOT","AVG") -> AVG | BK11: YEAR | BL11: OCT | BM11: NOV | BN11: DEC | BO11: JAN | BP11: FEB | BQ11: MAR | BR11: APR | BS11: MAY | BT11: JUN | BU11: JUL | BV11: AUG | BW11: SEP | BY11: =IF(AND($D$10="TAF",$D$8="PER-AVER"),"TOT","AVG") -> AVG | BZ11: =IF(AND($D$10="TAF",$D$8="PER-AVER"),"TOT","AVG") -> AVG | CA11: =IF(AND($D$10="TAF",$D$8="PER-AVER"),"TOT","AVG") -> AVG | CC11: =IF(AND($B$10="TAF",$B$8="PER-AVER"),"TOT","AVG") -> AVG | CD11: =IF(AND($B$10="TAF",$B$8="PER-AVER"),"TOT","AVG") -> AVG | CE11: =IF(AND($D$10="TAF",$D$8="PER-AVER"),"TOT","AVG") -> AVG | CF11: =IF(AND($D$10="TAF",$D$8="PER-AVER"),"TOT","AVG") -> AVG | CG11: =IF(AND($D$10="TAF",$D$8="PER-AVER"),"TOT","AVG") -> AVG | CH11: =IF(AND($D$10="TAF",$D$8="PER-AVER"),"TOT","AVG") -> AVG | CI11: =IF(AND($D$10="TAF",$D$8="PER-AVER"),"TOT","AVG") -> AVG | CK11: YEAR | CL11: OCT | CM11: NOV | CN11: DEC | CO11: JAN | CP11: FEB | CQ11: MAR | CR11: APR | CS11: MAY | CT11: JUN | CU11: JUL | CV11: AUG | CW11: SEP | CY11: =IF(AND($E$10="TAF",$E$8="PER-AVER"),"TOT","AVG") -> AVG | CZ11: =IF(AND($E$10="TAF",$E$8="PER-AVER"),"TOT","AVG") -> AVG | DA11: =IF(AND($E$10="TAF",$E$8="PER-AVER"),"TOT","AVG") -> AVG | DC11: =IF(AND($B$10="TAF",$B$8="PER-AVER"),"TOT","AVG") -> AVG | DD11: =IF(AND($B$10="TAF",$B$8="PER-AVER"),"TOT","AVG") -> AVG | DE11: =IF(AND($E$10="TAF",$E$8="PER-AVER"),"TOT","AVG") -> AVG | DF11: =IF(AND($E$10="TAF",$E$8="PER-AVER"),"TOT","AVG") -> AVG | DG11: =IF(AND($E$10="TAF",$E$8="PER-AVER"),"TOT","AVG") -> AVG | DH11: =IF(AND($E$10="TAF",$E$8="PER-AVER"),"TOT","AVG") -> AVG | DI11: =IF(AND($E$10="TAF",$E$8="PER-AVER"),"TOT","AVG") -> AVG | DK11: YEAR | DL11: OCT | DM11: NOV | DN11: DEC | DO11: JAN | DP11: FEB | DQ11: MAR | DR11: APR | DS11: MAY | DT11: JUN | DU11: JUL | DV11: AUG | DW11: SEP | DY11: =IF(AND($F$10="TAF",$F$8="PER-AVER"),"TOT","AVG") -> AVG | DZ11: =IF(AND($F$10="TAF",$F$8="PER-AVER"),"TOT","AVG") -> AVG | EA11: =IF(AND($F$10="TAF",$F$8="PER-AVER"),"TOT","AVG") -> AVG | EC11: =IF(AND($B$10="TAF",$B$8="PER-AVER"),"TOT","AVG") -> AVG | ED11: =IF(AND($B$10="TAF",$B$8="PER-AVER"),"TOT","AVG") -> AVG | EE11: =IF(AND($F$10="TAF",$F$8="PER-AVER"),"TOT","AVG") -> AVG | EF11: =IF(AND($F$10="TAF",$F$8="PER-AVER"),"TOT","AVG") -> AVG | EG11: =IF(AND($F$10="TAF",$F$8="PER-AVER"),"TOT","AVG") -> AVG | EH11: =IF(AND($F$10="TAF",$F$8="PER-AVER"),"TOT","AVG") -> AVG | EI11: =IF(AND($F$10="TAF",$F$8="PER-AVER"),"TOT","AVG") -> AVG | EK11: YEAR | EL11: OCT | EM11: NOV | EN11: DEC | EO11: JAN | EP11: FEB | EQ11: MAR | ER11: APR | ES11: MAY | ET11: JUN | EU11: JUL | EV11: AUG | EW11: SEP | EY11: =IF(AND($F$10="TAF",$F$8="PER-AVER"),"TOT","AVG") -> AVG | EZ11: =IF(AND($F$10="TAF",$F$8="PER-AVER"),"TOT","AVG") -> AVG | FA11: =IF(AND($F$10="TAF",$F$8="PER-AVER"),"TOT","AVG") -> AVG | FC11: =IF(AND($B$10="TAF",$B$8="PER-AVER"),"TOT","AVG") -> AVG | FD11: =IF(AND($B$10="TAF",$B$8="PER-AVER"),"TOT","AVG") -> AVG | FE11: =IF(AND($F$10="TAF",$F$8="PER-AVER"),"TOT","AVG") -> AVG | FF11: =IF(AND($F$10="TAF",$F$8="PER-AVER"),"TOT","AVG") -> AVG | FG11: =IF(AND($F$10="TAF",$F$8="PER-AVER"),"TOT","AVG") -> AVG | FH11: =IF(AND($F$10="TAF",$F$8="PER-AVER"),"TOT","AVG") -> AVG | FI11: =IF(AND($F$10="TAF",$F$8="PER-AVER"),"TOT","AVG") -> AVG
A12: 1921-09-30 | K12: 1922 | L12: =B13 -> 2739.663051 | M12: =B14 -> 2699.42931 | N12: =B15 -> 2874.796432 | O12: =B16 -> 3021.45025 | P12: =B17 -> 3448.078868 | Q12: =B18 -> 3968.731586 | R12: =B19 -> 4552 | S12: =B20 -> 4552 | T12: =B21 -> 4288.190126 | U12: =B22 -> 3876.566529 | V12: =B23 -> 3520.599895 | W12: =B24 -> 3353.49032 | Y12: =IF(Y$11="AVG",AVERAGE(O12:W12,L13:N13),SUM(O12:W12,L13:N13)) -> 3704.342298 | Z12: =IF(Z$11="AVG",AVERAGE(Q12:W12,L13:P13),SUM(Q12:W12,L13:P13)) -> 3767.133297 | AA12: =IF(AA$11="AVG",AVERAGE(L12:W12),SUM(L12:W12)) -> 3574.58303 | AC12: =IF(AC$11="AVG",IF(AE$1="INST-VAL",AVERAGE(L12:P12,M12:Q12),AVERAGE(M12:Q12)),SUM(M12:Q12)) -> 3079.590436 | AD12: =IF(AD$11="AVG",IF(AE$1="INST-VAL",AVERAGE(U12:W12,V12:W12,L13),AVERAGE(V12:W12,L13)),SUM(V12:W12,L13)) -> 3479.124493 | AE12: =IF(AE$11="AVG",IF(AE$1="INST-VAL",AVERAGE(W11,L12:N12,L12:O12),AVERAGE(L12:O12)),SUM(L12:O12)) -> 2807.032548 | AF12: =IF(AF$11="AVG",IF(AE$1="INST-VAL",AVERAGE(M12:O12,N12:P12),AVERAGE(N12:P12)),SUM(N12:P12)) -> 2990.000257 | AG12: =IF(AG$11="AVG",IF(AE$1="INST-VAL",AVERAGE(P12:S12,Q12:T12),AVERAGE(Q12:T12)),SUM(Q12:T12)) -> 4235.216521 | AH12: =IF(AH$11="AVG",IF(AE$1="INST-VAL",AVERAGE(S12:V12,T12:W12),AVERAGE(T12:W12)),SUM(T12:W12)) -> 3909.525427 | AI12: =IF(AI$11="AVG",IF(AE$1="INST-VAL",AVERAGE(V12:W12,L13,W12,L13:M13),AVERAGE(W12,L13:M13)),SUM(W12,L13:M13)) -> 3329.930089 | AK12: 1922 | AL12: =C13 -> 2740.72521 | AM12: =C14 -> 2706.763164 | AN12: =C15 -> 2882.124901 | AO12: =C16 -> 3028.774251 | AP12: =C17 -> 3455.398077 | AQ12: =C18 -> 3976.042101 | AR12: =C19 -> 4552 | AS12: =C20 -> 4552 | AT12: =C21 -> 4318.250047 | AU12: =C22 -> 3912.604497 | AV12: =C23 -> 3558.095704 | AW12: =C24 -> 3381.834579 | AY12: =IF(AY$11="AVG",AVERAGE(AO12:AW12,AL13:AN13),SUM(AO12:AW12,AL13:AN13)) -> 3717.166605 | AZ12: =IF(AZ$11="AVG",AVERAGE(AQ12:AW12,AL13:AP13),SUM(AQ12:AW12,AL13:AP13)) -> 3778.819331 | BA12: =IF(BA$11="AVG",AVERAGE(AL12:AW12),SUM(AL12:AW12)) -> 3588.717711 | BC12: =IF(BC$11="AVG",IF(BE$1="INST-VAL",AVERAGE(AL12:AP12,AM12:AQ12),AVERAGE(AM12:AQ12)),SUM(AM12:AQ12)) -> 3086.28881 | BD12: =IF(BD$11="AVG",IF(BE$1="INST-VAL",AVERAGE(AU12:AW12,AV12:AW12,AL13),AVERAGE(AV12:AW12,AL13)),SUM(AV12:AW12,AL13)) -> 3507.077511 | BE12: =IF(BE$11="AVG",IF(BE$1="INST-VAL",AVERAGE(AW11,AL12:AN12,AL12:AO12),AVERAGE(AL12:AO12)),SUM(AL12:AO12)) -> 2812.571543 | BF12: =IF(BF$11="AVG",IF(BE$1="INST-VAL",AVERAGE(AM12:AO12,AN12:AP12),AVERAGE(AN12:AP12)),SUM(AN12:AP12)) -> 2997.326591 | BG12: =IF(BG$11="AVG",IF(BE$1="INST-VAL",AVERAGE(AP12:AS12,AQ12:AT12),AVERAGE(AQ12:AT12)),SUM(AQ12:AT12)) -> 4241.716541 | BH12: =IF(BH$11="AVG",IF(BE$1="INST-VAL",AVERAGE(AS12:AV12,AT12:AW12),AVERAGE(AT12:AW12)),SUM(AT12:AW12)) -> 3938.966884 | BI12: =IF(BI$11="AVG",IF(BE$1="INST-VAL",AVERAGE(AV12:AW12,AL13,AW12,AL13:AM13),AVERAGE(AW12,AL13:AM13)),SUM(AW12,AL13:AM13)) -> 3345.627477 | BK12: 1922 | BL12: =D13 -> 2753.209232 | BM12: =D14 -> 2737.513064 | BN12: =D15 -> 2912.852221 | BO12: =D16 -> 3059.482836 | BP12: =D17 -> 3486.086573 | BQ12: =D18 -> 4006.69414 | BR12: =D19 -> 4552 | BS12: =D20 -> 4552 | BT12: =D21 -> 4318.89356 | BU12: =D22 -> 3954.053545 | BV12: =D23 -> 3598.310308 | BW12: =D24 -> 3400 | BY12: =IF(BY$11="AVG",AVERAGE(BO12:BW12,BL13:BN13),SUM(BO12:BW12,BL13:BN13)) -> 3733.21008 | BZ12: =IF(BZ$11="AVG",AVERAGE(BQ12:BW12,BL13:BP13),SUM(BQ12:BW12,BL13:BP13)) -> 3790.283449 | CA12: =IF(CA$11="AVG",AVERAGE(BL12:BW12),SUM(BL12:BW12)) -> 3610.924623 | CC12: =IF(CC$11="AVG",IF(CE$1="INST-VAL",AVERAGE(BL12:BP12,BM12:BQ12),AVERAGE(BM12:BQ12)),SUM(BM12:BQ12)) -> 3115.177276 | CD12: =IF(CD$11="AVG",IF(CE$1="INST-VAL",AVERAGE(BU12:BW12,BV12:BW12,BL13),AVERAGE(BV12:BW12,BL13)),SUM(BV12:BW12,BL13)) -> 3533.445693 | CE12: =IF(CE$11="AVG",IF(CE$1="INST-VAL",AVERAGE(BW11,BL12:BN12,BL12:BO12),AVERAGE(BL12:BO12)),SUM(BL12:BO12)) -> 2838.090267 | CF12: =IF(CF$11="AVG",IF(CE$1="INST-VAL",AVERAGE(BM12:BO12,BN12:BP12),AVERAGE(BN12:BP12)),SUM(BN12:BP12)) -> 3028.044958 | CG12: =IF(CG$11="AVG",IF(CE$1="INST-VAL",AVERAGE(BP12:BS12,BQ12:BT12),AVERAGE(BQ12:BT12)),SUM(BQ12:BT12)) -> 4253.296052 | CH12: =IF(CH$11="AVG",IF(CE$1="INST-VAL",AVERAGE(BS12:BV12,BT12:BW12),AVERAGE(BT12:BW12)),SUM(BT12:BW12)) -> 3961.814353 | CI12: =IF(CI$11="AVG",IF(CE$1="INST-VAL",AVERAGE(BV12:BW12,BL13,BW12,BL13:BM13),AVERAGE(BW12,BL13:BM13)),SUM(BW12,BL13:BM13)) -> 3358.385051 | CK12: 1922 | CL12: =E13 -> 2740.72521 | CM12: =E14 -> 2706.763164 | CN12: =E15 -> 2882.124901 | CO12: =E16 -> 3028.774251 | CP12: =E17 -> 3455.398077 | CQ12: =E18 -> 3976.042101 | CR12: =E19 -> 4552 | CS12: =E20 -> 4552 | CT12: =E21 -> 4318.250047 | CU12: =E22 -> 3912.604497 | CV12: =E23 -> 3558.095704 | CW12: =E24 -> 3381.834579 | CY12: =IF(CY$11="AVG",AVERAGE(CO12:CW12,CL13:CN13),SUM(CO12:CW12,CL13:CN13)) -> 3717.166605 | CZ12: =IF(CZ$11="AVG",AVERAGE(CQ12:CW12,CL13:CP13),SUM(CQ12:CW12,CL13:CP13)) -> 3778.819331 | DA12: =IF(DA$11="AVG",AVERAGE(CL12:CW12),SUM(CL12:CW12)) -> 3588.717711 | DC12: =IF(DC$11="AVG",IF(DE$1="INST-VAL",AVERAGE(CL12:CP12,CM12:CQ12),AVERAGE(CM12:CQ12)),SUM(CM12:CQ12)) -> 3086.28881 | DD12: =IF(DD$11="AVG",IF(DE$1="INST-VAL",AVERAGE(CU12:CW12,CV12:CW12,CL13),AVERAGE(CV12:CW12,CL13)),SUM(CV12:CW12,CL13)) -> 3507.077511 | DE12: =IF(DE$11="AVG",IF(DE$1="INST-VAL",AVERAGE(CW11,CL12:CN12,CL12:CO12),AVERAGE(CL12:CO12)),SUM(CL12:CO12)) -> 2812.571543 | DF12: =IF(DF$11="AVG",IF(DE$1="INST-VAL",AVERAGE(CM12:CO12,CN12:CP12),AVERAGE(CN12:CP12)),SUM(CN12:CP12)) -> 2997.326591 | DG12: =IF(DG$11="AVG",IF(DE$1="INST-VAL",AVERAGE(CP12:CS12,CQ12:CT12),AVERAGE(CQ12:CT12)),SUM(CQ12:CT12)) -> 4241.716541 | DH12: =IF(DH$11="AVG",IF(DE$1="INST-VAL",AVERAGE(CS12:CV12,CT12:CW12),AVERAGE(CT12:CW12)),SUM(CT12:CW12)) -> 3938.966884 | DI12: =IF(DI$11="AVG",IF(DE$1="INST-VAL",AVERAGE(CV12:CW12,CL13,CW12,CL13:CM13),AVERAGE(CW12,CL13:CM13)),SUM(CW12,CL13:CM13)) -> 3345.627477 | DK12: 1922 | DL12: =F13 -> 2753.209232 | DM12: =F14 -> 2737.513064 | DN12: =F15 -> 2912.852221 | DO12: =F16 -> 3059.482836 | DP12: =F17 -> 3486.086573 | DQ12: =F18 -> 4006.69414 | DR12: =F19 -> 4552 | DS12: =F20 -> 4552 | DT12: =F21 -> 4318.89356 | DU12: =F22 -> 4017.883233 | DV12: =F23 -> 3700 | DW12: =F24 -> 3400 | DY12: =IF(DY$11="AVG",AVERAGE(DO12:DW12,DL13:DN13),SUM(DO12:DW12,DL13:DN13)) -> 3747.003362 | DZ12: =IF(DZ$11="AVG",AVERAGE(DQ12:DW12,DL13:DP13),SUM(DQ12:DW12,DL13:DP13)) -> 3806.583041 | EA12: =IF(EA$11="AVG",AVERAGE(DL12:DW12),SUM(DL12:DW12)) -> 3624.717905 | EC12: =IF(EC$11="AVG",IF(EE$1="INST-VAL",AVERAGE(DL12:DP12,DM12:DQ12),AVERAGE(DM12:DQ12)),SUM(DM12:DQ12)) -> 3115.177276 | ED12: =IF(ED$11="AVG",IF(EE$1="INST-VAL",AVERAGE(DU12:DW12,DV12:DW12,DL13),AVERAGE(DV12:DW12,DL13)),SUM(DV12:DW12,DL13)) -> 3577.980539 | EE12: =IF(EE$11="AVG",IF(EE$1="INST-VAL",AVERAGE(DW11,DL12:DN12,DL12:DO12),AVERAGE(DL12:DO12)),SUM(DL12:DO12)) -> 2838.090267 | EF12: =IF(EF$11="AVG",IF(EE$1="INST-VAL",AVERAGE(DM12:DO12,DN12:DP12),AVERAGE(DN12:DP12)),SUM(DN12:DP12)) -> 3028.044958 | EG12: =IF(EG$11="AVG",IF(EE$1="INST-VAL",AVERAGE(DP12:DS12,DQ12:DT12),AVERAGE(DQ12:DT12)),SUM(DQ12:DT12)) -> 4253.296052 | EH12: =IF(EH$11="AVG",IF(EE$1="INST-VAL",AVERAGE(DS12:DV12,DT12:DW12),AVERAGE(DT12:DW12)),SUM(DT12:DW12)) -> 4003.194198 | EI12: =IF(EI$11="AVG",IF(EE$1="INST-VAL",AVERAGE(DV12:DW12,DL13,DW12,DL13:DM13),AVERAGE(DW12,DL13:DM13)),SUM(DW12,DL13:DM13)) -> 3375.333333 | EK12: 1922 | EL12: =G13 -> 2753.209232 | EM12: =G14 -> 2737.513064 | EN12: =G15 -> 2912.852221 | EO12: =G16 -> 3059.482836 | EP12: =G17 -> 3486.086573 | EQ12: =G18 -> 4006.69414 | ER12: =G19 -> 4552 | ES12: =G20 -> 4552 | ET12: =G21 -> 4318.89356 | EU12: =G22 -> 4017.883234 | EV12: =G23 -> 3700 | EW12: =G24 -> 3400 | EY12: =IF(EY$11="AVG",AVERAGE(EO12:EW12,EL13:EN13),SUM(EO12:EW12,EL13:EN13)) -> 3747.003362 | EZ12: =IF(EZ$11="AVG",AVERAGE(EQ12:EW12,EL13:EP13),SUM(EQ12:EW12,EL13:EP13)) -> 3806.583043 | FA12: =IF(FA$11="AVG",AVERAGE(EL12:EW12),SUM(EL12:EW12)) -> 3624.717905 | FC12: =IF(FC$11="AVG",IF(FE$1="INST-VAL",AVERAGE(EL12:EP12,EM12:EQ12),AVERAGE(EM12:EQ12)),SUM(EM12:EQ12)) -> 3115.177276 | FD12: =IF(FD$11="AVG",IF(FE$1="INST-VAL",AVERAGE(EU12:EW12,EV12:EW12,EL13),AVERAGE(EV12:EW12,EL13)),SUM(EV12:EW12,EL13)) -> 3577.980539 | FE12: =IF(FE$11="AVG",IF(FE$1="INST-VAL",AVERAGE(EW11,EL12:EN12,EL12:EO12),AVERAGE(EL12:EO12)),SUM(EL12:EO12)) -> 2838.090267 | FF12: =IF(FF$11="AVG",IF(FE$1="INST-VAL",AVERAGE(EM12:EO12,EN12:EP12),AVERAGE(EN12:EP12)),SUM(EN12:EP12)) -> 3028.044958 | FG12: =IF(FG$11="AVG",IF(FE$1="INST-VAL",AVERAGE(EP12:ES12,EQ12:ET12),AVERAGE(EQ12:ET12)),SUM(EQ12:ET12)) -> 4253.296052 | FH12: =IF(FH$11="AVG",IF(FE$1="INST-VAL",AVERAGE(ES12:EV12,ET12:EW12),AVERAGE(ET12:EW12)),SUM(ET12:EW12)) -> 4003.194199 | FI12: =IF(FI$11="AVG",IF(FE$1="INST-VAL",AVERAGE(EV12:EW12,EL13,EW12,EL13:EM13),AVERAGE(EW12,EL13:EM13)),SUM(EW12,EL13:EM13)) -> 3375.333333
A13: 1921-10-31 | B13: =INDIRECT(CONCATENATE("'",B$1,"'!",B$4,(YEAR($A13)-1921)*12+MONTH($A13)+3+IF(ISNUMBER(FIND("PRV",B$6)),1,0)))*IF(AND(B$3>0,TRIM(B$9)="CFS"),Conv_Flags!$C13,1) -> 2739.663051 | C13: =INDIRECT(CONCATENATE("'",C$1,"'!",C$4,(YEAR($A13)-1921)*12+MONTH($A13)+3+IF(ISNUMBER(FIND("PRV",C$6)),1,0)))*IF(AND(C$3>0,TRIM(C$9)="CFS"),Conv_Flags!$C13,1) -> 2740.72521 | D13: =INDIRECT(CONCATENATE("'",D$1,"'!",D$4,(YEAR($A13)-1921)*12+MONTH($A13)+3+IF(ISNUMBER(FIND("PRV",D$6)),1,0)))*IF(AND(D$3>0,TRIM(D$9)="CFS"),Conv_Flags!$C13,1) -> 2753.209232 | E13: =INDIRECT(CONCATENATE("'",E$1,"'!",E$4,(YEAR($A13)-1921)*12+MONTH($A13)+3+IF(ISNUMBER(FIND("PRV",E$6)),1,0)))*IF(AND(E$3>0,TRIM(E$9)="CFS"),Conv_Flags!$C13,1) -> 2740.72521 | F13: =INDIRECT(CONCATENATE("'",F$1,"'!",F$4,(YEAR($A13)-1921)*12+MONTH($A13)+3+IF(ISNUMBER(FIND("PRV",F$6)),1,0)))*IF(AND(F$3>0,TRIM(F$9)="CFS"),Conv_Flags!$C13,1) -> 2753.209232 | G13: =INDIRECT(CONCATENATE("'",G$1,"'!",G$4,(YEAR($A13)-1921)*12+MONTH($A13)+3+IF(ISNUMBER(FIND("PRV",G$6)),1,0)))*IF(AND(G$3>0,TRIM(G$9)="CFS"),Conv_Flags!$C13,1) -> 2753.209232 | K13: 1923 | L13: =B25 -> 3250 | M13: =B26 -> 3252 | N13: =B27 -> 3369 | O13: =B28 -> 3589.959766 | P13: =B29 -> 3633.061339 | Q13: =B30 -> 3769.078447 | R13: =B31 -> 4229.79085 | S13: =B32 -> 3964.600475 | T13: =B33 -> 3642.950162 | U13: =B34 -> 3264.73171 | V13: =B35 -> 2946.763879 | W13: =B36 -> 2918.581988 | Y13: 3353.296033 | Z13: 3230.751164 | AA13: 3485.876551 | AC13: =IF(AC$11="AVG",IF(AE$1="INST-VAL",AVERAGE(L13:P13,M13:Q13),AVERAGE(M13:Q13)),SUM(M13:Q13)) -> 3470.712066 | AD13: =IF(AD$11="AVG",IF(AE$1="INST-VAL",AVERAGE(U13:W13,V13:W13,L14),AVERAGE(V13:W13,L14)),SUM(V13:W13,L14)) -> 2975.818399 | AE13: =IF(AE$11="AVG",IF(AE$1="INST-VAL",AVERAGE(W12,L13:N13,L13:O13),AVERAGE(L13:O13)),SUM(L13:O13)) -> 3335.681261 | AF13: 3467.163478 | AG13: 3900.368881 | AH13: 3324.009246 | AI13: 2874.327411 | AK13: 1923 | AL13: =C25 -> 3250 | AM13: =C26 -> 3252 | AN13: =C27 -> 3369 | AO13: =C28 -> 3589.959766 | AP13: =C29 -> 3634.045275 | AQ13: =C30 -> 3770.060972 | AR13: =C31 -> 4239.576444 | AS13: =C32 -> 3984.967735 | AT13: =C33 -> 3668.989847 | AU13: =C34 -> 3295.257719 | AV13: =C35 -> 2987.588649 | AW13: =C36 -> 2951.114378 | AY13: 3372.692031 | AZ13: 3254.023319 | BA13: 3499.380065 | BC13: =IF(BC$11="AVG",IF(BE$1="INST-VAL",AVERAGE(AL13:AP13,AM13:AQ13),AVERAGE(AM13:AQ13)),SUM(AM13:AQ13)) -> 3471.007105 | BD13: =IF(BD$11="AVG",IF(BE$1="INST-VAL",AVERAGE(AU13:AW13,AV13:AW13,AL14),AVERAGE(AV13:AW13,AL14)),SUM(AV13:AW13,AL14)) -> 3009.15545 | BE13: 3339.224293 | BF13: 3467.327468 | BG13: 3911.530678 | BH13: 3354.969318 | BI13: 2903.594943 | BK13: 1923 | BL13: =D25 -> 3250 | BM13: =D26 -> 3252 | BN13: =D27 -> 3369 | BO13: =D28 -> 3589.959766 | BP13: =D29 -> 3640.490063 | BQ13: =D30 -> 3776.496516 | BR13: =D31 -> 4246.003274 | BS13: =D32 -> 3991.377675 | BT13: =D33 -> 3675.367982 | BU13: =D34 -> 3298.201907 | BV13: =D35 -> 2989.326513 | BW13: =D36 -> 2954.070677 | BY13: 3375.910215 | BZ13: 3257.217419 | CA13: 3502.691198 | CC13: =IF(CC$11="AVG",IF(CE$1="INST-VAL",AVERAGE(BL13:BP13,BM13:BQ13),AVERAGE(BM13:BQ13)),SUM(BM13:BQ13)) -> 3472.939617 | CD13: =IF(CD$11="AVG",IF(CE$1="INST-VAL",AVERAGE(BU13:BW13,BV13:BW13,BL14),AVERAGE(BV13:BW13,BL14)),SUM(BV13:BW13,BL14)) -> 3010.765367 | CE13: 3341.494971 | CF13: 3468.401599 | CG13: 3917.951622 | CH13: 3358.905144 | CI13: 2903.725051 | CK13: 1923 | CL13: =E25 -> 3250 | CM13: =E26 -> 3252 | CN13: =E27 -> 3369 | CO13: =E28 -> 3589.959766 | CP13: =E29 -> 3634.045275 | CQ13: =E30 -> 3770.060972 | CR13: =E31 -> 4239.576444 | CS13: =E32 -> 3984.967735 | CT13: =E33 -> 3668.989847 | CU13: =E34 -> 3295.257719 | CV13: =E35 -> 2987.588649 | CW13: =E36 -> 2951.114378 | CY13: 3372.692031 | CZ13: 3254.023319 | DA13: 3499.380065 | DC13: 3471.007105 | DD13: 3009.15545 | DE13: 3339.224293 | DF13: 3467.327468 | DG13: 3911.530678 | DH13: 3354.969318 | DI13: 2903.594943 | DK13: 1923 | DL13: =F25 -> 3250 | DM13: =F26 -> 3252 | DN13: =F27 -> 3369 | DO13: =F28 -> 3589.959766 | DP13: =F29 -> 3670.565795 | DQ13: =F30 -> 3806.529092 | DR13: =F31 -> 4275.995115 | DS13: =F32 -> 4021.017572 | DT13: =F33 -> 3799.825325 | DU13: =F34 -> 3380.429278 | DV13: =F35 -> 3073.209668 | DW13: =F36 -> 3024.124448 | DY13: 3436.603518 | DZ13: 3327.632952 | EA13: 3542.721338 | EC13: 3481.958021 | ED13: 3090.659438 | EE13: 3341.494971 | EF13: 3473.414221 | EG13: 3959.684335 | EH13: 3444.00882 | EI13: 2985.017793 | EK13: 1923 | EL13: =G25 -> 3250 | EM13: =G26 -> 3252 | EN13: =G27 -> 3369 | EO13: =G28 -> 3589.959766 | EP13: =G29 -> 3670.565813 | EQ13: =G30 -> 3806.52911 | ER13: =G31 -> 4275.995133 | ES13: =G32 -> 4021.017638 | ET13: =G33 -> 3794.012156 | EU13: =G34 -> 3374.589163 | EV13: =G35 -> 3067.407778 | EW13: =G36 -> 3019.606336 | EY13: 3433.713405 | EZ13: 3324.076544 | FA13: 3540.890241 | FC13: 3481.958027 | FD13: 3085.501192 | FE13: 3341.494971 | FF13: 3473.414224 | FG13: 3958.957716 | FH13: 3439.080271 | FI13: 2980.348909
A14: 1921-11-30 | B14: =INDIRECT(CONCATENATE("'",B$1,"'!",B$4,(YEAR($A14)-1921)*12+MONTH($A14)+3+IF(ISNUMBER(FIND("PRV",B$6)),1,0)))*IF(AND(B$3>0,TRIM(B$9)="CFS"),Conv_Flags!$C14,1) -> 2699.42931 | C14: =INDIRECT(CONCATENATE("'",C$1,"'!",C$4,(YEAR($A14)-1921)*12+MONTH($A14)+3+IF(ISNUMBER(FIND("PRV",C$6)),1,0)))*IF(AND(C$3>0,TRIM(C$9)="CFS"),Conv_Flags!$C14,1) -> 2706.763164 | D14: =INDIRECT(CONCATENATE("'",D$1,"'!",D$4,(YEAR($A14)-1921)*12+MONTH($A14)+3+IF(ISNUMBER(FIND("PRV",D$6)),1,0)))*IF(AND(D$3>0,TRIM(D$9)="CFS"),Conv_Flags!$C14,1) -> 2737.513064 | E14: =INDIRECT(CONCATENATE("'",E$1,"'!",E$4,(YEAR($A14)-1921)*12+MONTH($A14)+3+IF(ISNUMBER(FIND("PRV",E$6)),1,0)))*IF(AND(E$3>0,TRIM(E$9)="CFS"),Conv_Flags!$C14,1) -> 2706.763164 | F14: =INDIRECT(CONCATENATE("'",F$1,"'!",F$4,(YEAR($A14)-1921)*12+MONTH($A14)+3+IF(ISNUMBER(FIND("PRV",F$6)),1,0)))*IF(AND(F$3>0,TRIM(F$9)="CFS"),Conv_Flags!$C14,1) -> 2737.513064 | G14: =INDIRECT(CONCATENATE("'",G$1,"'!",G$4,(YEAR($A14)-1921)*12+MONTH($A14)+3+IF(ISNUMBER(FIND("PRV",G$6)),1,0)))*IF(AND(G$3>0,TRIM(G$9)="CFS"),Conv_Flags!$C14,1) -> 2737.513064 | K14: 1924 | L14: =B37 -> 2859.486952 | M14: =B38 -> 2743.06271 | N14: =B39 -> 2677.484118 | O14: =B40 -> 2771.837045 | P14: =B41 -> 2980.645633 | Q14: =B42 -> 2853.496776 | R14: =B43 -> 2757.091955 | S14: =B44 -> 2408.197813 | T14: =B45 -> 2036.059248 | U14: =B46 -> 1693.912774 | V14: =B47 -> 1424.342838 | W14: =B48 -> 1350.069812 | Y14: 2060.957465 | Z14: 1991.569022 | AA14: 2379.64064 | AC14: =IF(AC$11="AVG",IF(AE$1="INST-VAL",AVERAGE(L14:P14,M14:Q14),AVERAGE(M14:Q14)),SUM(M14:Q14)) -> 2805.904274 | AD14: =IF(AD$11="AVG",IF(AE$1="INST-VAL",AVERAGE(U14:W14,V14:W14,L15),AVERAGE(V14:W14,L15)),SUM(V14:W14,L15)) -> 1431.020916 | AE14: =IF(AE$11="AVG",IF(AE$1="INST-VAL",AVERAGE(W13,L14:N14,L14:O14),AVERAGE(L14:O14)),SUM(L14:O14)) -> 2781.310824 | AF14: 2770.391778 | AG14: 2631.784746 | AH14: 1758.362168 | AI14: 1385.17369 | AK14: 1924 | AL14: =C37 -> 2882.268925 | AM14: =C38 -> 2767.214404 | AN14: =C39 -> 2701.260261 | AO14: =C40 -> 2795.598058 | AP14: =C41 -> 3004.382434 | AQ14: =C42 -> 2879.617374 | AR14: =C43 -> 2785.313567 | AS14: =C44 -> 2435.377474 | AT14: =C45 -> 2063.025683 | AU14: =C46 -> 1719.997513 | AV14: =C47 -> 1458.358438 | AW14: =C48 -> 1387.570543 | AY14: 2092.714411 | AZ14: 2024.708084 | BA14: 2406.66539 | BC14: =IF(BC$11="AVG",IF(BE$1="INST-VAL",AVERAGE(AL14:AP14,AM14:AQ14),AVERAGE(AM14:AQ14)),SUM(AM14:AQ14)) -> 2829.879661 | BD14: 1469.485865 | BE14: 2806.024952 | BF14: 2794.218913 | BG14: 2658.503119 | BH14: 1788.213911 | BI14: 1429.524372 | BK14: 1924 | BL14: =D37 -> 2879.595914 | BM14: =D38 -> 2765.690609 | BN14: =D39 -> 2704.341684 | BO14: =D40 -> 2798.67752 | BP14: =D41 -> 3007.458759 | BQ14: =D42 -> 2881.915543 | BR14: =D43 -> 2787.567365 | BS14: =D44 -> 2437.614183 | BT14: =D45 -> 2065.25094 | BU14: =D46 -> 1722.263035 | BV14: =D47 -> 1457.045654 | BW14: =D48 -> 1385.799051 | BY14: 2093.269104 | BZ14: 2024.530792 | CA14: 2407.768355 | CC14: =IF(CC$11="AVG",IF(CE$1="INST-VAL",AVERAGE(BL14:BP14,BM14:BQ14),AVERAGE(BM14:BQ14)),SUM(BM14:BQ14)) -> 2831.38486 | CD14: 1468.019879 | CE14: 2806.500576 | CF14: 2796.531296 | CG14: 2660.862985 | CH14: 1789.066561 | CI14: 1426.83643 | CK14: 1924 | CL14: =E37 -> 2882.268925 | CM14: =E38 -> 2767.214404 | CN14: =E39 -> 2701.260261 | CO14: =E40 -> 2795.598058 | CP14: =E41 -> 3004.382434 | CQ14: =E42 -> 2879.617374 | CR14: =E43 -> 2785.313567 | CS14: =E44 -> 2435.377474 | CT14: =E45 -> 2063.025683 | CU14: =E46 -> 1718.670038 | CV14: =E47 -> 1458.993183 | CW14: =E48 -> 1397.944504 | CY14: 2096.539826 | CZ14: 2030.027873 | DA14: 2407.472159 | DC14: 2829.879661 | DD14: 1475.670007 | DE14: 2806.024952 | DF14: 2794.218913 | DG14: 2658.503118 | DH14: 1789.337473 | DI14: 1440.365029 | DK14: 1924 | DL14: =F37 -> 2968.859115 | DM14: =F38 -> 2850.929964 | DN14: =F39 -> 2777.797078 | DO14: =F40 -> 2872.086166 | DP14: =F41 -> 3080.792604 | DQ14: =F42 -> 2956.403635 | DR14: =F43 -> 2859.637265 | DS14: =F44 -> 2510.674177 | DT14: =F45 -> 2137.536959 | DU14: =F46 -> 1794.119157 | DV14: =F47 -> 1530.837453 | DW14: =F48 -> 1455.263356 | DY14: 2166.561168 | DZ14: 2098.35561 | EA14: 2482.911411 | EC14: 2908.847437 | ED14: 1540.055091 | EE14: 2886.422866 | EF14: 2871.914842 | EG14: 2733.969965 | EH14: 1861.365584 | EI14: 1499.444424 | EK14: 1924 | EL14: =G37 -> 2964.38976 | EM14: =G38 -> 2846.693483 | EN14: =G39 -> 2773.794729 | EO14: =G40 -> 2868.086365 | EP14: =G41 -> 3076.796878 | EQ14: =G42 -> 2952.833595 | ER14: =G43 -> 2856.106622 | ES14: =G44 -> 2505.116249 | ET14: =G45 -> 2131.984489 | EU14: =G46 -> 1788.820682 | EV14: =G47 -> 1525.450839 | EW14: =G48 -> 1449.845629 | EY14: 2161.702118 | EZ14: 2093.25977 | FA14: 2478.32661 | FC14: 2904.796626 | FD14: 1534.712959 | FE14: 2882.18108 | FF14: 2867.875425 | FG14: 2729.611787 | FH14: 1855.934237 | FI14: 1494.120777
A15: 1921-12-31 | B15: =INDIRECT(CONCATENATE("'",B$1,"'!",B$4,(YEAR($A15)-1921)*12+MONTH($A15)+3+IF(ISNUMBER(FIND("PRV",B$6)),1,0)))*IF(AND(B$3>0,TRIM(B$9)="CFS"),Conv_Flags!$C15,1) -> 2874.796432 | C15: =INDIRECT(CONCATENATE("'",C$1,"'!",C$4,(YEAR($A15)-1921)*12+MONTH($A15)+3+IF(ISNUMBER(FIND("PRV",C$6)),1,0)))*IF(AND(C$3>0,TRIM(C$9)="CFS"),Conv_Flags!$C15,1) -> 2882.124901 | D15: =INDIRECT(CONCATENATE("'",D$1,"'!",D$4,(YEAR($A15)-1921)*12+MONTH($A15)+3+IF(ISNUMBER(FIND("PRV",D$6)),1,0)))*IF(AND(D$3>0,TRIM(D$9)="CFS"),Conv_Flags!$C15,1) -> 2912.852221 | E15: =INDIRECT(CONCATENATE("'",E$1,"'!",E$4,(YEAR($A15)-1921)*12+MONTH($A15)+3+IF(ISNUMBER(FIND("PRV",E$6)),1,0)))*IF(AND(E$3>0,TRIM(E$9)="CFS"),Conv_Flags!$C15,1) -> 2882.124901 | F15: =INDIRECT(CONCATENATE("'",F$1,"'!",F$4,(YEAR($A15)-1921)*12+MONTH($A15)+3+IF(ISNUMBER(FIND("PRV",F$6)),1,0)))*IF(AND(F$3>0,TRIM(F$9)="CFS"),Conv_Flags!$C15,1) -> 2912.852221 | G15: =INDIRECT(CONCATENATE("'",G$1,"'!",G$4,(YEAR($A15)-1921)*12+MONTH($A15)+3+IF(ISNUMBER(FIND("PRV",G$6)),1,0)))*IF(AND(G$3>0,TRIM(G$9)="CFS"),Conv_Flags!$C15,1) -> 2912.852221 | K15: 1925 | L15: =B49 -> 1343.38742 | M15: =B50 -> 1499.784842 | N15: =B51 -> 1612.663428 | O15: =B52 -> 1852.177913 | P15: =B53 -> 3067.643448 | Q15: =B54 -> 3441.873918 | R15: =B55 -> 4144.70203 | S15: =B56 -> 4286.178038 | T15: =B57 -> 4072.235571 | U15: =B58 -> 3542.212452 | V15: =B59 -> 3193.757345 | W15: =B60 -> 3067.864588 | Y15: 3287.88845 | Z15: 3432.824768 | AA15: 2927.040083 | AC15: =IF(AC$11="AVG",IF(AE$1="INST-VAL",AVERAGE(L15:P15,M15:Q15),AVERAGE(M15:Q15)),SUM(M15:Q15)) -> 2084.98006 | AD15: 3171.143291 | AE15: 1514.239888 | AF15: 1916.185162 | AG15: 3860.673374 | AH15: 3621.306671 | AI15: 3025.686415 | AK15: 1925 | AL15: =C49 -> 1405.059711 | AM15: =C50 -> 1533.527285 | AN15: =C51 -> 1644.74485 | AO15: =C52 -> 1884.235439 | AP15: =C53 -> 3099.669126 | AQ15: =C54 -> 3473.855144 | AR15: =C55 -> 4176.617403 | AS15: =C56 -> 4345.611567 | AT15: =C57 -> 4149.394161 | AU15: =C58 -> 3599.421154 | AV15: =C59 -> 3238.01843 | AW15: =C60 -> 3112.928703 | AY15: 3333.502491 | AZ15: 3479.736322 | BA15: 2971.923581 | BC15: =IF(BC$11="AVG",IF(BE$1="INST-VAL",AVERAGE(AL15:AP15,AM15:AQ15),AVERAGE(AM15:AQ15)),SUM(AM15:AQ15)) -> 2120.326825 | BD15: =IF(BD$11="AVG",IF(BE$1="INST-VAL",AVERAGE(AU15:AW15,AV15:AW15,AL16),AVERAGE(AV15:AW15,AL16)),SUM(AV15:AW15,AL16)) -> 3218.417587 | BE15: 1554.808709 | BF15: 1948.526165 | BG15: 3905.153939 | BH15: 3679.02597 | BI15: 3072.114454 | BK15: 1925 | BL15: =D49 -> 1400.166829 | BM15: =D50 -> 1532.04117 | BN15: =D51 -> 1643.4292 | BO15: =D52 -> 1882.920771 | BP15: =D53 -> 3098.355763 | BQ15: =D54 -> 3472.543604 | BR15: =D55 -> 4175.308564 | BS15: =D56 -> 4344.307713 | BT15: =D57 -> 4159.820803 | BU15: =D58 -> 3604.667214 | BV15: =D59 -> 3244.997458 | BW15: =D60 -> 3120.215218 | BY15: 3337.259334 | BZ15: 3484.889579 | CA15: 2973.231192 | CC15: 2118.620424 | CD15: 3225.440916 | CE15: 1552.499277 | CF15: 1947.182813 | CG15: 3905.312041 | CH15: 3685.436735 | CI15: 3079.537588 | CK15: 1925 | CL15: =E49 -> 1421.474632 | CM15: =E50 -> 1544.358718 | CN15: =E51 -> 1653.722245 | CO15: =E52 -> 1893.20614 | CP15: =E53 -> 3108.630914 | CQ15: =E54 -> 3482.804493 | CR15: =E55 -> 4185.548325 | CS15: =E56 -> 4354.492177 | CT15: =E57 -> 4158.211814 | CU15: =E58 -> 3605.87927 | CV15: =E59 -> 3244.679675 | CW15: =E60 -> 3122.482185 | CY15: 3341.649688 | CZ15: 3487.7705 | DA15: 2981.290882 | DC15: 2130.411516 | DD15: 3226.189982 | DE15: 1566.282729 | DF15: 1957.807734 | DG15: 3914.06659 | DH15: 3686.814485 | DI15: 3079.9145 | DK15: 1925 | DL15: =F49 -> 1474.009771 | DM15: =F50 -> 1607.282836 | DN15: =F51 -> 1720.090634 | DO15: =F52 -> 1959.526598 | DP15: =F53 -> 3174.885485 | DQ15: =F54 -> 3548.967101 | DR15: =F55 -> 4251.580083 | DS15: =F56 -> 4420.414099 | DT15: =F57 -> 4230.633668 | DU15: =F58 -> 3680.358733 | DV15: =F59 -> 3330.990194 | DW15: =F60 -> 3203.186587 | DY15: 3397.720068 | DZ15: 3535.602687 | EA15: 3050.160482 | EC15: 2194.654798 | ED15: 3296.159364 | EE15: 1627.194554 | EF15: 2023.567131 | EG15: 3980.930215 | EH15: 3763.445734 | EI15: 3124.97891 | EK15: 1925 | EL15: =G49 -> 1468.864139 | EM15: =G50 -> 1601.854288 | EN15: =G51 -> 1714.665638 | EO15: =G52 -> 1954.105397 | EP15: =G53 -> 3169.46967 | EQ15: =G54 -> 3543.558803 | ER15: =G55 -> 4246.180647 | ES15: =G56 -> 4415.014615 | ET15: =G57 -> 4245.197808 | EU15: =G58 -> 3694.546772 | EV15: =G59 -> 3344.922132 | EW15: =G60 -> 3221.871627 | EY15: 3411.350251 | EZ15: 3556.617235 | FA15: 3051.687628 | FC15: 2189.261293 | FD15: 3316.810534 | FE15: 1621.839894 | FF15: 2018.144338 | FG15: 3978.021951 | FH15: 3775.777458 | FI15: 3155.994568
A16: 1922-01-31 | B16: =INDIRECT(CONCATENATE("'",B$1,"'!",B$4,(YEAR($A16)-1921)*12+MONTH($A16)+3+IF(ISNUMBER(FIND("PRV",B$6)),1,0)))*IF(AND(B$3>0,TRIM(B$9)="CFS"),Conv_Flags!$C16,1) -> 3021.45025 | C16: =INDIRECT(CONCATENATE("'",C$1,"'!",C$4,(YEAR($A16)-1921)*12+MONTH($A16)+3+IF(ISNUMBER(FIND("PRV",C$6)),1,0)))*IF(AND(C$3>0,TRIM(C$9)="CFS"),Conv_Flags!$C16,1) -> 3028.774251 | D16: =INDIRECT(CONCATENATE("'",D$1,"'!",D$4,(YEAR($A16)-1921)*12+MONTH($A16)+3+IF(ISNUMBER(FIND("PRV",D$6)),1,0)))*IF(AND(D$3>0,TRIM(D$9)="CFS"),Conv_Flags!$C16,1) -> 3059.482836 | E16: =INDIRECT(CONCATENATE("'",E$1,"'!",E$4,(YEAR($A16)-1921)*12+MONTH($A16)+3+IF(ISNUMBER(FIND("PRV",E$6)),1,0)))*IF(AND(E$3>0,TRIM(E$9)="CFS"),Conv_Flags!$C16,1) -> 3028.774251 | F16: =INDIRECT(CONCATENATE("'",F$1,"'!",F$4,(YEAR($A16)-1921)*12+MONTH($A16)+3+IF(ISNUMBER(FIND("PRV",F$6)),1,0)))*IF(AND(F$3>0,TRIM(F$9)="CFS"),Conv_Flags!$C16,1) -> 3059.482836 | G16: =INDIRECT(CONCATENATE("'",G$1,"'!",G$4,(YEAR($A16)-1921)*12+MONTH($A16)+3+IF(ISNUMBER(FIND("PRV",G$6)),1,0)))*IF(AND(G$3>0,TRIM(G$9)="CFS"),Conv_Flags!$C16,1) -> 3059.482836 | K16: 1926 | L16: =B61 -> 2961.40343 | M16: =B62 -> 2901.825106 | N16: =B63 -> 2922.787565 | O16: =B64 -> 2958.819405 | P16: =B65 -> 3700.237766 | Q16: =B66 -> 3719.610331 | R16: =B67 -> 4008.364793 | S16: =B68 -> 3714.452745 | T16: =B69 -> 3391.650819 | U16: =B70 -> 3005.37459 | V16: =B71 -> 2779.603715 | W16: =B72 -> 2719.827887 | Y16: 3267.834892 | Z16: 3307.080128 | AA16: 3231.996513 | AC16: 3164.835345 | AD16: 2784.703489 | AE16: 2949.839524 | AF16: 3060.879469 | AG16: 3747.09304 | AH16: 3098.44236 | AI16: 2798.719882 | AK16: 1926 | AL16: =C61 -> 3009.190103 | AM16: =C62 -> 2950.43068 | AN16: =C63 -> 2962.657977 | AO16: =C64 -> 2998.66462 | AP16: =C65 -> 3740.045925 | AQ16: =C66 -> 3755.118092 | AR16: =C67 -> 4078.22461 | AS16: =C68 -> 3778.707533 | AT16: =C69 -> 3458.300633 | AU16: =C70 -> 3049.273729 | AV16: =C71 -> 2819.751314 | AW16: =C72 -> 2761.841581 | AY16: 3312.599032 | AZ16: 3345.206486 | BA16: 3280.1839 | BC16: 3206.79066 | BD16: 2827.344258 | BE16: 2994.518855 | BF16: 3102.186967 | BG16: 3802.805878 | BH16: 3149.400058 | BI16: 2843.216808 | BK16: 1926 | BL16: =D61 -> 3017.552929 | BM16: =D62 -> 2956.691777 | BN16: =D63 -> 2969.730195 | BO16: =D64 -> 3005.732368 | BP16: =D65 -> 3747.1071 | BQ16: =D66 -> 3776.831392 | BR16: =D67 -> 4100.682404 | BS16: =D68 -> 3795.713003 | BT16: =D69 -> 3433.321899 | BU16: =D70 -> 2936.335318 | BV16: =D71 -> 2677.539384 | BW16: =D72 -> 2614.01502 | BY16: 3242.757051 | BZ16: 3274.187095 | CA16: 3252.604399 | CC16: 3215.29072 | CD16: 2671.361886 | CE16: 3001.737173 | CF16: 3109.120667 | CG16: 3815.860324 | CH16: 3063.015153 | CI16: 2648.850555 | CK16: 1926 | CL16: =E61 -> 3016.9369 | CM16: =E62 -> 2955.969155 | CN16: =E63 -> 2970.955204 | CO16: =E64 -> 3006.956604 | CP16: =E65 -> 3748.330197 | CQ16: =E66 -> 3762.097991 | CR16: =E67 -> 4085.057545 | CS16: =E68 -> 3785.412413 | CT16: =E69 -> 3464.928394 | CU16: =E70 -> 3054.500862 | CV16: =E71 -> 2824.574709 | CW16: =E72 -> 2766.680706 | CY16: 3318.303345 | CZ16: 3349.529445 | DA16: 3286.866723 | DC16: 3214.345721 | DD16: 2832.256852 | DE16: 3002.145163 | DF16: 3110.020495 | DG16: 3809.799311 | DH16: 3155.012631 | DI16: 2848.094377 | DK16: 1926 | DL16: =F61 -> 3028.243886 | DM16: =F62 -> 2956.022317 | DN16: =F63 -> 2987.832066 | DO16: =F64 -> 3023.8228 | DP16: =F65 -> 3765.180707 | DQ16: =F66 -> 3815.812512 | DR16: =F67 -> 4140.822221 | DS16: =F68 -> 3834.229729 | DT16: =F69 -> 3474.61479 | DU16: =F70 -> 2962.432531 | DV16: =F71 -> 2704.624242 | DW16: =F72 -> 2642.681794 | DY16: 3279.898714 | DZ16: 3308.315088 | EA16: 3278.026633 | EC16: 3230.977218 | ED16: 2708.366884 | EE16: 3021.400741 | EF16: 3124.085459 | EG16: 3852.690553 | EH16: 3095.031831 | EI16: 2705.117962 | EK16: 1926 | EL16: =G61 -> 3072.728917 | EM16: =G62 -> 3001.844189 | EN16: =G63 -> 3026.76244 | EO16: =G64 -> 3062.728572 | EP16: =G65 -> 3804.050297 | EQ16: =G66 -> 3852.7681 | ER16: =G67 -> 4177.546533 | ES16: =G68 -> 3869.18291 | ET16: =G69 -> 3499.260193 | EU16: =G70 -> 2980.991968 | EV16: =G71 -> 2720.066269 | EW16: =G72 -> 2656.499786 | EY16: 3304.241683 | EZ16: 3326.176777 | FA16: 3310.369181 | FC16: 3271.626801 | FD16: 2723.985335 | FE16: 3060.908911 | FF16: 3164.146085 | FG16: 3887.788197 | FH16: 3115.789945 | FI16: 2720.609889
A17: 1922-02-28 | B17: =INDIRECT(CONCATENATE("'",B$1,"'!",B$4,(YEAR($A17)-1921)*12+MONTH($A17)+3+IF(ISNUMBER(FIND("PRV",B$6)),1,0)))*IF(AND(B$3>0,TRIM(B$9)="CFS"),Conv_Flags!$C17,1) -> 3448.078868 | C17: =INDIRECT(CONCATENATE("'",C$1,"'!",C$4,(YEAR($A17)-1921)*12+MONTH($A17)+3+IF(ISNUMBER(FIND("PRV",C$6)),1,0)))*IF(AND(C$3>0,TRIM(C$9)="CFS"),Conv_Flags!$C17,1) -> 3455.398077 | D17: =INDIRECT(CONCATENATE("'",D$1,"'!",D$4,(YEAR($A17)-1921)*12+MONTH($A17)+3+IF(ISNUMBER(FIND("PRV",D$6)),1,0)))*IF(AND(D$3>0,TRIM(D$9)="CFS"),Conv_Flags!$C17,1) -> 3486.086573 | E17: =INDIRECT(CONCATENATE("'",E$1,"'!",E$4,(YEAR($A17)-1921)*12+MONTH($A17)+3+IF(ISNUMBER(FIND("PRV",E$6)),1,0)))*IF(AND(E$3>0,TRIM(E$9)="CFS"),Conv_Flags!$C17,1) -> 3455.398077 | F17: =INDIRECT(CONCATENATE("'",F$1,"'!",F$4,(YEAR($A17)-1921)*12+MONTH($A17)+3+IF(ISNUMBER(FIND("PRV",F$6)),1,0)))*IF(AND(F$3>0,TRIM(F$9)="CFS"),Conv_Flags!$C17,1) -> 3486.086573 | G17: =INDIRECT(CONCATENATE("'",G$1,"'!",G$4,(YEAR($A17)-1921)*12+MONTH($A17)+3+IF(ISNUMBER(FIND("PRV",G$6)),1,0)))*IF(AND(G$3>0,TRIM(G$9)="CFS"),Conv_Flags!$C17,1) -> 3486.086573 | K17: 1927 | L17: =B73 -> 2703.983144 | M17: =B74 -> 3165.093514 | N17: =B75 -> 3347 | O17: =B76 -> 3668 | P17: =B77 -> 3462 | Q17: =B78 -> 4085.375156 | R17: =B79 -> 4552 | S17: =B80 -> 4552 | T17: =B81 -> 4346.501847 | U17: =B82 -> 3842.863245 | V17: =B83 -> 3463.109571 | W17: =B84 -> 3184.04974 | Y17: 3736.512304 | Z17: 3788.54325 | AA17: 3697.664685 | AC17: 3407.354533 | AD17: 3367.404993 | AE17: 3102.49765 | AF17: 3442.848919 | AG17: 4273.40652 | AH17: 3880.124883 | AI17: 3202.950873 | AK17: 1927 | AL17: =C73 -> 2751.606028 | AM17: =C74 -> 3212.654319 | AN17: =C75 -> 3347 | AO17: =C76 -> 3668 | AP17: =C77 -> 3462 | AQ17: =C78 -> 4085.375156 | AR17: =C79 -> 4552 | AS17: =C80 -> 4552 | AT17: =C81 -> 4356.865655 | AU17: =C82 -> 3847.390793 | AV17: =C83 -> 3467.304499 | AW17: =C84 -> 3190.288264 | AY17: 3739.130483 | AZ17: 3791.161429 | BA17: 3707.707059 | BC17: 3421.628982 | BD17: 3372.652958 | BE17: 3131.545284 | BF17: 3450.77572 | BG17: 4274.701996 | BH17: 3885.67627 | BI17: 3207.760647 | BK17: 1927 | BL17: =D73 -> 2508.727187 | BM17: =D74 -> 2970.079532 | BN17: =D75 -> 3347 | BO17: =D76 -> 3668 | BP17: =D77 -> 3462 | BQ17: =D78 -> 4085.375156 | BR17: =D79 -> 4552 | BS17: =D80 -> 4552 | BT17: =D81 -> 4356.732902 | BU17: =D82 -> 3847.257286 | BV17: =D83 -> 3467.137898 | BW17: =D84 -> 3190.01374 | BY17: 3739.048411 | BZ17: 3791.079357 | CA17: 3667.193642 | CC17: =IF(CC$11="AVG",IF(CE$1="INST-VAL",AVERAGE(BL17:BP17,BM17:BQ17),AVERAGE(BM17:BQ17)),SUM(BM17:BQ17)) -> 3348.826141 | CD17: =IF(CD$11="AVG",IF(CE$1="INST-VAL",AVERAGE(BU17:BW17,BV17:BW17,BL18),AVERAGE(BV17:BW17,BL18)),SUM(BV17:BW17,BL18)) -> 3372.437419 | CE17: 2991.703557 | CF17: 3410.346589 | CG17: 4274.685402 | CH17: 3885.533739 | CI17: 3207.54888 | CK17: 1927 | CL17: =E73 -> 2756.529422 | CM17: =E74 -> 3217.571295 | CN17: =E75 -> 3347 | CO17: =E76 -> 3668 | CP17: =E77 -> 3462 | CQ17: =E78 -> 4085.375156 | CR17: =E79 -> 4552 | CS17: =E80 -> 4552 | CT17: =E81 -> 4356.848031 | CU17: =E82 -> 3846.814499 | CV17: =E83 -> 3466.679285 | CW17: =E84 -> 3189.831747 | CY17: 3738.952746 | CZ17: 3790.983692 | DA17: 3708.387453 | DC17: 3423.104717 | DD17: 3372.120134 | DE17: 3134.610268 | DF17: 3451.595216 | DG17: 4274.699793 | DH17: 3885.314422 | DI17: 3207.351876 | DK17: 1927 | DL17: =F73 -> 2593.156703 | DM17: =F74 -> 3054.406534 | DN17: =F75 -> 3347 | DO17: =F76 -> 3668 | DP17: =F77 -> 3462 | DQ17: =F78 -> 4085.375156 | DR17: =F79 -> 4552 | DS17: =F80 -> 4552 | DT17: =F81 -> 4356.769726 | DU17: =F82 -> 3847.324343 | DV17: =F83 -> 3466.804384 | DW17: =F84 -> 3189.06591 | DY17: 3738.870437 | DZ17: 3790.901383 | EA17: 3681.158563 | EC17: 3374.134493 | ED17: 3371.861777 | EE17: 3037.476034 | EF17: 3424.401089 | EG17: 4274.690005 | EH17: 3885.357852 | EI17: 3206.857944 | EK17: 1927 | EL17: =G73 -> 2609.787928 | EM17: =G74 -> 3071.017638 | EN17: =G75 -> 3347 | EO17: =G76 -> 3668 | EP17: =G77 -> 3462 | EQ17: =G78 -> 4085.375156 | ER17: =G79 -> 4552 | ES17: =G80 -> 4552 | ET17: =G81 -> 4356.786756 | EU17: =G82 -> 3847.354135 | EV17: =G83 -> 3467.25237 | EW17: =G84 -> 3190.153281 | EY17: 3739.093945 | EZ17: 3791.124891 | FA17: 3684.060605 | FC17: 3379.119836 | FD17: 3372.561846 | FE17: 3047.513865 | FF17: 3427.169606 | FG17: 4274.692133 | FH17: 3885.617475 | FI17: 3207.661702
A18: 1922-03-31 | B18: =INDIRECT(CONCATENATE("'",B$1,"'!",B$4,(YEAR($A18)-1921)*12+MONTH($A18)+3+IF(ISNUMBER(FIND("PRV",B$6)),1,0)))*IF(AND(B$3>0,TRIM(B$9)="CFS"),Conv_Flags!$C18,1) -> 3968.731586 | C18: =INDIRECT(CONCATENATE("'",C$1,"'!",C$4,(YEAR($A18)-1921)*12+MONTH($A18)+3+IF(ISNUMBER(FIND("PRV",C$6)),1,0)))*IF(AND(C$3>0,TRIM(C$9)="CFS"),Conv_Flags!$C18,1) -> 3976.042101 | D18: =INDIRECT(CONCATENATE("'",D$1,"'!",D$4,(YEAR($A18)-1921)*12+MONTH($A18)+3+IF(ISNUMBER(FIND("PRV",D$6)),1,0)))*IF(AND(D$3>0,TRIM(D$9)="CFS"),Conv_Flags!$C18,1) -> 4006.69414 | E18: =INDIRECT(CONCATENATE("'",E$1,"'!",E$4,(YEAR($A18)-1921)*12+MONTH($A18)+3+IF(ISNUMBER(FIND("PRV",E$6)),1,0)))*IF(AND(E$3>0,TRIM(E$9)="CFS"),Conv_Flags!$C18,1) -> 3976.042101 | F18: =INDIRECT(CONCATENATE("'",F$1,"'!",F$4,(YEAR($A18)-1921)*12+MONTH($A18)+3+IF(ISNUMBER(FIND("PRV",F$6)),1,0)))*IF(AND(F$3>0,TRIM(F$9)="CFS"),Conv_Flags!$C18,1) -> 4006.69414 | G18: =INDIRECT(CONCATENATE("'",G$1,"'!",G$4,(YEAR($A18)-1921)*12+MONTH($A18)+3+IF(ISNUMBER(FIND("PRV",G$6)),1,0)))*IF(AND(G$3>0,TRIM(G$9)="CFS"),Conv_Flags!$C18,1) -> 4006.69414 | K18: 1928 | L18: =B85 -> 3067.248092 | M18: =B86 -> 3252 | N18: =B87 -> 3363 | O18: =B88 -> 3655.371351 | P18: =B89 -> 4099 | Q18: =B90 -> 3965 | R18: =B91 -> 4552 | S18: =B92 -> 4461.962636 | T18: =B93 -> 4003.978951 | U18: =B94 -> 3298.998982 | V18: =B95 -> 2837.249946 | W18: =B96 -> 2573.693903 | Y18: 3364.24235 | Z18: 3164.679739 | AA18: 3594.125322 | AC18: 3577.099079 | AD18: 2744.938116 | AE18: 3275.489659 | AF18: 3564.623784 | AG18: 4257.613028 | AH18: 3414.514037 | AI18: 2489.153479 | AK18: 1928 | AL18: =C85 -> 3073.341428 | AM18: =C86 -> 3252 | AN18: =C87 -> 3363 | AO18: =C88 -> 3655.371351 | AP18: =C89 -> 4099 | AQ18: =C90 -> 3965 | AR18: =C91 -> 4552 | AS18: =C92 -> 4477.528706 | AT18: =C93 -> 4018.447632 | AU18: =C94 -> 3313.410099 | AV18: =C95 -> 2851.661683 | AW18: =C96 -> 2590.73183 | AY18: 3374.943492 | AZ18: 3178.381534 | BA18: 3600.957727 | BC18: 3577.708413 | BD18: 2760.662945 | BE18: 3277.792809 | BF18: 3564.623784 | BG18: 4263.31313 | BH18: 3429.41242 | BI18: 2505.823829 | BK18: 1928 | BL18: =D85 -> 3073.06395 | BM18: =D86 -> 3252 | BN18: =D87 -> 3363 | BO18: =D88 -> 3655.371351 | BP18: =D89 -> 4099 | BQ18: =D90 -> 3965 | BR18: =D91 -> 4552 | BS18: =D92 -> 4477.54442 | BT18: =D93 -> 4063.891166 | BU18: =D94 -> 3358.672837 | BV18: =D95 -> 2898.68175 | BW18: =D96 -> 2622.633482 | BY18: 3400.771357 | BZ18: 3211.997043 | CA18: 3615.07158 | CC18: 3577.680665 | CD18: 2802.313422 | CE18: 3277.689124 | CF18: 3564.623784 | CG18: 4268.997501 | CH18: 3467.833676 | CI18: 2547.680062 | CK18: 1928 | CL18: =E85 -> 3072.884239 | CM18: =E86 -> 3252 | CN18: =E87 -> 3363 | CO18: =E88 -> 3655.371351 | CP18: =E89 -> 4099 | CQ18: =E90 -> 3965 | CR18: =E91 -> 4552 | CS18: =E92 -> 4477.508901 | CT18: =E93 -> 4018.985816 | CU18: =E94 -> 3313.946141 | CV18: =E95 -> 2852.186589 | CW18: =E96 -> 2590.041586 | CY18: 3374.848121 | CZ18: 3178.170292 | DA18: 3600.993719 | DC18: =IF(DC$11="AVG",IF(DE$1="INST-VAL",AVERAGE(CL18:CP18,CM18:CQ18),AVERAGE(CM18:CQ18)),SUM(CM18:CQ18)) -> 3577.662694 | DD18: =IF(DD$11="AVG",IF(DE$1="INST-VAL",AVERAGE(CU18:CW18,CV18:CW18,CL19),AVERAGE(CV18:CW18,CL19)),SUM(CV18:CW18,CL19)) -> 2760.584523 | DE18: 3277.621447 | DF18: 3564.623784 | DG18: 4263.375452 | DH18: 3429.723447 | DI18: 2505.345648 | DK18: 1928 | DL18: =F85 -> 3072.105729 | DM18: =F86 -> 3252 | DN18: =F87 -> 3363 | DO18: =F88 -> 3655.371351 | DP18: =F89 -> 4099 | DQ18: =F90 -> 3965 | DR18: =F91 -> 4552 | DS18: =F92 -> 4477.54014 | DT18: =F93 -> 4089.112308 | DU18: =F94 -> 3383.793637 | DV18: =F95 -> 2994.932161 | DW18: =F96 -> 2689.558144 | DY18: 3445.163688 | DZ18: 3274.098691 | EA18: 3632.784456 | EC18: =IF(EC$11="AVG",IF(EE$1="INST-VAL",AVERAGE(DL18:DP18,DM18:DQ18),AVERAGE(DM18:DQ18)),SUM(DM18:DQ18)) -> 3577.584843 | ED18: =IF(ED$11="AVG",IF(EE$1="INST-VAL",AVERAGE(DU18:DW18,DV18:DW18,DL19),AVERAGE(DV18:DW18,DL19)),SUM(DV18:DW18,DL19)) -> 2878.666729 | EE18: 3277.33109 | EF18: 3564.623784 | EG18: 4272.149073 | EH18: 3512.846812 | EI18: 2639.277043 | EK18: 1928 | EL18: =G85 -> 3073.205641 | EM18: =G86 -> 3252 | EN18: =G87 -> 3363 | EO18: =G88 -> 3655.371351 | EP18: =G89 -> 4099 | EQ18: =G90 -> 3965 | ER18: =G91 -> 4552 | ES18: =G92 -> 4477.541763 | ET18: =G93 -> 4089.109364 | EU18: =G94 -> 3383.790704 | EV18: =G95 -> 2997.319422 | EW18: =G96 -> 2693.05719 | EY18: 3446.523236 | EZ18: 3276.038362 | FA18: 3633.366286 | FC18: =IF(FC$11="AVG",IF(FE$1="INST-VAL",AVERAGE(EL18:EP18,EM18:EQ18),AVERAGE(EM18:EQ18)),SUM(EM18:EQ18)) -> 3577.694834 | FD18: 2881.211094 | FE18: 3277.741989 | FF18: 3564.623784 | FG18: 4272.149111 | FH18: 3513.879742 | FI18: 2642.582072
A19: 1922-04-30 | B19: =INDIRECT(CONCATENATE("'",B$1,"'!",B$4,(YEAR($A19)-1921)*12+MONTH($A19)+3+IF(ISNUMBER(FIND("PRV",B$6)),1,0)))*IF(AND(B$3>0,TRIM(B$9)="CFS"),Conv_Flags!$C19,1) -> 4552 | C19: =INDIRECT(CONCATENATE("'",C$1,"'!",C$4,(YEAR($A19)-1921)*12+MONTH($A19)+3+IF(ISNUMBER(FIND("PRV",C$6)),1,0)))*IF(AND(C$3>0,TRIM(C$9)="CFS"),Conv_Flags!$C19,1) -> 4552 | D19: =INDIRECT(CONCATENATE("'",D$1,"'!",D$4,(YEAR($A19)-1921)*12+MONTH($A19)+3+IF(ISNUMBER(FIND("PRV",D$6)),1,0)))*IF(AND(D$3>0,TRIM(D$9)="CFS"),Conv_Flags!$C19,1) -> 4552 | E19: =INDIRECT(CONCATENATE("'",E$1,"'!",E$4,(YEAR($A19)-1921)*12+MONTH($A19)+3+IF(ISNUMBER(FIND("PRV",E$6)),1,0)))*IF(AND(E$3>0,TRIM(E$9)="CFS"),Conv_Flags!$C19,1) -> 4552 | F19: =INDIRECT(CONCATENATE("'",F$1,"'!",F$4,(YEAR($A19)-1921)*12+MONTH($A19)+3+IF(ISNUMBER(FIND("PRV",F$6)),1,0)))*IF(AND(F$3>0,TRIM(F$9)="CFS"),Conv_Flags!$C19,1) -> 4552 | G19: =INDIRECT(CONCATENATE("'",G$1,"'!",G$4,(YEAR($A19)-1921)*12+MONTH($A19)+3+IF(ISNUMBER(FIND("PRV",G$6)),1,0)))*IF(AND(G$3>0,TRIM(G$9)="CFS"),Conv_Flags!$C19,1) -> 4552 | K19: 1929 | L19: =B97 -> 2348.742017 | M19: =B98 -> 2252.799085 | N19: =B99 -> 2322.111331 | O19: =B100 -> 2586.413922 | P19: =B101 -> 2773.2061 | Q19: =B102 -> 2918.664896 | R19: =B103 -> 3061.378344 | S19: =B104 -> 2765.945964 | T19: =B105 -> 2560.955493 | U19: =B106 -> 2310.767505 | V19: =B107 -> 2078.512335 | W19: =B108 -> 2020.162497 | Y19: 2409.447239 | Z19: 2405.730091 | AA19: 2499.971624 | AC19: 2513.646779 | AD19: 2061.885884 | AE19: 2375.926586 | AF19: 2473.842615 | AG19: 2853.2675 | AH19: 2335.822391 | AI19: 1927.03901 | AK19: 1929 | AL19: =C97 -> 2365.780547 | AM19: =C98 -> 2270.256536 | AN19: =C99 -> 2340.133519 | AO19: =C100 -> 2604.424023 | AP19: =C101 -> 2791.203831 | AQ19: =C102 -> 2927.56891 | AR19: =C103 -> 3069.5815 | AS19: =C104 -> 2890.920814 | AT19: =C105 -> 2684.228382 | AU19: =C106 -> 2435.508483 | AV19: =C107 -> 2162.063767 | AW19: =C108 -> 2076.07928 | AY19: 2469.498659 | AZ19: 2470.875473 | BA19: 2551.479133 | BC19: 2530.538527 | BD19: 2138.791378 | BE19: 2393.437132 | BF19: 2491.762575 | BG19: 2906.446833 | BH19: 2441.32517 | BI19: 1986.965639 | BK19: 1929 | BL19: =D97 -> 2412.577229 | BM19: =D98 -> 2316.9772 | BN19: =D99 -> 2386.906845 | BO19: =D100 -> 2651.16599 | BP19: =D101 -> 2837.91359 | BQ19: =D102 -> 2960.094004 | BR19: =D103 -> 3100.978249 | BS19: =D104 -> 2922.224043 | BT19: =D105 -> 2714.336525 | BU19: =D106 -> 2466.489025 | BV19: =D107 -> 2192.822458 | BW19: =D108 -> 2106.591804 | BY19: 2502.517839 | BZ19: 2500.935438 | CA19: 2589.089747 | CC19: 2575.859849 | CD19: 2168.905259 | CE19: 2438.340253 | CF19: 2538.506077 | CG19: 2939.855338 | CH19: 2472.013983 | CI19: 2016.154489 | CK19: 1929 | CL19: =E97 -> 2365.104646 | CM19: =E98 -> 2269.594837 | CN19: =E99 -> 2339.437589 | CO19: =E100 -> 2603.728559 | CP19: =E101 -> 2790.508844 | CQ19: =E102 -> 2926.951095 | CR19: =E103 -> 3068.968241 | CS19: =E104 -> 2890.302694 | CT19: =E105 -> 2683.621001 | CU19: =E106 -> 2435.046901 | CV19: =E107 -> 2161.89356 | CW19: =E108 -> 2075.930209 | CY19: 2470.146008 | CZ19: 2472.344337 | DA19: 2550.924015 | DC19: 2529.85954 | DD19: 2139.260501 | DE19: 2392.755536 | DF19: 2491.072663 | DG19: 2905.821738 | DH19: 2440.919478 | DI19: 1988.899582 | DK19: 1929 | DL19: =F97 -> 2519.22613 | DM19: =F98 -> 2423.161547 | DN19: =F99 -> 2493.26884 | DO19: =F100 -> 2757.459501 | DP19: =F101 -> 2944.131889 | DQ19: =F102 -> 3047.375536 | DR19: =F103 -> 3186.28555 | DS19: =F104 -> 3005.421286 | DT19: =F105 -> 2801.012818 | DU19: =F106 -> 2538.467229 | DV19: =F107 -> 2262.856182 | DW19: =F108 -> 2176.486694 | DY19: 2582.898806 | DZ19: 2574.524175 | EA19: 2679.5961 | EC19: 2680.264522 | ED19: 2238.624034 | EE19: 2539.791335 | EF19: 2644.791687 | EG19: 3027.913682 | EH19: 2548.322555 | EI19: 2084.223316 | EK19: 1929 | EL19: =G97 -> 2522.722639 | EM19: =G98 -> 2426.613352 | EN19: =G99 -> 2496.753049 | EO19: =G100 -> 2760.94147 | EP19: =G101 -> 2947.611394 | EQ19: =G102 -> 3050.221476 | ER19: =G103 -> 3189.068996 | ES19: =G104 -> 3008.192204 | ET19: =G105 -> 2803.695784 | EU19: =G106 -> 2541.073642 | EV19: =G107 -> 2265.424509 | EW19: =G108 -> 2180.464337 | EY19: 2580.019835 | EZ19: 2567.559028 | FA19: 2682.731904 | FC19: 2683.678264 | FD19: 2237.972863 | FE19: 2543.272092 | FF19: 2648.268964 | FG19: 3030.784066 | FH19: 2551.130551 | FI19: 2075.928991
A20: 1922-05-31 | B20: =INDIRECT(CONCATENATE("'",B$1,"'!",B$4,(YEAR($A20)-1921)*12+MONTH($A20)+3+IF(ISNUMBER(FIND("PRV",B$6)),1,0)))*IF(AND(B$3>0,TRIM(B$9)="CFS"),Conv_Flags!$C20,1) -> 4552 | C20: =INDIRECT(CONCATENATE("'",C$1,"'!",C$4,(YEAR($A20)-1921)*12+MONTH($A20)+3+IF(ISNUMBER(FIND("PRV",C$6)),1,0)))*IF(AND(C$3>0,TRIM(C$9)="CFS"),Conv_Flags!$C20,1) -> 4552 | D20: =INDIRECT(CONCATENATE("'",D$1,"'!",D$4,(YEAR($A20)-1921)*12+MONTH($A20)+3+IF(ISNUMBER(FIND("PRV",D$6)),1,0)))*IF(AND(D$3>0,TRIM(D$9)="CFS"),Conv_Flags!$C20,1) -> 4552 | E20: =INDIRECT(CONCATENATE("'",E$1,"'!",E$4,(YEAR($A20)-1921)*12+MONTH($A20)+3+IF(ISNUMBER(FIND("PRV",E$6)),1,0)))*IF(AND(E$3>0,TRIM(E$9)="CFS"),Conv_Flags!$C20,1) -> 4552 | F20: =INDIRECT(CONCATENATE("'",F$1,"'!",F$4,(YEAR($A20)-1921)*12+MONTH($A20)+3+IF(ISNUMBER(FIND("PRV",F$6)),1,0)))*IF(AND(F$3>0,TRIM(F$9)="CFS"),Conv_Flags!$C20,1) -> 4552 | G20: =INDIRECT(CONCATENATE("'",G$1,"'!",G$4,(YEAR($A20)-1921)*12+MONTH($A20)+3+IF(ISNUMBER(FIND("PRV",G$6)),1,0)))*IF(AND(G$3>0,TRIM(G$9)="CFS"),Conv_Flags!$C20,1) -> 4552 | K20: 1930 | L20: =B109 -> 1863.198136 | M20: =B110 -> 1717.000459 | N20: =B111 -> 2257.161218 | O20: =B112 -> 2459.0266 | P20: =B113 -> 2855.987638 | Q20: =B114 -> 3347.961379 | R20: =B115 -> 3580.508024 | S20: =B116 -> 3548.249617 | T20: =B117 -> 3222.724403 | U20: =B118 -> 2861.210475 | V20: =B119 -> 2569.251152 | W20: =B120 -> 2532.002882 | Y20: 2858.774705 | Z20: 2834.662671 | AA20: 2734.523499 | AC20: 2378.951135 | AD20: 2590.910887 | AE20: 2019.238591 | AF20: 2334.227289 | AG20: 3379.01876 | AH20: 2923.32807 | AI20: 2508.105343 | AK20: 1930 | AL20: =C109 -> 1920.953689 | AM20: =C110 -> 1765.664129 | AN20: =C111 -> 2305.7871 | AO20: =C112 -> 2507.618238 | AP20: =C113 -> 2904.531388 | AQ20: =C114 -> 3396.436455 | AR20: =C115 -> 3628.884363 | AS20: =C116 -> 3612.025027 | AT20: =C117 -> 3291.728321 | AU20: =C118 -> 2931.094016 | AV20: =C119 -> 2660.938535 | AW20: =C120 -> 2630.193049 | AY20: 2919.682351 | AZ20: 2888.087097 | BA20: 2796.321193 | BC20: 2428.459186 | BD20: 2683.529628 | BE20: 2071.063419 | BF20: 2382.834366 | BG20: 3433.868925 | BH20: 3001.217478 | BI20: 2597.244147 | BK20: 1930 | BL20: =D109 -> 1948.114007 | BM20: =D110 -> 1794.692853 | BN20: =D111 -> 2334.791524 | BO20: =D112 -> 2536.602237 | BP20: =D113 -> 2933.488521 | BQ20: =D114 -> 3425.352623 | BR20: =D115 -> 3657.741632 | BS20: =D116 -> 3637.34285 | BT20: =D117 -> 3316.775674 | BU20: =D118 -> 2955.878178 | BV20: =D119 -> 2684.748232 | BW20: =D120 -> 2653.842406 | BY20: 2945.00975 | BZ20: 2912.509244 | CA20: 2823.280895 | CC20: 2457.26169 | CD20: 2707.406211 | CE20: 2099.798851 | CF20: 2411.828149 | CG20: 3461.392301 | CH20: 3025.748678 | CI20: 2620.027693 | CK20: 1930 | CL20: =E109 -> 1924.86857 | CM20: =E110 -> 1769.906376 | CN20: =E111 -> 2310.026041 | CO20: =E112 -> 2511.854195 | CP20: =E113 -> 2908.763165 | CQ20: =E114 -> 3400.662244 | CR20: =E115 -> 3633.101546 | CS20: =E116 -> 3616.211923 | CT20: =E117 -> 3295.868831 | CU20: =E118 -> 2935.02348 | CV20: =E119 -> 2665.178172 | CW20: =E120 -> 2633.541664 | CY20: 2923.723916 | CZ20: 2891.957722 | DA20: 2800.417184 | DC20: 2432.663037 | DD20: 2687.558937 | DE20: 2074.673297 | DF20: 2387.071669 | DG20: 3438.072928 | DH20: 3005.236819 | DI20: 2601.333685 | DK20: 1930 | DL20: =F109 -> 2014.591226 | DM20: =F110 -> 1860.327876 | DN20: =F111 -> 2400.369883 | DO20: =F112 -> 2602.134539 | DP20: =F113 -> 2998.961284 | DQ20: =F114 -> 3490.732762 | DR20: =F115 -> 3722.9886 | DS20: =F116 -> 3702.329274 | DT20: =F117 -> 3381.144787 | DU20: =F118 -> 3019.551988 | DV20: =F119 -> 2747.865872 | DW20: =F120 -> 2722.109706 | DY20: 3010.052554 | DZ20: 2977.701079 | EA20: 2888.592316 | EC20: 2522.891115 | ED20: 2773.149483 | EE20: 2166.1499 | EF20: 2477.383001 | EG20: 3526.525918 | EH20: 3090.195534 | EI20: 2685.969882 | EK20: 1930 | EL20: =G109 -> 1994.985841 | EM20: =G110 -> 1839.24908 | EN20: =G111 -> 2379.309284 | EO20: =G112 -> 2581.088648 | EP20: =G113 -> 2977.934537 | EQ20: =G114 -> 3469.735761 | ER20: =G115 -> 3702.034367 | ES20: =G116 -> 3681.441154 | ET20: =G117 -> 3360.337458 | EU20: =G118 -> 2997.884219 | EV20: =G119 -> 2727.622776 | EW20: =G120 -> 2697.022103 | EY20: 2994.620298 | EZ20: 2967.416489 | FA20: 2867.387102 | FC20: 2501.98847 | FD20: 2751.948728 | FE20: 2148.580174 | FF20: 2456.329913 | FG20: 3505.58682 | FH20: 3068.76902 | FI20: 2671.365681
A21: 1922-06-30 | B21: =INDIRECT(CONCATENATE("'",B$1,"'!",B$4,(YEAR($A21)-1921)*12+MONTH($A21)+3+IF(ISNUMBER(FIND("PRV",B$6)),1,0)))*IF(AND(B$3>0,TRIM(B$9)="CFS"),Conv_Flags!$C21,1) -> 4288.190126 | C21: =INDIRECT(CONCATENATE("'",C$1,"'!",C$4,(YEAR($A21)-1921)*12+MONTH($A21)+3+IF(ISNUMBER(FIND("PRV",C$6)),1,0)))*IF(AND(C$3>0,TRIM(C$9)="CFS"),Conv_Flags!$C21,1) -> 4318.250047 | D21: =INDIRECT(CONCATENATE("'",D$1,"'!",D$4,(YEAR($A21)-1921)*12+MONTH($A21)+3+IF(ISNUMBER(FIND("PRV",D$6)),1,0)))*IF(AND(D$3>0,TRIM(D$9)="CFS"),Conv_Flags!$C21,1) -> 4318.89356 | E21: =INDIRECT(CONCATENATE("'",E$1,"'!",E$4,(YEAR($A21)-1921)*12+MONTH($A21)+3+IF(ISNUMBER(FIND("PRV",E$6)),1,0)))*IF(AND(E$3>0,TRIM(E$9)="CFS"),Conv_Flags!$C21,1) -> 4318.250047 | F21: =INDIRECT(CONCATENATE("'",F$1,"'!",F$4,(YEAR($A21)-1921)*12+MONTH($A21)+3+IF(ISNUMBER(FIND("PRV",F$6)),1,0)))*IF(AND(F$3>0,TRIM(F$9)="CFS"),Conv_Flags!$C21,1) -> 4318.89356 | G21: =INDIRECT(CONCATENATE("'",G$1,"'!",G$4,(YEAR($A21)-1921)*12+MONTH($A21)+3+IF(ISNUMBER(FIND("PRV",G$6)),1,0)))*IF(AND(G$3>0,TRIM(G$9)="CFS"),Conv_Flags!$C21,1) -> 4318.89356 | K21: 1931 | L21: =B121 -> 2481.746776 | M21: =B122 -> 2451.881589 | N21: =B123 -> 2394.745927 | O21: =B124 -> 2470.880011 | P21: =B125 -> 2554.789817 | Q21: =B126 -> 2697.386105 | R21: =B127 -> 2662.933187 | S21: =B128 -> 2368.386343 | T21: =B129 -> 2052.283172 | U21: =B130 -> 1670.081728 | V21: =B131 -> 1423.491397 | W21: =B132 -> 1330.316421 | Y21: 1893.598884 | Z21: 1728.72947 | AA21: 2213.24354 | AC21: 2492.372757 | AD21: 1387.632171 | AE21: 2457.453935 | AF21: 2456.320547 | AG21: 2508.060533 | AH21: 1748.80192 | AI21: 1243.067117 | AK21: 1931 | AL21: =C121 -> 2587.820585 | AM21: =C122 -> 2486.49908 | AN21: =C123 -> 2398.419154 | AO21: =C124 -> 2474.550557 | AP21: =C125 -> 2558.456015 | AQ21: =C126 -> 2721.294404 | AR21: =C127 -> 2623.307245 | AS21: =C128 -> 2327.008369 | AT21: =C129 -> 2014.836894 | AU21: =C130 -> 1636.348732 | AV21: =C131 -> 1363.554676 | AW21: =C132 -> 1269.413709 | AY21: 1863.900655 | AZ21: 1692.543521 | BA21: 2205.125785 | BC21: 2514.49646 | BD21: 1334.402765 | BE21: 2506.277655 | BF21: 2465.149086 | BG21: 2489.564118 | BH21: 1703.237836 | BI21: 1192.232497 | BK21: 1931 | BL21: =D121 -> 2611.377813 | BM21: =D122 -> 2504.977486 | BN21: =D123 -> 2421.989342 | BO21: =D124 -> 2498.103573 | BP21: =D125 -> 2581.981123 | BQ21: =D126 -> 2744.784754 | BR21: =D127 -> 2639.416346 | BS21: =D128 -> 2342.603182 | BT21: =D129 -> 2030.545763 | BU21: =D130 -> 1655.86161 | BV21: =D131 -> 1384.580514 | BW21: =D132 -> 1290.382007 | BY21: 1884.156112 | BZ21: 1712.399378 | CA21: 2225.550293 | CC21: 2537.026561 | CD21: 1355.189943 | CE21: 2528.579408 | CF21: 2487.857406 | CG21: 2508.266931 | CH21: 1721.870121 | CI21: 1213.331628 | CK21: 1931 | CL21: =E121 -> 2592.890467 | CM21: =E122 -> 2489.959675 | CN21: =E123 -> 2401.631627 | CO21: =E124 -> 2477.76069 | CP21: =E125 -> 2561.662345 | CQ21: =E126 -> 2724.495998 | CR21: =E127 -> 2626.139942 | CS21: =E128 -> 2329.806514 | CT21: =E129 -> 2017.629179 | CU21: =E130 -> 1639.356949 | CV21: =E131 -> 1366.712687 | CW21: =E132 -> 1272.562266 | CY21: 1866.977894 | CZ21: 1695.616265 | DA21: 2208.384028 | DC21: 2517.941514 | DD21: 1337.539241 | DE21: 2510.033237 | DF21: 2468.401109 | DG21: 2492.522054 | DH21: 1706.220801 | DI21: 1195.405575 | DK21: 1931 | DL21: =F121 -> 2679.393753 | DM21: =F122 -> 2564.946501 | DN21: =F123 -> 2488.471588 | DO21: =F124 -> 2564.537359 | DP21: =F125 -> 2648.340755 | DQ21: =F126 -> 2811.046213 | DR21: =F127 -> 2687.634847 | DS21: =F128 -> 2380.808814 | DT21: =F129 -> 2055.588548 | DU21: =F130 -> 1674.935107 | DV21: =F131 -> 1415.863078 | DW21: =F132 -> 1312.222125 | DY21: 1908.419753 | DZ21: 1718.449813 | EA21: 2273.649057 | EC21: 2602.303237 | ED21: 1375.134797 | EE21: 2594.033844 | EF21: 2553.217525 | EG21: 2557.863631 | EH21: 1748.225551 | EI21: 1216.779796 | EK21: 1931 | EL21: =G121 -> 2664.51839 | EM21: =G122 -> 2577.490323 | EN21: =G123 -> 2498.333845 | EO21: =G124 -> 2574.392424 | EP21: =G125 -> 2658.185048 | EQ21: =G126 -> 2820.875573 | ER21: =G127 -> 2696.620751 | ES21: =G128 -> 2387.527996 | ET21: =G129 -> 2062.105903 | EU21: =G130 -> 1682.08709 | EV21: =G131 -> 1422.93834 | EW21: =G132 -> 1319.216949 | EY21: 1922.171687 | EZ21: 1737.446826 | FA21: 2280.357719 | FC21: 2610.219724 | FD21: 1382.562745 | FE21: 2594.012455 | FF21: 2563.521318 | FG21: 2566.292449 | FH21: 1755.125951 | FI21: 1230.283871
A22: 1922-07-31 | B22: =INDIRECT(CONCATENATE("'",B$1,"'!",B$4,(YEAR($A22)-1921)*12+MONTH($A22)+3+IF(ISNUMBER(FIND("PRV",B$6)),1,0)))*IF(AND(B$3>0,TRIM(B$9)="CFS"),Conv_Flags!$C22,1) -> 3876.566529 | C22: =INDIRECT(CONCATENATE("'",C$1,"'!",C$4,(YEAR($A22)-1921)*12+MONTH($A22)+3+IF(ISNUMBER(FIND("PRV",C$6)),1,0)))*IF(AND(C$3>0,TRIM(C$9)="CFS"),Conv_Flags!$C22,1) -> 3912.604497 | D22: =INDIRECT(CONCATENATE("'",D$1,"'!",D$4,(YEAR($A22)-1921)*12+MONTH($A22)+3+IF(ISNUMBER(FIND("PRV",D$6)),1,0)))*IF(AND(D$3>0,TRIM(D$9)="CFS"),Conv_Flags!$C22,1) -> 3954.053545 | E22: =INDIRECT(CONCATENATE("'",E$1,"'!",E$4,(YEAR($A22)-1921)*12+MONTH($A22)+3+IF(ISNUMBER(FIND("PRV",E$6)),1,0)))*IF(AND(E$3>0,TRIM(E$9)="CFS"),Conv_Flags!$C22,1) -> 3912.604497 | F22: =INDIRECT(CONCATENATE("'",F$1,"'!",F$4,(YEAR($A22)-1921)*12+MONTH($A22)+3+IF(ISNUMBER(FIND("PRV",F$6)),1,0)))*IF(AND(F$3>0,TRIM(F$9)="CFS"),Conv_Flags!$C22,1) -> 4017.883233 | G22: =INDIRECT(CONCATENATE("'",G$1,"'!",G$4,(YEAR($A22)-1921)*12+MONTH($A22)+3+IF(ISNUMBER(FIND("PRV",G$6)),1,0)))*IF(AND(G$3>0,TRIM(G$9)="CFS"),Conv_Flags!$C22,1) -> 4017.883234 | K22: 1932 | L22: =B133 -> 1148.095661 | M22: =B134 -> 1078.087143 | N22: =B135 -> 1266.455623 | O22: =B136 -> 1465.669031 | P22: =B137 -> 1581.567828 | Q22: =B138 -> 2032.831487 | R22: =B139 -> 2262.178368 | S22: =B140 -> 2442.830906 | T22: =B141 -> 2280.523311 | U22: =B142 -> 2013.67697 | V22: =B143 -> 1798.496896 | W22: =B144 -> 1705.724077 | Y22: 1863.527096 | Z22: 1876.663291 | AA22: 1756.344775 | AC22: 1396.44864 | AD22: 1775.385736 | AE22: 1222.657788 | AF22: 1353.984046 | AG22: 2167.221583 | AH22: 2041.743667 | AI22: 1675.112654 | AK22: 1932 | AL22: =C133 -> 1104.131087 | AM22: =C134 -> 1042.75071 | AN22: =C135 -> 1231.155457 | AO22: =C136 -> 1430.395932 | AP22: =C137 -> 1546.325041 | AQ22: =C138 -> 1997.651781 | AR22: =C139 -> 2227.071068 | AS22: =C140 -> 2425.122787 | AT22: =C141 -> 2273.074792 | AU22: =C142 -> 2008.3526 | AV22: =C143 -> 1792.554583 | AW22: =C144 -> 1697.79684 | AY22: 1846.230959 | AZ22: 1863.949231 | BA22: 1731.365223 | BC22: 1360.303715 | BD22: 1768.534902 | BE22: 1181.985519 | BF22: 1318.696421 | BG22: 2139.886388 | BH22: 2033.860447 | BI22: 1667.701895 | BK22: 1932 | BL22: =D133 -> 1125.353004 | BM22: =D134 -> 1063.939233 | BN22: =D135 -> 1252.322234 | BO22: =D136 -> 1451.546479 | BP22: =D137 -> 1567.457413 | BQ22: =D138 -> 2018.746328 | BR22: =D139 -> 2248.122199 | BS22: =D140 -> 2446.112382 | BT22: =D141 -> 2293.984409 | BU22: =D142 -> 2029.164446 | BV22: =D143 -> 1813.280713 | BW22: =D144 -> 1718.4424 | BY22: 1867.085177 | BZ22: 1884.702936 | CA22: 1752.372603 | CC22: 1381.463005 | CD22: 1789.227942 | CE22: 1203.144679 | CF22: 1339.855679 | CG22: 2160.925455 | CH22: 2054.67674 | CI22: 1688.335016 | CK22: 1932 | CL22: =E133 -> 1107.328592 | CM22: =E134 -> 1045.939048 | CN22: =E135 -> 1234.340522 | CO22: =E136 -> 1433.578555 | CP22: =E137 -> 1549.504929 | CQ22: =E138 -> 2000.825978 | CR22: =E139 -> 2230.238732 | CS22: =E140 -> 2428.275977 | CT22: =E141 -> 2276.209842 | CU22: =E142 -> 2011.382886 | CV22: =E143 -> 1795.461398 | CW22: =E144 -> 1700.266236 | CY22: 1849.07856 | CZ22: 1866.611749 | DA22: 1734.446058 | DC22: 1363.488068 | DD22: 1771.231779 | DE22: 1185.169643 | DF22: 1321.880355 | DG22: 2143.049518 | DH22: 2036.831308 | DI22: 1670.192435 | DK22: 1932 | DL22: =F133 -> 1119.703271 | DM22: =F134 -> 1020.964908 | DN22: =F135 -> 1209.392013 | DO22: =F136 -> 1408.645516 | DP22: =F137 -> 1524.593317 | DQ22: =F138 -> 1975.958955 | DR22: =F139 -> 2205.42289 | DS22: =F140 -> 2403.582867 | DT22: =F141 -> 2283.502999 | DU22: =F142 -> 2019.046551 | DV22: =F143 -> 1803.104868 | DW22: =F144 -> 1708.052422 | DY22: 1803.116136 | DZ22: 1794.330882 | EA22: 1723.497548 | EC22: 1342.285373 | ED22: 1759.917295 | EE22: 1177.623503 | EF22: 1296.938881 | EG22: 2122.253218 | EH22: 2040.368016 | EI22: 1609.297171 | EK22: 1932 | EL22: =G133 -> 1128.978804 | EM22: =G134 -> 1062.37338 | EN22: =G135 -> 1250.757987 | EO22: =G136 -> 1449.983432 | EP22: =G137 -> 1565.895709 | EQ22: =G138 -> 2017.18742 | ER22: =G139 -> 2246.566499 | ES22: =G140 -> 2444.597069 | ET22: =G141 -> 2307.436323 | EU22: =G142 -> 2042.656035 | EV22: =G143 -> 1826.624324 | EW22: =G144 -> 1731.502495 | EY22: 1832.671318 | EZ22: 1819.634342 | FA22: 1756.21329 | FC22: 1380.418724 | FD22: 1783.704436 | FE22: 1206.67759 | FF22: 1338.291988 | FG22: 2161.254251 | FH22: 2066.191616 | FI22: 1631.612184
A23: 1922-08-31 | B23: =INDIRECT(CONCATENATE("'",B$1,"'!",B$4,(YEAR($A23)-1921)*12+MONTH($A23)+3+IF(ISNUMBER(FIND("PRV",B$6)),1,0)))*IF(AND(B$3>0,TRIM(B$9)="CFS"),Conv_Flags!$C23,1) -> 3520.599895 | C23: =INDIRECT(CONCATENATE("'",C$1,"'!",C$4,(YEAR($A23)-1921)*12+MONTH($A23)+3+IF(ISNUMBER(FIND("PRV",C$6)),1,0)))*IF(AND(C$3>0,TRIM(C$9)="CFS"),Conv_Flags!$C23,1) -> 3558.095704 | D23: =INDIRECT(CONCATENATE("'",D$1,"'!",D$4,(YEAR($A23)-1921)*12+MONTH($A23)+3+IF(ISNUMBER(FIND("PRV",D$6)),1,0)))*IF(AND(D$3>0,TRIM(D$9)="CFS"),Conv_Flags!$C23,1) -> 3598.310308 | E23: =INDIRECT(CONCATENATE("'",E$1,"'!",E$4,(YEAR($A23)-1921)*12+MONTH($A23)+3+IF(ISNUMBER(FIND("PRV",E$6)),1,0)))*IF(AND(E$3>0,TRIM(E$9)="CFS"),Conv_Flags!$C23,1) -> 3558.095704 | F23: =INDIRECT(CONCATENATE("'",F$1,"'!",F$4,(YEAR($A23)-1921)*12+MONTH($A23)+3+IF(ISNUMBER(FIND("PRV",F$6)),1,0)))*IF(AND(F$3>0,TRIM(F$9)="CFS"),Conv_Flags!$C23,1) -> 3700 | G23: =INDIRECT(CONCATENATE("'",G$1,"'!",G$4,(YEAR($A23)-1921)*12+MONTH($A23)+3+IF(ISNUMBER(FIND("PRV",G$6)),1,0)))*IF(AND(G$3>0,TRIM(G$9)="CFS"),Conv_Flags!$C23,1) -> 3700 | K23: 1933 | L23: =B145 -> 1630.195501 | M23: =B146 -> 1580.339871 | N23: =B147 -> 1568.290909 | O23: =B148 -> 1584.247097 | P23: =B149 -> 1620.624098 | Q23: =B150 -> 2201.454518 | R23: =B151 -> 2374.768361 | S23: =B152 -> 2346.983999 | T23: =B153 -> 2170.381032 | U23: =B154 -> 1916.82611 | V23: =B155 -> 1574.70042 | W23: =B156 -> 1518.788968 | Y23: 1775.603938 | Z23: 1812.938474 | AA23: 1840.633407 | AC23: 1653.865397 | AD23: 1576.197729 | AE23: 1605.952967 | AF23: 1584.339997 | AG23: 2204.677361 | AH23: 1898.698511 | AI23: 1429.978507 | AK23: 1933 | AL23: =C145 -> 1622.153967 | AM23: =C146 -> 1573.755173 | AN23: =C147 -> 1560.516948 | AO23: =C148 -> 1576.478698 | AP23: =C149 -> 1612.861535 | AQ23: =C150 -> 2189.915597 | AR23: =C151 -> 2364.169031 | AS23: =C152 -> 2385.212797 | AT23: =C153 -> 2208.194471 | AU23: =C154 -> 1954.158925 | AV23: =C155 -> 1714.822645 | AW23: =C156 -> 1641.761823 | AY23: 1813.483825 | AZ23: 1854.838872 | BA23: 1867.000134 | BC23: 1645.929427 | BD23: 1683.677232 | BE23: 1598.390964 | BF23: 1576.768 | BG23: 2212.456357 | BH23: 1972.665838 | BI23: 1524.445216 | BK23: 1933 | BL23: =D145 -> 1642.756981 | BM23: =D146 -> 1594.330619 | BN23: =D147 -> 1581.077757 | BO23: =D148 -> 1597.024799 | BP23: =D149 -> 1633.3922 | BQ23: =D150 -> 2210.418062 | BR23: =D151 -> 2397.193293 | BS23: =D152 -> 2414.304882 | BT23: =D153 -> 2235.557455 | BU23: =D154 -> 1980.772786 | BV23: =D155 -> 1623.44396 | BW23: =D156 -> 1551.20908 | BY23: 1793.844508 | BZ23: 1819.600796 | CA23: 1871.790156 | CC23: 1666.482579 | CD23: 1613.311984 | CE23: 1618.974739 | CF23: 1597.321322 | CG23: 2239.097766 | CH23: 1955.632795 | CI23: 1438.497259 | CK23: 1933 | CL23: =E145 -> 1624.552519 | CM23: =E146 -> 1576.055703 | CN23: =E147 -> 1562.589969 | CO23: =E148 -> 1578.550236 | CP23: =E149 -> 1614.931516 | CQ23: =E150 -> 2191.988201 | CR23: =E151 -> 2366.526986 | CS23: =E152 -> 2384.735183 | CT23: =E153 -> 2207.653545 | CU23: =E154 -> 1953.528987 | CV23: =E155 -> 1595.02515 | CW23: =E156 -> 1522.276428 | CY23: 1767.791374 | CZ23: 1791.838794 | DA23: 1848.201202 | DC23: 1648.079557 | DD23: 1585.075739 | DE23: 1600.651607 | DF23: 1578.877938 | DG23: 2213.635725 | DH23: 1927.428372 | DI23: 1410.241883 | DK23: 1933 | DL23: =F145 -> 1518.14264 | DM23: =F146 -> 1400.288032 | DN23: =F147 -> 1387.052574 | DO23: =F148 -> 1395.64854 | DP23: =F149 -> 1432.16724 | DQ23: =F150 -> 2029.203032 | DR23: =F151 -> 2307.22386 | DS23: =F152 -> 2284.397209 | DT23: =F153 -> 2109.04307 | DU23: =F154 -> 1856.622364 | DV23: =F155 -> 1616.344567 | DW23: =F156 -> 1547.601888 | DY23: 1698.645993 | DZ23: 1752.076752 | EA23: 1740.311251 | EC23: 1477.765844 | ED23: 1587.89493 | EE23: 1464.333432 | EF23: 1399.642917 | EG23: 2097.857314 | EH23: 1874.502387 | EI23: 1427.952574 | EK23: 1933 | EL23: =G145 -> 1543.316942 | EM23: =G146 -> 1413.40991 | EN23: =G147 -> 1402.879662 | EO23: =G148 -> 1411.464306 | EP23: =G149 -> 1447.971122 | EQ23: =G150 -> 2044.982607 | ER23: =G151 -> 2323.027321 | ES23: =G152 -> 2294.175679 | ET23: =G153 -> 2118.123508 | EU23: =G154 -> 1865.522818 | EV23: =G155 -> 1627.8813 | EW23: =G156 -> 1561.153055 | EY23: 1712.392533 | EZ23: 1765.80165 | FA23: 1754.492353 | FC23: 1493.974955 | FD23: 1600.654935 | FE23: 1482.772478 | FF23: 1415.011494 | FG23: 2111.308231 | FH23: 1884.797998 | FI23: 1442.840892
A24: 1922-09-30 | B24: =INDIRECT(CONCATENATE("'",B$1,"'!",B$4,(YEAR($A24)-1921)*12+MONTH($A24)+3+IF(ISNUMBER(FIND("PRV",B$6)),1,0)))*IF(AND(B$3>0,TRIM(B$9)="CFS"),Conv_Flags!$C24,1) -> 3353.49032 | C24: =INDIRECT(CONCATENATE("'",C$1,"'!",C$4,(YEAR($A24)-1921)*12+MONTH($A24)+3+IF(ISNUMBER(FIND("PRV",C$6)),1,0)))*IF(AND(C$3>0,TRIM(C$9)="CFS"),Conv_Flags!$C24,1) -> 3381.834579 | D24: =INDIRECT(CONCATENATE("'",D$1,"'!",D$4,(YEAR($A24)-1921)*12+MONTH($A24)+3+IF(ISNUMBER(FIND("PRV",D$6)),1,0)))*IF(AND(D$3>0,TRIM(D$9)="CFS"),Conv_Flags!$C24,1) -> 3400 | E24: =INDIRECT(CONCATENATE("'",E$1,"'!",E$4,(YEAR($A24)-1921)*12+MONTH($A24)+3+IF(ISNUMBER(FIND("PRV",E$6)),1,0)))*IF(AND(E$3>0,TRIM(E$9)="CFS"),Conv_Flags!$C24,1) -> 3381.834579 | F24: =INDIRECT(CONCATENATE("'",F$1,"'!",F$4,(YEAR($A24)-1921)*12+MONTH($A24)+3+IF(ISNUMBER(FIND("PRV",F$6)),1,0)))*IF(AND(F$3>0,TRIM(F$9)="CFS"),Conv_Flags!$C24,1) -> 3400 | G24: =INDIRECT(CONCATENATE("'",G$1,"'!",G$4,(YEAR($A24)-1921)*12+MONTH($A24)+3+IF(ISNUMBER(FIND("PRV",G$6)),1,0)))*IF(AND(G$3>0,TRIM(G$9)="CFS"),Conv_Flags!$C24,1) -> 3400 | K24: 1934 | L24: =B157 -> 1353.381489 | M24: =B158 -> 1260.829707 | N24: =B159 -> 1384.261457 | O24: =B160 -> 1669.108457 | P24: =B161 -> 1983.777167 | Q24: =B162 -> 2240.013353 | R24: =B163 -> 2397.051304 | S24: =B164 -> 2139.516348 | T24: =B165 -> 1804.13631 | U24: =B166 -> 1535.555145 | V24: =B167 -> 1189.394556 | W24: =B168 -> 1116.135388 | Y24: 1589.60726 | Z24: 1541.31925 | AA24: 1672.76339 | AC24: 1618.934842 | AD24: 1184.287011 | AE24: 1398.105341 | AF24: 1558.557784 | AG24: 2167.634436 | AH24: 1539.22797 | AI24: 1057.225433 | AK24: 1934 | AL24: =C157 -> 1434.735532 | AM24: =C158 -> 1278.85394 | AN24: =C159 -> 1400.640904 | AO24: =C160 -> 1685.474839 | AP24: =C161 -> 2000.12596 | AQ24: =C162 -> 2256.331489 | AR24: =C163 -> 2413.322975 | AS24: =C164 -> 2186.969468 | AT24: =C165 -> 1840.15646 | AU24: =C166 -> 1569.996137 | AV24: =C167 -> 1210.701724 | AW24: =C168 -> 1122.974902 | AY24: 1604.533799 | AZ24: 1554.366586 | BA24: 1700.023694 | BC24: 1642.125831 | BD24: 1191.381262 | BE24: 1444.462176 | BF24: 1575.201898 | BG24: 2194.191285 | BH24: 1568.956627 | BI24: 1048.503531 | BK24: 1934 | BL24: =D157 -> 1349.793038 | BM24: =D158 -> 1205.535356 | BN24: =D159 -> 1327.489191 | BO24: =D160 -> 1612.381474 | BP24: =D161 -> 1927.110971 | BQ24: =D162 -> 2191.796227 | BR24: =D163 -> 2340.660137 | BS24: =D164 -> 2127.499309 | BT24: =D165 -> 1794.724966 | BU24: =D166 -> 1525.67549 | BV24: =D167 -> 1167.839134 | BW24: =D168 -> 1081.280772 | BY24: 1551.500583 | BZ24: 1508.106278 | CA24: 1637.648839 | CC24: 1568.662325 | CD24: 1149.131684 | CE24: 1366.153215 | CF24: 1502.064609 | CG24: 2130.21841 | CH24: 1523.157408 | CI24: 1007.440435 | CK24: 1934 | CL24: =E157 -> 1322.322291 | CM24: =E158 -> 1177.228709 | CN24: =E159 -> 1298.729257 | CO24: =E160 -> 1583.64448 | CP24: =E161 -> 1898.406311 | CQ24: =E162 -> 2154.802585 | CR24: =E163 -> 2312.083181 | CS24: =E164 -> 2101.03735 | CT24: =E165 -> 1768.16845 | CU24: =E166 -> 1498.67949 | CV24: =E167 -> 1139.809631 | CW24: =E168 -> 1052.830565 | CY24: 1522.148832 | CZ24: 1478.266517 | DA24: 1608.978525 | DC24: 1539.314239 | DD24: 1120.725181 | DE24: 1337.810178 | DF24: 1473.397082 | DG24: 2100.302624 | DH24: 1495.897882 | DI24: 978.0349747 | DK24: 1934 | DL24: =F157 -> 1342.854304 | DM24: =F158 -> 1170.458492 | DN24: =F159 -> 1292.187355 | DO24: =F160 -> 1577.107795 | DP24: =F161 -> 1891.877093 | DQ24: =F162 -> 2148.28561 | DR24: =F163 -> 2305.584763 | DS24: =F164 -> 2083.588082 | DT24: =F165 -> 1747.097146 | DU24: =F166 -> 1478.189365 | DV24: =F167 -> 1122.38942 | DW24: =F168 -> 1038.060321 | DY24: 1509.685022 | DZ24: 1465.220298 | EA24: 1599.806645 | EC24: 1535.440138 | ED24: 1104.711815 | EE24: 1341.963748 | EF24: 1466.820981 | EG24: 2089.236394 | EH24: 1477.125033 | EI24: 964.6331368 | EK24: 1934 | EL24: =G157 -> 1360.338084 | EM24: =G158 -> 1186.181777 | EN24: =G159 -> 1307.888813 | EO24: =G160 -> 1592.79673 | EP24: =G161 -> 1907.548107 | EQ24: =G162 -> 2163.927238 | ER24: =G163 -> 2321.181851 | ES24: =G164 -> 2093.148329 | ET24: =G165 -> 1756.271567 | EU24: =G166 -> 1487.434829 | EV24: =G167 -> 1133.340221 | EW24: =G168 -> 1050.813259 | EY24: 1522.52013 | EZ24: 1477.64213 | FA24: 1613.4059 | FC24: 1551.309618 | FD24: 1116.36643 | FE24: 1357.845891 | FF24: 1482.516828 | FG24: 2102.541814 | FH24: 1487.256853 | FI24: 977.3415533
A25: 1922-10-31 | B25: =INDIRECT(CONCATENATE("'",B$1,"'!",B$4,(YEAR($A25)-1921)*12+MONTH($A25)+3+IF(ISNUMBER(FIND("PRV",B$6)),1,0)))*IF(AND(B$3>0,TRIM(B$9)="CFS"),Conv_Flags!$C25,1) -> 3250 | C25: =INDIRECT(CONCATENATE("'",C$1,"'!",C$4,(YEAR($A25)-1921)*12+MONTH($A25)+3+IF(ISNUMBER(FIND("PRV",C$6)),1,0)))*IF(AND(C$3>0,TRIM(C$9)="CFS"),Conv_Flags!$C25,1) -> 3250 | D25: =INDIRECT(CONCATENATE("'",D$1,"'!",D$4,(YEAR($A25)-1921)*12+MONTH($A25)+3+IF(ISNUMBER(FIND("PRV",D$6)),1,0)))*IF(AND(D$3>0,TRIM(D$9)="CFS"),Conv_Flags!$C25,1) -> 3250 | E25: =INDIRECT(CONCATENATE("'",E$1,"'!",E$4,(YEAR($A25)-1921)*12+MONTH($A25)+3+IF(ISNUMBER(FIND("PRV",E$6)),1,0)))*IF(AND(E$3>0,TRIM(E$9)="CFS"),Conv_Flags!$C25,1) -> 3250 | F25: =INDIRECT(CONCATENATE("'",F$1,"'!",F$4,(YEAR($A25)-1921)*12+MONTH($A25)+3+IF(ISNUMBER(FIND("PRV",F$6)),1,0)))*IF(AND(F$3>0,TRIM(F$9)="CFS"),Conv_Flags!$C25,1) -> 3250 | G25: =INDIRECT(CONCATENATE("'",G$1,"'!",G$4,(YEAR($A25)-1921)*12+MONTH($A25)+3+IF(ISNUMBER(FIND("PRV",G$6)),1,0)))*IF(AND(G$3>0,TRIM(G$9)="CFS"),Conv_Flags!$C25,1) -> 3250 | K25: 1935 | L25: =B169 -> 959.1070322 | M25: =B170 -> 1003.473203 | N25: =B171 -> 1038.018862 | O25: =B172 -> 1381.578285 | P25: =B173 -> 1691.851218 | Q25: =B174 -> 2080.174622 | R25: =B175 -> 3109.585799 | S25: =B176 -> 3442.912726 | T25: =B177 -> 3204.083677 | U25: =B178 -> 2831.515009 | V25: =B179 -> 2505.202461 | W25: =B180 -> 2433.015954 | Y25: 2471.663282 | Z25: 2759.019525 | AA25: 2140.043237 | AC25: 1326.912479 | AD25: 2516.054329 | AE25: 1062.363983 | AF25: 1255.753119 | AG25: 2770.160149 | AH25: 2869.691371 | AI25: 2410.520368 | AK25: 1935 | AL25: =C169 -> 910.938185 | AM25: =C170 -> 1012.493289 | AN25: =C171 -> 1044.920165 | AO25: =C172 -> 1381.578293 | AP25: =C173 -> 1702.01594 | AQ25: =C174 -> 2090.32852 | AR25: =C175 -> 3116.456666 | AS25: =C176 -> 3484.838726 | AT25: =C177 -> 3258.980461 | AU25: =C178 -> 2886.616222 | AV25: =C179 -> 2558.87228 | AW25: =C180 -> 2484.850334 | AY25: 2502.484915 | AZ25: 2791.088259 | BA25: 2161.07409 | BC25: 1328.328208 | BD25: 2565.149004 | BE25: 1055.157059 | BF25: 1261.251024 | BG25: 2793.030528 | BH25: 2922.328373 | BI25: 2451.502023 | BK25: 1935 | BL25: =D169 -> 870.8748032 | BM25: =D170 -> 972.4923291 | BN25: =D171 -> 1005.671381 | BO25: =D172 -> 1349.263135 | BP25: =D173 -> 1669.497654 | BQ25: =D174 -> 2057.846095 | BR25: =D175 -> 3077.418067 | BS25: =D176 -> 3446.273233 | BT25: =D177 -> 3250.562873 | BU25: =D178 -> 2880.21323 | BV25: =D179 -> 2555.825303 | BW25: =D180 -> 2482.202405 | BY25: 2486.150275 | BZ25: 2780.207736 | CA25: 2134.845042 | CC25: 1292.25699 | CD25: 2561.991151 | CE25: 1016.077616 | CF25: 1225.309836 | CG25: 2760.391915 | CH25: 2912.709806 | CI25: 2449.719724 | CK25: 1935 | CL25: =E169 -> 840.3912074 | CM25: =E170 -> 941.9566729 | CN25: =E171 -> 973.9760666 | CO25: =E172 -> 1317.5995 | CP25: =E173 -> 1637.86351 | CQ25: =E174 -> 2026.247928 | CR25: =E175 -> 3045.88813 | CS25: =E176 -> 3415.105313 | CT25: =E177 -> 3190.509239 | CU25: =E178 -> 2822.224942 | CV25: =E179 -> 2498.747903 | CW25: =E180 -> 2421.844637 | CY25: 2436.440123 | CZ25: 2729.919832 | DA25: 2094.362921 | DC25: 1260.943063 | DD25: 2502.36782 | DE25: 985.3847449 | DF25: 1193.828553 | DG25: 2725.356936 | DH25: 2857.489265 | DI25: 2387.079521 | DK25: 1935 | DL25: =F169 -> 829.1820444 | DM25: =F170 -> 930.9246697 | DN25: =F171 -> 963.9339514 | DO25: =F172 -> 1307.567422 | DP25: =F173 -> 1627.840775 | DQ25: =F174 -> 2016.236568 | DR25: =F175 -> 3035.898388 | DS25: =F176 -> 3405.246799 | DT25: =F177 -> 3261.821653 | DU25: =F178 -> 2899.098177 | DV25: =F179 -> 2574.495782 | DW25: =F180 -> 2500.931387 | DY25: 2476.942571 | DZ25: 2778.40152 | EA25: 2112.764801 | EC25: 1250.595225 | ED25: 2580.671508 | EE25: 974.2136343 | EF25: 1183.628032 | EG25: 2725.553242 | EH25: 2922.126176 | EI25: 2466.141372 | EK25: 1935 | EL25: =G169 -> 842.4567905 | EM25: =G170 -> 944.1690003 | EN25: =G171 -> 977.1536342 | EO25: =G172 -> 1320.773892 | EP25: =G173 -> 1641.034945 | EQ25: =G174 -> 2029.415761 | ER25: =G175 -> 3049.049123 | ES25: =G176 -> 3418.246092 | ET25: =G177 -> 3274.68014 | EU25: =G178 -> 2925.784173 | EV25: =G179 -> 2601.74881 | EW25: =G180 -> 2527.978492 | EY25: 2499.068479 | EZ25: 2801.613147 | FA25: 2129.374238 | FC25: 1263.813549 | FD25: 2607.715748 | FE25: 987.3932501 | FF25: 1196.843166 | FG25: 2738.64213 | FH25: 2943.831354 | FI25: 2495.275322
A26: 1922-11-30 | B26: =INDIRECT(CONCATENATE("'",B$1,"'!",B$4,(YEAR($A26)-1921)*12+MONTH($A26)+3+IF(ISNUMBER(FIND("PRV",B$6)),1,0)))*IF(AND(B$3>0,TRIM(B$9)="CFS"),Conv_Flags!$C26,1) -> 3252 | C26: =INDIRECT(CONCATENATE("'",C$1,"'!",C$4,(YEAR($A26)-1921)*12+MONTH($A26)+3+IF(ISNUMBER(FIND("PRV",C$6)),1,0)))*IF(AND(C$3>0,TRIM(C$9)="CFS"),Conv_Flags!$C26,1) -> 3252 | D26: =INDIRECT(CONCATENATE("'",D$1,"'!",D$4,(YEAR($A26)-1921)*12+MONTH($A26)+3+IF(ISNUMBER(FIND("PRV",D$6)),1,0)))*IF(AND(D$3>0,TRIM(D$9)="CFS"),Conv_Flags!$C26,1) -> 3252 | E26: =INDIRECT(CONCATENATE("'",E$1,"'!",E$4,(YEAR($A26)-1921)*12+MONTH($A26)+3+IF(ISNUMBER(FIND("PRV",E$6)),1,0)))*IF(AND(E$3>0,TRIM(E$9)="CFS"),Conv_Flags!$C26,1) -> 3252 | F26: =INDIRECT(CONCATENATE("'",F$1,"'!",F$4,(YEAR($A26)-1921)*12+MONTH($A26)+3+IF(ISNUMBER(FIND("PRV",F$6)),1,0)))*IF(AND(F$3>0,TRIM(F$9)="CFS"),Conv_Flags!$C26,1) -> 3252 | G26: =INDIRECT(CONCATENATE("'",G$1,"'!",G$4,(YEAR($A26)-1921)*12+MONTH($A26)+3+IF(ISNUMBER(FIND("PRV",G$6)),1,0)))*IF(AND(G$3>0,TRIM(G$9)="CFS"),Conv_Flags!$C26,1) -> 3252 | K26: 1936 | L26: =B181 -> 2388.374139 | M26: =B182 -> 2315.139561 | N26: =B183 -> 2276.525937 | O26: =B184 -> 2933.704422 | P26: =B185 -> 3588 | Q26: =B186 -> 3956.869281 | R26: =B187 -> 4250.343437 | S26: =B188 -> 4172.442142 | T26: =B189 -> 4003.624036 | U26: =B190 -> 3546.141998 | V26: =B191 -> 3114.045614 | W26: =B192 -> 2966.720554 | Y26: 3375.056095 | Z26: 3255.736332 | AA26: 3292.660927 | AC26: 2857.198326 | AD26: 3086.225217 | AE26: 2415.849956 | AF26: 2720.600046 | AG26: 4043.866719 | AH26: 3558.348249 | AI26: 2882.614237 | AK26: 1936 | AL26: =C181 -> 2416.832573 | AM26: =C182 -> 2346.774046 | AN26: =C183 -> 2301.674919 | AO26: =C184 -> 2958.834359 | AP26: =C185 -> 3588 | AQ26: =C186 -> 3956.869281 | AR26: =C187 -> 4250.343437 | AS26: =C188 -> 4179.129887 | AT26: =C189 -> 4026.161794 | AU26: =C190 -> 3547.273534 | AV26: =C191 -> 3117.560126 | AW26: =C192 -> 2970.960218 | AY26: 3381.604412 | AZ26: 3260.776141 | BA26: 3305.034515 | BC26: 2876.42685 | BD26: 3089.690264 | BE26: 2446.780971 | BF26: 2742.6321 | BG26: 4048.355876 | BH26: 3566.510127 | BI26: 2887.275156 | BK26: 1936 | BL26: =D181 -> 2415.678259 | BM26: =D182 -> 2346.731717 | BN26: =D183 -> 2302.291336 | BO26: =D184 -> 2959.450309 | BP26: =D185 -> 3588 | BQ26: =D186 -> 3956.869281 | BR26: =D187 -> 4250.343437 | BS26: =D188 -> 4179.11525 | BT26: =D189 -> 4026.13253 | BU26: =D190 -> 3601.909402 | BV26: =D191 -> 3169.402525 | BW26: =D192 -> 3022.221542 | BY26: 3404.11147 | BZ26: 3288.5147 | CA26: 3318.178799 | CC26: 2876.549427 | CD26: 3140.154052 | CE26: 2446.381917 | CF26: 2743.035835 | CG26: 4048.348558 | CH26: 3599.528213 | CI26: 2933.333527 | CK26: 1936 | CL26: =E181 -> 2350.796897 | CM26: =E182 -> 2278.446155 | CN26: =E183 -> 2232.00732 | CO26: =E184 -> 2889.219516 | CP26: =E185 -> 3588 | CQ26: =E186 -> 3956.869281 | CR26: =E187 -> 4250.343437 | CS26: =E188 -> 4178.775048 | CT26: =E189 -> 4025.547802 | CU26: =E190 -> 3546.179216 | CV26: =E191 -> 3116.768232 | CW26: =E192 -> 2970.097132 | CY26: 3375.168112 | CZ26: 3259.880768 | DA26: 3281.920836 | DC26: 2828.301216 | DD26: 3088.718384 | DE26: 2379.195612 | DF26: 2684.816638 | DG26: 4048.190417 | DH26: 3565.732835 | DI26: 2886.227774 | DK26: 1936 | DL26: =F181 -> 2434.076534 | DM26: =F182 -> 2352.336606 | DN26: =F183 -> 2307.760757 | DO26: =F184 -> 2964.915589 | DP26: =F185 -> 3588 | DQ26: =F186 -> 3956.869281 | DR26: =F187 -> 4250.343437 | DS26: =F188 -> 4179.358751 | DT26: =F189 -> 4026.639106 | DU26: =F190 -> 3642.934423 | DV26: =F191 -> 3218.007652 | DW26: =F192 -> 3071.152898 | DY26: 3426.641491 | DZ26: 3317.713074 | EA26: 3332.699586 | EC26: 2881.697172 | ED26: 3186.233036 | EE26: 2456.774346 | EF26: 2747.614883 | EG26: 4048.472755 | EH26: 3628.209252 | EI26: 2978.274149 | EK26: 1936 | EL26: =G181 -> 2461.055711 | EM26: =G182 -> 2391.834715 | EN26: =G183 -> 2347.219899 | EO26: =G184 -> 3004.34485 | EP26: =G185 -> 3588 | EQ26: =G186 -> 3956.869281 | ER26: =G187 -> 4250.343437 | ES26: =G188 -> 4179.229361 | ET26: =G189 -> 4026.275622 | EU26: =G190 -> 3644.364429 | EV26: =G191 -> 3218.939904 | EW26: =G192 -> 3071.891881 | EY26: 3429.89912 | EZ26: 3317.488404 | FA26: 3345.030758 | FC26: 2908.072392 | FD26: 3186.938279 | FE26: 2491.567999 | FF26: 2780.494036 | FG26: 4048.394973 | FH26: 3628.785144 | FI26: 2978.291384
A27: 1922-12-31 | B27: =INDIRECT(CONCATENATE("'",B$1,"'!",B$4,(YEAR($A27)-1921)*12+MONTH($A27)+3+IF(ISNUMBER(FIND("PRV",B$6)),1,0)))*IF(AND(B$3>0,TRIM(B$9)="CFS"),Conv_Flags!$C27,1) -> 3369 | C27: =INDIRECT(CONCATENATE("'",C$1,"'!",C$4,(YEAR($A27)-1921)*12+MONTH($A27)+3+IF(ISNUMBER(FIND("PRV",C$6)),1,0)))*IF(AND(C$3>0,TRIM(C$9)="CFS"),Conv_Flags!$C27,1) -> 3369 | D27: =INDIRECT(CONCATENATE("'",D$1,"'!",D$4,(YEAR($A27)-1921)*12+MONTH($A27)+3+IF(ISNUMBER(FIND("PRV",D$6)),1,0)))*IF(AND(D$3>0,TRIM(D$9)="CFS"),Conv_Flags!$C27,1) -> 3369 | E27: =INDIRECT(CONCATENATE("'",E$1,"'!",E$4,(YEAR($A27)-1921)*12+MONTH($A27)+3+IF(ISNUMBER(FIND("PRV",E$6)),1,0)))*IF(AND(E$3>0,TRIM(E$9)="CFS"),Conv_Flags!$C27,1) -> 3369 | F27: =INDIRECT(CONCATENATE("'",F$1,"'!",F$4,(YEAR($A27)-1921)*12+MONTH($A27)+3+IF(ISNUMBER(FIND("PRV",F$6)),1,0)))*IF(AND(F$3>0,TRIM(F$9)="CFS"),Conv_Flags!$C27,1) -> 3369 | G27: =INDIRECT(CONCATENATE("'",G$1,"'!",G$4,(YEAR($A27)-1921)*12+MONTH($A27)+3+IF(ISNUMBER(FIND("PRV",G$6)),1,0)))*IF(AND(G$3>0,TRIM(G$9)="CFS"),Conv_Flags!$C27,1) -> 3369 | K27: 1937 | L27: =B193 -> 2809.676968 | M27: =B194 -> 2628.844765 | N27: =B195 -> 2530.259923 | O27: =B196 -> 2505.379266 | P27: =B197 -> 2584.487998 | Q27: =B198 -> 3230.837303 | R27: =B199 -> 3951.568418 | S27: =B200 -> 4196.639399 | T27: =B201 -> 4083.17564 | U27: =B202 -> 3529.052638 | V27: =B203 -> 3159.622299 | W27: =B204 -> 3002.573964 | Y27: 3309.993685 | Z27: 3488.171413 | AA27: 3184.343215 | AC27: 2653.845817 | AD27: 3128.005409 | AE27: 2676.207891 | AF27: 2547.43519 | AG27: 3678.219235 | AH27: 3592.864315 | AI27: 3040.990801 | AK27: 1937 | AL27: =C193 -> 2813.82736 | AM27: =C194 -> 2636.515653 | AN27: =C195 -> 2533.777293 | AO27: =C196 -> 2508.894545 | AP27: =C197 -> 2588.000565 | AQ27: =C198 -> 3234.345407 | AR27: =C199 -> 3955.069501 | AS27: =C200 -> 4220.25713 | AT27: =C201 -> 4121.60451 | AU27: =C202 -> 3544.438035 | AV27: =C203 -> 3173.508108 | AW27: =C204 -> 3017.323228 | AY27: 3321.040031 | AZ27: 3498.632105 | BA27: 3195.630111 | BC27: 2658.254888 | BD27: 3142.190008 | BE27: 2681.011922 | BF27: 2551.643316 | BG27: 3691.118644 | BH27: 3614.585208 | BI27: 3052.372207 | BK27: 1937 | BL27: =D193 -> 2855.766774 | BM27: =D194 -> 2674.622004 | BN27: =D195 -> 2565.504591 | BO27: =D196 -> 2540.602988 | BP27: =D197 -> 2619.686078 | BQ27: =D198 -> 3265.9906 | BR27: =D199 -> 3986.651362 | BS27: =D200 -> 4251.055642 | BT27: =D201 -> 4165.969283 | BU27: =D202 -> 3600.313438 | BV27: =D203 -> 3233.325763 | BW27: =D204 -> 3074.347311 | BY27: 3357.800949 | BZ27: 3530.110194 | CA27: 3236.152986 | CC27: 2692.25887 | CD27: 3201.554752 | CE27: 2719.326409 | CF27: 2584.42054 | CG27: 3724.131321 | CH27: 3665.57749 | CI27: 3103.559706 | CK27: 1937 | CL27: =E193 -> 2812.400362 | CM27: =E194 -> 2635.603425 | CN27: =E195 -> 2532.213895 | CO27: =E196 -> 2507.332077 | CP27: =E197 -> 2586.439302 | CQ27: =E198 -> 3232.786128 | CR27: =E199 -> 3953.513343 | CS27: =E200 -> 4218.750105 | CT27: =E201 -> 4120.147903 | CU27: =E202 -> 3543.760088 | CV27: =E203 -> 3172.917358 | CW27: =E204 -> 3016.74138 | CY27: 3320.077983 | CZ27: 3497.930368 | DA27: 3194.383781 | DC27: 2656.836389 | DD27: 3141.60428 | DE27: 2679.733072 | DF27: 2550.189112 | DG27: 3689.585794 | DH27: 3613.642773 | DI27: 3051.916058 | DK27: 1937 | DL27: =F193 -> 2896.14269 | DM27: =F194 -> 2717.046065 | DN27: =F195 -> 2608.287993 | DO27: =F196 -> 2583.360966 | DP27: =F197 -> 2662.413622 | DQ27: =F198 -> 3308.661545 | DR27: =F199 -> 4029.236908 | DS27: =F200 -> 4247.657703 | DT27: =F201 -> 4161.631499 | DU27: =F202 -> 3594.204323 | DV27: =F203 -> 3214.586613 | DW27: =F204 -> 3052.571171 | DY27: 3365.428132 | DZ27: 3530.613583 | EA27: 3256.316758 | EC27: 2734.702153 | ED27: 3182.888855 | EE27: 2762.18342 | EF27: 2627.126268 | EG27: 3749.394679 | EH27: 3655.134218 | EI27: 3084.892571 | EK27: 1937 | EL27: =G193 -> 2895.601676 | EM27: =G194 -> 2715.821285 | EN27: =G195 -> 2607.10771 | EO27: =G196 -> 2582.181385 | EP27: =G197 -> 2661.23488 | EQ27: =G198 -> 3307.484471 | ER27: =G199 -> 4028.062189 | ES27: =G200 -> 4246.52951 | ET27: =G201 -> 4160.554799 | EU27: =G202 -> 3593.709604 | EV27: =G203 -> 3214.168913 | EW27: =G204 -> 3052.169919 | EY27: 3364.766338 | EZ27: 3530.148316 | FA27: 3255.385528 | FC27: 2733.577667 | FD27: 3182.581276 | FE27: 2761.391826 | FF27: 2625.939059 | FG27: 3748.242752 | FH27: 3654.445758 | FI27: 3084.784921
A28: 1923-01-31 | B28: =INDIRECT(CONCATENATE("'",B$1,"'!",B$4,(YEAR($A28)-1921)*12+MONTH($A28)+3+IF(ISNUMBER(FIND("PRV",B$6)),1,0)))*IF(AND(B$3>0,TRIM(B$9)="CFS"),Conv_Flags!$C28,1) -> 3589.959766 | C28: =INDIRECT(CONCATENATE("'",C$1,"'!",C$4,(YEAR($A28)-1921)*12+MONTH($A28)+3+IF(ISNUMBER(FIND("PRV",C$6)),1,0)))*IF(AND(C$3>0,TRIM(C$9)="CFS"),Conv_Flags!$C28,1) -> 3589.959766 | D28: =INDIRECT(CONCATENATE("'",D$1,"'!",D$4,(YEAR($A28)-1921)*12+MONTH($A28)+3+IF(ISNUMBER(FIND("PRV",D$6)),1,0)))*IF(AND(D$3>0,TRIM(D$9)="CFS"),Conv_Flags!$C28,1) -> 3589.959766 | E28: =INDIRECT(CONCATENATE("'",E$1,"'!",E$4,(YEAR($A28)-1921)*12+MONTH($A28)+3+IF(ISNUMBER(FIND("PRV",E$6)),1,0)))*IF(AND(E$3>0,TRIM(E$9)="CFS"),Conv_Flags!$C28,1) -> 3589.959766 | F28: =INDIRECT(CONCATENATE("'",F$1,"'!",F$4,(YEAR($A28)-1921)*12+MONTH($A28)+3+IF(ISNUMBER(FIND("PRV",F$6)),1,0)))*IF(AND(F$3>0,TRIM(F$9)="CFS"),Conv_Flags!$C28,1) -> 3589.959766 | G28: =INDIRECT(CONCATENATE("'",G$1,"'!",G$4,(YEAR($A28)-1921)*12+MONTH($A28)+3+IF(ISNUMBER(FIND("PRV",G$6)),1,0)))*IF(AND(G$3>0,TRIM(G$9)="CFS"),Conv_Flags!$C28,1) -> 3589.959766 | K28: 1938 | L28: =B205 -> 2914.587289 | M28: =B206 -> 3252 | N28: =B207 -> 3310 | O28: =B208 -> 3668 | P28: =B209 -> 3560 | Q28: =B210 -> 3416 | R28: =B211 -> 4058 | S28: =B212 -> 4552 | T28: =B213 -> 4500 | U28: =B214 -> 4150 | V28: =B215 -> 3700 | W28: =B216 -> 3400 | Y28: 3722.602485 | Z28: 3694.244531 | AA28: 3706.715607 | AC28: 3391.058729 | AD28: 3600 | AE28: 3202.968568 | AF28: 3461.333333 | AG28: 4014 | AH28: 4081.5 | AI28: 3364.57954 | AK28: 1938 | AL28: =C205 -> 2927.039339 | AM28: =C206 -> 3252 | AN28: =C207 -> 3310 | AO28: =C208 -> 3668 | AP28: =C209 -> 3560 | AQ28: =C210 -> 3416 | AR28: =C211 -> 4058 | AS28: =C212 -> 4552 | AT28: =C213 -> 4500 | AU28: =C214 -> 4150 | AV28: =C215 -> 3700 | AW28: =C216 -> 3400 | AY28: 3722.623935 | AZ28: 3694.317839 | BA28: 3707.753278 | BC28: 3392.303934 | BD28: 3600 | BE28: 3207.925238 | BF28: 3461.333333 | BG28: 4014 | BH28: 4081.5 | BI28: 3364.570529 | BK28: 1938 | BL28: =D205 -> 2993.668925 | BM28: =D206 -> 3252 | BN28: =D207 -> 3310 | BO28: =D208 -> 3668 | BP28: =D209 -> 3560 | BQ28: =D210 -> 3416 | BR28: =D211 -> 4058 | BS28: =D212 -> 4552 | BT28: =D213 -> 4500 | BU28: =D214 -> 4150 | BV28: =D215 -> 3700 | BW28: =D216 -> 3400 | BY28: 3726.574178 | BZ28: 3703.681876 | CA28: 3713.305744 | CC28: 3398.966892 | CD28: 3600 | CE28: 3231.710645 | CF28: 3461.333333 | CG28: 4014 | CH28: 4081.5 | CI28: 3367.051749 | CK28: 1938 | CL28: =E205 -> 2926.548115 | CM28: =E206 -> 3252 | CN28: =E207 -> 3310 | CO28: =E208 -> 3668 | CP28: =E209 -> 3560 | CQ28: =E210 -> 3416 | CR28: =E211 -> 4058 | CS28: =E212 -> 4552 | CT28: =E213 -> 4500 | CU28: =E214 -> 4150 | CV28: =E215 -> 3700 | CW28: =E216 -> 3400 | CY28: 3722.624053 | CZ28: 3694.318017 | DA28: 3707.712343 | DC28: 3392.254812 | DD28: 3600 | DE28: 3207.729701 | DF28: 3461.333333 | DG28: 4014 | DH28: 4081.5 | DI28: 3364.570706 | DK28: 1938 | DL28: =F205 -> 2968.813237 | DM28: =F206 -> 3252 | DN28: =F207 -> 3310 | DO28: =F208 -> 3668 | DP28: =F209 -> 3560 | DQ28: =F210 -> 3416 | DR28: =F211 -> 4058 | DS28: =F212 -> 4552 | DT28: =F213 -> 4500 | DU28: =F214 -> 4150 | DV28: =F215 -> 3700 | DW28: =F216 -> 3400 | DY28: 3726.57456 | DZ28: 3703.682587 | EA28: 3711.234436 | EC28: 3396.481324 | ED28: 3600 | EE28: 3222.774706 | EF28: 3461.333333 | EG28: 4014 | EH28: 4081.5 | EI28: 3367.052184 | EK28: 1938 | EL28: =G205 -> 2969.100388 | EM28: =G206 -> 3252 | EN28: =G207 -> 3310 | EO28: =G208 -> 3668 | EP28: =G209 -> 3560 | EQ28: =G210 -> 3416 | ER28: =G211 -> 4058 | ES28: =G212 -> 4552 | ET28: =G213 -> 4500 | EU28: =G214 -> 4150 | EV28: =G215 -> 3700 | EW28: =G216 -> 3400 | EY28: 3726.5761 | EZ28: 3703.684778 | FA28: 3711.258366 | FC28: 3396.510039 | FD28: 3600 | FE28: 3222.796337 | FF28: 3461.333333 | FG28: 4014 | FH28: 4081.5 | FI28: 3367.05461
A29: 1923-02-28 | B29: =INDIRECT(CONCATENATE("'",B$1,"'!",B$4,(YEAR($A29)-1921)*12+MONTH($A29)+3+IF(ISNUMBER(FIND("PRV",B$6)),1,0)))*IF(AND(B$3>0,TRIM(B$9)="CFS"),Conv_Flags!$C29,1) -> 3633.061339 | C29: =INDIRECT(CONCATENATE("'",C$1,"'!",C$4,(YEAR($A29)-1921)*12+MONTH($A29)+3+IF(ISNUMBER(FIND("PRV",C$6)),1,0)))*IF(AND(C$3>0,TRIM(C$9)="CFS"),Conv_Flags!$C29,1) -> 3634.045275 | D29: =INDIRECT(CONCATENATE("'",D$1,"'!",D$4,(YEAR($A29)-1921)*12+MONTH($A29)+3+IF(ISNUMBER(FIND("PRV",D$6)),1,0)))*IF(AND(D$3>0,TRIM(D$9)="CFS"),Conv_Flags!$C29,1) -> 3640.490063 | E29: =INDIRECT(CONCATENATE("'",E$1,"'!",E$4,(YEAR($A29)-1921)*12+MONTH($A29)+3+IF(ISNUMBER(FIND("PRV",E$6)),1,0)))*IF(AND(E$3>0,TRIM(E$9)="CFS"),Conv_Flags!$C29,1) -> 3634.045275 | F29: =INDIRECT(CONCATENATE("'",F$1,"'!",F$4,(YEAR($A29)-1921)*12+MONTH($A29)+3+IF(ISNUMBER(FIND("PRV",F$6)),1,0)))*IF(AND(F$3>0,TRIM(F$9)="CFS"),Conv_Flags!$C29,1) -> 3670.565795 | G29: =INDIRECT(CONCATENATE("'",G$1,"'!",G$4,(YEAR($A29)-1921)*12+MONTH($A29)+3+IF(ISNUMBER(FIND("PRV",G$6)),1,0)))*IF(AND(G$3>0,TRIM(G$9)="CFS"),Conv_Flags!$C29,1) -> 3670.565813 | K29: 1939 | L29: =B217 -> 3250 | M29: =B218 -> 3187.477241 | N29: =B219 -> 3229.752578 | O29: =B220 -> 3381.529929 | P29: =B221 -> 3506.174622 | Q29: =B222 -> 3922.693935 | R29: =B223 -> 3814.579337 | S29: =B224 -> 3605.267923 | T29: =B225 -> 3200 | U29: =B226 -> 2830.528501 | V29: =B227 -> 2567.272955 | W29: =B228 -> 2522.828836 | Y29: 3030.902156 | Z29: 2997.399188 | AA29: 3251.508821 | AC29: 3378.256268 | AD29: 2567.927413 | AE29: 3264.498696 | AF29: 3319.36948 | AG29: 3673.907126 | AH29: 2915.462459 | AI29: 2448.038592 | AK29: 1939 | AL29: =C217 -> 3250 | AM29: =C218 -> 3187.423177 | AN29: =C219 -> 3230.064043 | AO29: =C220 -> 3381.841188 | AP29: =C221 -> 3506.485662 | AQ29: =C222 -> 3923.00457 | AR29: =C223 -> 3814.801488 | AS29: =C224 -> 3599.686442 | AT29: =C225 -> 3261.229545 | AU29: =C226 -> 2893.373965 | AV29: =C227 -> 2614.765136 | AW29: =C228 -> 2551.63504 | AY29: 3051.309521 | AZ29: 3019.173937 | BA29: 3267.859188 | BC29: 3378.463271 | BD29: 2605.611858 | BE29: 3264.601954 | BF29: 3319.619884 | BG29: 3680.337526 | BH29: 2961.257347 | BI29: 2472.64969 | BK29: 1939 | BL29: =D217 -> 3250 | BM29: =D218 -> 3202.310492 | BN29: =D219 -> 3262.579646 | BO29: =D220 -> 3414.335375 | BP29: =D221 -> 3538.957 | BQ29: =D222 -> 3955.434019 | BR29: =D223 -> 3858.134466 | BS29: =D224 -> 3634.203956 | BT29: =D225 -> 3295.598478 | BU29: =D226 -> 2932.353336 | BV29: =D227 -> 2651.736744 | BW29: =D228 -> 2583.345733 | BY29: 3083.457832 | BZ29: 3044.559939 | CA29: 3298.249104 | CC29: 3404.179905 | CD29: 2652.657725 | CE29: 3280.514456 | CF29: 3349.182922 | CG29: 3716.262545 | CH29: 2997.115851 | CI29: 2521.153408 | CK29: 1939 | CL29: =E217 -> 3250 | CM29: =E218 -> 3187.424235 | CN29: =E219 -> 3230.0644 | CO29: =E220 -> 3381.841545 | CP29: =E221 -> 3506.486018 | CQ29: =E222 -> 3923.004926 | CR29: =E223 -> 3814.802546 | CS29: =E224 -> 3599.687324 | CT29: =E225 -> 3261.230422 | CU29: =E226 -> 2893.375999 | CV29: =E227 -> 2614.764369 | CW29: =E228 -> 2551.638665 | CY29: 3051.710037 | CZ29: 3019.990409 | DA29: 3267.860037 | DC29: 3378.463732 | DD29: 2605.589716 | DE29: 3264.602352 | DF29: 3319.620357 | DG29: 3680.338254 | DH29: 2961.258446 | DI29: 2472.594244 | DK29: 1939 | DL29: =F217 -> 3250 | DM29: =F218 -> 3202.313107 | DN29: =F219 -> 3262.581618 | DO29: =F220 -> 3414.337345 | DP29: =F221 -> 3538.958969 | DQ29: =F222 -> 3955.435986 | DR29: =F223 -> 3858.142653 | DS29: =F224 -> 3640.050337 | DT29: =F225 -> 3342.316132 | DU29: =F226 -> 3070.02457 | DV29: =F227 -> 2842.596433 | DW29: =F228 -> 2799.929982 | DY29: 3184.801947 | DZ29: 3165.26507 | EA29: 3348.057261 | EC29: 3404.181806 | ED29: 2846.00481 | EE29: 3280.515849 | EF29: 3349.185 | EG29: 3723.566632 | EH29: 3118.731824 | EI29: 2724.069764 | EK29: 1939 | EL29: =G217 -> 3250 | EM29: =G218 -> 3202.327659 | EN29: =G219 -> 3262.585535 | EO29: =G220 -> 3414.34126 | EP29: =G221 -> 3538.962881 | EQ29: =G222 -> 3955.439893 | ER29: =G223 -> 3858.153309 | ES29: =G224 -> 3640.058845 | ET29: =G225 -> 3342.32681 | EU29: =G226 -> 3070.039531 | EV29: =G227 -> 2842.638685 | EW29: =G228 -> 2799.979924 | EY29: 3184.820255 | EZ29: 3165.283604 | FA29: 3348.071195 | FC29: 3404.187456 | FD29: 2846.046582 | FE29: 3280.520956 | FF29: 3349.190688 | FG29: 3723.574223 | FH29: 3118.756103 | FI29: 2724.11207
A30: 1923-03-31 | B30: =INDIRECT(CONCATENATE("'",B$1,"'!",B$4,(YEAR($A30)-1921)*12+MONTH($A30)+3+IF(ISNUMBER(FIND("PRV",B$6)),1,0)))*IF(AND(B$3>0,TRIM(B$9)="CFS"),Conv_Flags!$C30,1) -> 3769.078447 | C30: =INDIRECT(CONCATENATE("'",C$1,"'!",C$4,(YEAR($A30)-1921)*12+MONTH($A30)+3+IF(ISNUMBER(FIND("PRV",C$6)),1,0)))*IF(AND(C$3>0,TRIM(C$9)="CFS"),Conv_Flags!$C30,1) -> 3770.060972 | D30: =INDIRECT(CONCATENATE("'",D$1,"'!",D$4,(YEAR($A30)-1921)*12+MONTH($A30)+3+IF(ISNUMBER(FIND("PRV",D$6)),1,0)))*IF(AND(D$3>0,TRIM(D$9)="CFS"),Conv_Flags!$C30,1) -> 3776.496516 | E30: =INDIRECT(CONCATENATE("'",E$1,"'!",E$4,(YEAR($A30)-1921)*12+MONTH($A30)+3+IF(ISNUMBER(FIND("PRV",E$6)),1,0)))*IF(AND(E$3>0,TRIM(E$9)="CFS"),Conv_Flags!$C30,1) -> 3770.060972 | F30: =INDIRECT(CONCATENATE("'",F$1,"'!",F$4,(YEAR($A30)-1921)*12+MONTH($A30)+3+IF(ISNUMBER(FIND("PRV",F$6)),1,0)))*IF(AND(F$3>0,TRIM(F$9)="CFS"),Conv_Flags!$C30,1) -> 3806.529092 | G30: =INDIRECT(CONCATENATE("'",G$1,"'!",G$4,(YEAR($A30)-1921)*12+MONTH($A30)+3+IF(ISNUMBER(FIND("PRV",G$6)),1,0)))*IF(AND(G$3>0,TRIM(G$9)="CFS"),Conv_Flags!$C30,1) -> 3806.52911 | K30: 1940 | L30: =B229 -> 2396.832398 | M30: =B230 -> 2281.636127 | N30: =B231 -> 2341.481314 | O30: =B232 -> 3233.668929 | P30: =B233 -> 3252 | Q30: =B234 -> 3435 | R30: =B235 -> 4224.490492 | S30: =B236 -> 4275.078592 | T30: =B237 -> 4045.088517 | U30: =B238 -> 3316.358412 | V30: =B239 -> 2907.610004 | W30: =B240 -> 2656.455073 | Y30: 3296.648447 | Z30: 3317.842703 | AA30: 3197.141655 | AC30: 2804.940514 | AD30: 2830.597139 | AE30: 2474.54968 | AF30: 2780.656102 | AG30: 3895.778336 | AH30: 3433.705941 | AI30: 2613.44096 | AK30: 1940 | AL30: =C229 -> 2407.496833 | AM30: =C230 -> 2302.869259 | AN30: =C231 -> 2358.525128 | AO30: =C232 -> 3250.699837 | AP30: =C233 -> 3252 | AQ30: =C234 -> 3435 | AR30: =C235 -> 4224.490493 | AS30: =C236 -> 4296.632854 | AT30: =C237 -> 4014.241594 | AU30: =C238 -> 3296.907067 | AV30: =C239 -> 2903.524236 | AW30: =C240 -> 2674.622891 | AY30: 3299.624497 | AZ30: 3319.39951 | BA30: 3201.417516 | BC30: 2817.068528 | BD30: 2835.208885 | BE30: 2492.514665 | BF30: 2795.553198 | BG30: 3897.311036 | BH30: 3425.075192 | BI30: 2627.532832 | BK30: 1940 | BL30: =D229 -> 2513.428057 | BM30: =D230 -> 2281.636127 | BN30: =D231 -> 2342.330689 | BO30: =D232 -> 3234.517661 | BP30: =D233 -> 3252 | BQ30: =D234 -> 3435 | BR30: =D235 -> 4224.490493 | BS30: =D236 -> 4296.786252 | BT30: =D237 -> 4112.220585 | BU30: =D238 -> 3383.230089 | BV30: =D239 -> 2962.352491 | BW30: =D240 -> 2712.717765 | BY30: 3327.994162 | BZ30: 3349.11769 | CA30: 3229.225851 | CC30: 2816.939701 | CD30: 2888.127288 | CE30: 2511.581642 | CF30: 2781.222138 | CG30: 3909.596759 | CH30: 3490.638793 | CI30: 2668.799292 | CK30: 1940 | CL30: =E229 -> 2407.356226 | CM30: =E230 -> 2302.811313 | CN30: =E231 -> 2363.521095 | CO30: =E232 -> 3255.692021 | CP30: =E233 -> 3252 | CQ30: =E234 -> 3435 | CR30: =E235 -> 4224.490493 | CS30: =E236 -> 4296.640227 | CT30: =E237 -> 4014.253823 | CU30: =E238 -> 3298.983675 | CV30: =E239 -> 2905.442904 | CW30: =E240 -> 2676.005548 | CY30: 3300.609448 | CZ30: 3319.968446 | DA30: 3202.68311 | DC30: 2819.040509 | DD30: 2836.882892 | DE30: 2494.338494 | DF30: 2798.872924 | DG30: 3897.314408 | DH30: 3426.250822 | DI30: 2628.779242 | DK30: 1940 | DL30: =F229 -> 2720.951458 | DM30: =F230 -> 2460.059269 | DN30: =F231 -> 2574.820233 | DO30: =F232 -> 3466.853788 | DP30: =F233 -> 3252 | DQ30: =F234 -> 3435 | DR30: =F235 -> 4224.490493 | DS30: =F236 -> 4297.211246 | DT30: =F237 -> 4175.446893 | DU30: =F238 -> 3446.211157 | DV30: =F239 -> 3038.104596 | DW30: =F240 -> 2788.360657 | DY30: 3383.027454 | DZ30: 3384.789638 | EA30: 3323.292483 | EC30: 2966.341804 | ED30: 2961.640842 | EE30: 2722.305711 | EF30: 2965.901219 | EG30: 3917.606296 | EH30: 3550.63715 | EI30: 2744.196653 | EK30: 1940 | EL30: =G229 -> 2721.002743 | EM30: =G230 -> 2460.068397 | EN30: =G231 -> 2574.830781 | EO30: =G232 -> 3466.864329 | EP30: =G233 -> 3252 | EQ30: =G234 -> 3435 | ER30: =G235 -> 4224.490493 | ES30: =G236 -> 4297.222015 | ET30: =G237 -> 4175.468904 | EU30: =G238 -> 3446.233083 | EV30: =G239 -> 3038.886682 | EW30: =G240 -> 2789.982832 | EY30: 3383.507775 | EZ30: 3385.269081 | FA30: 3323.504188 | FC30: 2966.352976 | FD30: 2962.720915 | FE30: 2722.331012 | FF30: 2965.909769 | FG30: 3917.61174 | FH30: 3551.047773 | FI30: 2745.691782
A31: 1923-04-30 | B31: =INDIRECT(CONCATENATE("'",B$1,"'!",B$4,(YEAR($A31)-1921)*12+MONTH($A31)+3+IF(ISNUMBER(FIND("PRV",B$6)),1,0)))*IF(AND(B$3>0,TRIM(B$9)="CFS"),Conv_Flags!$C31,1) -> 4229.79085 | C31: =INDIRECT(CONCATENATE("'",C$1,"'!",C$4,(YEAR($A31)-1921)*12+MONTH($A31)+3+IF(ISNUMBER(FIND("PRV",C$6)),1,0)))*IF(AND(C$3>0,TRIM(C$9)="CFS"),Conv_Flags!$C31,1) -> 4239.576444 | D31: =INDIRECT(CONCATENATE("'",D$1,"'!",D$4,(YEAR($A31)-1921)*12+MONTH($A31)+3+IF(ISNUMBER(FIND("PRV",D$6)),1,0)))*IF(AND(D$3>0,TRIM(D$9)="CFS"),Conv_Flags!$C31,1) -> 4246.003274 | E31: =INDIRECT(CONCATENATE("'",E$1,"'!",E$4,(YEAR($A31)-1921)*12+MONTH($A31)+3+IF(ISNUMBER(FIND("PRV",E$6)),1,0)))*IF(AND(E$3>0,TRIM(E$9)="CFS"),Conv_Flags!$C31,1) -> 4239.576444 | F31: =INDIRECT(CONCATENATE("'",F$1,"'!",F$4,(YEAR($A31)-1921)*12+MONTH($A31)+3+IF(ISNUMBER(FIND("PRV",F$6)),1,0)))*IF(AND(F$3>0,TRIM(F$9)="CFS"),Conv_Flags!$C31,1) -> 4275.995115 | G31: =INDIRECT(CONCATENATE("'",G$1,"'!",G$4,(YEAR($A31)-1921)*12+MONTH($A31)+3+IF(ISNUMBER(FIND("PRV",G$6)),1,0)))*IF(AND(G$3>0,TRIM(G$9)="CFS"),Conv_Flags!$C31,1) -> 4275.995133 | K31: 1941 | L31: =B241 -> 2539.094267 | M31: =B242 -> 2381.937076 | N31: =B243 -> 3293 | O31: =B244 -> 3317 | P31: =B245 -> 3423 | Q31: =B246 -> 3940 | R31: =B247 -> 4456 | S31: =B248 -> 4552 | T31: =B249 -> 4500 | U31: =B250 -> 4150 | V31: =B251 -> 3700 | W31: =B252 -> 3400 | Y31: 3771.333333 | Z31: 3785.083333 | AA31: 3637.669279 | AC31: 3130.896842 | AD31: 3600 | AE31: 2800.18972 | AF31: 3170.822846 | AG31: 4227.375 | AH31: 4081.5 | AI31: 3375.333333 | AK31: 1941 | AL31: =C241 -> 2558.051986 | AM31: =C242 -> 2396.323 | AN31: =C243 -> 3293 | AO31: =C244 -> 3317 | AP31: =C245 -> 3423 | AQ31: =C246 -> 3940 | AR31: =C247 -> 4456 | AS31: =C248 -> 4552 | AT31: =C249 -> 4500 | AU31: =C250 -> 4150 | AV31: =C251 -> 3700 | AW31: =C252 -> 3400 | AY31: 3771.021521 | AZ31: 3784.771521 | BA31: 3640.447916 | BC31: 3135.669799 | BD31: 3600 | BE31: 2810.796608 | BF31: 3173.2205 | BG31: 4227.375 | BH31: 4081.5 | BI31: 3374.70971 | BK31: 1941 | BL31: =D241 -> 2595.393125 | BM31: =D242 -> 2434.22148 | BN31: =D243 -> 3293 | BO31: =D244 -> 3317 | BP31: =D245 -> 3423 | BQ31: =D246 -> 3940 | BR31: =D247 -> 4456 | BS31: =D248 -> 4552 | BT31: =D249 -> 4500 | BU31: =D250 -> 4150 | BV31: =D251 -> 3700 | BW31: =D252 -> 3400 | BY31: 3771.023718 | BZ31: 3784.773718 | CA31: 3646.717884 | CC31: 3146.983609 | CD31: 3600 | CE31: 2834.368372 | CF31: 3179.536913 | CG31: 4227.375 | CH31: 4081.5 | CI31: 3374.714102 | CK31: 1941 | CL31: =E241 -> 2559.416771 | CM31: =E242 -> 2396.387913 | CN31: =E243 -> 3293 | CO31: =E244 -> 3317 | CP31: =E245 -> 3423 | CQ31: =E246 -> 3940 | CR31: =E247 -> 4456 | CS31: =E248 -> 4552 | CT31: =E249 -> 4500 | CU31: =E250 -> 4150 | CV31: =E251 -> 3700 | CW31: =E252 -> 3400 | CY31: 3771.024147 | CZ31: 3784.774147 | DA31: 3640.567057 | DC31: 3135.81926 | DD31: 3600 | DE31: 2811.326865 | DF31: 3173.231319 | DG31: 4227.375 | DH31: 4081.5 | DI31: 3374.714961 | DK31: 1941 | DL31: =F241 -> 2670.703388 | DM31: =F242 -> 2508.947231 | DN31: =F243 -> 3293 | DO31: =F244 -> 3317 | DP31: =F245 -> 3423 | DQ31: =F246 -> 3940 | DR31: =F247 -> 4456 | DS31: =F248 -> 4552 | DT31: =F249 -> 4500 | DU31: =F250 -> 4150 | DV31: =F251 -> 3700 | DW31: =F252 -> 3400 | DY31: 3771.019846 | DZ31: 3784.769846 | EA31: 3659.220885 | EC31: 3169.459785 | ED31: 3600 | EE31: 2881.332737 | EF31: 3191.991205 | EG31: 4227.375 | EH31: 4081.5 | EI31: 3374.706359 | EK31: 1941 | EL31: =G241 -> 2672.35338 | EM31: =G242 -> 2510.591584 | EN31: =G243 -> 3293 | EO31: =G244 -> 3317 | EP31: =G245 -> 3423 | EQ31: =G246 -> 3940 | ER31: =G247 -> 4456 | ES31: =G248 -> 4552 | ET31: =G249 -> 4500 | EU31: =G250 -> 4150 | EV31: =G251 -> 3700 | EW31: =G252 -> 3400 | EY31: 3771.019188 | EZ31: 3784.769188 | FA31: 3659.495414 | FC31: 3169.953655 | FD31: 3600 | FE31: 2882.359095 | FF31: 3192.265264 | FG31: 4227.375 | FH31: 4081.5 | FI31: 3374.705042
A32: 1923-05-31 | B32: =INDIRECT(CONCATENATE("'",B$1,"'!",B$4,(YEAR($A32)-1921)*12+MONTH($A32)+3+IF(ISNUMBER(FIND("PRV",B$6)),1,0)))*IF(AND(B$3>0,TRIM(B$9)="CFS"),Conv_Flags!$C32,1) -> 3964.600475 | C32: =INDIRECT(CONCATENATE("'",C$1,"'!",C$4,(YEAR($A32)-1921)*12+MONTH($A32)+3+IF(ISNUMBER(FIND("PRV",C$6)),1,0)))*IF(AND(C$3>0,TRIM(C$9)="CFS"),Conv_Flags!$C32,1) -> 3984.967735 | D32: =INDIRECT(CONCATENATE("'",D$1,"'!",D$4,(YEAR($A32)-1921)*12+MONTH($A32)+3+IF(ISNUMBER(FIND("PRV",D$6)),1,0)))*IF(AND(D$3>0,TRIM(D$9)="CFS"),Conv_Flags!$C32,1) -> 3991.377675 | E32: =INDIRECT(CONCATENATE("'",E$1,"'!",E$4,(YEAR($A32)-1921)*12+MONTH($A32)+3+IF(ISNUMBER(FIND("PRV",E$6)),1,0)))*IF(AND(E$3>0,TRIM(E$9)="CFS"),Conv_Flags!$C32,1) -> 3984.967735 | F32: =INDIRECT(CONCATENATE("'",F$1,"'!",F$4,(YEAR($A32)-1921)*12+MONTH($A32)+3+IF(ISNUMBER(FIND("PRV",F$6)),1,0)))*IF(AND(F$3>0,TRIM(F$9)="CFS"),Conv_Flags!$C32,1) -> 4021.017572 | G32: =INDIRECT(CONCATENATE("'",G$1,"'!",G$4,(YEAR($A32)-1921)*12+MONTH($A32)+3+IF(ISNUMBER(FIND("PRV",G$6)),1,0)))*IF(AND(G$3>0,TRIM(G$9)="CFS"),Conv_Flags!$C32,1) -> 4021.017638 | K32: 1942 | L32: =B253 -> 3250 | M32: =B254 -> 3252 | N32: =B255 -> 3316 | O32: =B256 -> 3389 | P32: =B257 -> 3516 | Q32: =B258 -> 3796.880095 | R32: =B259 -> 4527.293537 | S32: =B260 -> 4552 | T32: =B261 -> 4500 | U32: =B262 -> 4150 | V32: =B263 -> 3700 | W32: =B264 -> 3400 | Y32: 3782.431136 | Z32: 3822.764469 | AA32: 3779.097803 | AC32: 3399.288009 | AD32: 3600 | AE32: 3303.125 | AF32: 3363 | AG32: 4221.043408 | AH32: 4081.5 | AI32: 3375.333333 | AK32: 1942 | AL32: =C253 -> 3250 | AM32: =C254 -> 3248.258258 | AN32: =C255 -> 3316 | AO32: =C256 -> 3389 | AP32: =C257 -> 3516 | AQ32: =C258 -> 3796.880095 | AR32: =C259 -> 4531.933699 | AS32: =C260 -> 4552 | AT32: =C261 -> 4500 | AU32: =C262 -> 4150 | AV32: =C263 -> 3700 | AW32: =C264 -> 3400 | AY32: 3782.817816 | AZ32: 3823.151149 | BA32: 3779.172671 | BC32: 3398.539661 | BD32: 3600 | BE32: 3302.189564 | BF32: 3362.376376 | BG32: 4222.203448 | BH32: 4081.5 | BI32: 3375.333333 | BK32: 1942 | BL32: =D253 -> 3250 | BM32: =D254 -> 3248.284611 | BN32: =D255 -> 3316 | BO32: =D256 -> 3389 | BP32: =D257 -> 3516 | BQ32: =D258 -> 3796.880095 | BR32: =D259 -> 4531.933699 | BS32: =D260 -> 4552 | BT32: =D261 -> 4500 | BU32: =D262 -> 4150 | BV32: =D263 -> 3700 | BW32: =D264 -> 3400 | BY32: 3782.817816 | BZ32: 3823.151149 | CA32: 3779.174867 | CC32: 3398.544932 | CD32: 3600 | CE32: 3302.196153 | CF32: 3362.380769 | CG32: 4222.203448 | CH32: 4081.5 | CI32: 3375.333333 | CK32: 1942 | CL32: =E253 -> 3250 | CM32: =E254 -> 3248.289766 | CN32: =E255 -> 3316 | CO32: =E256 -> 3389 | CP32: =E257 -> 3516 | CQ32: =E258 -> 3796.880095 | CR32: =E259 -> 4531.933699 | CS32: =E260 -> 4552 | CT32: =E261 -> 4500 | CU32: =E262 -> 4150 | CV32: =E263 -> 3700 | CW32: =E264 -> 3400 | CY32: 3782.817816 | CZ32: 3823.151149 | DA32: 3779.175297 | DC32: 3398.545963 | DD32: 3600 | DE32: 3302.197441 | DF32: 3362.381628 | DG32: 4222.203448 | DH32: 4081.5 | DI32: 3375.333333 | DK32: 1942 | DL32: =F253 -> 3250 | DM32: =F254 -> 3248.238157 | DN32: =F255 -> 3316 | DO32: =F256 -> 3389 | DP32: =F257 -> 3516 | DQ32: =F258 -> 3796.880095 | DR32: =F259 -> 4531.933699 | DS32: =F260 -> 4552 | DT32: =F261 -> 4500 | DU32: =F262 -> 4150 | DV32: =F263 -> 3700 | DW32: =F264 -> 3400 | DY32: 3782.817816 | DZ32: 3823.151149 | EA32: 3779.170996 | EC32: 3398.535641 | ED32: 3600 | EE32: 3302.184539 | EF32: 3362.373026 | EG32: 4222.203448 | EH32: 4081.5 | EI32: 3375.333333 | EK32: 1942 | EL32: =G253 -> 3250 | EM32: =G254 -> 3248.230253 | EN32: =G255 -> 3316 | EO32: =G256 -> 3389 | EP32: =G257 -> 3516 | EQ32: =G258 -> 3796.880095 | ER32: =G259 -> 4531.933699 | ES32: =G260 -> 4552 | ET32: =G261 -> 4500 | EU32: =G262 -> 4150 | EV32: =G263 -> 3700 | EW32: =G264 -> 3400 | EY32: 3782.817816 | EZ32: 3823.151149 | FA32: 3779.170337 | FC32: 3398.53406 | FD32: 3600 | FE32: 3302.182563 | FF32: 3362.371709 | FG32: 4222.203448 | FH32: 4081.5 | FI32: 3375.333333
A33: 1923-06-30 | B33: =INDIRECT(CONCATENATE("'",B$1,"'!",B$4,(YEAR($A33)-1921)*12+MONTH($A33)+3+IF(ISNUMBER(FIND("PRV",B$6)),1,0)))*IF(AND(B$3>0,TRIM(B$9)="CFS"),Conv_Flags!$C33,1) -> 3642.950162 | C33: =INDIRECT(CONCATENATE("'",C$1,"'!",C$4,(YEAR($A33)-1921)*12+MONTH($A33)+3+IF(ISNUMBER(FIND("PRV",C$6)),1,0)))*IF(AND(C$3>0,TRIM(C$9)="CFS"),Conv_Flags!$C33,1) -> 3668.989847 | D33: =INDIRECT(CONCATENATE("'",D$1,"'!",D$4,(YEAR($A33)-1921)*12+MONTH($A33)+3+IF(ISNUMBER(FIND("PRV",D$6)),1,0)))*IF(AND(D$3>0,TRIM(D$9)="CFS"),Conv_Flags!$C33,1) -> 3675.367982 | E33: =INDIRECT(CONCATENATE("'",E$1,"'!",E$4,(YEAR($A33)-1921)*12+MONTH($A33)+3+IF(ISNUMBER(FIND("PRV",E$6)),1,0)))*IF(AND(E$3>0,TRIM(E$9)="CFS"),Conv_Flags!$C33,1) -> 3668.989847 | F33: =INDIRECT(CONCATENATE("'",F$1,"'!",F$4,(YEAR($A33)-1921)*12+MONTH($A33)+3+IF(ISNUMBER(FIND("PRV",F$6)),1,0)))*IF(AND(F$3>0,TRIM(F$9)="CFS"),Conv_Flags!$C33,1) -> 3799.825325 | G33: =INDIRECT(CONCATENATE("'",G$1,"'!",G$4,(YEAR($A33)-1921)*12+MONTH($A33)+3+IF(ISNUMBER(FIND("PRV",G$6)),1,0)))*IF(AND(G$3>0,TRIM(G$9)="CFS"),Conv_Flags!$C33,1) -> 3794.012156 | K33: 1943 | L33: =B265 -> 3250 | M33: =B266 -> 3252 | N33: =B267 -> 3356 | O33: =B268 -> 3541 | P33: =B269 -> 3848 | Q33: =B270 -> 4118 | R33: =B271 -> 4552 | S33: =B272 -> 4552 | T33: =B273 -> 4386.826283 | U33: =B274 -> 3723.779252 | V33: =B275 -> 3358.904112 | W33: =B276 -> 3102.077961 | Y33: 3654.170533 | Z33: 3544.168541 | AA33: 3753.382301 | AC33: 3536.2 | AD33: 3280.361221 | AE33: 3332.125 | AF33: 3482.333333 | AG33: 4334.853285 | AH33: 3824.137157 | AI33: 3080.393223 | AK33: 1943 | AL33: =C265 -> 3250 | AM33: =C266 -> 3252 | AN33: =C267 -> 3356 | AO33: =C268 -> 3541 | AP33: =C269 -> 3848 | AQ33: =C270 -> 4118 | AR33: =C271 -> 4552 | AS33: =C272 -> 4552 | AT33: =C273 -> 4404.732338 | AU33: =C274 -> 3741.598543 | AV33: =C275 -> 3376.059612 | AW33: =C276 -> 3119.282881 | AY33: 3664.298644 | AZ33: 3557.15027 | BA33: 3759.222781 | BC33: 3536.2 | BD33: 3297.645499 | BE33: 3332.125 | BF33: 3482.333333 | BG33: 4337.091542 | BH33: 3839.507984 | BI33: 3097.567004 | BK33: 1943 | BL33: =D265 -> 3250 | BM33: =D266 -> 3252 | BN33: =D267 -> 3356 | BO33: =D268 -> 3541 | BP33: =D269 -> 3848 | BQ33: =D270 -> 4118 | BR33: =D271 -> 4552 | BS33: =D272 -> 4552 | BT33: =D273 -> 4404.754979 | BU33: =D274 -> 3741.621075 | BV33: =D275 -> 3376.119761 | BW33: =D276 -> 3119.369419 | BY33: 3667.368281 | BZ33: 3563.312503 | CA33: 3759.238769 | CC33: 3536.2 | CD33: 3297.71606 | CE33: 3332.125 | CF33: 3482.333333 | CG33: 4337.094372 | CH33: 3839.545131 | CI33: 3100.635231 | CK33: 1943 | CL33: =E265 -> 3250 | CM33: =E266 -> 3252 | CN33: =E267 -> 3356 | CO33: =E268 -> 3541 | CP33: =E269 -> 3848 | CQ33: =E270 -> 4118 | CR33: =E271 -> 4552 | CS33: =E272 -> 4552 | CT33: =E273 -> 4404.736512 | CU33: =E274 -> 3741.602698 | CV33: =E275 -> 3376.06717 | CW33: =E276 -> 3119.292717 | CY33: 3664.304075 | CZ33: 3557.158159 | DA33: 3759.224925 | DC33: 3536.2 | DD33: 3297.653958 | DE33: 3332.125 | DF33: 3482.333333 | DG33: 4337.092064 | DH33: 3839.513185 | DI33: 3097.577626 | DK33: 1943 | DL33: =F265 -> 3250 | DM33: =F266 -> 3252 | DN33: =F267 -> 3356 | DO33: =F268 -> 3541 | DP33: =F269 -> 3848 | DQ33: =F270 -> 4118 | DR33: =F271 -> 4552 | DS33: =F272 -> 4552 | DT33: =F273 -> 4404.762859 | DU33: =F274 -> 3741.628917 | DV33: =F275 -> 3375.834691 | DW33: =F276 -> 3118.358072 | DY33: 3667.005684 | DZ33: 3562.781361 | EA33: 3759.132045 | EC33: 3536.2 | ED33: 3297.112918 | EE33: 3332.125 | EF33: 3482.333333 | EG33: 4337.095357 | EH33: 3839.351376 | EI33: 3099.73527 | EK33: 1943 | EL33: =G265 -> 3250 | EM33: =G266 -> 3252 | EN33: =G267 -> 3356 | EO33: =G268 -> 3541 | EP33: =G269 -> 3848 | EQ33: =G270 -> 4118 | ER33: =G271 -> 4552 | ES33: =G272 -> 4552 | ET33: =G273 -> 4404.779404 | EU33: =G274 -> 3741.645382 | EV33: =G275 -> 3376.189432 | EW33: =G276 -> 3119.491567 | EY33: 3667.424963 | EZ33: 3563.395565 | FA33: 3759.258815 | FC33: 3536.2 | FD33: 3297.806853 | FE33: 3332.125 | FF33: 3482.333333 | FG33: 4337.097426 | FH33: 3839.59 | FI33: 3100.757224
A34: 1923-07-31 | B34: =INDIRECT(CONCATENATE("'",B$1,"'!",B$4,(YEAR($A34)-1921)*12+MONTH($A34)+3+IF(ISNUMBER(FIND("PRV",B$6)),1,0)))*IF(AND(B$3>0,TRIM(B$9)="CFS"),Conv_Flags!$C34,1) -> 3264.73171 | C34: =INDIRECT(CONCATENATE("'",C$1,"'!",C$4,(YEAR($A34)-1921)*12+MONTH($A34)+3+IF(ISNUMBER(FIND("PRV",C$6)),1,0)))*IF(AND(C$3>0,TRIM(C$9)="CFS"),Conv_Flags!$C34,1) -> 3295.257719 | D34: =INDIRECT(CONCATENATE("'",D$1,"'!",D$4,(YEAR($A34)-1921)*12+MONTH($A34)+3+IF(ISNUMBER(FIND("PRV",D$6)),1,0)))*IF(AND(D$3>0,TRIM(D$9)="CFS"),Conv_Flags!$C34,1) -> 3298.201907 | E34: =INDIRECT(CONCATENATE("'",E$1,"'!",E$4,(YEAR($A34)-1921)*12+MONTH($A34)+3+IF(ISNUMBER(FIND("PRV",E$6)),1,0)))*IF(AND(E$3>0,TRIM(E$9)="CFS"),Conv_Flags!$C34,1) -> 3295.257719 | F34: =INDIRECT(CONCATENATE("'",F$1,"'!",F$4,(YEAR($A34)-1921)*12+MONTH($A34)+3+IF(ISNUMBER(FIND("PRV",F$6)),1,0)))*IF(AND(F$3>0,TRIM(F$9)="CFS"),Conv_Flags!$C34,1) -> 3380.429278 | G34: =INDIRECT(CONCATENATE("'",G$1,"'!",G$4,(YEAR($A34)-1921)*12+MONTH($A34)+3+IF(ISNUMBER(FIND("PRV",G$6)),1,0)))*IF(AND(G$3>0,TRIM(G$9)="CFS"),Conv_Flags!$C34,1) -> 3374.589163 | K34: 1944 | L34: =B277 -> 3036.423928 | M34: =B278 -> 2846.451451 | N34: =B279 -> 2784.583413 | O34: =B280 -> 2877.466406 | P34: =B281 -> 3191.509685 | Q34: =B282 -> 3516.926648 | R34: =B283 -> 3719.922464 | S34: =B284 -> 3687.174828 | T34: =B285 -> 3434.751782 | U34: =B286 -> 3000.647851 | V34: =B287 -> 2687.391081 | W34: =B288 -> 2637.760857 | Y34: 3091.006179 | Z34: 3186.16023 | AA34: 3118.417533 | AC34: 2995.337249 | AD34: 2699.040904 | AE34: 2914.307744 | AF34: 2893.676796 | AG34: 3559.288669 | AH34: 3071.314639 | AI34: 2632.061999 | AK34: 1944 | AL34: =C277 -> 3053.589463 | AM34: =C278 -> 2863.597722 | AN34: =C279 -> 2801.723163 | AO34: =C280 -> 2894.594714 | AP34: =C281 -> 3208.624806 | AQ34: =C282 -> 3534.018774 | AR34: =C283 -> 3736.985168 | AS34: =C284 -> 3700.651175 | AT34: =C285 -> 3444.413091 | AU34: =C286 -> 3007.705134 | AV34: =C287 -> 2690.373715 | AW34: =C288 -> 2645.060359 | AY34: 3102.347631 | AZ34: 3195.390635 | BA34: 3131.778107 | BC34: 3012.468905 | BD34: 2705.208187 | BE34: 2931.462286 | BF34: 2910.809714 | BG34: 3574.543516 | BH34: 3078.836927 | BI34: 2639.606857 | BK34: 1944 | BL34: =D277 -> 3053.696926 | BM34: =D278 -> 2881.558937 | BN34: =D279 -> 2820.298278 | BO34: =D280 -> 2913.157429 | BP34: =D281 -> 3227.17323 | BQ34: =D282 -> 3552.542277 | BR34: =D283 -> 3755.478447 | BS34: =D284 -> 3766.321953 | BT34: =D285 -> 3528.400212 | BU34: =D286 -> 3091.026259 | BV34: =D287 -> 2773.593588 | BW34: =D288 -> 2723.302941 | BY34: 3157.151604 | BZ34: 3252.133516 | CA34: 3173.879206 | CC34: 3029.061495 | CD34: 2784.282368 | CE34: 2942.954391 | CF34: 2929.27393 | CG34: 3613.03235 | CH34: 3159.458126 | CI34: 2712.36766 | CK34: 1944 | CL34: =E277 -> 3053.601273 | CM34: =E278 -> 2863.610606 | CN34: =E279 -> 2801.737923 | CO34: =E280 -> 2894.609464 | CP34: =E281 -> 3208.639545 | CQ34: =E282 -> 3534.033493 | CR34: =E283 -> 3736.999862 | CS34: =E284 -> 3700.667618 | CT34: =E285 -> 3444.42947 | CU34: =E286 -> 3007.731794 | CV34: =E287 -> 2690.400524 | CW34: =E288 -> 2645.088743 | CY34: 3102.369338 | CZ34: 3195.41238 | DA34: 3131.79586 | DC34: 3012.482984 | DD34: 2705.235528 | DE34: 2931.475223 | DF34: 2910.824154 | DG34: 3574.55887 | DH34: 3078.859992 | DI34: 2639.634781 | DK34: 1944 | DL34: =F277 -> 3052.663063 | DM34: =F278 -> 2880.534658 | DN34: =F279 -> 2819.285945 | DO34: =F280 -> 2912.145772 | DP34: =F281 -> 3226.162352 | DQ34: =F282 -> 3551.532757 | DR34: =F283 -> 3754.470563 | DS34: =F284 -> 3765.313938 | DT34: =F285 -> 3560.657598 | DU34: =F286 -> 3185.094416 | DV34: =F287 -> 2913.152754 | DW34: =F288 -> 2862.154085 | DY34: 3225.80961 | DZ34: 3333.073447 | EA34: 3206.930658 | EC34: 3028.045328 | ED34: 2914.962241 | EE34: 2941.933897 | EF34: 2928.260074 | EG34: 3616.181808 | EH34: 3243.159695 | EI34: 2850.568385 | EK34: 1944 | EL34: =G277 -> 3053.833738 | EM34: =G278 -> 2881.703302 | EN34: =G279 -> 2820.45673 | EO34: =G280 -> 2913.315776 | EP34: =G281 -> 3227.331455 | EQ34: =G282 -> 3552.700289 | ER34: =G283 -> 3755.636203 | ES34: =G284 -> 3766.486467 | ET34: =G285 -> 3560.692915 | EU34: =G286 -> 3183.684273 | EV34: =G287 -> 2910.381361 | EW34: =G288 -> 2859.437309 | EY34: 3222.363689 | EZ34: 3327.858925 | FA34: 3207.138318 | FC34: 3029.214855 | FD34: 2912.476811 | FE34: 2943.099361 | FF34: 2929.429961 | FG34: 3617.208786 | FH34: 3241.930109 | FI34: 2845.207147
A35: 1923-08-31 | B35: =INDIRECT(CONCATENATE("'",B$1,"'!",B$4,(YEAR($A35)-1921)*12+MONTH($A35)+3+IF(ISNUMBER(FIND("PRV",B$6)),1,0)))*IF(AND(B$3>0,TRIM(B$9)="CFS"),Conv_Flags!$C35,1) -> 2946.763879 | C35: =INDIRECT(CONCATENATE("'",C$1,"'!",C$4,(YEAR($A35)-1921)*12+MONTH($A35)+3+IF(ISNUMBER(FIND("PRV",C$6)),1,0)))*IF(AND(C$3>0,TRIM(C$9)="CFS"),Conv_Flags!$C35,1) -> 2987.588649 | D35: =INDIRECT(CONCATENATE("'",D$1,"'!",D$4,(YEAR($A35)-1921)*12+MONTH($A35)+3+IF(ISNUMBER(FIND("PRV",D$6)),1,0)))*IF(AND(D$3>0,TRIM(D$9)="CFS"),Conv_Flags!$C35,1) -> 2989.326513 | E35: =INDIRECT(CONCATENATE("'",E$1,"'!",E$4,(YEAR($A35)-1921)*12+MONTH($A35)+3+IF(ISNUMBER(FIND("PRV",E$6)),1,0)))*IF(AND(E$3>0,TRIM(E$9)="CFS"),Conv_Flags!$C35,1) -> 2987.588649 | F35: =INDIRECT(CONCATENATE("'",F$1,"'!",F$4,(YEAR($A35)-1921)*12+MONTH($A35)+3+IF(ISNUMBER(FIND("PRV",F$6)),1,0)))*IF(AND(F$3>0,TRIM(F$9)="CFS"),Conv_Flags!$C35,1) -> 3073.209668 | G35: =INDIRECT(CONCATENATE("'",G$1,"'!",G$4,(YEAR($A35)-1921)*12+MONTH($A35)+3+IF(ISNUMBER(FIND("PRV",G$6)),1,0)))*IF(AND(G$3>0,TRIM(G$9)="CFS"),Conv_Flags!$C35,1) -> 3067.407778 | K35: 1945 | L35: =B289 -> 2543.293697 | M35: =B290 -> 2742.871802 | N35: =B291 -> 3052.357049 | O35: =B292 -> 3262.824694 | P35: =B293 -> 3948 | Q35: =B294 -> 4266.697983 | R35: =B295 -> 4530.802107 | S35: =B296 -> 4552 | T35: =B297 -> 4314.983439 | U35: =B298 -> 3773.479087 | V35: =B299 -> 3385.226144 | W35: =B300 -> 3283.65164 | Y35: 3754.721385 | Z35: 3777.715749 | AA35: 3638.015637 | AC35: 3282.209877 | AD35: 3388.87103 | AE35: 2822.203831 | AF35: 3220.205881 | AG35: 4370.247953 | AH35: 3847.878622 | AI35: 3274.752079 | AK35: 1945 | AL35: =C289 -> 2552.675841 | AM35: =C290 -> 2751.795028 | AN35: =C291 -> 3061.273763 | AO35: =C292 -> 3271.735574 | AP35: =C293 -> 3948 | AQ35: =C294 -> 4266.697983 | AR35: =C295 -> 4530.802107 | AS35: =C296 -> 4552 | AT35: =C297 -> 4328.882995 | AU35: =C298 -> 3775.327392 | AV35: =C299 -> 3387.986364 | AW35: =C300 -> 3287.107698 | AY35: 3757.814079 | AZ35: 3780.06587 | BA35: 3642.857062 | BC35: 3288.498255 | BD35: 3392.290726 | BE35: 2831.03565 | BF35: 3227.635617 | BG35: 4371.985397 | BH35: 3852.93765 | BI35: 3278.443239 | BK35: 1945 | BL35: =D289 -> 2620.87489 | BM35: =D290 -> 2812.256708 | BN35: =D291 -> 3121.691315 | BO35: =D292 -> 3332.113601 | BP35: =D293 -> 3948 | BQ35: =D294 -> 4266.697983 | BR35: =D295 -> 4530.802107 | BS35: =D296 -> 4552 | BT35: =D297 -> 4359.639009 | BU35: =D298 -> 3792.982846 | BV35: =D299 -> 3407.485118 | BW35: =D300 -> 3307.247727 | BY35: 3771.33688 | BZ35: 3788.557168 | CA35: 3670.982609 | CC35: 3331.569612 | CD35: 3410.753784 | CE35: 2895.632796 | CF35: 3277.977757 | CG35: 4375.829899 | CH35: 3872.432709 | CI35: 3293.021484 | CK35: 1945 | CL35: =E289 -> 2552.702837 | CM35: =E290 -> 2751.825 | CN35: =E291 -> 3061.303712 | CO35: =E292 -> 3271.765504 | CP35: =E293 -> 3948 | CQ35: =E294 -> 4266.697983 | CR35: =E295 -> 4530.802107 | CS35: =E296 -> 4552 | CT35: =E297 -> 4328.885703 | CU35: =E298 -> 3775.330162 | CV35: =E299 -> 3388.033314 | CW35: =E300 -> 3287.159895 | CY35: 3757.827615 | CZ35: 3780.076912 | DA35: 3642.875518 | DC35: 3288.518925 | DD35: 3392.328883 | DE35: 2831.064668 | DF35: 3227.660572 | DG35: 4371.985736 | DH35: 3852.957282 | DI35: 3278.477756 | DK35: 1945 | DL35: =F289 -> 2754.065354 | DM35: =F290 -> 2957.818678 | DN35: =F291 -> 3267.147048 | DO35: =F292 -> 3477.474175 | DP35: =F293 -> 3948 | DQ35: =F294 -> 4266.697983 | DR35: =F295 -> 4530.802107 | DS35: =F296 -> 4552 | DT35: =F297 -> 4425.521694 | DU35: =F298 -> 3895.761188 | DV35: =F299 -> 3505.645847 | DW35: =F300 -> 3377.008798 | DY35: 3812.159316 | DZ35: 3817.266223 | EA35: 3746.495239 | EC35: 3432.164314 | ED35: 3485.178413 | EE35: 3037.211303 | EF35: 3399.176854 | EG35: 4384.065234 | EH35: 3947.858282 | EI35: 3335.27724 | EK35: 1945 | EL35: =G289 -> 2751.539254 | EM35: =G290 -> 2938.908398 | EN35: =G291 -> 3248.250569 | EO35: =G292 -> 3458.590059 | EP35: =G293 -> 3948 | EQ35: =G294 -> 4266.697983 | ER35: =G295 -> 4530.802107 | ES35: =G296 -> 4552 | ET35: =G297 -> 4425.514152 | EU35: =G298 -> 3890.853861 | EV35: =G299 -> 3500.767168 | EW35: =G300 -> 3377.270499 | EY35: 3809.791319 | EZ35: 3816.471903 | FA35: 3740.766171 | FC35: 3420.573529 | FD35: 3482.821532 | FE35: 3024.427976 | FF35: 3383.431609 | FG35: 4384.064292 | FH35: 3945.442608 | FI35: 3334.551361
A36: 1923-09-30 | B36: =INDIRECT(CONCATENATE("'",B$1,"'!",B$4,(YEAR($A36)-1921)*12+MONTH($A36)+3+IF(ISNUMBER(FIND("PRV",B$6)),1,0)))*IF(AND(B$3>0,TRIM(B$9)="CFS"),Conv_Flags!$C36,1) -> 2918.581988 | C36: =INDIRECT(CONCATENATE("'",C$1,"'!",C$4,(YEAR($A36)-1921)*12+MONTH($A36)+3+IF(ISNUMBER(FIND("PRV",C$6)),1,0)))*IF(AND(C$3>0,TRIM(C$9)="CFS"),Conv_Flags!$C36,1) -> 2951.114378 | D36: =INDIRECT(CONCATENATE("'",D$1,"'!",D$4,(YEAR($A36)-1921)*12+MONTH($A36)+3+IF(ISNUMBER(FIND("PRV",D$6)),1,0)))*IF(AND(D$3>0,TRIM(D$9)="CFS"),Conv_Flags!$C36,1) -> 2954.070677 | E36: =INDIRECT(CONCATENATE("'",E$1,"'!",E$4,(YEAR($A36)-1921)*12+MONTH($A36)+3+IF(ISNUMBER(FIND("PRV",E$6)),1,0)))*IF(AND(E$3>0,TRIM(E$9)="CFS"),Conv_Flags!$C36,1) -> 2951.114378 | F36: =INDIRECT(CONCATENATE("'",F$1,"'!",F$4,(YEAR($A36)-1921)*12+MONTH($A36)+3+IF(ISNUMBER(FIND("PRV",F$6)),1,0)))*IF(AND(F$3>0,TRIM(F$9)="CFS"),Conv_Flags!$C36,1) -> 3024.124448 | G36: =INDIRECT(CONCATENATE("'",G$1,"'!",G$4,(YEAR($A36)-1921)*12+MONTH($A36)+3+IF(ISNUMBER(FIND("PRV",G$6)),1,0)))*IF(AND(G$3>0,TRIM(G$9)="CFS"),Conv_Flags!$C36,1) -> 3019.606336 | K36: 1946 | L36: =B301 -> 3221.991525 | M36: =B302 -> 3252 | N36: =B303 -> 3265 | O36: =B304 -> 3622 | P36: =B305 -> 3864.757064 | Q36: =B306 -> 4260.087613 | R36: =B307 -> 4552 | S36: =B308 -> 4518.742268 | T36: =B309 -> 4149.731808 | U36: =B310 -> 3560.474951 | V36: =B311 -> 3246.753801 | W36: =B312 -> 3200 | Y36: 3679.181641 | Z36: 3603.917019 | AA36: 3726.128253 | AC36: 3548.959327 | AD36: 3246.588789 | AE36: 3297.954336 | AF36: 3481.792844 | AG36: 4334.518579 | AH36: 3704.082924 | AI36: 3119.900631 | AK36: 1946 | AL36: =C301 -> 3228.228838 | AM36: =C302 -> 3252 | AN36: =C303 -> 3265 | AO36: =C304 -> 3622 | AP36: =C305 -> 3864.757064 | AQ36: =C306 -> 4260.087613 | AR36: =C307 -> 4552 | AS36: =C308 -> 4530.037456 | AT36: =C309 -> 4158.911189 | AU36: =C310 -> 3570.447371 | AV36: =C311 -> 3257.518445 | AW36: =C312 -> 3214.725536 | AY36: 3684.126198 | AZ36: 3608.770864 | BA36: 3731.309459 | BC36: 3549.583058 | BD36: 3257.010977 | BE36: 3299.945672 | BF36: 3481.792844 | BG36: 4338.489799 | BH36: 3714.814625 | BI36: 3127.523699 | BK36: 1946 | BL36: =D301 -> 3242.074166 | BM36: =D302 -> 3252 | BN36: =D303 -> 3265 | BO36: =D304 -> 3622 | BP36: =D305 -> 3864.757064 | BQ36: =D306 -> 4260.087613 | BR36: =D307 -> 4552 | BS36: =D308 -> 4530.083164 | BT36: =D309 -> 4167.243912 | BU36: =D310 -> 3575.005695 | BV36: =D311 -> 3263.642637 | BW36: =D312 -> 3220.995759 | BY36: 3687.936559 | BZ36: 3613.715392 | CA36: 3734.574168 | CC36: 3550.967591 | CD36: 3262.97038 | CE36: 3305.924507 | CF36: 3481.792844 | CG36: 4339.542816 | CH36: 3720.357927 | CI36: 3133.966183 | CK36: 1946 | CL36: =E301 -> 3228.256716 | CM36: =E302 -> 3252 | CN36: =E303 -> 3265 | CO36: =E304 -> 3622 | CP36: =E305 -> 3864.757064 | CQ36: =E306 -> 4260.087613 | CR36: =E307 -> 4552 | CS36: =E308 -> 4530.040498 | CT36: =E309 -> 4158.915409 | CU36: =E310 -> 3570.531136 | CV36: =E311 -> 3257.653906 | CW36: =E312 -> 3214.848322 | CY36: 3684.184933 | CZ36: 3608.846172 | DA36: 3731.340889 | DC36: 3549.585846 | DD36: 3257.052437 | DE36: 3299.959166 | DF36: 3481.792844 | DG36: 4338.491087 | DH36: 3714.886215 | DI36: 3127.57129 | DK36: 1946 | DL36: =F301 -> 3250 | DM36: =F302 -> 3252 | DN36: =F303 -> 3265 | DO36: =F304 -> 3622 | DP36: =F305 -> 3864.757064 | DQ36: =F306 -> 4260.087613 | DR36: =F307 -> 4552 | DS36: =F308 -> 4530.193649 | DT36: =F309 -> 4189.160189 | DU36: =F310 -> 3595.39052 | DV36: =F311 -> 3284.118865 | DW36: =F312 -> 3241.410685 | DY36: 3702.314885 | DZ36: 3633.019042 | EA36: 3742.176549 | EC36: 3551.760174 | ED36: 3284.743761 | EE36: 3316.6261 | EF36: 3481.792844 | EG36: 4342.309972 | EH36: 3738.617935 | EI36: 3158.87174 | EK36: 1946 | EL36: =G301 -> 3250 | EM36: =G302 -> 3252 | EN36: =G303 -> 3265 | EO36: =G304 -> 3622 | EP36: =G305 -> 3864.757064 | EQ36: =G306 -> 4260.087613 | ER36: =G307 -> 4552 | ES36: =G308 -> 4530.209103 | ET36: =G309 -> 4188.348485 | EU36: =G310 -> 3594.662853 | EV36: =G311 -> 3283.453749 | EW36: =G312 -> 3240.76963 | EY36: 3702.391548 | EZ36: 3633.325736 | FA36: 3741.940708 | FC36: 3551.760174 | FD36: 3284.371375 | FE36: 3316.658812 | FF36: 3481.792844 | FG36: 4342.212372 | FH36: 3737.988613 | FI36: 3159.126215
A37: 1923-10-31 | B37: =INDIRECT(CONCATENATE("'",B$1,"'!",B$4,(YEAR($A37)-1921)*12+MONTH($A37)+3+IF(ISNUMBER(FIND("PRV",B$6)),1,0)))*IF(AND(B$3>0,TRIM(B$9)="CFS"),Conv_Flags!$C37,1) -> 2859.486952 | C37: =INDIRECT(CONCATENATE("'",C$1,"'!",C$4,(YEAR($A37)-1921)*12+MONTH($A37)+3+IF(ISNUMBER(FIND("PRV",C$6)),1,0)))*IF(AND(C$3>0,TRIM(C$9)="CFS"),Conv_Flags!$C37,1) -> 2882.268925 | D37: =INDIRECT(CONCATENATE("'",D$1,"'!",D$4,(YEAR($A37)-1921)*12+MONTH($A37)+3+IF(ISNUMBER(FIND("PRV",D$6)),1,0)))*IF(AND(D$3>0,TRIM(D$9)="CFS"),Conv_Flags!$C37,1) -> 2879.595914 | E37: =INDIRECT(CONCATENATE("'",E$1,"'!",E$4,(YEAR($A37)-1921)*12+MONTH($A37)+3+IF(ISNUMBER(FIND("PRV",E$6)),1,0)))*IF(AND(E$3>0,TRIM(E$9)="CFS"),Conv_Flags!$C37,1) -> 2882.268925 | F37: =INDIRECT(CONCATENATE("'",F$1,"'!",F$4,(YEAR($A37)-1921)*12+MONTH($A37)+3+IF(ISNUMBER(FIND("PRV",F$6)),1,0)))*IF(AND(F$3>0,TRIM(F$9)="CFS"),Conv_Flags!$C37,1) -> 2968.859115 | G37: =INDIRECT(CONCATENATE("'",G$1,"'!",G$4,(YEAR($A37)-1921)*12+MONTH($A37)+3+IF(ISNUMBER(FIND("PRV",G$6)),1,0)))*IF(AND(G$3>0,TRIM(G$9)="CFS"),Conv_Flags!$C37,1) -> 2964.38976 | K37: 1947 | L37: =B313 -> 3025.55018 | M37: =B314 -> 3021.549626 | N37: =B315 -> 3128.532387 | O37: =B316 -> 3159.013879 | P37: =B317 -> 3424.567715 | Q37: =B318 -> 3949.11043 | R37: =B319 -> 4189.159594 | S37: =B320 -> 3853.859382 | T37: =B321 -> 3539.466005 | U37: =B322 -> 3020.434302 | V37: =B323 -> 2728.536423 | W37: =B324 -> 2677.299546 | Y37: 3212.883712 | Z37: 3198.122546 | AA37: 3309.756622 | AC37: 3244.198782 | AD37: 2756.548519 | AE37: 3088.784783 | AF37: 3170.201645 | AG37: 3868.536567 | AH37: 3138.504049 | AI37: 2692.715857 | AK37: 1947 | AL37: =C313 -> 3027.130531 | AM37: =C314 -> 3023.911617 | AN37: =C315 -> 3127.987548 | AO37: =C316 -> 3158.469383 | AP37: =C317 -> 3424.023682 | AQ37: =C318 -> 3948.567202 | AR37: =C319 -> 4188.617467 | AS37: =C320 -> 3852.109752 | AT37: =C321 -> 3535.779034 | AU37: =C322 -> 3006.132183 | AV37: =C323 -> 2708.121985 | AW37: =C324 -> 2659.034618 | AY37: 3198.988786 | AZ37: 3177.859904 | BA37: 3304.990417 | BC37: 3244.448219 | BD37: 2736.39972 | BE37: 3091.406789 | BF37: 3170.141527 | BG37: 3867.298945 | BH37: 3126.401347 | BI37: 2668.478468 | BK37: 1947 | BL37: =D313 -> 3033.539794 | BM37: =D314 -> 3031.083357 | BN37: =D315 -> 3134.799715 | BO37: =D316 -> 3165.277275 | BP37: =D317 -> 3430.825788 | BQ37: =D318 -> 3955.359232 | BR37: =D319 -> 4195.395742 | BS37: =D320 -> 3858.73596 | BT37: =D321 -> 3541.139874 | BU37: =D322 -> 3016.394715 | BV37: =D323 -> 2718.909607 | BW37: =D324 -> 2668.722753 | BY37: 3207.278988 | BZ37: 3186.711489 | CA37: 3312.515318 | CC37: 3251.287129 | CD37: 2746.596166 | CE37: 3098.139846 | CF37: 3177.010521 | CG37: 3873.868441 | CH37: 3135.043388 | CI37: 2678.411527 | CK37: 1947 | CL37: =E313 -> 3026.77903 | CM37: =E314 -> 3024.519129 | CN37: =E315 -> 3128.087088 | CO37: =E316 -> 3158.56886 | CP37: =E317 -> 3424.123075 | CQ37: =E318 -> 3948.666448 | CR37: =E319 -> 4188.716512 | CS37: =E320 -> 3852.204365 | CT37: =E321 -> 3535.854784 | CU37: =E322 -> 3006.13492 | CV37: =E323 -> 2708.042233 | CW37: =E324 -> 2659.222751 | CY37: 3199.107085 | CZ37: 3178.011722 | DA37: 3305.0766 | DC37: 3244.604178 | DD37: 2736.456934 | DE37: 3091.52346 | DF37: 3170.325684 | DG37: 3867.394064 | DH37: 3126.436374 | DI37: 2668.630754 | DK37: 1947 | DL37: =F313 -> 3062.012951 | DM37: =F314 -> 3062.264303 | DN37: =F315 -> 3164.382785 | DO37: =F316 -> 3194.841781 | DP37: =F317 -> 3460.365166 | DQ37: =F318 -> 3984.854851 | DR37: =F319 -> 4224.831629 | DS37: =F320 -> 3892.993343 | DT37: =F321 -> 3571.105016 | DU37: =F322 -> 3053.105283 | DV37: =F323 -> 2760.364715 | DW37: =F324 -> 2709.040728 | DY37: 3245.364921 | DZ37: 3229.648037 | EA37: 3345.013546 | EC37: 3281.057587 | ED37: 2788.252763 | EE37: 3126.696568 | EF37: 3206.846434 | EG37: 3904.603729 | EH37: 3171.398013 | EI37: 2723.53014 | EK37: 1947 | EL37: =G313 -> 3063.118636 | EM37: =G314 -> 3063.527009 | EN37: =G315 -> 3165.764429 | EO37: =G316 -> 3196.222558 | EP37: =G317 -> 3461.744769 | EQ37: =G318 -> 3986.232411 | ER37: =G319 -> 4226.206399 | ES37: =G320 -> 3911.985769 | ET37: =G321 -> 3589.341464 | EU37: =G322 -> 3071.685828 | EV37: =G323 -> 2778.606181 | EW37: =G324 -> 2728.008854 | EY37: 3258.597248 | EZ37: 3245.003323 | FA37: 3353.537026 | FC37: 3282.386858 | FD37: 2806.597014 | FE37: 3127.726542 | FF37: 3208.207625 | FG37: 3912.491924 | FH37: 3189.907696 | FI37: 2741.521975
A38: 1923-11-30 | B38: =INDIRECT(CONCATENATE("'",B$1,"'!",B$4,(YEAR($A38)-1921)*12+MONTH($A38)+3+IF(ISNUMBER(FIND("PRV",B$6)),1,0)))*IF(AND(B$3>0,TRIM(B$9)="CFS"),Conv_Flags!$C38,1) -> 2743.06271 | C38: =INDIRECT(CONCATENATE("'",C$1,"'!",C$4,(YEAR($A38)-1921)*12+MONTH($A38)+3+IF(ISNUMBER(FIND("PRV",C$6)),1,0)))*IF(AND(C$3>0,TRIM(C$9)="CFS"),Conv_Flags!$C38,1) -> 2767.214404 | D38: =INDIRECT(CONCATENATE("'",D$1,"'!",D$4,(YEAR($A38)-1921)*12+MONTH($A38)+3+IF(ISNUMBER(FIND("PRV",D$6)),1,0)))*IF(AND(D$3>0,TRIM(D$9)="CFS"),Conv_Flags!$C38,1) -> 2765.690609 | E38: =INDIRECT(CONCATENATE("'",E$1,"'!",E$4,(YEAR($A38)-1921)*12+MONTH($A38)+3+IF(ISNUMBER(FIND("PRV",E$6)),1,0)))*IF(AND(E$3>0,TRIM(E$9)="CFS"),Conv_Flags!$C38,1) -> 2767.214404 | F38: =INDIRECT(CONCATENATE("'",F$1,"'!",F$4,(YEAR($A38)-1921)*12+MONTH($A38)+3+IF(ISNUMBER(FIND("PRV",F$6)),1,0)))*IF(AND(F$3>0,TRIM(F$9)="CFS"),Conv_Flags!$C38,1) -> 2850.929964 | G38: =INDIRECT(CONCATENATE("'",G$1,"'!",G$4,(YEAR($A38)-1921)*12+MONTH($A38)+3+IF(ISNUMBER(FIND("PRV",G$6)),1,0)))*IF(AND(G$3>0,TRIM(G$9)="CFS"),Conv_Flags!$C38,1) -> 2846.693483 | K38: 1948 | L38: =B325 -> 2707.184873 | M38: =B326 -> 2658.789883 | N38: =B327 -> 2647.182512 | O38: =B328 -> 3211.205143 | P38: =B329 -> 3195.242454 | Q38: =B330 -> 3531.5069 | R38: =B331 -> 4422 | S38: =B332 -> 4552 | T38: =B333 -> 4500 | U38: =B334 -> 3978.916208 | V38: =B335 -> 3617.373362 | W38: =B336 -> 3400 | Y38: 3669.515361 | Z38: 3691.997031 | AA38: 3535.116778 | AC38: 2966.353176 | AD38: 3543.045964 | AE38: 2739.352403 | AF38: 2928.467941 | AG38: 4088.282032 | AH38: 4018.072392 | AI38: 3344.257929 | AK38: 1948 | AL38: =C325 -> 2677.952932 | AM38: =C326 -> 2628.773725 | AN38: =C327 -> 2600.283463 | AO38: =C328 -> 3164.33584 | AP38: =C329 -> 3164.610651 | AQ38: =C330 -> 3500.908762 | AR38: =C331 -> 4422 | AS38: =C332 -> 4552 | AT38: =C333 -> 4500 | AU38: =C334 -> 3981.331169 | AV38: =C335 -> 3619.403371 | AW38: =C336 -> 3347.90864 | AY38: 3656.80926 | AZ38: 3685.793201 | BA38: 3513.29238 | BC38: 2929.486905 | BD38: 3526.869037 | BE38: 2704.673837 | BF38: 2887.103831 | BG38: 4076.803522 | BH38: 4012.672215 | BI38: 3327.841691 | BK38: 1948 | BL38: =D325 -> 2687.91756 | BM38: =D326 -> 2638.278924 | BN38: =D327 -> 2610.390419 | BO38: =D328 -> 3174.436394 | BP38: =D329 -> 3174.856687 | BQ38: =D330 -> 3511.143537 | BR38: =D331 -> 4422 | BS38: =D332 -> 4552 | BT38: =D333 -> 4500 | BU38: =D334 -> 3992.112988 | BV38: =D335 -> 3629.347856 | BW38: =D336 -> 3355.633132 | BY38: 3661.547827 | BZ38: 3688.997337 | CA38: 3520.676458 | CC38: 2939.498595 | CD38: 3533.871325 | CE38: 2714.541619 | CF38: 2897.13154 | CG38: 4080.64297 | CH38: 4018.819352 | CI38: 3330.866768 | CK38: 1948 | CL38: =E325 -> 2678.076715 | CM38: =E326 -> 2629.143357 | CN38: =E327 -> 2600.530996 | CO38: =E328 -> 3164.583216 | CP38: =E329 -> 3164.96437 | CQ38: =E330 -> 3501.262091 | CR38: =E331 -> 4422 | CS38: =E332 -> 4552 | CT38: =E333 -> 4500 | CU38: =E334 -> 3981.177997 | CV38: =E335 -> 3618.979802 | CW38: =E336 -> 3347.829401 | CY38: 3656.714664 | CZ38: 3685.572806 | DA38: 3513.378995 | DC38: 2929.778268 | DD38: 3526.519169 | DE38: 2704.913513 | DF38: 2887.389358 | DG38: 4076.936069 | DH38: 4012.518125 | DI38: 3327.424792 | DK38: 1948 | DL38: =F325 -> 2737.60041 | DM38: =F326 -> 2687.53385 | DN38: =F327 -> 2667.742282 | DO38: =F328 -> 3231.750649 | DP38: =F329 -> 3234.853688 | DQ38: =F330 -> 3571.074602 | DR38: =F331 -> 4422 | DS38: =F332 -> 4552 | DT38: =F333 -> 4500 | DU38: =F334 -> 4017.227575 | DV38: =F335 -> 3653.882658 | DW38: =F336 -> 3382.48372 | DY38: 3679.623472 | DZ38: 3695.938105 | EA38: 3554.845786 | EC38: 2995.243595 | ED38: 3551.767117 | EE38: 2765.818058 | EF38: 2953.562233 | EG38: 4103.125361 | EH38: 4034.588023 | EI38: 3335.708771 | EK38: 1948 | EL38: =G325 -> 2754.666186 | EM38: =G326 -> 2705.175588 | EN38: =G327 -> 2693.290972 | EO38: =G328 -> 3257.281603 | EP38: =G329 -> 3237.558619 | EQ38: =G330 -> 3573.77656 | ER38: =G331 -> 4422 | ES38: =G332 -> 4552 | ET38: =G333 -> 4500 | EU38: =G334 -> 4017.884469 | EV38: =G335 -> 3637.270343 | EW38: =G336 -> 3400 | EY38: 3680.962531 | EZ38: 3691.614936 | FA38: 3562.575362 | FC38: 3011.505631 | FD38: 3556.065523 | FE38: 2786.444494 | FF38: 2973.979893 | FG38: 4104.138967 | FH38: 4032.788703 | FI38: 3343.240402
A39: 1923-12-31 | B39: =INDIRECT(CONCATENATE("'",B$1,"'!",B$4,(YEAR($A39)-1921)*12+MONTH($A39)+3+IF(ISNUMBER(FIND("PRV",B$6)),1,0)))*IF(AND(B$3>0,TRIM(B$9)="CFS"),Conv_Flags!$C39,1) -> 2677.484118 | C39: =INDIRECT(CONCATENATE("'",C$1,"'!",C$4,(YEAR($A39)-1921)*12+MONTH($A39)+3+IF(ISNUMBER(FIND("PRV",C$6)),1,0)))*IF(AND(C$3>0,TRIM(C$9)="CFS"),Conv_Flags!$C39,1) -> 2701.260261 | D39: =INDIRECT(CONCATENATE("'",D$1,"'!",D$4,(YEAR($A39)-1921)*12+MONTH($A39)+3+IF(ISNUMBER(FIND("PRV",D$6)),1,0)))*IF(AND(D$3>0,TRIM(D$9)="CFS"),Conv_Flags!$C39,1) -> 2704.341684 | E39: =INDIRECT(CONCATENATE("'",E$1,"'!",E$4,(YEAR($A39)-1921)*12+MONTH($A39)+3+IF(ISNUMBER(FIND("PRV",E$6)),1,0)))*IF(AND(E$3>0,TRIM(E$9)="CFS"),Conv_Flags!$C39,1) -> 2701.260261 | F39: =INDIRECT(CONCATENATE("'",F$1,"'!",F$4,(YEAR($A39)-1921)*12+MONTH($A39)+3+IF(ISNUMBER(FIND("PRV",F$6)),1,0)))*IF(AND(F$3>0,TRIM(F$9)="CFS"),Conv_Flags!$C39,1) -> 2777.797078 | G39: =INDIRECT(CONCATENATE("'",G$1,"'!",G$4,(YEAR($A39)-1921)*12+MONTH($A39)+3+IF(ISNUMBER(FIND("PRV",G$6)),1,0)))*IF(AND(G$3>0,TRIM(G$9)="CFS"),Conv_Flags!$C39,1) -> 2773.794729 | K39: 1949 | L39: =B337 -> 3244.612852 | M39: =B338 -> 3158.948508 | N39: =B339 -> 3222.378904 | O39: =B340 -> 3238.636359 | P39: =B341 -> 3437.591285 | Q39: =B342 -> 4071 | R39: =B343 -> 4479.244009 | S39: =B344 -> 4508.881408 | T39: =B345 -> 4126.063801 | U39: =B346 -> 3569.644384 | V39: =B347 -> 3253.60127 | W39: =B348 -> 3203.978232 | Y39: 3564.688547 | Z39: 3566.086739 | AA39: 3626.215084 | AC39: 3343.072296 | AD39: 3262.312298 | AE39: 3236.314611 | AF39: 3253.095053 | AG39: 4210.23824 | AH39: 3701.434819 | AI39: 3131.345243 | AK39: 1949 | AL39: =C337 -> 3245.259031 | AM39: =C338 -> 3161.311431 | AN39: =C339 -> 3222.642221 | AO39: =C340 -> 3238.89952 | AP39: =C341 -> 3437.85427 | AQ39: =C342 -> 4071 | AR39: =C343 -> 4479.244009 | AS39: =C344 -> 4482.155012 | AT39: =C345 -> 4106.499497 | AU39: =C346 -> 3565.021487 | AV39: =C347 -> 3260.03285 | AW39: =C348 -> 3211.029815 | AY39: 3560.849541 | AZ39: 3560.403673 | BA39: 3623.412428 | BC39: 3343.767392 | BD39: 3267.810025 | BE39: 3230.654191 | BF39: 3253.708197 | BG39: 4201.143976 | BH39: 3694.536562 | BI39: 3136.81636 | BK39: 1949 | BL39: =D337 -> 3241.15299 | BM39: =D338 -> 3162.28051 | BN39: =D339 -> 3223.609827 | BO39: =D340 -> 3239.866548 | BP39: =D341 -> 3438.820653 | BQ39: =D342 -> 4071 | BR39: =D343 -> 4479.244009 | BS39: =D344 -> 4493.858074 | BT39: =D345 -> 4115.605079 | BU39: =D346 -> 3574.203768 | BV39: =D347 -> 3268.370237 | BW39: =D348 -> 3219.270778 | BY39: 3568.140129 | BZ39: 3570.09744 | CA39: 3627.273539 | CC39: 3344.130807 | CD39: 3276.228869 | CE39: 3231.198292 | CF39: 3254.675652 | CG39: 4205.328737 | CH39: 3703.685878 | CI39: 3146.245619 | CK39: 1949 | CL39: =E337 -> 3244.318612 | CM39: =E338 -> 3161.272923 | CN39: =E339 -> 3222.187551 | CO39: =E340 -> 3238.445121 | CP39: =E341 -> 3437.400174 | CQ39: =E342 -> 4071 | CR39: =E343 -> 4479.244009 | CS39: =E344 -> 4482.177112 | CT39: =E345 -> 4106.527828 | CU39: =E346 -> 3565.103935 | CV39: =E347 -> 3260.349814 | CW39: =E348 -> 3211.401792 | CY39: 3567.572397 | CZ39: 3574.213575 | DA39: 3623.285739 | DC39: 3343.393015 | DD39: 3267.405921 | DE39: 3230.229087 | DF39: 3253.323074 | DG39: 4201.09628 | DH39: 3694.692757 | DI39: 3142.787026 | DK39: 1949 | DL39: =F337 -> 3220.64237 | DM39: =F338 -> 3154.117791 | DN39: =F339 -> 3215.448607 | DO39: =F340 -> 3231.710195 | DP39: =F341 -> 3430.669745 | DQ39: =F342 -> 4071 | DR39: =F343 -> 4479.244009 | DS39: =F344 -> 4534.477639 | DT39: =F345 -> 4147.372557 | DU39: =F346 -> 3604.502009 | DV39: =F347 -> 3295.630673 | DW39: =F348 -> 3247.091627 | DY39: 3592.286632 | DZ39: 3606.087052 | EA39: 3635.992268 | EC39: 3335.553505 | ED39: 3303.360888 | EE39: 3224.326431 | EF39: 3246.517524 | EG39: 4218.4357 | EH39: 3734.572468 | EI39: 3178.005629 | EK39: 1949 | EL39: =G337 -> 3243.967983 | EM39: =G338 -> 3134.236103 | EN39: =G339 -> 3195.574693 | EO39: =G340 -> 3211.848134 | EP39: =G341 -> 3410.820943 | EQ39: =G342 -> 4071 | ER39: =G343 -> 4479.244009 | ES39: =G344 -> 4552 | ET39: =G345 -> 4159.656888 | EU39: =G346 -> 3599.255158 | EV39: =G347 -> 3273.551362 | EW39: =G348 -> 3223.987504 | EY39: 3575.167958 | EZ39: 3581.773827 | FA39: 3629.595231 | FC39: 3321.992773 | FD39: 3284.282366 | FE39: 3219.925711 | FF39: 3226.65045 | FG39: 4221.870731 | FH39: 3730.11429 | FI39: 3149.814856
A40: 1924-01-31 | B40: =INDIRECT(CONCATENATE("'",B$1,"'!",B$4,(YEAR($A40)-1921)*12+MONTH($A40)+3+IF(ISNUMBER(FIND("PRV",B$6)),1,0)))*IF(AND(B$3>0,TRIM(B$9)="CFS"),Conv_Flags!$C40,1) -> 2771.837045 | C40: =INDIRECT(CONCATENATE("'",C$1,"'!",C$4,(YEAR($A40)-1921)*12+MONTH($A40)+3+IF(ISNUMBER(FIND("PRV",C$6)),1,0)))*IF(AND(C$3>0,TRIM(C$9)="CFS"),Conv_Flags!$C40,1) -> 2795.598058 | D40: =INDIRECT(CONCATENATE("'",D$1,"'!",D$4,(YEAR($A40)-1921)*12+MONTH($A40)+3+IF(ISNUMBER(FIND("PRV",D$6)),1,0)))*IF(AND(D$3>0,TRIM(D$9)="CFS"),Conv_Flags!$C40,1) -> 2798.67752 | E40: =INDIRECT(CONCATENATE("'",E$1,"'!",E$4,(YEAR($A40)-1921)*12+MONTH($A40)+3+IF(ISNUMBER(FIND("PRV",E$6)),1,0)))*IF(AND(E$3>0,TRIM(E$9)="CFS"),Conv_Flags!$C40,1) -> 2795.598058 | F40: =INDIRECT(CONCATENATE("'",F$1,"'!",F$4,(YEAR($A40)-1921)*12+MONTH($A40)+3+IF(ISNUMBER(FIND("PRV",F$6)),1,0)))*IF(AND(F$3>0,TRIM(F$9)="CFS"),Conv_Flags!$C40,1) -> 2872.086166 | G40: =INDIRECT(CONCATENATE("'",G$1,"'!",G$4,(YEAR($A40)-1921)*12+MONTH($A40)+3+IF(ISNUMBER(FIND("PRV",G$6)),1,0)))*IF(AND(G$3>0,TRIM(G$9)="CFS"),Conv_Flags!$C40,1) -> 2868.086365 | K40: 1950 | L40: =B349 -> 3089.070403 | M40: =B350 -> 2948.372918 | N40: =B351 -> 2850.178501 | O40: =B352 -> 3145.220078 | P40: =B353 -> 3547.785865 | Q40: =B354 -> 3999.788925 | R40: =B355 -> 4411.669365 | S40: =B356 -> 4326.322881 | T40: =B357 -> 4084.551641 | U40: =B358 -> 3664.271982 | V40: =B359 -> 3286.581884 | W40: =B360 -> 3203.512854 | Y40: 3624.475456 | Z40: 3684.891628 | AA40: 3546.443942 | AC40: 3207.197405 | AD40: 3315.743576 | AE40: 3015.555244 | AF40: 3081.159324 | AG40: 4138.487481 | AH40: 3700.080844 | AI40: 3240.934599 | AK40: 1950 | AL40: =C349 -> 3099.713334 | AM40: =C350 -> 2939.379014 | AN40: =C351 -> 2839.365692 | AO40: =C352 -> 3134.414102 | AP40: =C353 -> 3536.989266 | AQ40: =C354 -> 3989.003297 | AR40: =C355 -> 4400.904771 | AS40: =C356 -> 4324.033481 | AT40: =C357 -> 4091.021421 | AU40: =C358 -> 3643.413813 | AV40: =C359 -> 3267.306209 | AW40: =C360 -> 3203.776245 | AY40: 3617.905217 | AZ40: 3680.121603 | BA40: 3539.110054 | BC40: 3198.901278 | BD40: 3305.929787 | BE40: 3012.795 | BF40: 3070.654645 | BG40: 4131.986723 | BH40: 3691.411577 | BI40: 3237.809783 | BK40: 1950 | BL40: =D349 -> 3107.887415 | BM40: =D350 -> 2954.787093 | BN40: =D351 -> 2854.767888 | BO40: =D352 -> 3149.806565 | BP40: =D353 -> 3552.368372 | BQ40: =D354 -> 4004.366773 | BR40: =D355 -> 4416.238286 | BS40: =D356 -> 4338.97964 | BT40: =D357 -> 4105.503735 | BU40: =D358 -> 3688.520629 | BV40: =D359 -> 3309.626471 | BW40: =D360 -> 3226.590999 | BY40: 3634.666789 | BZ40: 3694.318878 | CA40: 3559.120322 | CC40: 3213.571403 | CD40: 3335.159261 | CE40: 3025.495267 | CF40: 3086.050729 | CG40: 4147.130188 | CH40: 3721.609039 | CI40: 3252.468078 | CK40: 1950 | CL40: =E349 -> 3095.828379 | CM40: =E350 -> 2981.911999 | CN40: =E351 -> 2881.478599 | CO40: =E352 -> 3176.500396 | CP40: =E353 -> 3579.039039 | CQ40: =E354 -> 4031.010287 | CR40: =E355 -> 4442.82984 | CS40: =E356 -> 4364.809856 | CT40: =E357 -> 4130.447464 | CU40: =E358 -> 3681.186981 | CV40: =E359 -> 3298.648243 | CW40: =E360 -> 3234.072 | CY40: 3646.878676 | CZ40: 3702.083723 | DA40: 3574.81359 | DC40: 3236.469873 | DD40: 3332.771245 | DE40: 3038.292518 | DF40: 3112.818171 | DG40: 4173.348309 | DH40: 3727.430904 | DI40: 3253.132041 | DK40: 1950 | DL40: =F349 -> 3130.218721 | DM40: =F350 -> 3017.782407 | DN40: =F351 -> 2917.740007 | DO40: =F352 -> 3212.738888 | DP40: =F353 -> 3615.246086 | DQ40: =F354 -> 4067.180375 | DR40: =F355 -> 4478.929389 | DS40: =F356 -> 4400.017186 | DT40: =F357 -> 4099.211243 | DU40: =F358 -> 3698.060102 | DV40: =F359 -> 3318.143482 | DW40: =F360 -> 3239.269839 | DY40: 3662.685209 | DZ40: 3711.853128 | EA40: 3599.54481 | EC40: 3272.441387 | ED40: 3343.718776 | EE40: 3073.914098 | EF40: 3148.997714 | EG40: 4200.838904 | EH40: 3733.764585 | EI40: 3257.922499 | EK40: 1950 | EL40: =G349 -> 3111.361303 | EM40: =G350 -> 2954.640156 | EN40: =G351 -> 2854.650043 | EO40: =G352 -> 3149.688795 | EP40: =G353 -> 3552.250704 | EQ40: =G354 -> 4004.249225 | ER40: =G355 -> 4416.120966 | ES40: =G356 -> 4339.28716 | ET40: =G357 -> 4106.322197 | EU40: =G358 -> 3708.447574 | EV40: =G359 -> 3329.453262 | EW40: =G360 -> 3249.053323 | EY40: 3639.9061 | EZ40: 3699.577809 | FA40: 3564.627059 | FC40: 3213.806992 | FD40: 3352.576791 | FE40: 3026.872413 | FF40: 3085.928089 | FG40: 4147.23595 | FH40: 3734.598319 | FI40: 3263.259985
A41: 1924-02-29 | B41: =INDIRECT(CONCATENATE("'",B$1,"'!",B$4,(YEAR($A41)-1921)*12+MONTH($A41)+3+IF(ISNUMBER(FIND("PRV",B$6)),1,0)))*IF(AND(B$3>0,TRIM(B$9)="CFS"),Conv_Flags!$C41,1) -> 2980.645633 | C41: =INDIRECT(CONCATENATE("'",C$1,"'!",C$4,(YEAR($A41)-1921)*12+MONTH($A41)+3+IF(ISNUMBER(FIND("PRV",C$6)),1,0)))*IF(AND(C$3>0,TRIM(C$9)="CFS"),Conv_Flags!$C41,1) -> 3004.382434 | D41: =INDIRECT(CONCATENATE("'",D$1,"'!",D$4,(YEAR($A41)-1921)*12+MONTH($A41)+3+IF(ISNUMBER(FIND("PRV",D$6)),1,0)))*IF(AND(D$3>0,TRIM(D$9)="CFS"),Conv_Flags!$C41,1) -> 3007.458759 | E41: =INDIRECT(CONCATENATE("'",E$1,"'!",E$4,(YEAR($A41)-1921)*12+MONTH($A41)+3+IF(ISNUMBER(FIND("PRV",E$6)),1,0)))*IF(AND(E$3>0,TRIM(E$9)="CFS"),Conv_Flags!$C41,1) -> 3004.382434 | F41: =INDIRECT(CONCATENATE("'",F$1,"'!",F$4,(YEAR($A41)-1921)*12+MONTH($A41)+3+IF(ISNUMBER(FIND("PRV",F$6)),1,0)))*IF(AND(F$3>0,TRIM(F$9)="CFS"),Conv_Flags!$C41,1) -> 3080.792604 | G41: =INDIRECT(CONCATENATE("'",G$1,"'!",G$4,(YEAR($A41)-1921)*12+MONTH($A41)+3+IF(ISNUMBER(FIND("PRV",G$6)),1,0)))*IF(AND(G$3>0,TRIM(G$9)="CFS"),Conv_Flags!$C41,1) -> 3076.796878 | K41: 1951 | L41: =B361 -> 3250 | M41: =B362 -> 3252 | N41: =B363 -> 3322 | O41: =B364 -> 3624 | P41: =B365 -> 3794 | Q41: =B366 -> 4196.056362 | R41: =B367 -> 4419.749461 | S41: =B368 -> 4552 | T41: =B369 -> 4190.547495 | U41: =B370 -> 3475.946432 | V41: =B371 -> 3088.05595 | W41: =B372 -> 2901.943057 | Y41: 3620.335991 | Z41: 3614.085991 | AA41: 3672.191563 | AC41: 3543.005636 | AD41: 3058.8955 | AE41: 3309.439107 | AF41: 3489.666667 | AG41: 4290.019893 | AH41: 3620.380351 | AI41: 2947.517292 | AK41: 1951 | AL41: =C361 -> 3250 | AM41: =C362 -> 3252 | AN41: =C363 -> 3322 | AO41: =C364 -> 3624 | AP41: =C365 -> 3794 | AQ41: =C366 -> 4196.056362 | AR41: =C367 -> 4419.749461 | AS41: =C368 -> 4552 | AT41: =C369 -> 4186.925031 | AU41: =C370 -> 3472.3382 | AV41: =C371 -> 3084.929782 | AW41: =C372 -> 2894.103042 | AY41: 3617.508334 | AZ41: 3611.258334 | BA41: 3670.675156 | BC41: 3543.005636 | BD41: 3053.308362 | BE41: 3309.472031 | BF41: 3489.666667 | BG41: 4289.567085 | BH41: 3616.811133 | BI41: 2940.430053 | BK41: 1951 | BL41: =D361 -> 3250 | BM41: =D362 -> 3252 | BN41: =D363 -> 3322 | BO41: =D364 -> 3624 | BP41: =D365 -> 3794 | BQ41: =D366 -> 4196.056362 | BR41: =D367 -> 4419.749461 | BS41: =D368 -> 4552 | BT41: =D369 -> 4228.895236 | BU41: =D370 -> 3514.143519 | BV41: =D371 -> 3124.697583 | BW41: =D372 -> 2933.321453 | BY41: 3637.598739 | BZ41: 3631.348739 | CA41: 3684.238635 | CC41: 3543.005636 | CD41: 3093.132779 | CE41: 3312.323875 | CF41: 3489.666667 | CG41: 4294.81336 | CH41: 3652.599266 | CI41: 2979.712804 | CK41: 1951 | CL41: =E361 -> 3250 | CM41: =E362 -> 3252 | CN41: =E363 -> 3322 | CO41: =E364 -> 3624 | CP41: =E365 -> 3794 | CQ41: =E366 -> 4196.056362 | CR41: =E367 -> 4419.749461 | CS41: =E368 -> 4552 | CT41: =E369 -> 4186.933088 | CU41: =E370 -> 3472.346225 | CV41: =E371 -> 3084.886797 | CW41: =E372 -> 2894.066029 | CY41: 3617.503012 | CZ41: 3611.253012 | DA41: 3670.66983 | DC41: 3543.005636 | DD41: 3053.280875 | DE41: 3313.259 | DF41: 3489.666667 | DG41: 4289.568092 | DH41: 3616.799781 | DI41: 2940.408402 | DK41: 1951 | DL41: =F361 -> 3249.425917 | DM41: =F362 -> 3252 | DN41: =F363 -> 3322 | DO41: =F364 -> 3624 | DP41: =F365 -> 3794 | DQ41: =F366 -> 4196.056362 | DR41: =F367 -> 4419.749461 | DS41: =F368 -> 4552 | DT41: =F369 -> 4264.468378 | DU41: =F370 -> 3549.576908 | DV41: =F371 -> 3170.548679 | DW41: =F372 -> 2984.954434 | DY41: 3660.312173 | DZ41: 3654.062173 | EA41: 3698.231678 | EC41: 3542.948228 | ED41: 3140.203892 | EE41: 3313.765209 | EF41: 3489.666667 | EG41: 4299.260003 | EH41: 3688.267796 | EI41: 3030.581604 | EK41: 1951 | EL41: =G361 -> 3250 | EM41: =G362 -> 3252 | EN41: =G363 -> 3322 | EO41: =G364 -> 3624 | EP41: =G365 -> 3794 | EQ41: =G366 -> 4196.056362 | ER41: =G367 -> 4419.749461 | ES41: =G368 -> 4552 | ET41: =G369 -> 4264.450256 | EU41: =G370 -> 3549.558857 | EV41: =G371 -> 3186.594686 | EW41: =G372 -> 3001.827508 | EY41: 3665.859696 | EZ41: 3659.609696 | FA41: 3701.019761 | FC41: 3543.005636 | FD41: 3153.983633 | FE41: 3315.131665 | FF41: 3489.666667 | FG41: 4299.257738 | FH41: 3694.379388 | FI41: 3047.304579
A42: 1924-03-31 | B42: =INDIRECT(CONCATENATE("'",B$1,"'!",B$4,(YEAR($A42)-1921)*12+MONTH($A42)+3+IF(ISNUMBER(FIND("PRV",B$6)),1,0)))*IF(AND(B$3>0,TRIM(B$9)="CFS"),Conv_Flags!$C42,1) -> 2853.496776 | C42: =INDIRECT(CONCATENATE("'",C$1,"'!",C$4,(YEAR($A42)-1921)*12+MONTH($A42)+3+IF(ISNUMBER(FIND("PRV",C$6)),1,0)))*IF(AND(C$3>0,TRIM(C$9)="CFS"),Conv_Flags!$C42,1) -> 2879.617374 | D42: =INDIRECT(CONCATENATE("'",D$1,"'!",D$4,(YEAR($A42)-1921)*12+MONTH($A42)+3+IF(ISNUMBER(FIND("PRV",D$6)),1,0)))*IF(AND(D$3>0,TRIM(D$9)="CFS"),Conv_Flags!$C42,1) -> 2881.915543 | E42: =INDIRECT(CONCATENATE("'",E$1,"'!",E$4,(YEAR($A42)-1921)*12+MONTH($A42)+3+IF(ISNUMBER(FIND("PRV",E$6)),1,0)))*IF(AND(E$3>0,TRIM(E$9)="CFS"),Conv_Flags!$C42,1) -> 2879.617374 | F42: =INDIRECT(CONCATENATE("'",F$1,"'!",F$4,(YEAR($A42)-1921)*12+MONTH($A42)+3+IF(ISNUMBER(FIND("PRV",F$6)),1,0)))*IF(AND(F$3>0,TRIM(F$9)="CFS"),Conv_Flags!$C42,1) -> 2956.403635 | G42: =INDIRECT(CONCATENATE("'",G$1,"'!",G$4,(YEAR($A42)-1921)*12+MONTH($A42)+3+IF(ISNUMBER(FIND("PRV",G$6)),1,0)))*IF(AND(G$3>0,TRIM(G$9)="CFS"),Conv_Flags!$C42,1) -> 2952.833595 | K42: 1952 | L42: =B373 -> 2897.428557 | M42: =B374 -> 2998.304573 | N42: =B375 -> 3306 | O42: =B376 -> 3604 | P42: =B377 -> 3739 | Q42: =B378 -> 4022 | R42: =B379 -> 4290 | S42: =B380 -> 4552 | T42: =B381 -> 4500 | U42: =B382 -> 4150 | V42: =B383 -> 3700 | W42: =B384 -> 3400 | Y42: 3809.606191 | Z42: 3787.636079 | AA42: 3763.227761 | AC42: 3421.40377 | AD42: 3600 | AE42: 3113.676165 | AF42: 3426.217429 | AG42: 4245.875 | AH42: 4081.5 | AI42: 3360.545716 | AK42: 1952 | AL42: =C373 -> 2889.446326 | AM42: =C374 -> 2990.551799 | AN42: =C375 -> 3306 | AO42: =C376 -> 3604 | AP42: =C377 -> 3739 | AQ42: =C378 -> 4022 | AR42: =C379 -> 4290 | AS42: =C380 -> 4552 | AT42: =C381 -> 4500 | AU42: =C382 -> 4150 | AV42: =C383 -> 3700 | AW42: =C384 -> 3400 | AY42: 3809.548181 | AZ42: 3787.57807 | BA42: 3761.91651 | BC42: 3419.054992 | BD42: 3600 | BE42: 3108.762412 | BF42: 3424.9253 | BG42: 4245.875 | BH42: 4081.5 | BI42: 3360.429696 | BK42: 1952 | BL42: =D373 -> 2928.615079 | BM42: =D374 -> 3029.706172 | BN42: =D375 -> 3306 | BO42: =D376 -> 3604 | BP42: =D377 -> 3739 | BQ42: =D378 -> 4022 | BR42: =D379 -> 4290 | BS42: =D380 -> 4552 | BT42: =D381 -> 4500 | BU42: =D382 -> 4150 | BV42: =D383 -> 3700 | BW42: =D384 -> 3386.919376 | BY42: 3810.034163 | BZ42: 3788.064051 | CA42: 3767.353386 | CC42: 3430.802742 | CD42: 3595.639792 | CE42: 3133.245495 | CF42: 3431.451029 | CG42: 4245.875 | CH42: 4079.864922 | CI42: 3359.221556 | CK42: 1952 | CL42: =E373 -> 2889.433373 | CM42: =E374 -> 2990.564811 | CN42: =E375 -> 3306 | CO42: =E376 -> 3604 | CP42: =E377 -> 3739 | CQ42: =E378 -> 4022 | CR42: =E379 -> 4290 | CS42: =E380 -> 4552 | CT42: =E381 -> 4500 | CU42: =E382 -> 4150 | CV42: =E383 -> 3700 | CW42: =E384 -> 3400 | CY42: 3809.619093 | CZ42: 3787.648981 | DA42: 3761.916515 | DC42: 3419.0563 | DD42: 3600 | DE42: 3108.7578 | DF42: 3424.927469 | DG42: 4245.875 | DH42: 4081.5 | DI42: 3360.571519 | DK42: 1952 | DL42: =F373 -> 2980.640219 | DM42: =F374 -> 3081.75164 | DN42: =F375 -> 3306 | DO42: =F376 -> 3604 | DP42: =F377 -> 3739 | DQ42: =F378 -> 4022 | DR42: =F379 -> 4290 | DS42: =F380 -> 4552 | DT42: =F381 -> 4500 | DU42: =F382 -> 4150 | DV42: =F383 -> 3700 | DW42: =F384 -> 3400 | DY42: 3810.741138 | DZ42: 3788.771026 | EA42: 3777.115988 | EC42: 3446.41435 | ED42: 3600 | EE42: 3165.717269 | EF42: 3440.125273 | EG42: 4245.875 | EH42: 4081.5 | EI42: 3362.815609 | EK42: 1952 | EL42: =G373 -> 2997.498551 | EM42: =G374 -> 3098.580668 | EN42: =G375 -> 3306 | EO42: =G376 -> 3604 | EP42: =G377 -> 3739 | EQ42: =G378 -> 4022 | ER42: =G379 -> 4290 | ES42: =G380 -> 4552 | ET42: =G381 -> 4500 | EU42: =G382 -> 4150 | EV42: =G383 -> 3700 | EW42: =G384 -> 3400 | EY42: 3810.747238 | EZ42: 3788.777126 | FA42: 3779.923268 | FC42: 3451.465989 | FD42: 3600 | FE42: 3176.248243 | FF42: 3442.930111 | FG42: 4245.875 | FH42: 4081.5 | FI42: 3362.82781
A43: 1924-04-30 | B43: =INDIRECT(CONCATENATE("'",B$1,"'!",B$4,(YEAR($A43)-1921)*12+MONTH($A43)+3+IF(ISNUMBER(FIND("PRV",B$6)),1,0)))*IF(AND(B$3>0,TRIM(B$9)="CFS"),Conv_Flags!$C43,1) -> 2757.091955 | C43: =INDIRECT(CONCATENATE("'",C$1,"'!",C$4,(YEAR($A43)-1921)*12+MONTH($A43)+3+IF(ISNUMBER(FIND("PRV",C$6)),1,0)))*IF(AND(C$3>0,TRIM(C$9)="CFS"),Conv_Flags!$C43,1) -> 2785.313567 | D43: =INDIRECT(CONCATENATE("'",D$1,"'!",D$4,(YEAR($A43)-1921)*12+MONTH($A43)+3+IF(ISNUMBER(FIND("PRV",D$6)),1,0)))*IF(AND(D$3>0,TRIM(D$9)="CFS"),Conv_Flags!$C43,1) -> 2787.567365 | E43: =INDIRECT(CONCATENATE("'",E$1,"'!",E$4,(YEAR($A43)-1921)*12+MONTH($A43)+3+IF(ISNUMBER(FIND("PRV",E$6)),1,0)))*IF(AND(E$3>0,TRIM(E$9)="CFS"),Conv_Flags!$C43,1) -> 2785.313567 | F43: =INDIRECT(CONCATENATE("'",F$1,"'!",F$4,(YEAR($A43)-1921)*12+MONTH($A43)+3+IF(ISNUMBER(FIND("PRV",F$6)),1,0)))*IF(AND(F$3>0,TRIM(F$9)="CFS"),Conv_Flags!$C43,1) -> 2859.637265 | G43: =INDIRECT(CONCATENATE("'",G$1,"'!",G$4,(YEAR($A43)-1921)*12+MONTH($A43)+3+IF(ISNUMBER(FIND("PRV",G$6)),1,0)))*IF(AND(G$3>0,TRIM(G$9)="CFS"),Conv_Flags!$C43,1) -> 2856.106622 | K43: 1953 | L43: =B385 -> 3250 | M43: =B386 -> 3163.274297 | N43: =B387 -> 3345 | O43: =B388 -> 3366 | P43: =B389 -> 3713.358657 | Q43: =B390 -> 4147.313395 | R43: =B391 -> 4483.937053 | S43: =B392 -> 4552 | T43: =B393 -> 4500 | U43: =B394 -> 4087.942294 | V43: =B395 -> 3700 | W43: =B396 -> 3400 | Y43: 3816.879939 | Z43: 3828.016718 | AA43: 3809.068808 | AC43: 3457.25793 | AD43: 3589.657049 | AE43: 3285.318574 | AF43: 3383.105492 | AG43: 4322.482444 | AH43: 4065.985573 | AI43: 3375.333333 | AK43: 1953 | AL43: =C385 -> 3250 | AM43: =C386 -> 3162.578178 | AN43: =C387 -> 3345 | AO43: =C388 -> 3366 | AP43: =C389 -> 3713.358657 | AQ43: =C390 -> 4147.313395 | AR43: =C391 -> 4509.039543 | AS43: =C392 -> 4552 | AT43: =C393 -> 4500 | AU43: =C394 -> 4085.260401 | AV43: =C395 -> 3700 | AW43: =C396 -> 3400 | AY43: 3818.694748 | AZ43: 3829.831527 | BA43: 3810.879181 | BC43: 3457.118706 | BD43: 3589.210067 | BE43: 3285.144544 | BF43: 3382.989472 | BG43: 4328.758067 | BH43: 4065.3151 | BI43: 3375.333333 | BK43: 1953 | BL43: =D385 -> 3250 | BM43: =D386 -> 3181.490582 | BN43: =D387 -> 3345 | BO43: =D388 -> 3366 | BP43: =D389 -> 3713.358657 | BQ43: =D390 -> 4147.313395 | BR43: =D391 -> 4508.916543 | BS43: =D392 -> 4552 | BT43: =D393 -> 4500 | BU43: =D394 -> 4085.256607 | BV43: =D395 -> 3700 | BW43: =D396 -> 3400 | BY43: 3818.683603 | BZ43: 3829.820381 | CA43: 3812.444649 | CC43: 3460.901187 | CD43: 3589.209434 | CE43: 3288.237568 | CF43: 3386.14154 | CG43: 4328.727317 | CH43: 4065.314152 | CI43: 3375.333333 | CK43: 1953 | CL43: =E385 -> 3250 | CM43: =E386 -> 3163.429114 | CN43: =E387 -> 3345 | CO43: =E388 -> 3366 | CP43: =E389 -> 3713.358657 | CQ43: =E390 -> 4147.313395 | CR43: =E391 -> 4508.980964 | CS43: =E392 -> 4552 | CT43: =E393 -> 4500 | CU43: =E394 -> 4085.236177 | CV43: =E395 -> 3700 | CW43: =E396 -> 3400 | CY43: 3818.687526 | CZ43: 3829.824305 | DA43: 3810.943192 | DC43: 3457.288894 | DD43: 3589.20603 | DE43: 3285.357279 | DF43: 3383.131295 | DG43: 4328.743422 | DH43: 4065.309044 | DI43: 3375.333333 | DK43: 1953 | DL43: =F385 -> 3250 | DM43: =F386 -> 3176.893656 | DN43: =F387 -> 3345 | DO43: =F388 -> 3366 | DP43: =F389 -> 3713.358657 | DQ43: =F390 -> 4147.313395 | DR43: =F391 -> 4509.011969 | DS43: =F392 -> 4552 | DT43: =F393 -> 4500 | DU43: =F394 -> 4085.199816 | DV43: =F395 -> 3700 | DW43: =F396 -> 3400 | DY43: 3818.686551 | DZ43: 3829.823329 | EA43: 3812.064791 | EC43: 3459.981802 | ED43: 3589.199969 | EE43: 3288.723414 | EF43: 3385.375386 | EG43: 4328.751173 | EH43: 4065.299954 | EI43: 3375.333333 | EK43: 1953 | EL43: =G385 -> 3250 | EM43: =G386 -> 3176.96686 | EN43: =G387 -> 3345 | EO43: =G388 -> 3366 | EP43: =G389 -> 3713.358657 | EQ43: =G390 -> 4147.313395 | ER43: =G391 -> 4509.04474 | ES43: =G392 -> 4552 | ET43: =G393 -> 4500 | EU43: =G394 -> 4085.24277 | EV43: =G395 -> 3700 | EW43: =G396 -> 3400 | EY43: 3818.692593 | EZ43: 3829.829372 | FA43: 3812.077202 | FC43: 3459.996443 | FD43: 3589.207128 | FE43: 3288.741715 | FF43: 3385.387586 | FG43: 4328.759366 | FH43: 4065.310692 | FI43: 3375.333333
A44: 1924-05-31 | B44: =INDIRECT(CONCATENATE("'",B$1,"'!",B$4,(YEAR($A44)-1921)*12+MONTH($A44)+3+IF(ISNUMBER(FIND("PRV",B$6)),1,0)))*IF(AND(B$3>0,TRIM(B$9)="CFS"),Conv_Flags!$C44,1) -> 2408.197813 | C44: =INDIRECT(CONCATENATE("'",C$1,"'!",C$4,(YEAR($A44)-1921)*12+MONTH($A44)+3+IF(ISNUMBER(FIND("PRV",C$6)),1,0)))*IF(AND(C$3>0,TRIM(C$9)="CFS"),Conv_Flags!$C44,1) -> 2435.377474 | D44: =INDIRECT(CONCATENATE("'",D$1,"'!",D$4,(YEAR($A44)-1921)*12+MONTH($A44)+3+IF(ISNUMBER(FIND("PRV",D$6)),1,0)))*IF(AND(D$3>0,TRIM(D$9)="CFS"),Conv_Flags!$C44,1) -> 2437.614183 | E44: =INDIRECT(CONCATENATE("'",E$1,"'!",E$4,(YEAR($A44)-1921)*12+MONTH($A44)+3+IF(ISNUMBER(FIND("PRV",E$6)),1,0)))*IF(AND(E$3>0,TRIM(E$9)="CFS"),Conv_Flags!$C44,1) -> 2435.377474 | F44: =INDIRECT(CONCATENATE("'",F$1,"'!",F$4,(YEAR($A44)-1921)*12+MONTH($A44)+3+IF(ISNUMBER(FIND("PRV",F$6)),1,0)))*IF(AND(F$3>0,TRIM(F$9)="CFS"),Conv_Flags!$C44,1) -> 2510.674177 | G44: =INDIRECT(CONCATENATE("'",G$1,"'!",G$4,(YEAR($A44)-1921)*12+MONTH($A44)+3+IF(ISNUMBER(FIND("PRV",G$6)),1,0)))*IF(AND(G$3>0,TRIM(G$9)="CFS"),Conv_Flags!$C44,1) -> 2505.116249 | K44: 1954 | L44: =B397 -> 3250 | M44: =B398 -> 3252 | N44: =B399 -> 3350.007873 | O44: =B400 -> 3552 | P44: =B401 -> 3661 | Q44: =B402 -> 4106 | R44: =B403 -> 4546 | S44: =B404 -> 4547.064678 | T44: =B405 -> 4232.580864 | U44: =B406 -> 3563.961581 | V44: =B407 -> 3243.390756 | W44: =B408 -> 3089.462031 | Y44: 3671.632127 | Z44: 3666.618767 | AA44: 3699.455649 | AC44: 3498.601575 | AD44: 3208.952877 | AE44: =IF(AE$11="AVG",IF(AE$1="INST-VAL",AVERAGE(W43,L44:N44,L44:O44),AVERAGE(L44:O44)),SUM(L44:O44)) -> 3332.001968 | AF44: 3452.835958 | AG44: 4286.463777 | AH44: 3714.549139 | AI44: 3100.748424 | AK44: 1954 | AL44: =C397 -> 3250 | AM44: =C398 -> 3252 | AN44: =C399 -> 3349.364982 | AO44: =C400 -> 3552 | AP44: =C401 -> 3661 | AQ44: =C402 -> 4106 | AR44: =C403 -> 4546 | AS44: =C404 -> 4547.004004 | AT44: =C405 -> 4232.484432 | AU44: =C406 -> 3563.86556 | AV44: =C407 -> 3244.600016 | AW44: =C408 -> 3092.722413 | AY44: 3672.715235 | AZ44: 3667.048818 | BA44: 3699.753451 | BC44: 3498.472996 | BD44: 3210.996141 | BE44: 3331.841246 | BF44: 3452.621661 | BG44: 4286.436555 | BH44: 3715.203304 | BI44: 3104.06961 | BK44: 1954 | BL44: =D397 -> 3250 | BM44: =D398 -> 3252 | BN44: =D399 -> 3349.358031 | BO44: =D400 -> 3552 | BP44: =D401 -> 3661 | BQ44: =D402 -> 4106 | BR44: =D403 -> 4546 | BS44: =D404 -> 4552 | BT44: =D405 -> 4291.788578 | BU44: =D406 -> 3622.917295 | BV44: =D407 -> 3308.132364 | BW44: =D408 -> 3155.800977 | BY44: 3704.579392 | BZ44: 3699.735112 | CA44: 3720.583104 | CC44: 3498.471606 | CD44: 3274.095172 | CE44: =IF(CE$11="AVG",IF(CE$1="INST-VAL",AVERAGE(BW43,BL44:BN44,BL44:BO44),AVERAGE(BL44:BO44)),SUM(BL44:BO44)) -> 3331.839508 | CF44: =IF(CF$11="AVG",IF(CE$1="INST-VAL",AVERAGE(BM44:BO44,BN44:BP44),AVERAGE(BN44:BP44)),SUM(BN44:BP44)) -> 3452.619344 | CG44: =IF(CG$11="AVG",IF(CE$1="INST-VAL",AVERAGE(BP44:BS44,BQ44:BT44),AVERAGE(BQ44:BT44)),SUM(BQ44:BT44)) -> 4295.098572 | CH44: =IF(CH$11="AVG",IF(CE$1="INST-VAL",AVERAGE(BS44:BV44,BT44:BW44),AVERAGE(BT44:BW44)),SUM(BT44:BW44)) -> 3769.184682 | CI44: =IF(CI$11="AVG",IF(CE$1="INST-VAL",AVERAGE(BV44:BW44,BL45,BW44,BL45:BM45),AVERAGE(BW44,BL45:BM45)),SUM(BW44,BL45:BM45)) -> 3168.80581 | CK44: 1954 | CL44: =E397 -> 3250 | CM44: =E398 -> 3252 | CN44: =E399 -> 3349.361122 | CO44: =E400 -> 3552 | CP44: =E401 -> 3661 | CQ44: =E402 -> 4106 | CR44: =E403 -> 4546 | CS44: =E404 -> 4547.013742 | CT44: =E405 -> 4232.507415 | CU44: =E406 -> 3563.888444 | CV44: =E407 -> 3244.660981 | CW44: =E408 -> 3092.786013 | CY44: 3672.743144 | CZ44: 3667.078278 | DA44: 3699.768143 | DC44: 3498.472224 | DD44: 3211.053127 | DE44: 3331.840281 | DF44: 3452.620374 | DG44: 4286.441862 | DH44: 3715.239179 | DI44: 3104.138411 | DK44: 1954 | DL44: =F397 -> 3250 | DM44: =F398 -> 3252 | DN44: =F399 -> 3349.35477 | DO44: =F400 -> 3552 | DP44: =F401 -> 3661 | DQ44: =F402 -> 4106 | DR44: =F403 -> 4546 | DS44: =F404 -> 4552 | DT44: =F405 -> 4307.670464 | DU44: =F406 -> 3638.731584 | DV44: =F407 -> 3451.708038 | DW44: =F408 -> 3276.574724 | DY44: 3743.07668 | DZ44: 3739.134688 | EA44: 3745.253298 | EC44: 3498.470954 | ED44: 3384.75541 | EE44: 3331.838693 | EF44: 3452.618257 | EG44: 4297.083808 | EH44: 3828.099362 | EI44: 3280.554699 | EK44: 1954 | EL44: =G397 -> 3250 | EM44: =G398 -> 3252 | EN44: =G399 -> 3349.351557 | EO44: =G400 -> 3552 | EP44: =G401 -> 3661 | EQ44: =G402 -> 4106 | ER44: =G403 -> 4546 | ES44: =G404 -> 4552 | ET44: =G405 -> 4307.673138 | EU44: =G406 -> 3638.734246 | EV44: =G407 -> 3451.790264 | EW44: =G408 -> 3277.438657 | EY44: 3743.231571 | EZ44: 3739.289579 | FA44: 3745.332322 | FC44: 3498.470311 | FD44: 3385.222439 | FE44: 3331.837889 | FF44: 3452.617186 | FG44: 4297.084142 | FH44: 3828.229244 | FI44: 3281.158779
A45: 1924-06-30 | B45: =INDIRECT(CONCATENATE("'",B$1,"'!",B$4,(YEAR($A45)-1921)*12+MONTH($A45)+3+IF(ISNUMBER(FIND("PRV",B$6)),1,0)))*IF(AND(B$3>0,TRIM(B$9)="CFS"),Conv_Flags!$C45,1) -> 2036.059248 | C45: =INDIRECT(CONCATENATE("'",C$1,"'!",C$4,(YEAR($A45)-1921)*12+MONTH($A45)+3+IF(ISNUMBER(FIND("PRV",C$6)),1,0)))*IF(AND(C$3>0,TRIM(C$9)="CFS"),Conv_Flags!$C45,1) -> 2063.025683 | D45: =INDIRECT(CONCATENATE("'",D$1,"'!",D$4,(YEAR($A45)-1921)*12+MONTH($A45)+3+IF(ISNUMBER(FIND("PRV",D$6)),1,0)))*IF(AND(D$3>0,TRIM(D$9)="CFS"),Conv_Flags!$C45,1) -> 2065.25094 | E45: =INDIRECT(CONCATENATE("'",E$1,"'!",E$4,(YEAR($A45)-1921)*12+MONTH($A45)+3+IF(ISNUMBER(FIND("PRV",E$6)),1,0)))*IF(AND(E$3>0,TRIM(E$9)="CFS"),Conv_Flags!$C45,1) -> 2063.025683 | F45: =INDIRECT(CONCATENATE("'",F$1,"'!",F$4,(YEAR($A45)-1921)*12+MONTH($A45)+3+IF(ISNUMBER(FIND("PRV",F$6)),1,0)))*IF(AND(F$3>0,TRIM(F$9)="CFS"),Conv_Flags!$C45,1) -> 2137.536959 | G45: =INDIRECT(CONCATENATE("'",G$1,"'!",G$4,(YEAR($A45)-1921)*12+MONTH($A45)+3+IF(ISNUMBER(FIND("PRV",G$6)),1,0)))*IF(AND(G$3>0,TRIM(G$9)="CFS"),Conv_Flags!$C45,1) -> 2131.984489 | K45: 1955 | L45: =B409 -> 3024.050109 | M45: =B410 -> 3134.07551 | N45: =B411 -> 3360 | O45: =B412 -> 3506.573261 | P45: =B413 -> 3646.266413 | Q45: =B414 -> 3814.725704 | R45: =B415 -> 4186.897132 | S45: =B416 -> 4316.661516 | T45: =B417 -> 3819.276167 | U45: =B418 -> 3316.361671 | V45: =B419 -> 2978.667785 | W45: =B420 -> 2992.927769 | Y45: 3476.028011 | Z45: 3424.958038 | AA45: 3508.040253 | AC45: 3413.260618 | AD45: 3026.435901 | AE45: 3204.035816 | AF45: 3418.914741 | AG45: 4012.763911 | AH45: 3442.275066 | AI45: 2957.59411 | AK45: 1955 | AL45: =C409 -> 3027.466428 | AM45: =C410 -> 3139.439965 | AN45: =C411 -> 3360 | AO45: =C412 -> 3506.573261 | AP45: =C413 -> 3638.429733 | AQ45: =C414 -> 3806.899496 | AR45: =C415 -> 4193.873484 | AS45: =C416 -> 4324.514541 | AT45: =C417 -> 3836.150793 | AU45: =C418 -> 3334.812677 | AV45: =C419 -> 2992.389535 | AW45: =C420 -> 3011.33443 | AY45: 3489.72875 | AZ45: 3439.311834 | BA45: 3514.323695 | BC45: 3412.325184 | BD45: 3049.085088 | BE45: 3206.638557 | BF45: 3418.502703 | BG45: 4015.644446 | BH45: 3457.819372 | BI45: 2991.179229 | BK45: 1955 | BL45: =D409 -> 3093.787052 | BM45: =D410 -> 3205.526438 | BN45: =D411 -> 3360 | BO45: =D412 -> 3506.573261 | BP45: =D413 -> 3648.295373 | BQ45: =D414 -> 3816.751952 | BR45: =D415 -> 4203.71468 | BS45: =D416 -> 4333.817413 | BT45: =D417 -> 3846.873194 | BU45: =D418 -> 3342.570879 | BV45: =D419 -> 3003.162758 | BW45: =D420 -> 2980.168025 | BY45: 3477.680589 | BZ45: 3426.441536 | CA45: 3528.436752 | CC45: 3435.132915 | CD45: 3034.556185 | CE45: 3247.625152 | CF45: 3431.161389 | CG45: 4025.467082 | CH45: 3462.399888 | CI45: 2943.307168 | CK45: 1955 | CL45: =E409 -> 3027.536329 | CM45: =E410 -> 3139.5248 | CN45: =E411 -> 3360 | CO45: =E412 -> 3506.573261 | CP45: =E413 -> 3638.448353 | CQ45: =E414 -> 3806.918092 | CR45: =E415 -> 4193.892058 | CS45: =E416 -> 4324.576295 | CT45: =E417 -> 3835.552343 | CU45: =E418 -> 3334.263365 | CV45: =E419 -> 2991.836729 | CW45: =E420 -> 3010.795907 | CY45: 3489.441352 | CZ45: 3439.022884 | DA45: 3514.159794 | DC45: 3412.354725 | DD45: 3048.519251 | DE45: 3206.685192 | DF45: 3418.519946 | DG45: 4015.596698 | DH45: 3457.334635 | DI45: 2990.575871 | DK45: 1955 | DL45: =F409 -> 3213.235354 | DM45: =F410 -> 3252 | DN45: =F411 -> 3360 | DO45: =F412 -> 3506.573261 | DP45: =F413 -> 3659.122838 | DQ45: =F414 -> 3827.564943 | DR45: =F415 -> 4214.515304 | DS45: =F416 -> 4361.093392 | DT45: =F417 -> 3907.562907 | DU45: =F418 -> 3397.529699 | DV45: =F419 -> 3080.987581 | DW45: =F420 -> 3058.84422 | DY45: 3525.886667 | DZ45: 3473.745326 | EA45: 3569.919125 | EC45: 3459.619249 | ED45: 3111.262177 | EE45: 3304.202336 | EF45: 3440.71156 | EG45: 4046.629128 | EH45: 3524.012248 | EI45: 3038.983608 | EK45: 1955 | EL45: =G409 -> 3214.142548 | EM45: =G410 -> 3252 | EN45: =G411 -> 3360 | EO45: =G412 -> 3506.573261 | EP45: =G413 -> 3659.122838 | EQ45: =G414 -> 3827.564943 | ER45: =G415 -> 4214.515304 | ES45: =G416 -> 4361.261272 | ET45: =G417 -> 3907.86898 | EU45: =G418 -> 3397.869555 | EV45: =G419 -> 3081.787142 | EW45: =G420 -> 3059.662581 | EY45: 3526.305954 | EZ45: 3474.164612 | FA45: 3570.197369 | FC45: 3459.709969 | FD45: 3112.039217 | FE45: 3304.537127 | FF45: 3440.71156 | FG45: 4046.709357 | FH45: 3524.496901 | FI45: 3040.00403
A46: 1924-07-31 | B46: =INDIRECT(CONCATENATE("'",B$1,"'!",B$4,(YEAR($A46)-1921)*12+MONTH($A46)+3+IF(ISNUMBER(FIND("PRV",B$6)),1,0)))*IF(AND(B$3>0,TRIM(B$9)="CFS"),Conv_Flags!$C46,1) -> 1693.912774 | C46: =INDIRECT(CONCATENATE("'",C$1,"'!",C$4,(YEAR($A46)-1921)*12+MONTH($A46)+3+IF(ISNUMBER(FIND("PRV",C$6)),1,0)))*IF(AND(C$3>0,TRIM(C$9)="CFS"),Conv_Flags!$C46,1) -> 1719.997513 | D46: =INDIRECT(CONCATENATE("'",D$1,"'!",D$4,(YEAR($A46)-1921)*12+MONTH($A46)+3+IF(ISNUMBER(FIND("PRV",D$6)),1,0)))*IF(AND(D$3>0,TRIM(D$9)="CFS"),Conv_Flags!$C46,1) -> 1722.263035 | E46: =INDIRECT(CONCATENATE("'",E$1,"'!",E$4,(YEAR($A46)-1921)*12+MONTH($A46)+3+IF(ISNUMBER(FIND("PRV",E$6)),1,0)))*IF(AND(E$3>0,TRIM(E$9)="CFS"),Conv_Flags!$C46,1) -> 1718.670038 | F46: =INDIRECT(CONCATENATE("'",F$1,"'!",F$4,(YEAR($A46)-1921)*12+MONTH($A46)+3+IF(ISNUMBER(FIND("PRV",F$6)),1,0)))*IF(AND(F$3>0,TRIM(F$9)="CFS"),Conv_Flags!$C46,1) -> 1794.119157 | G46: =INDIRECT(CONCATENATE("'",G$1,"'!",G$4,(YEAR($A46)-1921)*12+MONTH($A46)+3+IF(ISNUMBER(FIND("PRV",G$6)),1,0)))*IF(AND(G$3>0,TRIM(G$9)="CFS"),Conv_Flags!$C46,1) -> 1788.820682 | K46: 1956 | L46: =B421 -> 2899.062625 | M46: =B422 -> 2982.916088 | N46: =B423 -> 3252 | O46: =B424 -> 3252 | P46: =B425 -> 3288 | Q46: =B426 -> 3971.402227 | R46: =B427 -> 4487.018905 | S46: =B428 -> 4552 | T46: =B429 -> 4461.597111 | U46: =B430 -> 4114.326708 | V46: =B431 -> 3700 | W46: =B432 -> 3400 | Y46: 3731.525554 | Z46: 3766.166165 | AA46: 3696.693639 | AC46: 3242.029703 | AD46: 3594.054451 | AE46: 3064.110649 | AF46: 3213.152681 | AG46: 4221.304922 | AH46: 4062.980955 | AI46: 3356.14226 | AK46: 1956 | AL46: =C421 -> 2952.249921 | AM46: =C422 -> 3027.517135 | AN46: =C423 -> 3252 | AO46: =C424 -> 3252 | AP46: =C425 -> 3288 | AQ46: =C426 -> 3971.402227 | AR46: =C427 -> 4487.018902 | AS46: =C428 -> 4552 | AT46: =C429 -> 4475.23327 | AU46: =C430 -> 4134.667969 | AV46: =C431 -> 3700 | AW46: =C432 -> 3400 | AY46: 3734.475324 | AZ46: 3769.210455 | BA46: 3707.674119 | BC46: 3256.268642 | BD46: 3597.444661 | BE46: 3090.858568 | BF46: 3220.586189 | BG46: 4223.009441 | BH46: 4071.47531 | BI46: 3356.189734 | BK46: 1956 | BL46: =D421 -> 2898.104665 | BM46: =D422 -> 2900.134868 | BN46: =D423 -> 3252 | BO46: =D424 -> 3252 | BP46: =D425 -> 3288 | BQ46: =D426 -> 3971.402227 | BR46: =D427 -> 4487.018902 | BS46: =D428 -> 4552 | BT46: =D429 -> 4475.3249 | BU46: =D430 -> 4134.830897 | BV46: =D431 -> 3700 | BW46: =D432 -> 3400 | BY46: 3736.949035 | BZ46: 3772.931644 | CA46: 3692.568038 | CC46: 3225.377663 | CD46: 3597.471816 | CE46: 3041.580886 | CF46: 3199.355811 | CG46: 4223.020895 | CH46: 4071.538949 | CI46: 3358.59815 | CK46: 1956 | CL46: =E421 -> 2951.586868 | CM46: =E422 -> 3026.852947 | CN46: =E423 -> 3252 | CO46: =E424 -> 3252 | CP46: =E425 -> 3288 | CQ46: =E426 -> 3971.402227 | CR46: =E427 -> 4487.018902 | CS46: =E428 -> 4552 | CT46: =E429 -> 4475.244319 | CU46: =E430 -> 4134.690538 | CV46: =E431 -> 3700 | CW46: =E432 -> 3400 | CY46: 3734.480925 | CZ46: 3769.217822 | DA46: 3707.566317 | DC46: 3256.069499 | DD46: 3597.448423 | DE46: 3090.459442 | DF46: 3220.475491 | DG46: 4223.010822 | DH46: 4071.483714 | DI46: 3356.191799 | DK46: 1956 | DL46: =F421 -> 2990.379762 | DM46: =F422 -> 3054.466102 | DN46: =F423 -> 3252 | DO46: =F424 -> 3252 | DP46: =F425 -> 3288 | DQ46: =F426 -> 3971.402227 | DR46: =F427 -> 4487.018902 | DS46: =F428 -> 4552 | DT46: =F429 -> 4475.305603 | DU46: =F430 -> 4134.796865 | DV46: =F431 -> 3700 | DW46: =F432 -> 3400 | DY46: 3736.944238 | DZ46: 3772.926617 | EA46: 3713.114122 | EC46: 3265.471419 | ED46: 3597.466144 | EE46: 3113.066994 | EF46: 3225.077684 | EG46: 4223.018483 | EH46: 4071.525617 | EI46: 3358.597905 | EK46: 1956 | EL46: =G421 -> 2991.466302 | EM46: =G422 -> 3055.979272 | EN46: =G423 -> 3252 | EO46: =G424 -> 3252 | EP46: =G425 -> 3288 | EQ46: =G426 -> 3971.402227 | ER46: =G427 -> 4487.018902 | ES46: =G428 -> 4552 | ET46: =G429 -> 4475.334705 | EU46: =G430 -> 4134.856103 | EV46: =G431 -> 3700 | EW46: =G432 -> 3400 | EY46: 3736.956358 | EZ46: 3772.941742 | FA46: 3713.338126 | FC46: 3265.882707 | FD46: 3597.476017 | FE46: 3113.819216 | FF46: 3225.329879 | FG46: 4223.02212 | FH46: 4071.547702 | FI46: 3358.60141
A47: 1924-08-31 | B47: =INDIRECT(CONCATENATE("'",B$1,"'!",B$4,(YEAR($A47)-1921)*12+MONTH($A47)+3+IF(ISNUMBER(FIND("PRV",B$6)),1,0)))*IF(AND(B$3>0,TRIM(B$9)="CFS"),Conv_Flags!$C47,1) -> 1424.342838 | C47: =INDIRECT(CONCATENATE("'",C$1,"'!",C$4,(YEAR($A47)-1921)*12+MONTH($A47)+3+IF(ISNUMBER(FIND("PRV",C$6)),1,0)))*IF(AND(C$3>0,TRIM(C$9)="CFS"),Conv_Flags!$C47,1) -> 1458.358438 | D47: =INDIRECT(CONCATENATE("'",D$1,"'!",D$4,(YEAR($A47)-1921)*12+MONTH($A47)+3+IF(ISNUMBER(FIND("PRV",D$6)),1,0)))*IF(AND(D$3>0,TRIM(D$9)="CFS"),Conv_Flags!$C47,1) -> 1457.045654 | E47: =INDIRECT(CONCATENATE("'",E$1,"'!",E$4,(YEAR($A47)-1921)*12+MONTH($A47)+3+IF(ISNUMBER(FIND("PRV",E$6)),1,0)))*IF(AND(E$3>0,TRIM(E$9)="CFS"),Conv_Flags!$C47,1) -> 1458.993183 | F47: =INDIRECT(CONCATENATE("'",F$1,"'!",F$4,(YEAR($A47)-1921)*12+MONTH($A47)+3+IF(ISNUMBER(FIND("PRV",F$6)),1,0)))*IF(AND(F$3>0,TRIM(F$9)="CFS"),Conv_Flags!$C47,1) -> 1530.837453 | G47: =INDIRECT(CONCATENATE("'",G$1,"'!",G$4,(YEAR($A47)-1921)*12+MONTH($A47)+3+IF(ISNUMBER(FIND("PRV",G$6)),1,0)))*IF(AND(G$3>0,TRIM(G$9)="CFS"),Conv_Flags!$C47,1) -> 1525.450839 | K47: 1957 | L47: =B433 -> 3250 | M47: =B434 -> 3136.853559 | N47: =B435 -> 3165.108141 | O47: =B436 -> 3280.687328 | P47: =B437 -> 3675 | Q47: =B438 -> 4129 | R47: =B439 -> 4538.920429 | S47: =B440 -> 4552 | T47: =B441 -> 4322.582596 | U47: =B442 -> 3654.6182 | V47: =B443 -> 3233.451719 | W47: =B444 -> 3162.722859 | Y47: 3699.081928 | Z47: 3684.691317 | AA47: 3675.078736 | AC47: 3389.429805 | AD47: 3282.827893 | AE47: 3223.076341 | AF47: 3283.907416 | AG47: 4304.677932 | AH47: 3767.003486 | AI47: 3218.482906 | AK47: 1957 | AL47: =C433 -> 3250 | AM47: =C434 -> 3137.138405 | AN47: =C435 -> 3166.243116 | AO47: =C436 -> 3281.821565 | AP47: =C437 -> 3675 | AQ47: =C438 -> 4129 | AR47: =C439 -> 4538.920429 | AS47: =C440 -> 4552 | AT47: =C441 -> 4335.810966 | AU47: =C442 -> 3667.791332 | AV47: =C443 -> 3246.689431 | AW47: =C444 -> 3178.8869 | AY47: 3703.826719 | AZ47: 3689.341588 | BA47: 3679.941845 | BC47: 3389.940617 | BD47: 3294.823999 | BE47: 3223.573076 | BF47: 3284.711295 | BG47: 4306.331478 | BH47: 3778.933795 | BI47: 3226.077205 | BK47: 1957 | BL47: =D433 -> 3250 | BM47: =D434 -> 3151.588902 | BN47: =D435 -> 3181.222591 | BO47: =D436 -> 3296.791307 | BP47: =D437 -> 3675 | BQ47: =D438 -> 4129 | BR47: =D439 -> 4538.920429 | BS47: =D440 -> 4552 | BT47: =D441 -> 4433.687685 | BU47: =D442 -> 3765.192093 | BV47: =D443 -> 3313.57921 | BW47: =D444 -> 3232.920391 | BY47: 3731.42426 | BZ47: 3715.691651 | CA47: 3709.991884 | CC47: 3398.82056 | CD47: 3351.365216 | CE47: 3232.801787 | CF47: 3297.102783 | CG47: 4318.566068 | CH47: 3851.229796 | CI47: 3255.236665 | CK47: 1957 | CL47: =E433 -> 3250 | CM47: =E434 -> 3137.150795 | CN47: =E435 -> 3166.264321 | CO47: =E436 -> 3281.842757 | CP47: =E437 -> 3675 | CQ47: =E438 -> 4129 | CR47: =E439 -> 4538.920429 | CS47: =E440 -> 4552 | CT47: =E441 -> 4335.821156 | CU47: =E442 -> 3667.801472 | CV47: =E443 -> 3246.712545 | CW47: =E444 -> 3178.921469 | CY47: 3703.834986 | CZ47: 3689.348089 | DA47: 3679.952912 | DC47: 3389.951574 | DD47: 3294.844917 | DE47: 3223.584124 | DF47: 3284.727492 | DG47: 4306.332752 | DH47: 3778.948977 | DI47: 3226.092581 | DK47: 1957 | DL47: =F433 -> 3250 | DM47: =F434 -> 3151.587429 | DN47: =F435 -> 3181.21983 | DO47: =F436 -> 3296.788548 | DP47: =F437 -> 3675 | DQ47: =F438 -> 4129 | DR47: =F439 -> 4538.920429 | DS47: =F440 -> 4552 | DT47: =F441 -> 4434.332649 | DU47: =F442 -> 3765.83393 | DV47: =F443 -> 3377.929609 | DW47: =F444 -> 3284.971745 | DY47: 3741.231409 | DZ47: 3725.49903 | EA47: 3719.798681 | EC47: 3398.819161 | ED47: 3390.272773 | EE47: 3232.800383 | EF47: 3297.100697 | EG47: 4318.646688 | EH47: 3874.145515 | EI47: 3283.312183 | EK47: 1957 | EL47: =G433 -> 3250 | EM47: =G434 -> 3151.60846 | EN47: =G435 -> 3181.255905 | EO47: =G436 -> 3296.824599 | EP47: =G437 -> 3675 | EQ47: =G438 -> 4129 | ER47: =G439 -> 4538.920429 | ES47: =G440 -> 4552 | ET47: =G441 -> 4434.362389 | EU47: =G442 -> 3765.863526 | EV47: =G443 -> 3377.071475 | EW47: =G444 -> 3284.948391 | EY47: 3741.165901 | EZ47: 3725.430517 | FA47: 3719.737931 | FC47: 3398.837793 | FD47: 3389.983876 | FE47: 3232.819166 | FF47: 3297.128245 | FG47: 4318.650406 | FH47: 3873.942896 | FI47: 3283.161376
A48: 1924-09-30 | B48: =INDIRECT(CONCATENATE("'",B$1,"'!",B$4,(YEAR($A48)-1921)*12+MONTH($A48)+3+IF(ISNUMBER(FIND("PRV",B$6)),1,0)))*IF(AND(B$3>0,TRIM(B$9)="CFS"),Conv_Flags!$C48,1) -> 1350.069812 | C48: =INDIRECT(CONCATENATE("'",C$1,"'!",C$4,(YEAR($A48)-1921)*12+MONTH($A48)+3+IF(ISNUMBER(FIND("PRV",C$6)),1,0)))*IF(AND(C$3>0,TRIM(C$9)="CFS"),Conv_Flags!$C48,1) -> 1387.570543 | D48: =INDIRECT(CONCATENATE("'",D$1,"'!",D$4,(YEAR($A48)-1921)*12+MONTH($A48)+3+IF(ISNUMBER(FIND("PRV",D$6)),1,0)))*IF(AND(D$3>0,TRIM(D$9)="CFS"),Conv_Flags!$C48,1) -> 1385.799051 | E48: =INDIRECT(CONCATENATE("'",E$1,"'!",E$4,(YEAR($A48)-1921)*12+MONTH($A48)+3+IF(ISNUMBER(FIND("PRV",E$6)),1,0)))*IF(AND(E$3>0,TRIM(E$9)="CFS"),Conv_Flags!$C48,1) -> 1397.944504 | F48: =INDIRECT(CONCATENATE("'",F$1,"'!",F$4,(YEAR($A48)-1921)*12+MONTH($A48)+3+IF(ISNUMBER(FIND("PRV",F$6)),1,0)))*IF(AND(F$3>0,TRIM(F$9)="CFS"),Conv_Flags!$C48,1) -> 1455.263356 | G48: =INDIRECT(CONCATENATE("'",G$1,"'!",G$4,(YEAR($A48)-1921)*12+MONTH($A48)+3+IF(ISNUMBER(FIND("PRV",G$6)),1,0)))*IF(AND(G$3>0,TRIM(G$9)="CFS"),Conv_Flags!$C48,1) -> 1449.845629 | K48: 1958 | L48: =B445 -> 3250 | M48: =B446 -> 3252 | N48: =B447 -> 3338 | O48: =B448 -> 3531 | P48: =B449 -> 3252 | Q48: =B450 -> 3416 | R48: =B451 -> 4173 | S48: =B452 -> 4552 | T48: =B453 -> 4500 | U48: =B454 -> 4150 | V48: =B455 -> 3700 | W48: =B456 -> 3400 | Y48: 3688.104915 | Z48: 3741.604915 | AA48: 3709.5 | AC48: 3341.2 | AD48: 3600 | AE48: 3296.715357 | AF48: 3373.666667 | AG48: 4004.25 | AH48: 4081.5 | AI48: 3354.300719 | AK48: 1958 | AL48: =C445 -> 3250 | AM48: =C446 -> 3252 | AN48: =C447 -> 3338 | AO48: =C448 -> 3531 | AP48: =C449 -> 3252 | AQ48: =C450 -> 3416 | AR48: =C451 -> 4173 | AS48: =C452 -> 4552 | AT48: =C453 -> 4500 | AU48: =C454 -> 4150 | AV48: =C455 -> 3700 | AW48: =C456 -> 3400 | AY48: 3688.254536 | AZ48: 3741.754536 | BA48: 3709.5 | BC48: 3341.2 | BD48: 3600 | BE48: 3298.735863 | BF48: 3373.666667 | BG48: 4004.25 | BH48: 4081.5 | BI48: 3354.339609 | BK48: 1958 | BL48: =D445 -> 3250 | BM48: =D446 -> 3252 | BN48: =D447 -> 3338 | BO48: =D448 -> 3531 | BP48: =D449 -> 3252 | BQ48: =D450 -> 3416 | BR48: =D451 -> 4173 | BS48: =D452 -> 4552 | BT48: =D453 -> 4500 | BU48: =D454 -> 4150 | BV48: =D455 -> 3700 | BW48: =D456 -> 3400 | BY48: 3690.248957 | BZ48: 3743.748957 | CA48: 3709.5 | CC48: 3341.2 | CD48: 3600 | CE48: 3305.490049 | CF48: 3373.666667 | CG48: 4004.25 | CH48: 4081.5 | CI48: 3356.746751 | CK48: 1958 | CL48: =E445 -> 3250 | CM48: =E446 -> 3252 | CN48: =E447 -> 3338 | CO48: =E448 -> 3531 | CP48: =E449 -> 3252 | CQ48: =E450 -> 3416 | CR48: =E451 -> 4173 | CS48: =E452 -> 4552 | CT48: =E453 -> 4500 | CU48: =E454 -> 4150 | CV48: =E455 -> 3700 | CW48: =E456 -> 3400 | CY48: 3688.252706 | CZ48: 3741.752706 | DA48: 3709.5 | DC48: 3341.2 | DD48: 3600 | DE48: 3298.740184 | DF48: 3373.666667 | DG48: 4004.25 | DH48: 4081.5 | DI48: 3354.341667 | DK48: 1958 | DL48: =F445 -> 3250 | DM48: =F446 -> 3252 | DN48: =F447 -> 3338 | DO48: =F448 -> 3531 | DP48: =F449 -> 3252 | DQ48: =F450 -> 3416 | DR48: =F451 -> 4173 | DS48: =F452 -> 4552 | DT48: =F453 -> 4500 | DU48: =F454 -> 4150 | DV48: =F455 -> 3700 | DW48: =F456 -> 3400 | DY48: 3690.315313 | DZ48: 3743.815313 | EA48: 3709.5 | EC48: 3341.2 | ED48: 3600 | EE48: 3311.996468 | EF48: 3373.666667 | EG48: 4004.25 | EH48: 4081.5 | EI48: 3356.740371 | EK48: 1958 | EL48: =G445 -> 3250 | EM48: =G446 -> 3252 | EN48: =G447 -> 3338 | EO48: =G448 -> 3531 | EP48: =G449 -> 3252 | EQ48: =G450 -> 3416 | ER48: =G451 -> 4173 | ES48: =G452 -> 4552 | ET48: =G453 -> 4500 | EU48: =G454 -> 4150 | EV48: =G455 -> 3700 | EW48: =G456 -> 3400 | EY48: 3690.314657 | EZ48: 3743.814657 | FA48: 3709.5 | FC48: 3341.2 | FD48: 3600 | FE48: 3311.993549 | FF48: 3373.666667 | FG48: 4004.25 | FH48: 4081.5 | FI48: 3356.743997
A49: 1924-10-31 | B49: =INDIRECT(CONCATENATE("'",B$1,"'!",B$4,(YEAR($A49)-1921)*12+MONTH($A49)+3+IF(ISNUMBER(FIND("PRV",B$6)),1,0)))*IF(AND(B$3>0,TRIM(B$9)="CFS"),Conv_Flags!$C49,1) -> 1343.38742 | C49: =INDIRECT(CONCATENATE("'",C$1,"'!",C$4,(YEAR($A49)-1921)*12+MONTH($A49)+3+IF(ISNUMBER(FIND("PRV",C$6)),1,0)))*IF(AND(C$3>0,TRIM(C$9)="CFS"),Conv_Flags!$C49,1) -> 1405.059711 | D49: =INDIRECT(CONCATENATE("'",D$1,"'!",D$4,(YEAR($A49)-1921)*12+MONTH($A49)+3+IF(ISNUMBER(FIND("PRV",D$6)),1,0)))*IF(AND(D$3>0,TRIM(D$9)="CFS"),Conv_Flags!$C49,1) -> 1400.166829 | E49: =INDIRECT(CONCATENATE("'",E$1,"'!",E$4,(YEAR($A49)-1921)*12+MONTH($A49)+3+IF(ISNUMBER(FIND("PRV",E$6)),1,0)))*IF(AND(E$3>0,TRIM(E$9)="CFS"),Conv_Flags!$C49,1) -> 1421.474632 | F49: =INDIRECT(CONCATENATE("'",F$1,"'!",F$4,(YEAR($A49)-1921)*12+MONTH($A49)+3+IF(ISNUMBER(FIND("PRV",F$6)),1,0)))*IF(AND(F$3>0,TRIM(F$9)="CFS"),Conv_Flags!$C49,1) -> 1474.009771 | G49: =INDIRECT(CONCATENATE("'",G$1,"'!",G$4,(YEAR($A49)-1921)*12+MONTH($A49)+3+IF(ISNUMBER(FIND("PRV",G$6)),1,0)))*IF(AND(G$3>0,TRIM(G$9)="CFS"),Conv_Flags!$C49,1) -> 1468.864139 | K49: 1959 | L49: =B457 -> 3250 | M49: =B458 -> 3125.804315 | N49: =B459 -> 3207.45467 | O49: =B460 -> 3648 | P49: =B461 -> 3777 | Q49: =B462 -> 4221.081231 | R49: =B463 -> 4512.53156 | S49: =B464 -> 4341.883534 | T49: =B465 -> 3838.966405 | U49: =B466 -> 3173.769646 | V49: =B467 -> 2801.27963 | W49: =B468 -> 2819.708297 | Y49: 3384.322501 | Z49: 3259.649694 | AA49: 3559.789941 | AC49: 3498.75992 | AD49: 2845.271857 | AE49: 3276.814746 | AF49: 3435.618943 | AG49: 4220.869882 | AH49: 3348.702899 | AI49: 2700.406971 | AK49: 1959 | AL49: =C457 -> 3250 | AM49: =C458 -> 3126.037653 | AN49: =C459 -> 3209.01678 | AO49: =C460 -> 3648 | AP49: =C461 -> 3777 | AQ49: =C462 -> 4221.081232 | AR49: =C463 -> 4501.123496 | AS49: =C464 -> 4330.087274 | AT49: =C465 -> 3826.477732 | AU49: =C466 -> 3161.3462 | AV49: =C467 -> 2789.052236 | AW49: =C468 -> 2814.52686 | AY49: 3377.690457 | AZ49: 3252.582325 | BA49: 3554.479122 | BC49: 3499.11901 | BD49: 2836.166615 | BE49: 3277.263608 | BF49: 3436.178535 | BG49: 4213.507717 | BH49: 3337.295809 | BI49: 2693.502814 | BK49: 1959 | BL49: =D457 -> 3250 | BM49: =D458 -> 3140.480504 | BN49: =D459 -> 3218.506986 | BO49: =D460 -> 3648 | BP49: =D461 -> 3777 | BQ49: =D462 -> 4221.081232 | BR49: =D463 -> 4523.551974 | BS49: =D464 -> 4424.009982 | BT49: =D465 -> 3920.506494 | BU49: =D466 -> 3254.895882 | BV49: =D467 -> 2882.176899 | BW49: =D468 -> 2907.170249 | BY49: 3439.479193 | BZ49: 3328.08405 | CA49: 3597.281684 | CC49: 3503.905621 | CD49: 2928.451765 | CE49: 3283.246872 | CF49: 3441.749079 | CG49: 4254.349109 | CH49: 3430.792348 | CI49: 2782.908134 | CK49: 1959 | CL49: =E457 -> 3250 | CM49: =E458 -> 3126.05 | CN49: =E459 -> 3208.982474 | CO49: =E460 -> 3648 | CP49: =E461 -> 3777 | CQ49: =E462 -> 4221.081232 | CR49: =E463 -> 4501.143877 | CS49: =E464 -> 4330.134363 | CT49: =E465 -> 3826.540411 | CU49: =E466 -> 3161.408552 | CV49: =E467 -> 2789.123656 | CW49: =E468 -> 2814.597256 | CY49: 3377.739497 | CZ49: 3252.646322 | DA49: 3554.505152 | DC49: 3499.114618 | DD49: 2836.237943 | DE49: 3277.258118 | DF49: 3436.169158 | DG49: 4213.53242 | DH49: 3337.359607 | DI49: 2693.579232 | DK49: 1959 | DL49: =F457 -> 3250 | DM49: =F458 -> 3140.442223 | DN49: =F459 -> 3219.341529 | DO49: =F460 -> 3648 | DP49: =F461 -> 3777 | DQ49: =F462 -> 4221.081232 | DR49: =F463 -> 4523.551974 | DS49: =F464 -> 4444.883471 | DT49: =F465 -> 4035.535363 | DU49: =F466 -> 3369.426566 | DV49: =F467 -> 2993.508633 | DW49: =F468 -> 3018.002344 | DY49: 3504.610852 | DZ49: 3409.586096 | EA49: 3636.731111 | EC49: 3504.064874 | ED49: 3039.877776 | EE49: 3283.445938 | EF49: 3442.02088 | EG49: 4273.94609 | EH49: 3532.478367 | EI49: 2891.798469 | EK49: 1959 | EL49: =G457 -> 3250 | EM49: =G458 -> 3140.463979 | EN49: =G459 -> 3219.311906 | EO49: =G460 -> 3648 | EP49: =G461 -> 3777 | EQ49: =G462 -> 4221.081232 | ER49: =G463 -> 4523.551974 | ES49: =G464 -> 4444.897169 | ET49: =G465 -> 4035.575608 | EU49: =G466 -> 3369.466636 | EV49: =G467 -> 2993.569831 | EW49: =G468 -> 3018.062119 | EY49: 3504.653912 | EZ49: 3409.647735 | FA49: 3636.748371 | FC49: 3504.0633 | FD49: 3039.939036 | FE49: 3283.443971 | FF49: 3442.014632 | FG49: 4273.954545 | FH49: 3532.522929 | FI49: 2891.87454
A50: 1924-11-30 | B50: =INDIRECT(CONCATENATE("'",B$1,"'!",B$4,(YEAR($A50)-1921)*12+MONTH($A50)+3+IF(ISNUMBER(FIND("PRV",B$6)),1,0)))*IF(AND(B$3>0,TRIM(B$9)="CFS"),Conv_Flags!$C50,1) -> 1499.784842 | C50: =INDIRECT(CONCATENATE("'",C$1,"'!",C$4,(YEAR($A50)-1921)*12+MONTH($A50)+3+IF(ISNUMBER(FIND("PRV",C$6)),1,0)))*IF(AND(C$3>0,TRIM(C$9)="CFS"),Conv_Flags!$C50,1) -> 1533.527285 | D50: =INDIRECT(CONCATENATE("'",D$1,"'!",D$4,(YEAR($A50)-1921)*12+MONTH($A50)+3+IF(ISNUMBER(FIND("PRV",D$6)),1,0)))*IF(AND(D$3>0,TRIM(D$9)="CFS"),Conv_Flags!$C50,1) -> 1532.04117 | E50: =INDIRECT(CONCATENATE("'",E$1,"'!",E$4,(YEAR($A50)-1921)*12+MONTH($A50)+3+IF(ISNUMBER(FIND("PRV",E$6)),1,0)))*IF(AND(E$3>0,TRIM(E$9)="CFS"),Conv_Flags!$C50,1) -> 1544.358718 | F50: =INDIRECT(CONCATENATE("'",F$1,"'!",F$4,(YEAR($A50)-1921)*12+MONTH($A50)+3+IF(ISNUMBER(FIND("PRV",F$6)),1,0)))*IF(AND(F$3>0,TRIM(F$9)="CFS"),Conv_Flags!$C50,1) -> 1607.282836 | G50: =INDIRECT(CONCATENATE("'",G$1,"'!",G$4,(YEAR($A50)-1921)*12+MONTH($A50)+3+IF(ISNUMBER(FIND("PRV",G$6)),1,0)))*IF(AND(G$3>0,TRIM(G$9)="CFS"),Conv_Flags!$C50,1) -> 1601.854288 | K50: 1960 | L50: =B469 -> 2655.88564 | M50: =B470 -> 2449.974323 | N50: =B471 -> 2371.789747 | O50: =B472 -> 2601.274896 | P50: =B473 -> 3327.651415 | Q50: =B474 -> 4021.188818 | R50: =B475 -> 4066.066006 | S50: =B476 -> 4198.201647 | T50: =B477 -> 3764.565689 | U50: =B478 -> 3227.531312 | V50: =B479 -> 2915.152075 | W50: =B480 -> 2823.546091 | Y50: 3322.935025 | Z50: 3447.600021 | AA50: 3201.902305 | AC50: 2817.845522 | AD50: 2905.158084 | AE50: 2547.035326 | AF50: 2620.625837 | AG50: 3957.891256 | AH50: 3354.530736 | AI50: 2814.233161 | AK50: 1960 | AL50: =C469 -> 2648.495296 | AM50: =C470 -> 2445.920334 | AN50: =C471 -> 2369.174829 | AO50: =C472 -> 2598.661882 | AP50: =C473 -> 3325.040535 | AQ50: =C474 -> 4018.581991 | AR50: =C475 -> 4045.182458 | AS50: =C476 -> 4184.253513 | AT50: =C477 -> 3858.41869 | AU50: =C478 -> 3296.90425 | AV50: =C479 -> 2944.590455 | AW50: =C480 -> 2818.873989 | AY50: 3323.144985 | AZ50: 3445.702694 | BA50: 3212.841519 | BC50: 2814.467245 | BD50: 2918.551214 | BE50: 2542.546207 | BF50: 2617.772382 | BG50: 3959.936894 | BH50: 3400.369287 | BI50: 2796.041714 | BK50: 1960 | BL50: =D469 -> 2737.120411 | BM50: =D470 -> 2526.690586 | BN50: =D471 -> 2451.546608 | BO50: =D472 -> 2680.975227 | BP50: =D473 -> 3407.283054 | BQ50: =D474 -> 4100.696829 | BR50: =D475 -> 4166.826334 | BS50: =D476 -> 4306.773931 | BT50: =D477 -> 3880.079911 | BU50: =D478 -> 3341.436779 | BV50: =D479 -> 3030.284152 | BW50: =D480 -> 2926.379206 | BY50: 3411.592548 | BZ50: 3526.200736 | CA50: 3296.341086 | CC50: 2897.080819 | CD50: 3012.254269 | CE50: 2627.357586 | CF50: 2699.836218 | CG50: 4054.494644 | CH50: 3467.094353 | CI50: 2908.363306 | CK50: 1960 | CL50: =E469 -> 2648.577285 | CM50: =E470 -> 2446.002656 | CN50: =E471 -> 2369.264675 | CO50: =E472 -> 2598.751663 | CP50: =E473 -> 3325.130243 | CQ50: =E474 -> 4018.67156 | CR50: =E475 -> 4045.259732 | CS50: =E476 -> 4184.33638 | CT50: =E477 -> 3858.503126 | CU50: =E478 -> 3296.988617 | CV50: =E479 -> 2944.681178 | CW50: =E480 -> 2818.969044 | CY50: 3323.229178 | CZ50: 3445.778211 | DA50: 3212.928013 | DC50: 2814.554732 | DD50: 2918.63981 | DE50: 2542.629769 | DF50: 2617.860929 | DG50: 3960.021089 | DH50: 3400.456408 | DI50: 2796.126316 | DK50: 1960 | DL50: =F469 -> 2846.818139 | DM50: =F470 -> 2627.641214 | DN50: =F471 -> 2549.881289 | DO50: =F472 -> 2779.242809 | DP50: =F473 -> 3505.460121 | DQ50: =F474 -> 4198.721477 | DR50: =F475 -> 4277.22872 | DS50: =F476 -> 4416.055349 | DT50: =F477 -> 4024.72075 | DU50: =F478 -> 3526.994962 | DV50: =F479 -> 3234.372063 | DW50: =F480 -> 3127.275453 | DY50: 3553.671495 | DZ50: 3651.909295 | EA50: 3426.201029 | EC50: 2996.999048 | ED50: 3211.153553 | EE50: 2730.740805 | EF50: 2798.558255 | EG50: 4164.273995 | EH50: 3639.438294 | EI50: 3118.256755 | EK50: 1960 | EL50: =G469 -> 2846.903684 | EM50: =G470 -> 2627.745803 | EN50: =G471 -> 2549.992885 | EO50: =G472 -> 2779.354333 | EP50: =G473 -> 3505.571542 | EQ50: =G474 -> 4198.832725 | ER50: =G475 -> 4277.330573 | ES50: =G476 -> 4416.186019 | ET50: =G477 -> 4024.855987 | EU50: =G478 -> 3527.135337 | EV50: =G479 -> 3234.47562 | EW50: =G480 -> 3127.273376 | EY50: 3553.773247 | EZ50: 3651.992468 | FA50: 3426.304824 | FC50: 2997.106554 | FD50: 3211.228519 | FE50: 2730.83765 | FF50: 2798.66863 | FG50: 4164.39077 | FH50: 3639.549161 | FI50: 3118.337268
